Workbook

Sheet Using the Model
B7: INSTRUCTIONS
B8: Step 1 | C8: Please read over the information and diagrams below.
B9: Step 2 | C9: Navigate to the Interface tab (Tab number 2).
B10: Step 3 | C10: On the Interface tab, you will presented with various options to select & complete (See examples below).
B11: Step 4 | C11: Each block the requires your information/inputs must be completed to ensure the end results are accuarate.
B12: Step 5 | C12: Every effort has been made to provide you with accuarte, industry specific data. The Built-in Assumptions and Production Assumptions tabs provide data that the user can ammend if necessary.
B13: Step 6 | C13: The remaining tabs in the excel sheet will automatically update according to the data selected and inputs used. It is not recommended these sheets are changed.
B14: Step 7 | C14: Consult the Generic Economic Model User Manual for a detailed information & guidelines on the model.
B17: THE INTERFACE - PRODUCTION INFO
B34: THE INTERFACE - APPLICANT INFO (TELL US ABOUT YOU)
B54: THE INTERFACE - QUICK FACTS (OBTAIN YOUR RESULTS)
B74: THE INTERFACE - QUICK FACTS (SPECIES REQUIREMENTS)

Sheet Interface
B1: Economic Analysis Model For the R&D aquaculture projects
E7: Tilapia Nile | F7: <Please Select a Location> | G7: <Please Select a System> | H7: <Please Select a Market> | I7: <Please select an appropriate selling price?> | J7: <Please Select Tonnage>
G8: =IF($G$7=Validation!$F$7,"This system is not suitable for Tilapia, due to the fact that the temperature of South African waters are not suitable",IF($G$7=Validation!$F$8,"Tilapia are still water fish, and thus can not be grown in raceways",IF($G$7=Validation!$F$5,"Nile Tilapia is considered to be an invasive species, please contact an aquaculture specialist to varify the conditions required for pond culture with Nile Tilapia"," "))) ->  | I8: Local Farmgate Price = R40/kg | J8: Tonnage per annum
I9: =IF($E$17=Validation!$D$41,"Suggested selling price per fish is R10 per fish for selected target weight",IF($E$17=Validation!D42,"Suggested selling price per fish is R15 per fish for selected target weight",IF($E$17=Validation!$D$43,"Calculations will be done per KG for the target weight selected",IF($E$17=Validation!$D$44,"Calculations will be done per KG for the target weight selected",IF($E$17=Validation!$D$45,"Calculations will be done per KG for the target weight selected",IF($E$17=Validation!$D$46,"Calculations will be done per KG for the target weight selected",IF($E$17=Validation!$D$47,"Calculations will be done per KG for the target weight selected"," "))))))) -> 
E11: Applicant's Profile
E13: OPERATIONAL STATUS | F13: FARM | G13: SURETY | H13: FINANCING | I13: PERCENTAGE DEBT
E14: <Select Operational Status> | F14: <Do you already have a Farm?> | G14: <Do you already have a investor?> | H14: <Type of financing> | I14: <Select % to be financed through debt>
F15: =IF($E$14=Validation!H10,"If facility already exists, please change this option to YES"," ") -> 
E16: LENGTH OF PRODUCTION/ TARGET WEIGHT | F16: TUNNEL SYSTEM | G16: EXISTING BASE SYSTEM | H16: SKILLS LEVEL
E17: <Please select the length of production(target weight)> | F17: <Tunnel System?> | G17: <Do you have an existing RAS system?> | H17: <Please Select a Skills Level>
E18: =IF(OR(E17=Validation!D39,E17=Validation!D40),"No established/existing market for this portion size is available"," Please ensure that you have selected an appropriate price") -> Please ensure that you have selected an appropriate price | F18: =IF(AND($F$7="KwaZulu-Natal",$G$7=Validation!$F$3),"RAS may work in northern extremity of KZN (near the border) without greenhouse tunnels, but even then reduces the growth period by four months in winter when water temperatures are down to 17 degrees C"," ") ->  | G18: Only applicable for Aquaponics system
E20: Quick Facts
E22: Financial Aspects
E24: INTERNAL RATE OF RETURN | F24: PROFITABILITY INDEX/COST-BENEFIT RATIO | G24: LOAN AMOUNT FOR WORKING CAPITAL | H24: LOAN AMOUNT FOR INFRASTRUCTURE & FACILITY | I24: INTEREST RATE | J24: PAYBACK PERIOD
E25: =IF(G7=" Recirculation Aquaculture System (RAS)",'IRR - RAS'!D20, IF(G7="Pond culture",'IRR - Pond'!D20,IF(G7="Aquaponics",'IRR - Aqua'!D20,IF(G7="Cage culture",'IRR - Cage'!D20,0)))) -> 0 | F25: =IF(G7=" Recirculation Aquaculture System (RAS)",'NPV & PI - RAS'!D20, IF(G7="Pond culture",'NPV & PI - Pond'!D20,IF(G7="Aquaponics",'NPV & PI - Aqua'!D20,IF(G7="Cage culture",'NPV & PI - Cage'!D20,"Please select different system")))) -> Please select different system | G25: =IF(G7="Pond culture",'Working Capital - Pond'!C38,IF(G7=" Recirculation Aquaculture System (RAS)",'Working Capital - RAS'!C38,IF(G7="Aquaponics",'Working Capital - Aqua'!C41,IF(G7="Cage Culture",'Working Capital - Cage'!C36,"Please select a different system")))) -> Please select a different system | H25: =IF(G7="Pond culture",CAPEX!S29,IF(G7=" Recirculation Aquaculture System (RAS)",CAPEX!J34,IF(G7="Aquaponics",CAPEX!Y37,IF(G7=Validation!F6,CAPEX!S52,"Please select different system")))) -> Please select different system | I25: =IF(H14="DEBT",RISK!C25,IF(H14="DEBT/EQUITY",RISK!C25,0)) -> 0 | J25: <Please select a payback period>
J26: \
E27: Operational Aspects
E28: OPERATING PERMITS | G28: YEAR UNTIL PROFITABLE | H28: YEAR UNTIL +CASHFLOW | I28: FARM SIZE REQUIRED (ha) | J28: # OF EMPLOYEES REQUIRED IN FIRST YEAR
E29: =IF($J$7<Validation!B$22,'Production Assumptions'!$C$42,IF($J$7<Validation!$B$202,'Production Assumptions'!$C$43,'Production Assumptions'!$C$44)) -> National Permit and with Risk Assessment PLUS Basic Assessment | G29: =IF(G7=" Recirculation Aquaculture System (RAS)",(INDEX('IS - RAS'!C4:N4,1,MATCH(0,'IS - RAS'!C49:N49,1)+1)),IF(G7="Pond culture",(INDEX('IS-Pond'!C4:N4,1,MATCH(0,'IS-Pond'!C50:N50,1)+1)),IF(G7="Aquaponics",(INDEX('IS - Aqua'!C4:N4,1,MATCH(0,'IS - Aqua'!C51:N51,1)+1)),IF(G7="Cage culture",(INDEX('IS - Cage'!C4:N4,1,MATCH(0,'IS - Cage'!C47:N47,1)+1)))))) -> FALSE | H29: =IF(G7=" Recirculation Aquaculture System (RAS)",(INDEX('CF - RAS'!C4:N4,1,MATCH(0,'CF - RAS'!C35:N35,1)+1)),IF(G7="Pond culture",(INDEX('CF - Pond'!C4:M4,1,MATCH(0,'CF - Pond'!C35:M35,1)+1)),IF(G7="Aquaponics",(INDEX('CF - Aqua'!C4:N4,1,MATCH(0,'CF - Aqua'!C35:N35,1)+1)),IF(G7="Cage culture",(INDEX('CF - Cage'!C4:N4,1,MATCH(0,'CF - Cage'!C35:N35,1)+1)))))) -> FALSE | I29: =IF($G$7=" Recirculation Aquaculture System (RAS)",CAPEX!E13,IF($G$7="Aquaponics",CAPEX!E13,IF($G$7=Validation!F5,CAPEX!N13,CAPEX!N40))) ->  | J29: =IF(G7="Pond culture",HR!D79,IF(G7=" Recirculation Aquaculture System (RAS)",HR!D77,IF(G7="Aquaponics",HR!D78,IF(G7="Cage Culture",HR!D80,"Please select a different system")))) -> Please select a different system
E31: Species Requirements
F33: OPTIMAL TEMPERATURE | G33: FINGERLINGS REQUIRED (MONTH 1) | H33: SURVIVAL RATE | I33: OPTIMAL pH
F34: 28 -36˚C | G34: ='Production Cycle'!B7 ->  | H34: ='Production Assumptions'!$C$20 -> 0.85 | I34: Between 6-9
F38: SALINITY | G38: OXYGEN | H38: NITRITE | I38: AMMONIA
F39: Less than 10 ppt | G39: between 4 and 6 mg/L | H39: Less than 5mg/l NO₂-N | I39: less than 2 mg/l NH₃-N
F42: *These figures and calculations are based on assumptions, please consult with a professional Aquaculture expert for more assistance and guidance before developing an aquaculture facility.

Sheet Built-In Assumptions
B1: Built-In Assumptions
D4: GENERAL ASSUMPTIONS
D5: CPI | E5: 0.051
D6: Business Tax | E6: 0.28
D7: Exchange rate $/R (20/01/2018) | E7: 12.17
D8: Water (per kl) for 2016/17 | E8: 0 | H8: *As per DAFF
D9: ='Production Assumptions'!B12 -> Production System Electricity (per kWh) | E9: 1.09 | H9: * Eskom
D10: ='Production Assumptions'!B13 -> Facilities/Building Electricity (per m²) | E10: 20.14
D11: Minimum price of Security | E11: 800
D12: Minimum price of Insurance | E12: 5000
D13: Vet services (Every 3 months) | E13: 1500
D14: Health and safety apparel | E14: 500
D15: Stationary | E15: 100
D16: Cost of 50 g fingerling | E16: 2
D17: Feed price (per kg) | E17: 12 | H17: *Industry Expert
D18: Fuel costs | E18: 13.9
D19: Fuel consumption 2 to 5 tonne bakkie (R/Km) | E19: 20
D20: Cost of Office Construction (per m²) | E20: 8350 | H20: * 2017/18 Construction Industry Standards
D21: Cost of Storage & Feed Facilities (per m²) | E21: 5850 | H21: * 2017/18 Construction Industry Standards
D22: Cost of Cold Storage (per m²) | E22: 14550 | H22: * 2017/18 Construction Industry Standards
D23: Tunnels (per m²) | E23: 638 | H23: * Industry Quotes 2018
D24: Land price (Dry land crop) | E24: 246346 | H24: * National Average over a two year period
D26: HUMAN RESOURCE ASSUMPTIONS
D27: Skills level | E27: Salary
D28: High skilled | E28: 22500 | H28: *Industry Standard
D29: Medium skilled | E29: 10000 | H29: *Industry Standard
D30: Low skilled | E30: 4000 | H30: *Industry Standard

Sheet Validation (hidden)
B1: Tonnage | D1: Species | F1: Systems | H1: Markets
B2: <Please Select Tonnage> | D2: <Please Select a Species> | F2: <Please Select a System> | H2: <Please Select a Market>
B3: 1 | D3: Abalone | F3: Recirculation Aquaculture System (RAS) | H3: Local Markets
B4: 2 | D4: Catfish | F4: Aquaponics | H4: International Markets
B5: 3 | D5: Freshwater Ornamental | F5: Pond culture
B6: 4 | D6: Marine Ornamental | F6: Cage Culture
B7: 5 | D7: Marron | F7: Flow-Through | H7: Operational Status
B8: 6 | D8: Rainbow Trout | F8: Raceways | H8: <Select Operational Status>
B9: 7 | D9: Tilapia Mossambicus | H9: Start-Up
B10: 8 | D10: Tilapia Nile | H10: Existing
B11: 9
B12: 10 | F12: Skills level
B13: 11 | D13: Location | F13: <Please Select a Skills Level> | H13: Investor
B14: 12 | D14: <Please Select a Location> | F14: No skills in Aquaculture | H14: <Do you already have a investor?>
B15: 13 | D15: Eastern Cape | F15: Work experience (1-2 years) | H15: Yes
B16: 14 | D16: Gauteng | F16: Work experience (3-5 years) | H16: No
B17: 15 | D17: KwaZulu-Natal | F17: Work experience (over 5 years)
B18: 16 | D18: Limpopo | F18: Formal education (certificate, diploma, degrees)
B19: 17 | D19: Mpumalanga | H19: YEARS FOR LOAN
B20: 18 | D20: North West | H20: <Please select a payback period>
B21: 19 | D21: Northern Cape | F21: Existing Farm | H21: 1
B22: 20 | D22: The Free State | F22: <Do you already have a Farm?> | H22: =H21+1 -> 2
B23: 21 | D23: Western Cape | F23: Yes | H23: =H22+1 -> 3
B24: 22 | F24: No | H24: 4
B25: 23 | H25: 5
B26: 24 | D26: LOAN | H26: 6
B27: 25 | D27: <Type of financing> | F27: TUNNEL SYSTEM | H27: 7
B28: 26 | D28: Debt | F28: <Tunnel System?> | H28: 8
B29: 27 | D29: Equity | F29: Yes | H29: 9
B30: 28 | D30: Debt/Equity | F30: No | H30: 10
B31: 29 | F31: Existing Ras | H31: 11
B32: 30 | D32: NATURAL POND | F32: <Do you have an existing RAS system?> | H32: 12
B33: 31 | D33: <Will a natural pond be used?> | F33: Yes | H33: 13
B34: 32 | D34: Yes | F34: No | H34: 14
B35: 33 | D35: No | F35: PRICE INCREASE % | H35: 15
B36: 34 | F36: <Please select an appropriate selling price?> | H36: 16
B37: 35 | D37: Length of production/ target weight | F37: 1 | H37: 17
B38: 36 | D38: <Please select the length of production(target weight)> | F38: 2 | H38: 18
B39: 37 | D39: 1 Month /50grams | F39: 3 | H39: 19
B40: 38 | D40: 2 Months/90grams | F40: 4 | H40: 20
B41: 39 | D41: 3 Months/160grams | F41: 5 | H41: Percentage Debt
B42: 40 | D42: 4 Months/240grams | F42: 6 | H42: <Select % to be financed through debt>
B43: 41 | D43: 5 Months/310grams | F43: 7 | H43: 0.05
B44: 42 | D44: 6 Months/350grams | F44: 8 | H44: 0.1
B45: 43 | D45: 7 Months/410grams | F45: 9 | H45: 0.15
B46: 44 | D46: 8 Months/465grams | F46: 10 | H46: 0.2
B47: 45 | D47: 9 Months/500grams | F47: 11 | H47: 0.25
B48: 46 | F48: 12 | H48: 0.3
B49: 47 | F49: 13 | H49: 0.35
B50: 48 | F50: 14 | H50: 0.4
B51: 49 | F51: 15 | H51: 0.45
B52: 50 | F52: 16 | H52: 0.5
B53: 51 | F53: 17 | H53: 0.55
B54: 52 | D54: Existing RAS | F54: 18 | H54: 0.6
B55: 53 | D55: <Do you currently have a RAS system?> | F55: 19 | H55: 0.65
B56: 54 | D56: Yes | F56: 20 | H56: 0.7
B57: 55 | D57: No | F57: 21 | H57: 0.75
B58: 56 | D58: How many ponds? | F58: 22 | H58: 0.8
B59: 57 | D59: <Select the number of Ponds that you currently have?> | F59: 23 | H59: 0.85
B60: 58 | D60: 0 | F60: 24 | H60: 0.9
B61: 59 | D61: 1 | F61: 25 | H61: 0.95
B62: 60 | D62: 2 | F62: 26 | H62: 1
B63: 61 | D63: 3 | F63: 27
B64: 62 | D64: 4 | F64: 28
B65: 63 | D65: 5 | F65: 29
B66: 64 | D66: 6 | F66: 30
B67: 65 | D67: 7 | F67: 31
B68: 66 | D68: 8 | F68: 32
B69: 67 | D69: 9 | F69: 33
B70: 68 | D70: 10 | F70: 34
B71: 69 | D71: 11 | F71: 35
B72: 70 | D72: 12 | F72: 36
B73: 71 | D73: 13 | F73: 37
B74: 72 | D74: 14 | F74: 38
B75: 73 | D75: 15 | F75: 39
B76: 74 | D76: 16 | F76: 40
B77: 75 | D77: 17 | F77: =F76+1 -> 41
B78: 76 | D78: 18 | F78: =F77+1 -> 42
B79: 77 | D79: 19 | F79: 43
B80: 78 | D80: 20 | F80: 44
B81: 79 | D81: 21 | F81: 45
B82: 80 | D82: 22 | F82: 46
B83: 81 | D83: 23 | F83: 47
B84: 82 | D84: 24 | F84: 48
B85: 83 | D85: 25 | F85: 49
B86: 84 | D86: 26 | F86: 50
B87: 85 | D87: 27 | F87: 51
B88: 86 | D88: 28 | F88: 52
B89: 87 | D89: 29 | F89: 53
B90: 88 | D90: 30 | F90: 54
B91: 89 | D91: 31 | F91: 55
B92: 90 | D92: 32 | F92: 56
B93: 91 | D93: 33 | F93: 57
B94: 92 | D94: 34 | F94: 58
B95: 93 | D95: 35 | F95: 59
B96: 94 | D96: 36 | F96: 60
B97: 95 | D97: 37 | F97: 61
B98: 96 | D98: 38 | F98: 62
B99: 97 | D99: 39 | F99: 63
B100: 98 | D100: 40 | F100: 64
B101: 99 | D101: 41 | F101: 65
B102: 100 | D102: 42 | F102: 66
B103: 101 | D103: 43 | F103: 67
B104: 102 | D104: 44 | F104: 68
B105: 103 | D105: 45 | F105: 69
B106: 104 | D106: 46 | F106: 70
B107: 105 | D107: 47 | F107: 71
B108: 106 | D108: 48 | F108: 72
B109: 107 | D109: 49 | F109: 73
B110: 108 | D110: 50 | F110: 74
B111: 109 | D111: 51 | F111: 75
B112: 110 | D112: 52 | F112: 76
B113: 111 | D113: 53 | F113: 77
B114: 112 | D114: 54 | F114: 78
B115: 113 | D115: 55 | F115: 79
B116: 114 | D116: 56 | F116: 80
B117: 115 | D117: 57 | F117: 81
B118: 116 | D118: 58 | F118: 82
B119: 117 | D119: 59 | F119: 83
B120: 118 | D120: 60 | F120: 84
B121: 119 | F121: 85
B122: 120 | F122: 86
B123: 121 | F123: 87
B124: 122 | F124: 88
B125: 123 | F125: 89
B126: 124 | F126: 90
B127: 125 | F127: 91
B128: 126 | F128: 92
B129: 127 | F129: 93
B130: 128 | F130: 94
B131: 129 | F131: 95
B132: 130 | F132: 96
B133: 131 | F133: 97
B134: 132 | F134: 98
B135: 133 | F135: 99
B136: 134 | F136: 100
B137: 135 | F137: 101
B138: 136 | F138: 102
B139: 137 | F139: 103
B140: 138 | F140: 104
B141: 139 | F141: 105
B142: 140 | F142: =F141+1 -> 106
B143: 141 | F143: 107
B144: 142 | F144: 108
B145: 143 | F145: 109
B146: 144 | F146: 110
B147: 145 | F147: 111
B148: 146 | F148: 112
B149: 147 | F149: 113
B150: 148 | F150: 114
B151: 149 | F151: 115
B152: 150 | F152: 116
B153: 151 | F153: 117
B154: 152 | F154: 118
B155: 153 | F155: 119
B156: 154 | F156: 120
B157: 155 | F157: 121
B158: 156 | F158: 122
B159: 157 | F159: 123
B160: 158 | F160: 124
B161: 159 | F161: 125
B162: 160 | F162: 126
B163: 161 | F163: 127
B164: 162 | F164: 128
B165: 163 | F165: =F164+1 -> 129
B166: 164 | F166: =F165+1 -> 130
B167: 165 | F167: 131
B168: 166 | F168: 132
B169: 167 | F169: 133
B170: 168 | F170: 134
B171: 169 | F171: 135
B172: 170 | F172: 136
B173: 171 | F173: 137
B174: 172 | F174: 138
B175: 173 | F175: 139
B176: 174 | F176: 140
B177: 175 | F177: 141
B178: 176 | F178: 142
B179: 177 | F179: 143
B180: 178 | F180: 144
B181: 179 | F181: 145
B182: 180 | F182: 146
B183: 181 | F183: 147
B184: 182 | F184: 148
B185: 183 | F185: 149
B186: 184 | F186: 150
B187: 185
B188: 186
B189: 187
B190: 188
B191: 189
B192: 190
B193: 191
B194: 192
B195: 193
B196: 194
B197: 195
B198: 196
B199: 197
B200: 198
... 5302 more rows

Sheet Production Assumptions
A1: PRODUCTION ASSUMPTIONS - NILE TILAPIA MODEL
B3: General Assumptions | E3: Pond Culture Assumptions | H3: m2 grow space that can be accomodated
B4: CPI | C4: ='Built-In Assumptions'!$E$5 -> 0.051 | E4: Fertiliser (4,5kg) | G4: 435 | H4: Leafy greens (g feed/m²/day) | I4: 40
B5: Days per month | C5: 30 | E5: High quality disinfectant chemicals | G5: 100 | H5: No plants that can be accomodated
B6: CPI in percentage | C6: =C4+1 -> 1.051 | E6: water treatment chemical 70% chlorine calcium hypochlorite | G6: =5000/12 -> 416.6666667 | H6: Leafy greens/m² | I6: 20
B7: Business Tax | C7: ='Built-In Assumptions'!$E$6 -> 0.28 | E7: Fertiliser used per pond (m²) | G7: 0.05
B8: Vet services (once a month) | C8: ='Built-In Assumptions'!$E$13 -> 1500 | E8: Pond size | G8: =IF(Interface!$J$7<=3,'Containment Unit Calculations'!E5*'Containment Unit Calculations'!E6,IF(Interface!$J$7<=5,'Containment Unit Calculations'!F5*'Containment Unit Calculations'!F6,IF(Interface!$J$7<=8,'Containment Unit Calculations'!G5*'Containment Unit Calculations'!G6,'Containment Unit Calculations'!H5*'Containment Unit Calculations'!H6))) -> 1000 | H8: Vegetables (P.a) tons | I8: 2.36
B9: Water (per kl) | C9: 0 | D9: DAFF | E9: Fertilizer required/pond | G9: =G7*G8 -> 50 | H9: Vegetables (P.m) | I9: =I8/12 -> 0.1966666667
B10: water price increses by: (pa) | C10: =C6 -> 1.051 | E10: Water requirement annually (m3) | F10: 0 | G10: =F10*C9 -> 0 | H10: Vegetables -pm-kgs | I10: =I9*1000 -> 196.6666667
B11: Security | C11: ='Built-In Assumptions'!$E$11 -> 800 | E11: Pond Water filling/month | F11: =IF(Interface!$F$7=Validation!$D$15,TEMPERATURE!$M$29,IF(Interface!$F$7=Validation!$D$16,TEMPERATURE!$M$22,IF(Interface!$F$7=Validation!$D$17,TEMPERATURE!$M$26,IF(Interface!$F$7=Validation!$D$19,TEMPERATURE!$M$25,IF(Interface!$F$7=Validation!$D$20,TEMPERATURE!$M$23,IF(Interface!$F$7=Validation!$D$21,TEMPERATURE!$M$28,IF(Interface!$F$7=Validation!$D$22,TEMPERATURE!$M$24,TEMPERATURE!$M$27))))))) -> 0.00535689
B12: Production System Electricity (per kWh) | C12: ='Built-In Assumptions'!$E$9 -> 1.09 | D12: Eskom (commercial) | E12: Artificial feed required for Pond | G12: 0.6 | H12: yield, | I12: kg/m2 per month
B13: Facilities/Building Electricity (per m²) | C13: ='Built-In Assumptions'!E10 -> 20.14 | E13: Pond refirtilization | F13: 0 | H13: Spinach | I13: =19/12 -> 1.583333333
B14: insurance | C14: ='Built-In Assumptions'!$E$12 -> 5000 | E14: Increase in electricity consumption | G14: 0.05 | H14: Basil | I14: =21/12 -> 1.75
B15: Sale price: R/kg | C15: 40 | E15: Aquaponics Assumptions | H15: Lettuce | I15: =29/12 -> 2.416666667
B16: Cost of a fingerling | C16: ='Built-In Assumptions'!$E$16 -> 2 | E16: Seedlings per m2 | H16: Choi | I16: =20/12 -> 1.666666667
B17: Conversion : litres per m³ | C17: 1000 | E17: Spinach | G17: 1.5 | H17: Additional | I17: =SUM(I18:I19) -> 2640
B18: Land price (Dry land crop) | C18: ='Built-In Assumptions'!E24 -> 246346 | E18: Basil | G18: 1.75 | H18: Chemicals/Nutrients | I18: =IF(Interface!$J$7<=50,700,IF(Interface!$J$7<=200,1000,(1000*1.2))) -> 1200
B19: Months of production (max) | C19: 9 | E19: Lettuce | G19: 1.25 | H19: Grow Medium | I19: =IF(Interface!$J$7<=50,783,IF(Interface!$J$7<=200,1200,(1200*1.2))) -> 1440
B20: Expected Survival % | C20: 0.85 | E20: Choi | G20: 1.2 | H20: % of water reuse
B21: Mortality rate | C21: =1-C20 -> 0.15 | E21: Average price of seedlings | G21: =SUM(G17:G20)/4 -> 1.425 | H21: Water Reuse | I21: 0.2
B22: Monthly mortality rate | C22: =C21/C19 -> 0.01666666667 | E22: Average system biomass (kg) | G22: 0.2623460427
E23: Prices of veggeis (R/kg)
B24: Feed | C24: Price/kg | D24: FEED AVERAGE | E24: =E17 -> Spinach | G24: 7.62
B25: Powder feed (1 month) | C25: 12 | D25: =C25+C26+C27 -> 36 | E25: =E18 -> Basil | G25: 16.98
B26: Crumb feed (2 month) | C26: 12 | D26: ='Built-In Assumptions'!E17 -> 12 | E26: Lettuce | G26: 11.61
B27: Pellets feed (3 month and over) | C27: 12 | E27: Choi | G27: 6.13
B28: % of fish mass/day (month 1) | C28: 0.04 | E28: Average sales price: | G28: =SUM(G24:G27)/4 -> 10.585
B29: % of fish mass/day (month 2) | C29: 0.029
B30: % of fish mass/day (month 3) | C30: 0.025
B31: % of fish mass/day (month 4) | C31: 0.022
B32: % of fish mass/day (month 5) | C32: 0.021
B33: % of fish mass/day (month 6) | C33: 0.02
B34: % of fish mass/day (month 7+) | C34: 0.019
B35: System Stocking Density
B36: Stocking Number
B37: Pond Density kg/m2 | C37: 1.5 | D37: *Industry expert/Al-Sayed
B38: Cage kg/m3 | C38: 53 | D38: *Industry expert/Al-Sayed
B39: RAS/Aquaponics kg/m³ | C39: 20 | D39: *Industry expert/Al-Sayed
B41: Tonnages | C41: Permits | D41: Price
B42: Tons <20 | C42: National Permit with Risk Assessment | D42: =(30000+40000)/2 -> 35000
B43: Tons <200 | C43: National Permit and with Risk Assessment PLUS Basic Assessment | D43: 200000
B44: Tons>200 | C44: National Permit and with Risk Assessment PLUS Basic Assessment | D44: =(300000+800000)/2 -> 550000
B47: HUMAN RESOURCES | E47: RAS | F47: tons | H47: Pond | K47: Aquaponics | N47: Cage
B48: Skills level | C48: Salary | D48: No. of employees | E48: Ratio (person per ton) | F48: =Interface!$J$7 -> <Please Select Tonnage> | H48: Ratio (person per ton) | I48: =Interface!$J$7 -> <Please Select Tonnage> | K48: Ratio (person per ton) | L48: =Interface!$J$7 -> <Please Select Tonnage> | N48: Ratio (person per ton) | O48: =Interface!$J$7 -> <Please Select Tonnage>
B49: High skilled | C49: ='Built-In Assumptions'!E28 -> 22500 | E49: 0.001 | F49: =IF(Interface!$J$7<8,0.5,IF(Interface!$J$7<=100,1,IF(Interface!$J$7>=101,ROUNDUP((1+G49),1)))) ->  | G49: =E49*$F$48 ->  | H49: 0.001 | I49: =IF(Interface!$J$7<8,0.5,IF(Interface!$J$7<=100,1,IF(Interface!$J$7>=101,ROUNDUP((1+J49),1)))) ->  | J49: =H49*$F$48 ->  | K49: 0.002 | L49: =IF(Interface!$J$7<8,0.5,IF(Interface!$J$7<=100,1,IF(Interface!$J$7>=101,ROUNDUP((1+M49),1)))) ->  | M49: =K49*$F$48 ->  | N49: 0.002 | O49: =IF(Interface!$J$7<8,0.5,IF(Interface!$J$7<=100,1,IF(Interface!$J$7>=101,ROUNDUP((1+P49),1)))) ->  | P49: =N49*$F$48 -> 
B50: Medium skilled | C50: ='Built-In Assumptions'!E29 -> 10000 | E50: 0.01 | F50: =IF(Interface!$J$7<=50,0,IF(Interface!$J$7>50,ROUNDUP((1+G50),1))) ->  | G50: =E50*$F$48 ->  | H50: 0.001 | I50: =IF(Interface!$J$7<=50,0,IF(Interface!$J$7>50,ROUNDUP((1+J50),1))) ->  | J50: =H50*$F$48 ->  | K50: 0.01 | L50: =IF(Interface!$J$7<=50,0,IF(Interface!$J$7>50,ROUNDUP((1+M50),1))) ->  | M50: =K50*$F$48 ->  | N50: 0.01 | O50: =IF(Interface!$J$7<=50,0,IF(Interface!$J$7>50,ROUNDUP((1+P50),1))) ->  | P50: =N50*$F$48 -> 
B51: Low skilled | C51: ='Built-In Assumptions'!E30 -> 4000 | E51: 0.04 | F51: =IF(Interface!$J$7<10,1,IF(Interface!$J$7<=49,3,IF(Interface!$J$7<=100,5,ROUNDUP((1+G51),1)))) ->  | G51: =E51*$F$48 ->  | H51: 0.05 | I51: =IF(Interface!$J$7<10,1,IF(Interface!$J$7<=49,3,IF(Interface!$J$7<=100,5,ROUNDUP((1+J51),1)))) ->  | J51: =H51*$F$48 ->  | K51: 0.05 | L51: =IF(Interface!$J$7<8,2,IF(Interface!$J$7<=10,4,IF(Interface!$J$7<=50,5,ROUNDUP((1+M51),1)))) ->  | N51: 0.02 | O51: =IF(Interface!$J$7<10,1,IF(Interface!$J$7<=49,3,IF(Interface!$J$7<=100,5,ROUNDUP((1+P51),1)))) ->  | P51: =N51*$F$48 -> 
C52: =SUM(C49:C51) -> 36500 | E52: Number of people: | F52: =ROUNDDOWN(F51+F50+F49,0) ->  | H52: Number of people: | I52: =ROUNDDOWN(I51+I50+I49,0) ->  | K52: No of people | L52: =ROUNDDOWN(L51+L50+L49,0) ->  | N52: No. of people | O52: =ROUNDDOWN(O51+O50+O49,0) -> 
B55: Assumption: Working Capital -RAS
C56: Debtors Recovery Rate | D56: RateRecovery Period
C57: 12 | D57: 1
B59: Expected to 11 of the 12 months payments in present year and the llast month in the following
B60: year.
C61: YEAR 1 | D61: YEAR 2 | E61: YEAR 3 | F61: YEAR 4 | G61: YEAR 5 | H61: YEAR 6 | I61: YEAR 7 | J61: YEAR 8 | K61: YEAR 9 | L61: YEAR 10
B62: INCOME | C62: ='IS - RAS'!D7 -> 0 | D62: ='IS - RAS'!E7 -> 0 | E62: ='IS - RAS'!F7 -> 0 | F62: ='IS - RAS'!G7 -> 0 | G62: ='IS - RAS'!H7 -> 0 | H62: ='IS - RAS'!I7 -> 0 | I62: ='IS - RAS'!J7 -> 0 | J62: ='IS - RAS'!K7 -> 0 | K62: ='IS - RAS'!L7 -> 0 | L62: ='IS - RAS'!M7 -> 0
B63: EFFECT ON CASH | C63: =(($C$57-$D$57)/$C$57*C62+($D$57/$C$57)*C65) -> 0 | D63: =(($C$57-$D$57)/$C$57*D62+($D$57/$C$57)*C62) -> 0 | E63: 0 | F63: 0 | G63: 0 | H63: =(($C$57-$D$57)/$C$57*H62+($D$57/$C$57)*G62) -> 0 | I63: 0 | J63: =(($C$57-$D$57)/$C$57*J62+($D$57/$C$57)*I62) -> 0 | K63: 0 | L63: 0
B64: DEBTORS | C64: =C62-C63 -> 0 | D64: =C64+D62-D63 -> 0 | E64: =D64+E62-E63 -> 0 | F64: =E64+F62-F63 -> 0 | G64: 0 | H64: =G64+H62-H63 -> 0 | I64: 0 | J64: =I64+J62-J63 -> 0 | K64: 0 | L64: 0
B66: Assumption: Working Capital_POND
C67: Debtors Recovery Rate | D67: RateRecovery Period
C68: 12 | D68: 1
B70: Expected to 11 of the 12 months payments in present year and the llast month in the following
B71: year.
C72: YEAR 1 | D72: YEAR 2 | E72: YEAR 3 | F72: YEAR 4 | G72: YEAR 5 | H72: YEAR 6 | I72: YEAR 7 | J72: YEAR 8 | K72: YEAR 9 | L72: YEAR 10
B73: INCOME | C73: ='IS-Pond'!D7 -> 0 | D73: ='IS-Pond'!E7 -> 0 | E73: ='IS-Pond'!F7 -> 0 | F73: ='IS-Pond'!G7 -> 0 | G73: ='IS-Pond'!H7 -> 0 | H73: ='IS-Pond'!I7 -> 0 | I73: ='IS-Pond'!J7 -> 0 | J73: ='IS-Pond'!K7 -> 0 | K73: ='IS-Pond'!L7 -> 0 | L73: ='IS-Pond'!M7 -> 0
B74: EFFECT ON CASH | C74: =(($C$57-$D$57)/$C$57*C73+($D$57/$C$57)*C76) -> 0 | D74: =(($C$57-$D$57)/$C$57*D73+($D$57/$C$57)*C73) -> 0 | E74: 0 | F74: 0 | G74: 0 | H74: =(($C$57-$D$57)/$C$57*H73+($D$57/$C$57)*G73) -> 0 | I74: 0 | J74: =(($C$57-$D$57)/$C$57*J73+($D$57/$C$57)*I73) -> 0 | K74: 0 | L74: 0
B75: DEBTORS | C75: =C73-C74 -> 0 | D75: =C75+D73-D74 -> 0 | E75: =D75+E73-E74 -> 0 | F75: =E75+F73-F74 -> 0 | G75: 0 | H75: =G75+H73-H74 -> 0 | I75: 0 | J75: =I75+J73-J74 -> 0 | K75: 0 | L75: 0
B78: Assumption: Working Capital_Aquaponics
C79: Debtors Recovery Rate | D79: RateRecovery Period
C80: 12 | D80: 1
B82: Expected to 11 of the 12 months payments in present year and the llast month in the following
B83: year.
C84: YEAR 1 | D84: YEAR 2 | E84: YEAR 3 | F84: YEAR 4 | G84: YEAR 5 | H84: YEAR 6 | I84: YEAR 7 | J84: YEAR 8 | K84: YEAR 9 | L84: YEAR 10
B85: INCOME | C85: ='IS - Aqua'!D8 ->  | D85: ='IS - Aqua'!E8 ->  | E85: ='IS - Aqua'!F8 ->  | F85: ='IS - Aqua'!G8 ->  | G85: ='IS - Aqua'!H8 ->  | H85: ='IS - Aqua'!I8 ->  | I85: ='IS - Aqua'!J8 ->  | J85: ='IS - Aqua'!K8 ->  | K85: ='IS - Aqua'!L8 ->  | L85: ='IS - Aqua'!M8 -> 
B86: EFFECT ON CASH | C86: =(($C$57-$D$57)/$C$57*C85+($D$57/$C$57)*C88) ->  | D86: =(($C$57-$D$57)/$C$57*D85+($D$57/$C$57)*C85) ->  | H86: =(($C$57-$D$57)/$C$57*H85+($D$57/$C$57)*G85) ->  | J86: =(($C$57-$D$57)/$C$57*J85+($D$57/$C$57)*I85) -> 
B87: DEBTORS | C87: =C85-C86 ->  | D87: =C87+D85-D86 ->  | E87: =D87+E85-E86 ->  | F87: =E87+F85-F86 ->  | G87: =F87+G85-G86 ->  | H87: =G87+H85-H86 ->  | I87: =H87+I85-I86 ->  | J87: =I87+J85-J86 ->  | K87: =J87+K85-K86 ->  | L87: =K87+L85-L86 -> 
B89: Assumption: Working Capital_Cage
C90: Debtors Recovery Rate | D90: RateRecovery Period
C91: 12 | D91: 1
B93: Expected to 11 of the 12 months payments in present year and the llast month in the following
B94: year.
C95: YEAR 1 | D95: YEAR 2 | E95: YEAR 3 | F95: YEAR 4 | G95: YEAR 5 | H95: YEAR 6 | I95: YEAR 7 | J95: YEAR 8 | K95: YEAR 9 | L95: YEAR 10
B96: INCOME | C96: ='IS - Cage'!D7 -> 0 | D96: ='IS - Cage'!E7 -> 0 | E96: ='IS - Cage'!F7 -> 0 | F96: ='IS - Cage'!G7 -> 0 | G96: ='IS - Cage'!H7 -> 0 | H96: ='IS - Cage'!I7 -> 0 | I96: ='IS - Cage'!J7 -> 0 | J96: ='IS - Cage'!K7 -> 0 | K96: ='IS - Cage'!L7 -> 0 | L96: ='IS - Cage'!M7 -> 0
B97: EFFECT ON CASH | C97: =(($C$57-$D$57)/$C$57*C96+($D$57/$C$57)*C100) -> 0 | D97: =(($C$57-$D$57)/$C$57*D96+($D$57/$C$57)*C96) -> 0 | E97: 0 | F97: 0 | G97: 0 | H97: =(($C$57-$D$57)/$C$57*H96+($D$57/$C$57)*G96) -> 0 | I97: 0 | J97: =(($C$57-$D$57)/$C$57*J96+($D$57/$C$57)*I96) -> 0 | K97: 0 | L97: 0
B98: DEBTORS | C98: =C96-C97 -> 0 | D98: =C98+D96-D97 -> 0 | E98: =D98+E96-E97 -> 0 | F98: =E98+F96-F97 -> 0 | G98: =F98+G96-G97 -> 0 | H98: =G98+H96-H97 -> 0 | I98: =H98+I96-I97 -> 0 | J98: =I98+J96-J97 -> 0 | K98: =J98+K96-K97 -> 0 | L98: =K98+L96-L97 -> 0
B102: Assumptions on costs and increases | E102: Water Treatment (Less 20 Tons)
B103: Increase in Insurance | C103: 0.02 | E103: water testing equipment - pH, temp, EC, DO combo meter | F103: =IF(Interface!$J$7<20,10000,0) -> 0
B104: Market size | C104: =IF(Interface!$E$17=Validation!$D$47,0.5,IF(Interface!$E$17=Validation!$D$46,0.465,IF(Interface!$E$17=Validation!$D$45,0.41,IF(Interface!$E$17=Validation!$D$44,0.35,IF(Interface!$E$17=Validation!$D$43,0.31,IF(Interface!$E$17=Validation!$D$42,0.24,IF(Interface!$E$17=Validation!$D$41,0.16,IF(Interface!$E$17=Validation!D40,0.09,0.05)))))))) -> 0.05 | E104: ~per year consumables | F104: 2000
B105: Transport cost (local) | C105: =($C$130*$C$127)+($C$129*$C$126) ->  | E105: Test kits for ammonia and nitrite | F105: 6000
B106: Telephone costs | C106: =IF(AND(Interface!$H$7=Validation!$H$4,Interface!$J$7<10),500,IF(AND(Interface!$H$7=Validation!$H$4,Interface!$J$7<100),1000,IF(AND(Interface!$H$7=Validation!$H$4,Interface!$J$7>100),2000,IF(AND(Interface!$H$7=Validation!$H$3,Interface!$J$7<10),250,IF(AND(Interface!$H$7=Validation!$H$3,Interface!$J$7<100),500,1000))))) -> 1000
B107: Sumps and waste water treatment | C107: =IF(Interface!$J$7<10,500,IF(Interface!$J$7<100,1000,1500*(Interface!$J$7*0.015))) ->  | E107: Water Treatment (20 tons +)
B108: increase in Sumps and waste water treatment | C108: 0.03 | E108: Water Test Equipment | F108: 50000
B109: Health and safety apparel | C109: ='Built-In Assumptions'!E14 -> 500 | E109: Per year consumables per 20 tons | F109: 3000
B110: stationary | C110: ='Built-In Assumptions'!E15 -> 100 | E110: Per year consumables selected scale | F110: =Interface!J7/20*'Production Assumptions'!F109 -> 
B111: Cleaning materials | C111: 800
B112: increase in cleaning materials | C112: 0.025
B113: Vet Services | C113: =IF(Interface!$J$7<10,'Built-In Assumptions'!E13,IF(Interface!$J$7<100,5000*(1.1),10000*(1.02))) -> 10200
B114: Increase in vet services | C114: 0.01
B115: Bank Charges | C115: =C116/100 -> 0.019
B116: Charges | C116: 1.9
B117: Marketing | C117: =IF(Interface!$J$7<10,500,500*(1+(0.02*Interface!$J$7))) -> 
B118: increase in marketing | C118: 0.01 | D118: FNB
B119: Percentage of variable costs kept as a reserve | C119: =IF(Interface!$J$7<4,0.01,0.02) -> 0.02
B120: Transport cost (International) | C120: =($C$130*$C$128)+($C$129*$C$126) -> 
B121: Exchange rate $/R (20/01/2018) | C121: ='Built-In Assumptions'!E7 -> 12.17
B122: liters per cubic meter | C122: 1000
B123: # market sized fish needed for desired scale/yr | C123: =Interface!$J$7*1000/'Production Assumptions'!$C$104 -> 
B124: # market sized fish needed for desired scale/month | C124: =$C$123/12 -> 
B125: 2kg Weight conversion - Fuel | C125: 1.46e-07
B126: Weight conversion - Fuel | C126: =$C$125/2 -> 7.3e-08
B127: Local Radius (KM) from farm (max) | C127: =IF(OR(Interface!$F$7=Validation!$D$15,Interface!$F$7=Validation!$D$16,Interface!$F$7=Validation!$D$23,Interface!$F$7=Validation!$D$17),30,IF(OR(Interface!$F$7=Validation!$D$18,Interface!$F$7=Validation!$D$19,Interface!$F$7=Validation!$D$20,Interface!$F$7=Validation!$D$22),50,120))*(Interface!$J$7/2) -> 
B128: International Radius (KM) from farm (max) | C128: =IF(OR(Interface!$F$7=Validation!$D$15,Interface!$F$7=Validation!$D$16,Interface!$F$7=Validation!$D$23,Interface!$F$7=Validation!$D$17),240,IF(OR(Interface!$F$7=Validation!$D$18,Interface!$F$7=Validation!$D$19,Interface!$F$7=Validation!$D$20,Interface!$F$7=Validation!$D$22),350,600))*(Interface!$J$7/2) -> 
B129: KGs of fish | C129: =Interface!$J$7*1000 -> 
B130: 2 to 5 tonne bakkie (R/Km) | C130: ='Built-In Assumptions'!E19 -> 20

Sheet Production Cycle
A1: PRODUCTION CYCLE - NILE TILAPIA MODEL
B3: Growth rate up to harvest mass
B4: Month 1 | C4: Month 2 | D4: Month 3 | E4: Month 4 | F4: Month 5 | G4: Month 6 | H4: Month 7 | I4: Month 8 | J4: Month 9
A5: Stocking (Batch) | B5: =B7*B6/1000 ->  | C5: =C7*C6/1000 -> 0 | D5: =D7*D6/1000 -> 0 | E5: 0 | F5: 0 | G5: 0 | H5: 0 | I5: 0 | J5: =J7*J6/1000 -> 0
A6: Mass (g/fish) | B6: 50 | C6: 90 | D6: 160 | E6: 240 | F6: 310 | G6: 350 | H6: 410 | I6: 465 | J6: 500
A7: Cycle 1 | B7: =$B$144 ->  | C7: =IF(OR(Interface!$E$17=Validation!$D$52,Interface!$E$17=Validation!$D$51,Interface!$E$17=Validation!$D$50,Interface!$E$17=Validation!$D$49,Interface!$E$17=Validation!$D$48,Interface!$E$17=Validation!$D$47,Interface!$E$17=Validation!$D$46,Interface!$E$17=Validation!$D$45,Interface!$E$17=Validation!$D$44,Interface!$E$17=Validation!$D$43,Interface!$E$17=Validation!$D$42,Interface!$E$17=Validation!$D$41,Interface!$E$17=Validation!$D$40),'Production Cycle'!B$7-('Production Cycle'!B$7*'Production Assumptions'!$C$22),0) -> 0 | D7: =IF(OR(Interface!$E$17=Validation!$D$52,Interface!$E$17=Validation!$D$51,Interface!$E$17=Validation!$D$50,Interface!$E$17=Validation!$D$49,Interface!$E$17=Validation!$D$48,Interface!$E$17=Validation!$D$47,Interface!$E$17=Validation!$D$46,Interface!$E$17=Validation!$D$45,Interface!$E$17=Validation!$D$44,Interface!$E$17=Validation!$D$43,Interface!$E$17=Validation!$D$42,Interface!$E$17=Validation!$D$41),'Production Cycle'!C$7-('Production Cycle'!C$7*'Production Assumptions'!$C$22),0) -> 0 | E7: =IF(OR(Interface!$E$17=Validation!$D$52,Interface!$E$17=Validation!$D$51,Interface!$E$17=Validation!$D$50,Interface!$E$17=Validation!$D$49,Interface!$E$17=Validation!$D$48,Interface!$E$17=Validation!$D$47,Interface!$E$17=Validation!$D$46,Interface!$E$17=Validation!$D$45,Interface!$E$17=Validation!$D$44,Interface!$E$17=Validation!$D$43,Interface!$E$17=Validation!$D$42),'Production Cycle'!D$7-('Production Cycle'!D$7*'Production Assumptions'!$C$22),0) -> 0 | F7: =IF(OR(Interface!$E$17=Validation!$D$52,Interface!$E$17=Validation!$D$51,Interface!$E$17=Validation!$D$50,Interface!$E$17=Validation!$D$49,Interface!$E$17=Validation!$D$48,Interface!$E$17=Validation!$D$47,Interface!$E$17=Validation!$D$46,Interface!$E$17=Validation!$D$45,Interface!$E$17=Validation!$D$44,Interface!$E$17=Validation!$D$43),'Production Cycle'!E$7-('Production Cycle'!E$7*'Production Assumptions'!$C$22),0) -> 0 | G7: =IF(OR(Interface!$E$17=Validation!$D$52,Interface!$E$17=Validation!$D$51,Interface!$E$17=Validation!$D$50,Interface!$E$17=Validation!$D$49,Interface!$E$17=Validation!$D$48,Interface!$E$17=Validation!$D$47,Interface!$E$17=Validation!$D$46,Interface!$E$17=Validation!$D$45,Interface!$E$17=Validation!$D$44),'Production Cycle'!F$7-('Production Cycle'!F$7*'Production Assumptions'!$C$22),0) -> 0 | H7: =IF(OR(Interface!$E$17=Validation!$D$52,Interface!$E$17=Validation!$D$51,Interface!$E$17=Validation!$D$50,Interface!$E$17=Validation!$D$49,Interface!$E$17=Validation!$D$48,Interface!$E$17=Validation!$D$47,Interface!$E$17=Validation!$D$46,Interface!$E$17=Validation!$D$45),'Production Cycle'!G$7-('Production Cycle'!G$7*'Production Assumptions'!$C$22),0) -> 0 | I7: =IF(OR(Interface!$E$17=Validation!$D$52,Interface!$E$17=Validation!$D$51,Interface!$E$17=Validation!$D$50,Interface!$E$17=Validation!$D$49,Interface!$E$17=Validation!$D$48,Interface!$E$17=Validation!$D$47,Interface!$E$17=Validation!$D$46),'Production Cycle'!H$7-('Production Cycle'!H$7*'Production Assumptions'!$C$22),0) -> 0 | J7: =IF(OR(Interface!$E$17=Validation!$D$52,Interface!$E$17=Validation!$D$51,Interface!$E$17=Validation!$D$50,Interface!$E$17=Validation!$D$49,Interface!$E$17=Validation!$D$48,Interface!$E$17=Validation!$D$47),'Production Cycle'!I$7-('Production Cycle'!I$7*'Production Assumptions'!$C$22),0) -> 0
A8: feed(g)/fish/day | B8: =$B$6*('Production Assumptions'!$C$28) -> 2 | C8: =IF(C7=0,0,(((B6+C6)/2)*'Production Assumptions'!$C$29)) -> 0 | D8: =IF(D7=0,0,(((C6+D6)/2)*'Production Assumptions'!$C$30)) -> 0 | E8: =IF(E7=0,0,(((D6+E6)/2)*'Production Assumptions'!$C$31)) -> 0 | F8: =IF(F7=0,0,(((E6+F6)/2)*'Production Assumptions'!$C$32)) -> 0 | G8: =IF(G7=0,0,(((F6+G6)/2)*'Production Assumptions'!$C$33)) -> 0 | H8: =IF(H7=0,0,(((G6+H6)/2)*'Production Assumptions'!$C$34)) -> 0 | I8: =IF(I7=0,0,(((H6+I6)/2)*'Production Assumptions'!$C$34)) -> 0 | J8: =IF(J7=0,0,(((I6+J6)/2)*'Production Assumptions'!$C$34)) -> 0
A9: feed(kg)/batch/day | B9: =($B$8*$B$7)/1000 ->  | C9: =($C$8*$C$7)/1000 -> 0 | D9: =($D$8*$D$7)/1000 -> 0 | E9: =($E$8*$E$7)/1000 -> 0 | F9: =($F$8*$F$7)/1000 -> 0 | G9: =($G$8*$G$7)/1000 -> 0 | H9: =($H$8*$H$7)/1000 -> 0 | I9: =($I$8*$I$7)/1000 -> 0 | J9: =($J$8*$J$7)/1000 -> 0
A10: feed(Kg)/batch/mnth | B10: =($B$9*30) ->  | C10: =($C$9*30) -> 0 | D10: =($D$9*30) -> 0 | E10: =(E$9*30) -> 0 | F10: =(F$9*30) -> 0 | G10: 0 | H10: 0 | I10: 0 | J10: 0
A11: Batch Biomass | B11: =B6*B7/1000 ->  | C11: =C6*C7/1000 -> 0 | D11: =D6*D7/1000 -> 0 | E11: 0 | F11: 0 | G11: 0 | H11: 0 | I11: 0 | J11: 0
A12: Pond surface area needed full system (m2) | B12: =(MAX(B11:J11))/'Production Assumptions'!C37 -> 
A13: Surface area per pond of earthen ponds (m2) | B13: =IF(Interface!J7<=3,'Containment Unit Calculations'!E4,IF(Interface!$J$7<=5,'Containment Unit Calculations'!F4,IF(Interface!$J$7<=8,'Containment Unit Calculations'!H4,'Containment Unit Calculations'!I4))) -> 1000
A14: Number of ponds required | B14: =ROUNDUP(B12/B13,0) -> 
A15: RAS Water Volume needed full system (m³) | B15: =(MAX(B11:J11))/'Production Assumptions'!C39 -> 
A16: Volume of tank containment units (m³) | B16: =IF(Interface!J7<=1,'Containment Unit Calculations'!N4,IF(Interface!$J$7<=5,'Containment Unit Calculations'!P4,IF(Interface!$J$7<=10,'Containment Unit Calculations'!R4,'Containment Unit Calculations'!S4))) -> 21.59844949
A17: Number tanks required | B17: =ROUNDUP(B15/B16,0) -> 
A18: Aquaponics Water Volume required | B18: =(MAX(B11:J11))/'Production Assumptions'!C39 -> 
A19: Volume of Containment Units (m³) | B19: =IF(Interface!J7<=1,'Containment Unit Calculations'!X4,IF(Interface!$J$7<=5,'Containment Unit Calculations'!Z4,IF(Interface!$J$7<=10,'Containment Unit Calculations'!AB4,'Containment Unit Calculations'!AC4))) -> 21.59844949
A20: Number of tanks required | B20: =ROUNDUP(B18/B19,0) -> 
A21: Cage Grow Out Water Volume required (m³) | B21: =(MAX(B11:J11))/'Production Assumptions'!C38 -> 
A22: 2 | C22: =B6 -> 50 | D22: 90 | E22: 160 | F22: 240 | G22: 310 | H22: 350 | I22: 410 | J22: 465
A23: feed/fish/day | C23: =IF(C$7=0,0,B8) -> 0 | D23: 0 | E23: 0 | F23: 0 | G23: 0 | H23: 0 | I23: 0 | J23: 0
A24: feed/batch/day | C24: 0 | D24: 0 | E24: 0 | F24: 0 | G24: 0 | H24: 0 | I24: 0 | J24: 0
A25: feed/batch/mnth | C25: 0 | D25: 0 | E25: 0 | F25: 0 | G25: 0 | H25: 0 | I25: 0 | J25: 0
A26: batch biomass | C26: 0 | D26: 0 | E26: 0 | F26: 0 | G26: 0 | H26: 0 | I26: 0 | J26: 0
A27: Pond surface area needed full system (m2) | C27: =IF(C$7=0,0,B12) -> 0
A28: Surface area per pond of earthen ponds (m2) | C28: 0
A29: Number of ponds required | C29: 0
A30: RAS Water Volume needed full system (m³) | C30: 0
A31: Volume of tank containment units (m³) | C31: 0
A32: Number tanks required | C32: 0
A33: Aquaponics Water Volume required | C33: 0
A34: Volume of Containment Units (m³) | C34: 0
A35: Number of tanks required | C35: 0
A36: Cage Grow Out Water Volume required (m³) | C36: 0
A37: 3 | D37: =C22 -> 50 | E37: 90 | F37: 160 | G37: 240 | H37: 310 | I37: 350 | J37: 410
A38: =A25 -> feed/batch/mnth | D38: =IF(D$7=0,0,C25) -> 0 | E38: 0 | F38: 0 | G38: 0 | H38: 0 | I38: 0 | J38: 0
A39: =A26 -> batch biomass | D39: 0 | E39: 0 | F39: 0 | G39: 0 | H39: 0 | I39: 0 | J39: 0
A40: Pond surface area needed full system (m2) | D40: =IF(D$7=0,0,C27) -> 0
A41: Surface area per pond of earthen ponds (m2) | D41: 0
A42: Number of ponds required | D42: 0
A43: RAS Water Volume needed full system (m³) | D43: 0
A44: Volume of tank containment units (m³) | D44: 0
A45: Number tanks required | D45: 0
A46: Aquaponics Water Volume required | D46: 0
A47: Volume of Containment Units (m³) | D47: 0
A48: Number of tanks required | D48: 0
A49: Cage Grow Out Water Volume required (m³) | D49: 0
A50: 4 | E50: =D37 -> 50 | F50: 90 | G50: 160 | H50: 240 | I50: 310 | J50: 350
A51: =A38 -> feed/batch/mnth | E51: =IF(E$7=0,0,D38) -> 0 | F51: 0 | G51: 0 | H51: 0 | I51: 0 | J51: 0
A52: =A39 -> batch biomass | E52: 0 | F52: 0 | G52: 0 | H52: 0 | I52: 0 | J52: 0
A53: Pond surface area needed full system (m2) | E53: =IF(E$7=0,0,D40) -> 0
A54: Surface area per pond of earthen ponds (m2) | E54: 0
A55: Number of ponds required | E55: 0
A56: RAS Water Volume needed full system (m³) | E56: 0
A57: Volume of tank containment units (m³) | E57: 0
A58: Number tanks required | E58: 0
A59: Aquaponics Water Volume required | E59: 0
A60: Volume of Containment Units (m³) | E60: 0
A61: Number of tanks required | E61: 0
A62: Cage Grow Out Water Volume required (m³) | E62: 0
A63: 5 | F63: =E50 -> 50 | G63: =F50 -> 90 | H63: =G50 -> 160 | I63: =H50 -> 240 | J63: =I50 -> 310
A64: =A51 -> feed/batch/mnth | F64: =IF(F$7=0,0,E51) -> 0 | G64: 0 | H64: 0 | I64: 0 | J64: 0
A65: =A52 -> batch biomass | F65: 0 | G65: 0 | H65: 0 | I65: 0 | J65: 0
A66: Pond surface area needed full system (m2) | F66: =IF(F$7=0,0,E53) -> 0
A67: Surface area per pond of earthen ponds (m2) | F67: 0
A68: Number of ponds required | F68: 0
A69: RAS Water Volume needed full system (m³) | F69: 0
A70: Volume of tank containment units (m³) | F70: 0
A71: Number tanks required | F71: 0
A72: Aquaponics Water Volume required | F72: 0
A73: Volume of Containment Units (m³) | F73: 0
A74: Number of tanks required | F74: 0
A75: Cage Grow Out Water Volume required (m³) | F75: 0
A76: 6 | G76: =F63 -> 50 | H76: =G63 -> 90 | I76: =H63 -> 160 | J76: =I63 -> 240
A77: =A64 -> feed/batch/mnth | G77: =IF(G$7=0,0,F64) -> 0 | H77: 0 | I77: 0 | J77: 0
A78: =A65 -> batch biomass | G78: 0 | H78: 0 | I78: 0 | J78: 0
A79: Pond surface area needed full system (m2) | G79: =IF(G$7=0,0,F66) -> 0
A80: Surface area per pond of earthen ponds (m2) | G80: 0
A81: Number of ponds required | G81: 0
A82: RAS Water Volume needed full system (m³) | G82: 0
A83: Volume of tank containment units (m³) | G83: 0
A84: Number tanks required | G84: 0
A85: Aquaponics Water Volume required | G85: 0
A86: Volume of Containment Units (m³) | G86: 0
A87: Number of tanks required | G87: 0
A88: Cage Grow Out Water Volume required (m³) | G88: 0
A89: 7 | H89: =G76 -> 50 | I89: =H76 -> 90 | J89: =I76 -> 160
A90: =A77 -> feed/batch/mnth | H90: =IF(H$7=0,0,G77) -> 0 | I90: 0 | J90: 0
A91: =A78 -> batch biomass | H91: 0 | I91: 0 | J91: 0
A92: Pond surface area needed full system (m2) | H92: =IF(H$7=0,0,G79) -> 0
A93: Surface area per pond of earthen ponds (m2) | H93: 0
A94: Number of ponds required | H94: 0
A95: RAS Water Volume needed full system (m³) | H95: 0
A96: Volume of tank containment units (m³) | H96: 0
A97: Number tanks required | H97: 0
A98: Aquaponics Water Volume required | H98: 0
A99: Volume of Containment Units (m³) | H99: 0
A100: Number of tanks required | H100: 0
A101: Cage Grow Out Water Volume required (m³) | H101: 0
A102: 8 | I102: =H89 -> 50 | J102: =I89 -> 90
A103: =A77 -> feed/batch/mnth | I103: =IF(I$7=0,0,H90) -> 0 | J103: =IF(J$7=0,0,I90) -> 0
A104: =A91 -> batch biomass | I104: =IF(I$7=0,0,H91) -> 0 | J104: =IF(J$7=0,0,I91) -> 0
A105: Pond surface area needed full system (m2) | I105: =IF(I$7=0,0,H92) -> 0
A106: Surface area per pond of earthen ponds (m2) | I106: 0
A107: Number of ponds required | I107: 0
A108: RAS Water Volume needed full system (m³) | I108: 0
A109: Volume of tank containment units (m³) | I109: 0
A110: Number tanks required | I110: 0
A111: Aquaponics Water Volume required | I111: 0
A112: Volume of Containment Units (m³) | I112: 0
A113: Number of tanks required | I113: 0
A114: Cage Grow Out Water Volume required (m³) | I114: 0
A115: 9 | J115: =I102 -> 50
A116: =A103 -> feed/batch/mnth | J116: =IF(J$7=0,0,I103) -> 0
A117: =A104 -> batch biomass | J117: 0
A118: Pond surface area needed full system (m2) | J118: 0
A119: Surface area per pond of earthen ponds (m2) | J119: 0
A120: Number of ponds required | J120: 0
A121: RAS Water Volume needed full system (m³) | J121: 0
A122: Volume of tank containment units (m³) | J122: 0
A123: Number tanks required | J123: 0
A124: Aquaponics Water Volume required | J124: 0
A125: Volume of Containment Units (m³) | J125: 0
A126: Number of tanks required | J126: 0
A127: Cage Grow Out Water Volume required (m³) | J127: 0
A129: Total Feed required (kg)/mo | B129: =B116+B103+B90+B77+B64+B51+B38+B25+B10 ->  | C129: 0 | D129: 0 | E129: 0 | F129: 0 | G129: 0 | H129: 0 | I129: 0 | J129: 0
A130: Total System Biomass (kg) | B130: =(B11+B26+B39+B52+B65+B78+B91+B104+B117) ->  | C130: 0 | D130: 0 | E130: 0 | F130: 0 | G130: 0 | H130: 0 | I130: 0 | J130: 0
B131: Jan | C131: Feb | D131: Mar | E131: Apr | F131: May | G131: June | H131: July | I131: Aug | J131: Sept
C133: System Vol
A134: # Earthen Pond Required (1.25m ave depth) | B134: =B14+C29+D42+E55+F68+G81+H94+I107+J120 ->  | C134: =(B12+C27+D40+E53+F66+G79+H92+I105+J118)/'Containment Unit Calculations'!I7 -> 
A135: # RAS grow out containments required | B135: =B17+C32+D45+E58+F71+G84+H97+I110+J123 ->  | C135: =B15+C30+D43+E56+F69+G82+H95+I108+J121 -> 
A136: # Aquaponics fish grow out containments required | B136: =B20+C35+D48+E61+F74+G87+H100+I113+J126 ->  | C136: =B18+C33+D46+E59+F72+G85+H98+I111+J124 -> 
A137: m3 Floating Cages required | B137: =B21+C36+D49+E62+F75+G88+H101+I114+J127 ->  | C137: =B21+C36+D49+E62+F75+G88+H101+I114+J127 -> 
A140: Production cycle: | B140: =IF(Interface!$E$17=Validation!$D$39,1,IF(Interface!$E$17=Validation!$D$40,2,IF(Interface!$E$17=Validation!$D$41,3,IF(Interface!$E$17=Validation!$D$42,4,IF(Interface!$E$17=Validation!$D$43,5,IF(Interface!$E$17=Validation!$D$44,6,IF(Interface!$E$17=Validation!$D$45,7,IF(Interface!$E$17=Validation!$D$46,8,IF(Interface!$E$17=Validation!$D$47,9,IF(Interface!$E$17=Validation!$D$48,10,IF(Interface!$E$17=Validation!$D$49,11,IF(Interface!$E$17=Validation!$D$50,12,IF(Interface!$E$17=Validation!$D$51,13,IF(Interface!$E$17=Validation!$D$52,14,"Please select a production cycle ")))))))))))))) -> Please select a production cycle
A141: How many kgs per month (before mortality) | B141: =((Interface!$J$7*B146)/12) -> 
A142: How many fish required before mortality | B142: =B141/(B145/B146) -> 
A143: Number of fish lost (per cycle) | B143: =B144-B142 -> 
A144: Total no fish required in month 1 (incl. mortality) | B144: =B142/(1-('Production Assumptions'!C22*'Production Cycle'!B140)) -> 
A145: Weight of Fish for sale (grams): | B145: =IF(Interface!$E$17=Validation!$D$39,(B6),IF(Interface!$E$17=Validation!$D$40,C6,IF(Interface!$E$17=Validation!$D$41,D6,IF(Interface!$E$17=Validation!$D$42,E6,IF(Interface!$E$17=Validation!$D$43,F6,IF(Interface!$E$17=Validation!$D$44,G6,IF(Interface!$E$17=Validation!$D$45,H6,IF(Interface!$E$17=Validation!$D$46,I6,IF(Interface!$E$17=Validation!$D$47,J6,"Please select a production cycle "))))))))) -> Please select a production cycle
A146: conversions | B146: 1000
A149: Aquaponics Calculations
F150: % water reuse
A151: Leafy greens- 40–50 grams of feed per square metre per day | D151: ='Production Assumptions'!I4 -> 40 | F151: ='Production Assumptions'!I21 -> 0.2
A152: Leafy greens 20-25 per square metre | D152: ='Production Assumptions'!I6 -> 20
A154: Full Farm | B154: =B4 -> Month 1 | C154: Month 2 | D154: Month 3 | E154: Month 4 | F154: Month 5 | G154: Month 6 | H154: Month 7 | I154: Month 8 | J154: Month 9
A155: Average grams feed input/day (full capacity) | B155: =B129/30*1000 ->  | C155: =C129/30*1000 -> 0 | D155: 0 | E155: 0 | F155: 0 | G155: 0 | H155: 0 | I155: 0 | J155: 0
A156: Average grams feed input/day (operational capacity) | B156: =B155*$F$151 ->  | C156: =C155*$F$151 -> 0 | D156: 0 | E156: 0 | F156: 0 | G156: 0 | H156: 0 | I156: 0 | J156: 0
A157: m2 | B157: =B$156/$D$151 ->  | C157: =C$156/$D$151 -> 0 | D157: 0 | E157: 0 | F157: 0 | G157: 0 | H157: 0 | I157: 0 | J157: 0
A159: Veggie | B159: =B154 -> Month 1 | C159: =C154 -> Month 2 | D159: Month 3 | E159: Month 4 | F159: Month 5 | G159: Month 6 | H159: Month 7 | I159: Month 8 | J159: Month 9 | M159: kg/m2 per annum
A160: Spinach | B160: =(B$157*$M$160)/12/4 ->  | C160: =(C$157*$M$160)/12/4 -> 0 | D160: 0 | E160: 0 | F160: 0 | G160: 0 | H160: 0 | I160: 0 | J160: 0 | L160: Spinach | M160: =19 -> 19
A161: Basil | B161: =(B$157*$M$161)/12/4 ->  | C161: =(C$157*$M$161)/12/4 -> 0 | D161: 0 | E161: 0 | F161: 0 | G161: 0 | H161: 0 | I161: 0 | J161: 0 | L161: Basil | M161: =21 -> 21
A162: Lettuce | B162: =(B$157*$M$162)/12/4 ->  | C162: =(C$157*$M$162)/12/4 -> 0 | D162: 0 | E162: 0 | F162: 0 | G162: 0 | H162: 0 | I162: 0 | J162: 0 | L162: Lettuce | M162: 29
A163: Choi | B163: =(B$157*$M$163)/12/4 ->  | C163: =(C$157*$M$163)/12/4 -> 0 | D163: 0 | E163: 0 | F163: 0 | G163: 0 | H163: 0 | I163: 0 | J163: 0 | L163: Choi | M163: 20
A164: Total (kgs) | B164: =SUM(B160:B163) ->  | C164: =SUM(C160:C163) -> 0 | D164: 0 | E164: 0 | F164: 0 | G164: 0 | H164: 0 | I164: 0 | J164: 0

Sheet Containment Unit Calculations
B2: POND CALCULATIONS -EARTHEN PONDS | L2: RAS GROW OUT CONTAINMENTS - CIRCULAR PLASTIC | V2: AQUAPONICS GROW OUT
C3: Price | D3: 1 ton | E3: 3 ton | F3: 5 ton | G3: 8 ton | H3: 10 ton | I3: 100 ton | N3: 1 ton | O3: 3 ton | P3: 5 ton | Q3: 8 ton | R3: 10 ton | S3: 100 ton | X3: 1 ton | Y3: 3 ton | Z3: 5 ton | AA3: 8 ton | AB3: 10 ton | AC3: 100 ton
B4: Volume (m3) | D4: 200 | E4: 200 | F4: 500 | G4: 800 | H4: =H5*H6 -> 1000 | I4: =I5*I6 -> 1000 | L4: Volume (m3) | N4: 5.4 | O4: 13.82300768 | P4: 13.82300768 | Q4: 21.59844949 | R4: 21.59844949 | S4: 21.59844949 | V4: Volume (m3) | X4: 5.4 | Y4: 13.82300768 | Z4: 13.82300768 | AA4: 21.59844949 | AB4: 21.59844949 | AC4: 21.59844949
B5: length (m) | D5: 25 | E5: 25 | F5: 40 | G5: 40 | H5: 40 | I5: 40 | L5: Diameter (m) | N5: 2.5 | O5: 4 | P5: 4 | Q5: 5 | R5: 5 | S5: 5 | V5: Diameter (m) | X5: 2.5 | Y5: 4 | Z5: 4 | AA5: 5 | AB5: 5 | AC5: 5
B6: width (m) | D6: 6.4 | E6: 6.4 | F6: 10 | G6: 16 | H6: 25 | I6: 25 | L6: Depth (m) | N6: 1.1 | O6: 1.1 | P6: 1.1 | Q6: 1.1 | R6: 1.1 | S6: 1.1 | V6: Depth (m) | X6: 1.1 | Y6: 1.1 | Z6: 1.1 | AA6: 1.1 | AB6: 1.1 | AC6: 1.1
B7: Depth (m) | D7: 1.3 | E7: 1.3 | F7: 1.3 | G7: 1.25 | H7: 1.25 | I7: 1.25 | L7: Footprint | N7: =((N5+1)^2)*'Production Cycle'!$B$135 ->  | O7: =((O5+1)^2)*'Production Cycle'!$B$135 ->  | P7: =((P5+1)^2)*'Production Cycle'!$B$135 ->  | Q7: =((Q5+1)^2)*'Production Cycle'!$B$135 ->  | R7: =((R5+1)^2)*'Production Cycle'!$B$135 ->  | S7: =((S5+1)^2)*'Production Cycle'!$B$135 ->  | V7: Footprint | X7: =((X5+1)^2)*'Production Cycle'!$B$136 ->  | Y7: =((Y5+1)^2)*'Production Cycle'!$B$136 ->  | Z7: =((Z5+1)^2)*'Production Cycle'!$B$136 ->  | AA7: =((AA5+1)^2)*'Production Cycle'!$B$136 ->  | AB7: =((AB5+1)^2)*'Production Cycle'!$B$136 ->  | AC7: =((AC5+1)^2)*'Production Cycle'!$B$136 -> 
B8: Pond vol | D8: =D7*D6*D5 -> 208 | E8: =E7*E6*E5 -> 208 | F8: 520 | G8: 800 | H8: 1250 | I8: 1250 | L8: Price per tank | N8: 3400 | O8: 6000 | P8: 6000 | Q8: 10000 | R8: 10000 | S8: 10000 | V8: Price per tank | X8: 3400 | Y8: 6000 | Z8: 6000 | AA8: 10000 | AB8: 10000 | AC8: 10000
B9: Footprint | D9: =((D5*D6)*2)*'Production Cycle'!$B$134 ->  | E9: =((E5*E6)*2)*'Production Cycle'!$B$134 ->  | F9: =((F5*F6)*2)*'Production Cycle'!$B$134 ->  | G9: =((G5*G6)*2)*'Production Cycle'!$B$134 ->  | H9: =((H5*H6)*2)*'Production Cycle'!$B$134 ->  | I9: =((I5*I6)*2)*'Production Cycle'!$B$134 -> 
B10: Excavation (m3) | C10: 86 | D10: =(D5*D6*D7)*$C$10 -> 17888 | E10: 17888 | F10: 44720 | G10: 68800 | H10: 107500 | I10: 107500 | V10: AQUAPONICS - PLANT SYSTEM | Z10: AQUAPONICS - SUMP/HEADER TANK
B11: Bentonite (m2) | C11: 30 | D11: =(D5*D6)*$C$11 -> 4800 | E11: 4800 | F11: 12000 | G11: 19200 | H11: 30000 | I11: 30000 | L11: CAGE - FLOATING CAGES | V11: Grow tanks/bed - Deep water raft
B12: Price per pond | D12: =D10+D11 -> 22688 | E12: =E10+E11 -> 22688 | F12: 56720 | G12: 88000 | H12: 137500 | I12: 137500 | V12: Volume (m3) | X12: =X13*X14*X15 -> 1.5 | Z12: Volume of sump & header | AA12: 0.1 | AB12: =X22*AA12 -> 
L13: Volume (m3) of cages needed | N13: ='Production Cycle'!B137 ->  | V13: Length | X13: 5 | Z13: Tank size | AB13: 5.4
B14: RAS/AQUAPONICS/POND | L14: Price per m3 | N14: 171 | V14: Width | X14: 1 | Z14: Number of tanks (1m3) | AB14: =ROUNDUP(AB12/AB13,0) -> 
B15: Settlement tanks swirl/lamella | D15: 1 ton | E15: 3 ton | F15: 5 ton | G15: 8 ton | H15: 10 ton | I15: 100 ton | L15: Price for cages | N15: =N13*N14 ->  | V15: Depth | X15: 0.3 | Z15: Footprint | AB15: =((N5+1)^2)*AB14 -> 
B16: Volume (m3) | D16: 1 | E16: 1 | F16: 1 | G16: 5.4 | H16: 5.4 | I16: 5.4 | V16: Grow Bed/tank flow rate ( 5 tubes @ 0.12 m3/hr) | X16: =5*0.12 -> 0.6 | Z16: Price per tank (1m3) | AB16: =IF(AB13=5.4,3400,0) -> 3400
B17: Diameter (m) | D17: 0.75 | E17: 0.75 | F17: 0.75 | G17: 1.1 | H17: 1.1 | I17: 1.1 | V17: Turn over | X17: =X12/X16 -> 2.5
B18: Depth (m) | D18: 1.302940032 | E18: 1.302940032 | F18: 1.302940032 | G18: 2.5 | H18: 2.5 | I18: 2.5 | V18: Avg Daily Feed | W18: g | X18: =CAPEX!AB6 -> 
B19: Footrpint | D19: =((D17+1)^2)*'Bio-Model'!$D$22 ->  | E19: =((E17+1)^2)*'Bio-Model'!$D$22 ->  | F19: =((F17+1)^2)*'Bio-Model'!$D$22 ->  | G19: =((G17+1)^2)*'Bio-Model'!$D$22 ->  | H19: =((H17+1)^2)*'Bio-Model'!$D$22 ->  | I19: =((I17+1)^2)*'Bio-Model'!$D$22 ->  | L19: STORAGE TANKS | V19: m2 of plants | W19: 40 | X19: =X18/$W$19 -> 
B20: Price per tank | D20: 2000 | E20: 2000 | F20: 2000 | G20: 6000 | H20: 6000 | I20: 6000 | N20: RAS | O20: AQUA | V20: No of plants (per/m2) | W20: 20 | X20: =X19/$W$20 -> 
L21: Volume (m3) of tanks | N21: 5.4 | O21: 5.4 | V21: Price per m2 | W21: 150 | X21: =W21*X19 -> 
L22: Diameter (m) | N22: 2.5 | O22: 2.5 | V22: Plant system vol | W22: m3 | X22: =X19*X15 -> 
B23: Storage Dam/Ponds | D23: 1 ton | E23: 3 ton | F23: 5 ton | G23: 8 ton | H23: 10 ton | I23: 100 ton | L23: Depth (m) | N23: 1.1 | O23: 1.1
B24: Length | C24: m | D24: 25 | E24: 25 | F24: 25 | G24: 25 | H24: 25 | I24: 25 | L24: Footprint | N24: =((N22+1)^2)*'Production Cycle'!B135 ->  | O24: =((O22+1)^2)*'Production Cycle'!B136 -> 
B25: Width | C25: m | D25: 6.4 | E25: 6.4 | F25: 6.4 | G25: 1.1 | H25: 1.1 | I25: 1.1 | L25: Price per tank | N25: 6000 | O25: 6000
B26: Depth | C26: m3 | D26: 1.25 | E26: 1.25 | F26: 1.25 | G26: 1.25 | H26: 1.25 | I26: 1.25 | L26: Proportion of system stored | N26: 0.2 | O26: 0.2
B27: Vol | D27: 200 | E27: 200 | F27: 500 | G27: 800 | H27: 1000 | I27: 1000
B28: No pond | D28: 1 | E28: 1 | F28: 1 | G28: 1 | H28: 1 | I28: 4
B29: cost per pond | D29: 15600 | E29: 15600 | F29: 39000 | G29: 62400 | H29: 78000 | I29: 78000

Sheet Piping Calculations (hidden)
A1: RAS | C1: 1 ton | D1: 3 ton | E1: 5 ton | F1: 8 ton | G1: 10 ton | H1: 100 ton | J1: AQUAPONICS | L1: m
A2: Settlement Tanks | C2: =CAPEX!$E$23*'Containment Unit Calculations'!D17 ->  | D2: =CAPEX!$E$23*'Containment Unit Calculations'!E17 ->  | E2: =CAPEX!$E$23*'Containment Unit Calculations'!F17 ->  | F2: =CAPEX!$E$23*'Containment Unit Calculations'!G17 ->  | G2: =CAPEX!$E$23*'Containment Unit Calculations'!H17 ->  | H2: =CAPEX!$E$23*'Containment Unit Calculations'!I17 ->  | J2: Plant grow out containments length (m) | L2: ='Containment Unit Calculations'!X19/'Containment Unit Calculations'!X14 -> 
A3: Biofilter Tanks | C3: =CAPEX!$E$21*'Bio-Model'!M15 -> 0 | D3: =CAPEX!$E$21*'Bio-Model'!N15 -> 0 | E3: =CAPEX!$E$21*'Bio-Model'!O15 -> 0 | F3: =CAPEX!$E$21*'Bio-Model'!P15 -> 0 | G3: =CAPEX!$E$21*'Bio-Model'!Q15 -> 0 | H3: =CAPEX!$E$21*'Bio-Model'!R15 -> 0 | J3: Total Required (m) 25mm diam irrigation piping and connectors | L3: =SUM(L2:L2)*2 -> 
A4: 100g Grow out | C4: =CAPEX!$E$16*'Containment Unit Calculations'!N5 ->  | D4: =CAPEX!$E$16*'Containment Unit Calculations'!O5 ->  | E4: =CAPEX!$E$16*'Containment Unit Calculations'!P5 ->  | F4: =CAPEX!$E$16*'Containment Unit Calculations'!Q5 ->  | G4: =CAPEX!$E$16*'Containment Unit Calculations'!R5 ->  | H4: =CAPEX!$E$16*'Containment Unit Calculations'!S5 ->  | J4: Costs | K4: 20 | L4: =L3*K4 -> 
A5: Total Required (m) | C5: =SUM(C2:C4)*2 -> 
A6: Costs | B6: 200 | C6: =C5*$B$6 ->  | D6: =D5*$B$6 -> 
A9: POND | C9: 1 ton | D9: 3 ton | E9: 5 ton | F9: 8 ton | G9: 10 ton | H9: 100 ton
A10: Earthen Ponds | C10: =CAPEX!$N$16*'Containment Unit Calculations'!D5 ->  | D10: =CAPEX!$N$16*'Containment Unit Calculations'!E5 ->  | E10: =CAPEX!$N$16*'Containment Unit Calculations'!F5 ->  | F10: =CAPEX!$N$16*'Containment Unit Calculations'!G5 ->  | G10: =CAPEX!$N$16*'Containment Unit Calculations'!H5 ->  | H10: =CAPEX!$N$16*'Containment Unit Calculations'!I5 -> 
A11: Total Required (m) | C11: =SUM(C10:C10)*2 ->  | D11: =SUM(D10:D10)*2 -> 
A12: Costs | B12: 200 | C12: =C11*$B$6 ->  | D12: =D11*$B$6 -> 

Sheet Bio-Model
A1: BIO-MODEL - NILE TILAPIA MODEL
A3: Biofilter
A4: Hungary model
B5: Portion of system
A6: Solids settlement | B6: =100/3 -> 33.33333333
A8: Biofilter - RAS
A9: TAN removal per day (0.4-0.6g/m2/day)
A10: For removal of TAN from 1 kg of feed , 70-80m² of biofilter needed (about 0.5m³ biofilter vlume)
D11: =Interface!$J$7 -> <Please Select Tonnage>
A12: recirc vol
A13: Biofileter surface area per 1 kg dailyl feed | D13: 75 | K13: Biofilter Tanks | M13: 1 ton | N13: 3 ton | O13: 5 ton | P13: 8 ton | Q13: 10 ton | R13: 100 ton
A14: Daily feed amount (kg) | D14: =IF(Interface!E17=Validation!D39,'Production Cycle'!B129,IF(Interface!E17=Validation!D40,'Production Cycle'!C129,IF(Interface!E17=Validation!D41,'Production Cycle'!D129,IF(Interface!E17=Validation!D42,'Production Cycle'!E129,IF(Interface!E17=Validation!D43,'Production Cycle'!F129,IF(Interface!E17=Validation!D44,'Production Cycle'!G129,IF(Interface!E17=Validation!D45,'Production Cycle'!H129,IF(Interface!E17=Validation!D46,'Production Cycle'!I129,IF(Interface!E17=Validation!D47,'Production Cycle'!J129))))))))/30) -> 0 | K14: Volume (m3) | M14: 1 | N14: 1 | O14: 1 | P14: 5.4 | Q14: 5.4 | R14: 5.4
A15: Biofilter surface area needed m | D15: =D14*D13 -> 0 | K15: Diameter (m) | M15: 1.3 | N15: 1.3 | O15: 1.3 | P15: 2.5 | Q15: 2.5 | R15: 2.5
A16: Biofilter media vol needed at (800 m²/m³) | D16: =D15/800 -> 0 | K16: Depth (m) | M16: 0.8 | N16: 0.8 | O16: 0.8 | P16: 1.1 | Q16: 1.1 | R16: 1.1
A17: Biofilter vol | D17: =D16*1.1 -> 0 | K17: Footprint | M17: =((M15+1)^2)*$D$19 -> 0 | N17: =((N15+1)^2)*$D$19 -> 0 | O17: 0 | P17: 0 | Q17: 0 | R17: 0
A18: Biofilter tank size (m³) | D18: =IF(Interface!J7<=3,N14,IF(Interface!$J$7<=5,O14,IF(Interface!$J$7<=10,Q14,R14))) -> 5.4 | K18: Price per tank | M18: 1100 | N18: 1100 | O18: 1100 | P18: 3400 | Q18: 3400 | R18: 3400
A19: Number of Biofilter tanks | D19: =ROUNDUP(D17/D18,0) -> 0
A20: Settlement tanks volume (m³) | D20: =(0.33)*((CAPEX!C16*CAPEX!E16)-(D18*D19)) ->  | K20: Settlement tanks swirl/lamella | M20: 1 ton | N20: 3 ton | O20: 5 ton | P20: 8 ton | Q20: 10 ton | R20: 100 ton
A21: Size of the Settlement Tank (m³) | D21: =IF(Interface!J7<=3,N21,IF(Interface!$J$7<=5,O21,IF(Interface!$J$7<=10,Q21,R21))) -> 5.4 | K21: Volume (m3) | M21: 1 | N21: 1 | O21: 1 | P21: 5.4 | Q21: 5.4 | R21: 5.4
A22: Number of Settlement Tanks (m³) | D22: =ROUNDUP(D20/D21,0) ->  | K22: Diameter (m) | M22: 0.75 | N22: 0.75 | O22: 0.75 | P22: 1.1 | Q22: 1.1 | R22: 1.1
K23: Depth (m) | M23: 1.302940032 | N23: 1.302940032 | O23: 1.302940032 | P23: 2.5 | Q23: 2.5 | R23: 2.5
K24: Price per tank | M24: 2000 | N24: 2000 | O24: 2000 | P24: 6000 | Q24: 6000 | R24: 6000

Sheet System Footprints
B2: RAS Space Requirements | G2: Pond Space Requirements
B3: Infrastructure | C3: Space required m2 | D3: % added (space around/ between, for drainage, piping, roads etc as applicable) | E3: Total Space Required | G3: Infrastructure | H3: Space required m2 | I3: % added (space around/ between, for drainage, piping, roads etc as applicable) | J3: Total Space Required
B4: Tanks Growout fish | C4: =IF(CAPEX!C16='Containment Unit Calculations'!N4,'Containment Unit Calculations'!N7,IF(CAPEX!C16='Containment Unit Calculations'!P4,'Containment Unit Calculations'!P7,'Containment Unit Calculations'!S7)) ->  | D4: 1.5 | E4: =D4*C4 ->  | G4: Ponds | H4: =IF(CAPEX!M16='Containment Unit Calculations'!E4,'Containment Unit Calculations'!E9,IF(CAPEX!M16='Containment Unit Calculations'!F4,'Containment Unit Calculations'!F9,IF(CAPEX!M16='Containment Unit Calculations'!G4,'Containment Unit Calculations'!G9,'Containment Unit Calculations'!I9))) ->  | I4: 1.5 | J4: =I4*H4 -> 
B5: Store rooms | C5: =CAPEX!C6 -> 20 | D5: 1.5 | E5: =D5*C5 -> 30 | G5: Store rooms | H5: =CAPEX!M6 -> 20 | I5: 1.5 | J5: =I5*H5 -> 30
B6: Offices (m²) | C6: =CAPEX!C8 ->  | D6: 1.5 | G6: Offices | H6: =CAPEX!M7 ->  | I6: 1.5
B7: Feed store (m²) | C7: =CAPEX!C9 -> 125 | D7: 1.5 | E7: 187.5 | G7: Cold storage | H7: =CAPEX!M8 -> 150 | I7: 1.5 | J7: 225
B8: Tunnels | C8: =CAPEX!C8 ->  | D8: 1.5 | E8: =D8*C8 ->  | G8: Feed store | H8: =CAPEX!M9 -> 150 | I8: 1.5 | J8: =I8*H8 -> 225
B9: Pump House (m²) | C9: =CAPEX!C10 -> 125 | D9: 1.5 | E9: 187.5 | G9: Storage Dam | H9: =CAPEX!N10 -> 1000 | I9: 1.5 | J9: 1500
B10: Settlement - tanks (lamella/swirl) | C10: =IF(CAPEX!C23='Containment Unit Calculations'!F16,'Containment Unit Calculations'!F19,'Containment Unit Calculations'!I19) ->  | D10: 1.5 | G10: Total m2 | J10: =SUM(J4:J9) -> 
B11: Biofilter tanks | C11: =IF(CAPEX!C21='Bio-Model'!O14,'Bio-Model'!O17,'Bio-Model'!R17) -> 0 | D11: 1.5 | E11: 0 | G11: Total Hectares Required | J11: =J10/10000 -> 
B12: Storage Tanks | C12: ='Containment Unit Calculations'!N24 ->  | D12: 1.5 | E12: =D12*C12 -> 
B13: Total m2 | E13: =SUM(E4:E12) -> 
B14: Total Hectares Required | E14: =E13/10000 -> 
G15: Cage Culture Space Requirements
B16: Aquaponics Space Requirements | G16: Infrastructure | H16: Space required m2 | I16: % added (space around/ between, for drainage, piping, roads etc as applicable) | J16: Total Space Required
B17: Infrastructure | C17: Space required m2 | D17: % added (space around/ between, for drainage, piping, roads etc as applicable) | E17: Total Space Required | G17: Store room/handling facility | H17: =CAPEX!M37 -> 20 | I17: 1.5 | J17: =I17*H17 -> 30
B18: Tanks - fingerlings | C18: =IF(CAPEX!V16='Containment Unit Calculations'!X4,'Containment Unit Calculations'!X7,IF(CAPEX!V16='Containment Unit Calculations'!Z4,'Containment Unit Calculations'!Z7,'Containment Unit Calculations'!AC7)) ->  | D18: 1.5 | E18: =D18*C18 ->  | G18: Offices | H18: =CAPEX!M38 ->  | I18: 1.5
B19: Store room/feed storage | C19: =CAPEX!V6 -> 36 | D19: 1.5 | E19: =D19*C19 -> 54 | G19: Cold storage | H19: =CAPEX!M36 -> 125 | I19: 1.5 | J19: 187.5
B20: Tunnels | C20: =CAPEX!V8 ->  | D20: 1.5 | E20: =D20*C20 ->  | G20: Feed store | H20: =CAPEX!M35 -> 125 | I20: 1.5 | J20: =I20*H20 -> 187.5
B21: Offices | C21: =CAPEX!V7 ->  | D21: 1.5 | E21: =D21*C21 ->  | G21: Total m2 | J21: =SUM(J17:J20) -> 
B22: Cold storage | C22: =CAPEX!V10 -> 125 | D22: 1.5 | E22: 187.5 | G22: Total Hectares Required | J22: =J21/10000 -> 
B23: Handling Facility/Processing | C23: =CAPEX!V9 -> 36 | D23: 1.5 | E23: =D23*C23 -> 54
B24: Header/Sump Tank | C24: ='Containment Unit Calculations'!AB15 ->  | D24: 1.5 | E24: =D24*C24 -> 
B25: Storage Tank | C25: ='Containment Unit Calculations'!O24 ->  | D25: 1.5 | E25: =D25*C25 -> 
B26: Total m2 | E26: =SUM(E18:E24) -> 
B27: Total Hectares Required | E27: =E26/10000 -> 

Sheet TEMPERATURE (hidden)
A1: TEMPERATURE - NILE TILAPIA MODEL
A3: Temperature Data ( Average Max and Min Temperature per province in SA | D3: 29 | G3: Electricity
A4: Province | B4: Average Max Temperature (°C) | C4: Average Min Temperature (°C) | D4: AVG | E4: Electricity Cost Ratio | G4: Units No tunnel | H4: Cost no tunnel (R1.09/kWh) | I4: Units Tunnel | J4: Cost tunnel (R1.09/kWh)
A5: Limpopo | B5: 24.77 | C5: 15.99 | D5: =(B5+C5)/2 -> 20.38 | E5: =I5/$I$13 -> 1.115795237 | G5: =G6/D6*D5 -> 624.8453326 | H5: =G5*1.09 -> 681.0814125 | I5: =G5*95% -> 593.603066 | J5: =I5*1.09 -> 647.0273419
A6: Gauteng | B6: 21.44 | C6: 10.35 | D6: =(B6+C6)/2 -> 15.895 | E6: 0.8702436354 | G6: =G7/D7*D6 -> 487.3364358 | H6: =G6*1.09 -> 531.196715 | I6: =G6*95% -> 462.969614 | J6: =I6*1.09 -> 504.6368793
A7: North West | B7: 23.73 | C7: 11.31 | D7: 17.52 | E7: 0.9592116069 | G7: 537.1584999 | H7: =G7*1.09 -> 585.5027649 | I7: 510.3005749 | J7: 556.2276266
A8: Free-State | B8: 23.33 | C8: 8.92 | D8: 16.125 | E8: 0.8828360252 | G8: 494.3881741 | H8: =G8*1.09 -> 538.8831098 | I8: 469.6687654 | J8: 511.9389543
A9: Mpumalanga | B9: 23.67 | C9: 14.91 | D9: 19.29 | E9: 1.056118259 | G9: 591.426225 | H9: 644.6545853 | I9: 561.8549138 | J9: 612.421856
A10: KZN | B10: 24.35 | C10: 16.91 | D10: 20.63 | E10: 1.129482617 | G10: 632.5102655 | H10: 689.4361894 | I10: 600.8847523 | J10: 654.96438
A11: Western Cape | B11: 23.05 | C11: 12.37 | D11: 17.71 | E11: 0.9696140159 | G11: 542.9838489 | H11: 591.8523953 | I11: 515.8346564 | J11: 562.2597755
A12: Northern Cape | B12: 27.66 | C12: 12.31 | D12: 19.985 | E12: 1.094169176 | G12: =G13/D13*D12 -> 612.7347386 | H12: 667.880865 | I12: 582.0980016 | J12: 634.4868218
A13: Eastern Cape | B13: 22.13 | C13: 14.4 | D13: 18.265 | E13: =I13/I13 -> 1 | G13: 560 | H13: 610.4 | I13: 532 | J13: 579.88
E14: =SUM(E5:E13) -> 9.077470572 | G14: *Price - Eskom (commercial)
A15: The o optimal temperatures under which they thrive fall between 28°C and 30°C.
A16: NOTE: SA Weather Service - charge an hourly rate of R1 070
G17: liter | H17: 1 | I17: weeks per month | J17: 4
G18: converion | H18: 1000 | I18: days in a week | J18: 7 | K18: weeks per year | L18: 52.1775
F19: Evaporation
F20: Province | G20: Avg /mm per day | H20: loss per day/litres | I20: loss per week/litres | J20: loss per month/litres | K20: loss per year/litres | L20: relative loss/annum | M20: relative loss/month
F21: Limpopo | G21: =(3+5)/2 -> 4 | H21: =IF(AND(OR(Interface!G$7=Validation!F$3,Interface!G$7=Validation!F$4),CAPEX!$C$16='Containment Unit Calculations'!S4),('Containment Unit Calculations'!S5*'Containment Unit Calculations'!S6)*TEMPERATURE!$G21/TEMPERATURE!$H$18*1000,IF(AND(OR(Interface!G$7=Validation!F$3,Interface!G$7=Validation!F$4),CAPEX!$C$16='Containment Unit Calculations'!R4),('Containment Unit Calculations'!R5*'Containment Unit Calculations'!R6)*TEMPERATURE!$G21/TEMPERATURE!$H$18*1000,IF(AND(Interface!G$7=Validation!$F$5,CAPEX!V17='Containment Unit Calculations'!AC4),('Containment Unit Calculations'!AC5*'Containment Unit Calculations'!AC6)*TEMPERATURE!$G21/TEMPERATURE!$H$18*1000,IF(AND(Interface!G$7=Validation!$F$5,CAPEX!V17='Containment Unit Calculations'!AB4),('Containment Unit Calculations'!AB5*'Containment Unit Calculations'!AB6)*TEMPERATURE!$G21/TEMPERATURE!$H$18*1000,('Containment Unit Calculations'!Z5*'Containment Unit Calculations'!Z6)*TEMPERATURE!$G21/TEMPERATURE!$H$18*1000)))) -> 17.6 | I21: =H21*$J$18 -> 123.2 | J21: =I21*$J$17 -> 492.8 | K21: =I21*$L$18 -> 6428.268 | L21: =K21/100000 -> 0.06428268 | M21: =L21/12 -> 0.00535689
F22: Gauteng | G22: =(4.5+6)/2 -> 5.25 | H22: =IF(AND(OR(Interface!G$7=Validation!F$3,Interface!G$7=Validation!F$4),CAPEX!$C$16='Containment Unit Calculations'!$S$4),('Containment Unit Calculations'!$S$5*'Containment Unit Calculations'!$S$6)*TEMPERATURE!G22/TEMPERATURE!$H$18*1000,IF(AND(OR(Interface!G$7=Validation!F$3,Interface!G$7=Validation!F$4),CAPEX!$C$16='Containment Unit Calculations'!$R$4),('Containment Unit Calculations'!$R$5*'Containment Unit Calculations'!$R$6)*TEMPERATURE!G22/TEMPERATURE!$H$18*1000,IF(AND(Interface!G$7=Validation!$F$5,CAPEX!$V$17='Containment Unit Calculations'!$AC$4),('Containment Unit Calculations'!$AC$5*'Containment Unit Calculations'!$AC$6)*TEMPERATURE!G22/TEMPERATURE!$H$18*1000,IF(AND(Interface!G$7=Validation!$F$5,CAPEX!$V$17='Containment Unit Calculations'!$AB$4),('Containment Unit Calculations'!$AB$5*'Containment Unit Calculations'!$AB$6)*TEMPERATURE!G22/TEMPERATURE!$H$18*1000,('Containment Unit Calculations'!$Z$5*'Containment Unit Calculations'!$Z$6)*TEMPERATURE!G22/TEMPERATURE!$H$18*1000)))) -> 23.1 | I22: =H22*$J$18 -> 161.7 | J22: =I22*$J$17 -> 646.8 | K22: =I22*$L$18 -> 8437.10175 | L22: =K22/100000 -> 0.0843710175 | M22: =L22/12 -> 0.007030918125
F23: North West | G23: =(4+7)/2 -> 5.5 | H23: =IF(AND(OR(Interface!G$7=Validation!F$3,Interface!G$7=Validation!F$4),CAPEX!$C$16='Containment Unit Calculations'!$S$4),('Containment Unit Calculations'!$S$5*'Containment Unit Calculations'!$S$6)*TEMPERATURE!G23/TEMPERATURE!$H$18*1000,IF(AND(OR(Interface!G$7=Validation!F$3,Interface!G$7=Validation!F$4),CAPEX!$C$16='Containment Unit Calculations'!$R$4),('Containment Unit Calculations'!$R$5*'Containment Unit Calculations'!$R$6)*TEMPERATURE!G23/TEMPERATURE!$H$18*1000,IF(AND(Interface!G$7=Validation!$F$5,CAPEX!$V$17='Containment Unit Calculations'!$AC$4),('Containment Unit Calculations'!$AC$5*'Containment Unit Calculations'!$AC$6)*TEMPERATURE!G23/TEMPERATURE!$H$18*1000,IF(AND(Interface!G$7=Validation!$F$5,CAPEX!$V$17='Containment Unit Calculations'!$AB$4),('Containment Unit Calculations'!$AB$5*'Containment Unit Calculations'!$AB$6)*TEMPERATURE!G23/TEMPERATURE!$H$18*1000,('Containment Unit Calculations'!$Z$5*'Containment Unit Calculations'!$Z$6)*TEMPERATURE!G23/TEMPERATURE!$H$18*1000)))) -> 24.2 | I23: 169.4 | J23: 677.6 | K23: 8838.8685 | L23: 0.088388685 | M23: 0.00736572375
F24: Free-State | G24: =(4+6.5)/2 -> 5.25 | H24: =IF(AND(OR(Interface!G$7=Validation!F$3,Interface!G$7=Validation!F$4),CAPEX!$C$16='Containment Unit Calculations'!$S$4),('Containment Unit Calculations'!$S$5*'Containment Unit Calculations'!$S$6)*TEMPERATURE!G24/TEMPERATURE!$H$18*1000,IF(AND(OR(Interface!G$7=Validation!F$3,Interface!G$7=Validation!F$4),CAPEX!$C$16='Containment Unit Calculations'!$R$4),('Containment Unit Calculations'!$R$5*'Containment Unit Calculations'!$R$6)*TEMPERATURE!G24/TEMPERATURE!$H$18*1000,IF(AND(Interface!G$7=Validation!$F$5,CAPEX!$V$17='Containment Unit Calculations'!$AC$4),('Containment Unit Calculations'!$AC$5*'Containment Unit Calculations'!$AC$6)*TEMPERATURE!G24/TEMPERATURE!$H$18*1000,IF(AND(Interface!G$7=Validation!$F$5,CAPEX!$V$17='Containment Unit Calculations'!$AB$4),('Containment Unit Calculations'!$AB$5*'Containment Unit Calculations'!$AB$6)*TEMPERATURE!G24/TEMPERATURE!$H$18*1000,('Containment Unit Calculations'!$Z$5*'Containment Unit Calculations'!$Z$6)*TEMPERATURE!G24/TEMPERATURE!$H$18*1000)))) -> 23.1 | I24: 161.7 | J24: 646.8 | K24: 8437.10175 | L24: 0.0843710175 | M24: 0.007030918125
F25: Mpumalanga | G25: =(0+5.5)/2 -> 2.75 | H25: =IF(AND(OR(Interface!G$7=Validation!F$3,Interface!G$7=Validation!F$4),CAPEX!$C$16='Containment Unit Calculations'!$S$4),('Containment Unit Calculations'!$S$5*'Containment Unit Calculations'!$S$6)*TEMPERATURE!G25/TEMPERATURE!$H$18*1000,IF(AND(OR(Interface!G$7=Validation!F$3,Interface!G$7=Validation!F$4),CAPEX!$C$16='Containment Unit Calculations'!$R$4),('Containment Unit Calculations'!$R$5*'Containment Unit Calculations'!$R$6)*TEMPERATURE!G25/TEMPERATURE!$H$18*1000,IF(AND(Interface!G$7=Validation!$F$5,CAPEX!$V$17='Containment Unit Calculations'!$AC$4),('Containment Unit Calculations'!$AC$5*'Containment Unit Calculations'!$AC$6)*TEMPERATURE!G25/TEMPERATURE!$H$18*1000,IF(AND(Interface!G$7=Validation!$F$5,CAPEX!$V$17='Containment Unit Calculations'!$AB$4),('Containment Unit Calculations'!$AB$5*'Containment Unit Calculations'!$AB$6)*TEMPERATURE!G25/TEMPERATURE!$H$18*1000,('Containment Unit Calculations'!$Z$5*'Containment Unit Calculations'!$Z$6)*TEMPERATURE!G25/TEMPERATURE!$H$18*1000)))) -> 12.1 | I25: 84.7 | J25: 338.8 | K25: 4419.43425 | L25: 0.0441943425 | M25: 0.003682861875
F26: KZN | G26: =(3+5)/2 -> 4 | H26: =IF(AND(OR(Interface!G$7=Validation!F$3,Interface!G$7=Validation!F$4),CAPEX!$C$16='Containment Unit Calculations'!$S$4),('Containment Unit Calculations'!$S$5*'Containment Unit Calculations'!$S$6)*TEMPERATURE!G26/TEMPERATURE!$H$18*1000,IF(AND(OR(Interface!G$7=Validation!F$3,Interface!G$7=Validation!F$4),CAPEX!$C$16='Containment Unit Calculations'!$R$4),('Containment Unit Calculations'!$R$5*'Containment Unit Calculations'!$R$6)*TEMPERATURE!G26/TEMPERATURE!$H$18*1000,IF(AND(Interface!G$7=Validation!$F$5,CAPEX!$V$17='Containment Unit Calculations'!$AC$4),('Containment Unit Calculations'!$AC$5*'Containment Unit Calculations'!$AC$6)*TEMPERATURE!G26/TEMPERATURE!$H$18*1000,IF(AND(Interface!G$7=Validation!$F$5,CAPEX!$V$17='Containment Unit Calculations'!$AB$4),('Containment Unit Calculations'!$AB$5*'Containment Unit Calculations'!$AB$6)*TEMPERATURE!G26/TEMPERATURE!$H$18*1000,('Containment Unit Calculations'!$Z$5*'Containment Unit Calculations'!$Z$6)*TEMPERATURE!G26/TEMPERATURE!$H$18*1000)))) -> 17.6 | I26: 123.2 | J26: 492.8 | K26: 6428.268 | L26: 0.06428268 | M26: 0.00535689
F27: Western Cape | G27: =(3+5)/2 -> 4 | H27: =IF(AND(OR(Interface!G$7=Validation!F$3,Interface!G$7=Validation!F$4),CAPEX!$C$16='Containment Unit Calculations'!$S$4),('Containment Unit Calculations'!$S$5*'Containment Unit Calculations'!$S$6)*TEMPERATURE!G27/TEMPERATURE!$H$18*1000,IF(AND(OR(Interface!G$7=Validation!F$3,Interface!G$7=Validation!F$4),CAPEX!$C$16='Containment Unit Calculations'!$R$4),('Containment Unit Calculations'!$R$5*'Containment Unit Calculations'!$R$6)*TEMPERATURE!G27/TEMPERATURE!$H$18*1000,IF(AND(Interface!G$7=Validation!$F$5,CAPEX!$V$17='Containment Unit Calculations'!$AC$4),('Containment Unit Calculations'!$AC$5*'Containment Unit Calculations'!$AC$6)*TEMPERATURE!G27/TEMPERATURE!$H$18*1000,IF(AND(Interface!G$7=Validation!$F$5,CAPEX!$V$17='Containment Unit Calculations'!$AB$4),('Containment Unit Calculations'!$AB$5*'Containment Unit Calculations'!$AB$6)*TEMPERATURE!G27/TEMPERATURE!$H$18*1000,('Containment Unit Calculations'!$Z$5*'Containment Unit Calculations'!$Z$6)*TEMPERATURE!G27/TEMPERATURE!$H$18*1000)))) -> 17.6 | I27: 123.2 | J27: 492.8 | K27: 6428.268 | L27: 0.06428268 | M27: 0.00535689
F28: Northern Cape | G28: =(4.5+9)/2 -> 6.75 | H28: =IF(AND(OR(Interface!G$7=Validation!F$3,Interface!G$7=Validation!F$4),CAPEX!$C$16='Containment Unit Calculations'!$S$4),('Containment Unit Calculations'!$S$5*'Containment Unit Calculations'!$S$6)*TEMPERATURE!G28/TEMPERATURE!$H$18*1000,IF(AND(OR(Interface!G$7=Validation!F$3,Interface!G$7=Validation!F$4),CAPEX!$C$16='Containment Unit Calculations'!$R$4),('Containment Unit Calculations'!$R$5*'Containment Unit Calculations'!$R$6)*TEMPERATURE!G28/TEMPERATURE!$H$18*1000,IF(AND(Interface!G$7=Validation!$F$5,CAPEX!$V$17='Containment Unit Calculations'!$AC$4),('Containment Unit Calculations'!$AC$5*'Containment Unit Calculations'!$AC$6)*TEMPERATURE!G28/TEMPERATURE!$H$18*1000,IF(AND(Interface!G$7=Validation!$F$5,CAPEX!$V$17='Containment Unit Calculations'!$AB$4),('Containment Unit Calculations'!$AB$5*'Containment Unit Calculations'!$AB$6)*TEMPERATURE!G28/TEMPERATURE!$H$18*1000,('Containment Unit Calculations'!$Z$5*'Containment Unit Calculations'!$Z$6)*TEMPERATURE!G28/TEMPERATURE!$H$18*1000)))) -> 29.7 | I28: 207.9 | J28: 831.6 | K28: 10847.70225 | L28: 0.1084770225 | M28: 0.009039751875
F29: Eastern Cape | G29: =(3+5.5)/2 -> 4.25 | H29: =IF(AND(OR(Interface!G$7=Validation!F$3,Interface!G$7=Validation!F$4),CAPEX!$C$16='Containment Unit Calculations'!$S$4),('Containment Unit Calculations'!$S$5*'Containment Unit Calculations'!$S$6)*TEMPERATURE!G29/TEMPERATURE!$H$18*1000,IF(AND(OR(Interface!G$7=Validation!F$3,Interface!G$7=Validation!F$4),CAPEX!$C$16='Containment Unit Calculations'!$R$4),('Containment Unit Calculations'!$R$5*'Containment Unit Calculations'!$R$6)*TEMPERATURE!G29/TEMPERATURE!$H$18*1000,IF(AND(Interface!G$7=Validation!$F$5,CAPEX!$V$17='Containment Unit Calculations'!$AC$4),('Containment Unit Calculations'!$AC$5*'Containment Unit Calculations'!$AC$6)*TEMPERATURE!G29/TEMPERATURE!$H$18*1000,IF(AND(Interface!G$7=Validation!$F$5,CAPEX!$V$17='Containment Unit Calculations'!$AB$4),('Containment Unit Calculations'!$AB$5*'Containment Unit Calculations'!$AB$6)*TEMPERATURE!G29/TEMPERATURE!$H$18*1000,('Containment Unit Calculations'!$Z$5*'Containment Unit Calculations'!$Z$6)*TEMPERATURE!G29/TEMPERATURE!$H$18*1000)))) -> 18.7 | I29: 130.9 | J29: 523.6 | K29: 6830.03475 | L29: 0.0683003475 | M29: 0.005691695625
A46: *Department of Water Affairs, 2014

Sheet Pricing Reference Sheet (hidden)
A1: EXTRA PRICES
A2: Equipment | B2: Type | C2: Size or origin | D2: Cost (R)
A3: Water pump | B3: Electrical, swimming pool type | C3: 0.45KW | D3: 1800.00
A4: Water pump | B4: Electrical, swimming pool type | C4: 0.75KW | D4: 2200.00
A5: Water pump | B5: Electrical, swimming pool type | C5: 1.1KW | D5: 2700.00
A6: Water pump | B6: Petrol, portable, 33m head | C6: 5KW | D6: 5400.00
A7: Water pump | B7: Diesel, fixed installation, 100mm | C7: 70KW | D7: 140 000.00
A8: Air blower | B8: Rotary vane, side channel (China) | C8: 0.35KW | D8: 840.00
A9: Air blower | B9: Rotary vane, side channel (China) | C9: 0.75KW | D9: 1540.00
A10: Air blower | B10: Rotary vane, side channel (China) | C10: 1.1KW | D10: 2200.00
A11: Air blower | B11: Rotary vane, side channel (Germany) | C11: 1.1KW | D11: 9500.00
A12: Heat Pump | B12: Swimming pool type | C12: 5.6KW | D12: 9500.00
A13: Heat Pump | B13: Swimming pool type | C13: 12.5KW | D13: 16 000.00
A14: Heat Pump | B14: Swimming pool type | C14: 18KW (380v) | D14: 38 000.00
A15: Drum separator | B15: Sediment particle remover | D15: 48 000.00
A16: Feed | B16: Tilapia 1mm starter AVI | C16: 40% protein | D16: 16.00/kg
A17: Feed | B17: 2mm grower AVI | C17: 35% protein | D17: 14.00/kg
A18: Feed | B18: 3mm grower AVI | C18: 29% protein | D18: 13.00/kg
A19: Tilapia egg incubators | B19: 2.7l acrylic | C19: Thailand | D19: 297.00
A20: Oxygen meter | B20: YSI Pro 20 oxygen meter | C20: Thailand | D20: 17 572.00
A21: Scoop nets | B21: Long handle | C21: Thailand | D21: 810.00
A22: Scoop nets | B22: Short handle | C22: Thailand | D22: 216.00
A23: Electronic scales | B23: Electronic scales, 0.01 x 1000g | C23: Thailand | D23: 5 254.00
A24: Seine net | B24: Seine net 380D/12,2.5 cmbar,75 mx 6 m | C24: Thailand | D24: 8 100.00
A25: Fingerling grader | B25: Aluminium 0-5cm | C25: Johannesburg | D25: 4 100.00
A26: Tunnel | B26: Frame and plastic sheeting | C26: 30x10m Tunnella | D26: 39 500.00
A27: Tunnel | B27: Frame and plastic sheeting | C27: 50x 8m Vegtech | D27: 58 000.00
A28: Tunnel | B28: Frame and plastic sheeting | C28: 50 x 12m | D28: 74 000.00

Sheet HR (hidden)
A1: HUMAN RESOURCES - NILE TILAPIA MODEL
B3: RAS
B4: LABOUR:
E5: YEAR 1 | R5: YEAR 2
E6: Month 1 | F6: Month 2 | G6: Month 3 | H6: Month 4 | I6: Month 5 | J6: Month 6 | K6: Month 7 | L6: Month 8 | M6: Month 9 | N6: Month 10 | O6: Month 11 | P6: Month 12 | Q6: 1 | R6: Month 1 | S6: Month 2 | T6: Month 3 | U6: Month 4 | V6: Month 5 | W6: Month 6 | X6: Month 7 | Y6: Month 8 | Z6: Month 9 | AA6: Month 10 | AB6: Month 11 | AC6: Month 12 | AE6: 2 | AG6: 3 | AI6: 4 | AK6: 5 | AM6: 6 | AO6: 7 | AQ6: 8 | AS6: 9
B7: Employees: | C7: Year 1 | D7: Annual Cost: Year 1 | Q7: Year 2: | AD7: Annual Cost: Year 2 | AE7: Year 3: | AF7: Annual Cost: Year 3 | AG7: Year 4: | AH7: Annual Cost: Year 4 | AI7: Year 5 | AJ7: Annual Cost: Year 5 | AK7: Year 6 | AL7: Annual Cost: Year 6 | AM7: Year 7 | AN7: Annual Cost: Year 7 | AO7: Year 8 | AP7: Annual Cost: Year 8 | AQ7: Year 9 | AR7: Annual Cost: Year 9 | AS7: Year 10 | AT7: Annual Cost: Year 10
B8: Skilled Workers | C8: =P15 ->  | D8: =SUM(E8:P8) ->  | E8: ='Production Assumptions'!$C$49*D15 ->  | F8: ='Production Assumptions'!$C$49*E15 ->  | G8: ='Production Assumptions'!$C$49*F15 ->  | H8: ='Production Assumptions'!$C$49*G15 ->  | I8: ='Production Assumptions'!$C$49*H15 ->  | J8: ='Production Assumptions'!$C$49*I15 ->  | K8: ='Production Assumptions'!$C$49*J15 ->  | L8: ='Production Assumptions'!$C$49*K15 ->  | M8: ='Production Assumptions'!$C$49*L15 ->  | N8: ='Production Assumptions'!$C$49*M15 ->  | O8: ='Production Assumptions'!$C$49*N15 ->  | P8: ='Production Assumptions'!$C$49*O15 ->  | Q8: =Q15 ->  | R8: ='Production Assumptions'!$C$49*(1+'Production Assumptions'!$C$4)*R15 ->  | S8: ='Production Assumptions'!$C$49*(1+'Production Assumptions'!$C$4)*S15 ->  | T8: ='Production Assumptions'!$C$49*(1+'Production Assumptions'!$C$4)*T15 ->  | U8: ='Production Assumptions'!$C$49*(1+'Production Assumptions'!$C$4)*U15 ->  | V8: ='Production Assumptions'!$C$49*(1+'Production Assumptions'!$C$4)*V15 ->  | W8: ='Production Assumptions'!$C$49*(1+'Production Assumptions'!$C$4)*W15 ->  | X8: ='Production Assumptions'!$C$49*(1+'Production Assumptions'!$C$4)*X15 ->  | Y8: ='Production Assumptions'!$C$49*(1+'Production Assumptions'!$C$4)*Y15 ->  | Z8: ='Production Assumptions'!$C$49*(1+'Production Assumptions'!$C$4)*Z15 ->  | AA8: ='Production Assumptions'!$C$49*(1+'Production Assumptions'!$C$4)*AA15 ->  | AB8: ='Production Assumptions'!$C$49*(1+'Production Assumptions'!$C$4)*AB15 ->  | AC8: ='Production Assumptions'!$C$49*(1+'Production Assumptions'!$C$4)*AC15 ->  | AD8: =SUM(R8:AC8) ->  | AE8: =AD15 ->  | AF8: =$AD8*(1+'Production Assumptions'!C4) ->  | AG8: =AE15 ->  | AH8: =$AD8*(1+'Production Assumptions'!C4)^2 ->  | AI8: =AF15 ->  | AJ8: =$AD8*(1+'Production Assumptions'!C4)^3 ->  | AK8: =AG15 ->  | AL8: =$AD8*(1+'Production Assumptions'!C4)^4 ->  | AM8: =AH15 ->  | AN8: =$AD8*(1+'Production Assumptions'!C4)^5 ->  | AO8: =AI15 ->  | AP8: =$AD8*(1+'Production Assumptions'!C4)^6 ->  | AQ8: =AJ15 ->  | AR8: =$AD8*(1+'Production Assumptions'!C4)^7 ->  | AS8: =AK15 ->  | AT8: =$AD8*(1+'Production Assumptions'!C4)^8 -> 
B9: Medium Skilled | C9: =P16 ->  | D9: =SUM(E9:P9) ->  | E9: ='Production Assumptions'!$C$50*D16 ->  | F9: ='Production Assumptions'!$C$50*E16 ->  | G9: ='Production Assumptions'!$C$50*F16 ->  | H9: ='Production Assumptions'!$C$50*G16 ->  | I9: ='Production Assumptions'!$C$50*H16 ->  | J9: ='Production Assumptions'!$C$50*I16 ->  | K9: ='Production Assumptions'!$C$50*J16 ->  | L9: ='Production Assumptions'!$C$50*K16 ->  | M9: ='Production Assumptions'!$C$50*L16 ->  | N9: ='Production Assumptions'!$C$50*M16 ->  | O9: ='Production Assumptions'!$C$50*N16 ->  | P9: ='Production Assumptions'!$C$50*O16 ->  | Q9: =Q16 ->  | R9: ='Production Assumptions'!$C$50*(1+'Production Assumptions'!$C$4)*R16 ->  | S9: ='Production Assumptions'!$C$50*(1+'Production Assumptions'!$C$4)*S16 ->  | T9: ='Production Assumptions'!$C$50*(1+'Production Assumptions'!$C$4)*T16 ->  | U9: ='Production Assumptions'!$C$50*(1+'Production Assumptions'!$C$4)*U16 ->  | V9: ='Production Assumptions'!$C$50*(1+'Production Assumptions'!$C$4)*V16 ->  | W9: ='Production Assumptions'!$C$50*(1+'Production Assumptions'!$C$4)*W16 ->  | X9: ='Production Assumptions'!$C$50*(1+'Production Assumptions'!$C$4)*X16 ->  | Y9: ='Production Assumptions'!$C$50*(1+'Production Assumptions'!$C$4)*Y16 ->  | Z9: ='Production Assumptions'!$C$50*(1+'Production Assumptions'!$C$4)*Z16 ->  | AA9: ='Production Assumptions'!$C$50*(1+'Production Assumptions'!$C$4)*AA16 ->  | AB9: ='Production Assumptions'!$C$50*(1+'Production Assumptions'!$C$4)*AB16 ->  | AC9: ='Production Assumptions'!$C$50*(1+'Production Assumptions'!$C$4)*AC16 ->  | AD9: =SUM(R9:AC9) ->  | AE9: =AD16 ->  | AF9: =$AD9*(1+'Production Assumptions'!C4) ->  | AG9: =AE16 ->  | AH9: =$AD9*(1+'Production Assumptions'!C4)^2 ->  | AI9: =AF16 ->  | AJ9: =$AD9*(1+'Production Assumptions'!C4)^3 ->  | AK9: =AG16 ->  | AL9: =$AD9*(1+'Production Assumptions'!C4)^4 ->  | AM9: =AH16 ->  | AN9: =$AD9*(1+'Production Assumptions'!C4)^5 ->  | AO9: =AI16 ->  | AP9: =$AD9*(1+'Production Assumptions'!C4)^6 ->  | AQ9: =AJ16 ->  | AR9: =$AD9*(1+'Production Assumptions'!C4)^7 ->  | AS9: =AK16 ->  | AT9: =$AD9*(1+'Production Assumptions'!C4)^8 -> 
B10: Low Skilled | D10: =SUM(E10:P10) ->  | E10: ='Production Assumptions'!$C$51*D17 ->  | F10: ='Production Assumptions'!$C$51*E17 ->  | G10: ='Production Assumptions'!$C$51*F17 ->  | H10: ='Production Assumptions'!$C$51*G17 ->  | I10: ='Production Assumptions'!$C$51*H17 ->  | J10: ='Production Assumptions'!$C$51*I17 ->  | K10: ='Production Assumptions'!$C$51*J17 ->  | L10: ='Production Assumptions'!$C$51*K17 ->  | M10: ='Production Assumptions'!$C$51*L17 ->  | N10: ='Production Assumptions'!$C$51*M17 ->  | O10: ='Production Assumptions'!$C$51*N17 ->  | P10: ='Production Assumptions'!$C$51*O17 ->  | Q10: =Q17 ->  | R10: ='Production Assumptions'!$C$51*(1+'Production Assumptions'!$C$4)*R17 ->  | S10: ='Production Assumptions'!$C$51*(1+'Production Assumptions'!$C$4)*S17 ->  | T10: ='Production Assumptions'!$C$51*(1+'Production Assumptions'!$C$4)*T17 ->  | U10: ='Production Assumptions'!$C$51*(1+'Production Assumptions'!$C$4)*U17 ->  | V10: ='Production Assumptions'!$C$51*(1+'Production Assumptions'!$C$4)*V17 ->  | W10: ='Production Assumptions'!$C$51*(1+'Production Assumptions'!$C$4)*W17 ->  | X10: ='Production Assumptions'!$C$51*(1+'Production Assumptions'!$C$4)*X17 ->  | Y10: ='Production Assumptions'!$C$51*(1+'Production Assumptions'!$C$4)*Y17 ->  | Z10: ='Production Assumptions'!$C$51*(1+'Production Assumptions'!$C$4)*Z17 ->  | AA10: ='Production Assumptions'!$C$51*(1+'Production Assumptions'!$C$4)*AA17 ->  | AB10: ='Production Assumptions'!$C$51*(1+'Production Assumptions'!$C$4)*AB17 ->  | AC10: ='Production Assumptions'!$C$51*(1+'Production Assumptions'!$C$4)*AC17 ->  | AE10: =AD17 ->  | AF10: =$AD10*(1+'Production Assumptions'!C4) ->  | AG10: =AE17 ->  | AH10: =$AD10*(1+'Production Assumptions'!C4)^2 ->  | AI10: =AF17 ->  | AJ10: =$AD10*(1+'Production Assumptions'!C4)^3 ->  | AL10: =$AD10*(1+'Production Assumptions'!C4)^4 ->  | AM10: =AH17 ->  | AN10: =$AD10*(1+'Production Assumptions'!C4)^5 ->  | AP10: =$AD10*(1+'Production Assumptions'!C4)^6 ->  | AQ10: =AJ17 ->  | AR10: =$AD10*(1+'Production Assumptions'!C4)^7 ->  | AS10: =AK17 ->  | AT10: =$AD10*(1+'Production Assumptions'!C4)^8 -> 
D11: =SUM(D8:D10) ->  | AE11: =SUM(AE8:AE10) ->  | AK11: =AI11 ->  | AL11: =SUM(AL8:AL10) -> 
B13: HR | D13: =E5 -> YEAR 1 | R13: =R5 -> YEAR 2
B14: No. of Employees: | D14: =E6 -> Month 1 | E14: =F6 -> Month 2 | F14: Month 3 | G14: Month 4 | H14: Month 5 | I14: Month 6 | J14: Month 7 | K14: Month 8 | L14: Month 9 | M14: Month 10 | N14: Month 11 | O14: Month 12 | P14: Year 1 | Q14: Year 2: | R14: =R6 -> Month 1 | S14: =S6 -> Month 2 | T14: Month 3 | U14: Month 4 | V14: Month 5 | W14: Month 6 | X14: Month 7 | Y14: Month 8 | Z14: Month 9 | AA14: Month 10 | AB14: Month 11 | AC14: Month 12 | AD14: Year 3: | AE14: Year 4: | AF14: Year 5 | AG14: Year 6 | AH14: Year 7 | AI14: Year 8 | AJ14: Year 9 | AK14: Year 10
B15: Managers: | C15: =B8 -> Skilled Workers | D15: ='Production Assumptions'!$F$49 ->  | E15: ='Production Assumptions'!$F$49 ->  | F15: ='Production Assumptions'!$F$49 ->  | G15: ='Production Assumptions'!$F$49 ->  | H15: ='Production Assumptions'!$F$49 ->  | I15: ='Production Assumptions'!$F$49 ->  | J15: ='Production Assumptions'!$F$49 ->  | K15: ='Production Assumptions'!$F$49 ->  | L15: ='Production Assumptions'!$F$49 ->  | M15: ='Production Assumptions'!$F$49 ->  | N15: ='Production Assumptions'!$F$49 ->  | O15: ='Production Assumptions'!$F$49 ->  | P15: =$O$15 ->  | Q15: =$AC$15 ->  | R15: ='Production Assumptions'!$F$49 ->  | S15: ='Production Assumptions'!$F$49 ->  | T15: ='Production Assumptions'!$F$49 ->  | U15: ='Production Assumptions'!$F$49 ->  | V15: ='Production Assumptions'!$F$49 ->  | W15: ='Production Assumptions'!$F$49 ->  | X15: ='Production Assumptions'!$F$49 ->  | Y15: ='Production Assumptions'!$F$49 ->  | Z15: ='Production Assumptions'!$F$49 ->  | AA15: ='Production Assumptions'!$F$49 ->  | AB15: ='Production Assumptions'!$F$49 ->  | AC15: ='Production Assumptions'!$F$49 ->  | AD15: =(AC$15) ->  | AE15: =(AD$15) -> 
B16: Staff: | C16: =B9 -> Medium Skilled | D16: ='Production Assumptions'!$F$50 ->  | E16: ='Production Assumptions'!$F$50 ->  | F16: ='Production Assumptions'!$F$50 ->  | G16: ='Production Assumptions'!$F$50 ->  | H16: ='Production Assumptions'!$F$50 ->  | I16: ='Production Assumptions'!$F$50 ->  | J16: ='Production Assumptions'!$F$50 ->  | K16: ='Production Assumptions'!$F$50 ->  | L16: ='Production Assumptions'!$F$50 ->  | M16: ='Production Assumptions'!$F$50 ->  | N16: ='Production Assumptions'!$F$50 ->  | O16: ='Production Assumptions'!$F$50 ->  | P16: =O16 ->  | Q16: =$AC$16 ->  | R16: ='Production Assumptions'!$F$50 ->  | S16: ='Production Assumptions'!$F$50 ->  | T16: ='Production Assumptions'!$F$50 ->  | U16: ='Production Assumptions'!$F$50 ->  | V16: ='Production Assumptions'!$F$50 ->  | W16: ='Production Assumptions'!$F$50 ->  | X16: ='Production Assumptions'!$F$50 ->  | Y16: ='Production Assumptions'!$F$50 ->  | Z16: ='Production Assumptions'!$F$50 ->  | AA16: ='Production Assumptions'!$F$50 ->  | AB16: ='Production Assumptions'!$F$50 ->  | AC16: ='Production Assumptions'!$F$50 ->  | AD16: =AC16 ->  | AE16: =AD16 -> 
B17: Staff: | C17: =B10 -> Low Skilled | D17: ='Production Assumptions'!$F$51 ->  | E17: ='Production Assumptions'!$F$51 ->  | F17: ='Production Assumptions'!$F$51 ->  | G17: ='Production Assumptions'!$F$51 ->  | H17: ='Production Assumptions'!$F$51 ->  | I17: ='Production Assumptions'!$F$51 ->  | J17: ='Production Assumptions'!$F$51 ->  | K17: ='Production Assumptions'!$F$51 ->  | L17: ='Production Assumptions'!$F$51 ->  | M17: ='Production Assumptions'!$F$51 ->  | N17: ='Production Assumptions'!$F$51 ->  | O17: ='Production Assumptions'!$F$51 ->  | P17: =O17 ->  | Q17: =$AC$17 ->  | R17: ='Production Assumptions'!$F$51 ->  | S17: ='Production Assumptions'!$F$51 ->  | T17: ='Production Assumptions'!$F$51 ->  | U17: ='Production Assumptions'!$F$51 ->  | V17: ='Production Assumptions'!$F$51 ->  | W17: ='Production Assumptions'!$F$51 ->  | X17: ='Production Assumptions'!$F$51 ->  | Y17: ='Production Assumptions'!$F$51 ->  | Z17: ='Production Assumptions'!$F$51 ->  | AA17: ='Production Assumptions'!$F$51 ->  | AB17: ='Production Assumptions'!$F$51 ->  | AC17: ='Production Assumptions'!$F$51 ->  | AD17: =AC17 ->  | AE17: =AD17 -> 
B18: Total: | D18: =SUM(D15:D17) ->  | P18: =SUM(P15:P17) ->  | AC18: =SUM(AC15:AC17) ->  | AD18: =SUM(AD15:AD17) ->  | AE18: =SUM(AE15:AE17) -> 
B20: Pond
B21: LABOUR:
E22: YEAR 1 | R22: YEAR 2
E23: Month 1 | F23: Month 2 | G23: Month 3 | H23: Month 4 | I23: Month 5 | J23: Month 6 | K23: Month 7 | L23: Month 8 | M23: Month 9 | N23: Month 10 | O23: Month 11 | P23: Month 12 | Q23: 1 | R23: Month 1 | S23: Month 2 | T23: Month 3 | U23: Month 4 | V23: Month 5 | W23: Month 6 | X23: Month 7 | Y23: Month 8 | Z23: Month 9 | AA23: Month 10 | AB23: Month 11 | AC23: Month 12 | AE23: 2 | AG23: 3 | AI23: 4 | AK23: 5 | AM23: 6 | AO23: 7 | AQ23: 8 | AS23: 9
B24: Employees: | C24: Year 1 | D24: Annual Cost: Year 1 | Q24: Year 2: | AD24: Annual Cost: Year 2 | AE24: Year 3: | AF24: Annual Cost: Year 3 | AG24: Year 4: | AH24: Annual Cost: Year 4 | AI24: Year 5 | AJ24: Annual Cost: Year 5 | AK24: Year 6 | AL24: Annual Cost: Year 6 | AM24: Year 7 | AN24: Annual Cost: Year 7 | AO24: Year 8 | AP24: Annual Cost: Year 8 | AQ24: Year 9 | AR24: Annual Cost: Year 9 | AS24: Year 10 | AT24: Annual Cost: Year 10
B25: Skilled Workers | C25: =P32 ->  | D25: =SUM(E25:P25) ->  | E25: ='Production Assumptions'!$C$49*D32 ->  | F25: ='Production Assumptions'!$C$49*E32 ->  | G25: ='Production Assumptions'!$C$49*F32 ->  | H25: ='Production Assumptions'!$C$49*G32 ->  | I25: ='Production Assumptions'!$C$49*H32 ->  | J25: ='Production Assumptions'!$C$49*I32 ->  | K25: ='Production Assumptions'!$C$49*J32 ->  | L25: ='Production Assumptions'!$C$49*K32 ->  | M25: ='Production Assumptions'!$C$49*L32 ->  | N25: ='Production Assumptions'!$C$49*M32 ->  | O25: ='Production Assumptions'!$C$49*N32 ->  | P25: ='Production Assumptions'!$C$49*O32 ->  | Q25: =Q32 ->  | R25: ='Production Assumptions'!$C$49*(1+'Production Assumptions'!C4)*R32 ->  | S25: ='Production Assumptions'!$C$49*(1+'Production Assumptions'!C4)*S32 ->  | T25: ='Production Assumptions'!$C$49*(1+'Production Assumptions'!C4)*T32 ->  | U25: ='Production Assumptions'!$C$49*(1+'Production Assumptions'!C4)*U32 ->  | V25: ='Production Assumptions'!$C$49*(1+'Production Assumptions'!C4)*V32 ->  | W25: ='Production Assumptions'!$C$49*(1+'Production Assumptions'!C4)*W32 ->  | X25: ='Production Assumptions'!$C$49*(1+'Production Assumptions'!C4)*X32 ->  | Y25: ='Production Assumptions'!$C$49*(1+'Production Assumptions'!C4)*Y32 ->  | Z25: ='Production Assumptions'!$C$49*(1+'Production Assumptions'!C4)*Z32 ->  | AA25: ='Production Assumptions'!$C$49*(1+'Production Assumptions'!C4)*AA32 ->  | AB25: ='Production Assumptions'!$C$49*(1+'Production Assumptions'!C4)*AB32 ->  | AC25: ='Production Assumptions'!$C$49*(1+'Production Assumptions'!C4)*AC32 ->  | AD25: =SUM(R25:AC25) ->  | AE25: =AD32 ->  | AF25: =$AD25*(1+'Production Assumptions'!C4) ->  | AG25: =AE32 ->  | AH25: =$AD25*(1+'Production Assumptions'!C4)^2 ->  | AI25: =AF32 ->  | AJ25: =$AD25*(1+'Production Assumptions'!C4)^3 ->  | AK25: =AG32 ->  | AL25: =$AD25*(1+'Production Assumptions'!C4)^4 ->  | AM25: =AH32 ->  | AN25: =$AD25*(1+'Production Assumptions'!C4)^5 ->  | AO25: =AI32 ->  | AP25: =$AD25*(1+'Production Assumptions'!C4)^6 ->  | AQ25: =AJ32 ->  | AR25: =$AD25*(1+'Production Assumptions'!C4)^7 ->  | AS25: =AK32 ->  | AT25: =$AD25*(1+'Production Assumptions'!C4)^8 -> 
B26: Medium Skilled | C26: =P33 ->  | D26: =SUM(E26:P26) ->  | E26: ='Production Assumptions'!$C$50*D33 ->  | F26: ='Production Assumptions'!$C$50*E33 ->  | G26: ='Production Assumptions'!$C$50*F33 ->  | H26: ='Production Assumptions'!$C$50*G33 ->  | I26: ='Production Assumptions'!$C$50*H33 ->  | J26: ='Production Assumptions'!$C$50*I33 ->  | K26: ='Production Assumptions'!$C$50*J33 ->  | L26: ='Production Assumptions'!$C$50*K33 ->  | M26: ='Production Assumptions'!$C$50*L33 ->  | N26: ='Production Assumptions'!$C$50*M33 ->  | O26: ='Production Assumptions'!$C$50*N33 ->  | P26: ='Production Assumptions'!$C$50*O33 ->  | Q26: =Q33 ->  | R26: ='Production Assumptions'!$C$50*(1+'Production Assumptions'!C4)*R33 ->  | S26: ='Production Assumptions'!$C$50*(1+'Production Assumptions'!C4)*S33 ->  | T26: ='Production Assumptions'!$C$50*(1+'Production Assumptions'!C4)*T33 ->  | U26: ='Production Assumptions'!$C$50*(1+'Production Assumptions'!C4)*U33 ->  | V26: ='Production Assumptions'!$C$50*(1+'Production Assumptions'!C4)*V33 ->  | W26: ='Production Assumptions'!$C$50*(1+'Production Assumptions'!C4)*W33 ->  | X26: ='Production Assumptions'!$C$50*(1+'Production Assumptions'!C4)*X33 ->  | Y26: ='Production Assumptions'!$C$50*(1+'Production Assumptions'!C4)*Y33 ->  | Z26: ='Production Assumptions'!$C$50*(1+'Production Assumptions'!C4)*Z33 ->  | AA26: ='Production Assumptions'!$C$50*(1+'Production Assumptions'!C4)*AA33 ->  | AB26: ='Production Assumptions'!$C$50*(1+'Production Assumptions'!C4)*AB33 ->  | AC26: ='Production Assumptions'!$C$50*(1+'Production Assumptions'!C4)*AC33 ->  | AD26: =SUM(R26:AC26) ->  | AE26: =AD33 ->  | AF26: =$AD26*(1+'Production Assumptions'!C4) ->  | AG26: =AE33 ->  | AH26: =$AD26*(1+'Production Assumptions'!C4)^2 ->  | AI26: =AF33 ->  | AJ26: =$AD26*(1+'Production Assumptions'!C4)^3 ->  | AK26: =AG33 ->  | AL26: =$AD26*(1+'Production Assumptions'!C4)^4 ->  | AM26: =AH33 ->  | AN26: =$AD26*(1+'Production Assumptions'!C4)^5 ->  | AO26: =AI33 ->  | AP26: =$AD26*(1+'Production Assumptions'!C4)^6 ->  | AQ26: =AJ33 ->  | AR26: =$AD26*(1+'Production Assumptions'!C4)^7 ->  | AS26: =AK33 ->  | AT26: =$AD26*(1+'Production Assumptions'!C4)^8 -> 
B27: Low Skilled | D27: =SUM(E27:P27) ->  | E27: ='Production Assumptions'!$C$51*D34 ->  | F27: ='Production Assumptions'!$C$51*E34 ->  | G27: ='Production Assumptions'!$C$51*F34 ->  | H27: ='Production Assumptions'!$C$51*G34 ->  | I27: ='Production Assumptions'!$C$51*H34 ->  | J27: ='Production Assumptions'!$C$51*I34 ->  | K27: ='Production Assumptions'!$C$51*J34 ->  | L27: ='Production Assumptions'!$C$51*K34 ->  | M27: ='Production Assumptions'!$C$51*L34 ->  | N27: ='Production Assumptions'!$C$51*M34 ->  | O27: ='Production Assumptions'!$C$51*N34 ->  | P27: ='Production Assumptions'!$C$51*O34 ->  | Q27: =Q34 ->  | R27: ='Production Assumptions'!$C$51*(1+'Production Assumptions'!C4)*R34 ->  | S27: ='Production Assumptions'!$C$51*(1+'Production Assumptions'!C4)*S34 ->  | T27: ='Production Assumptions'!$C$51*(1+'Production Assumptions'!C4)*T34 ->  | U27: ='Production Assumptions'!$C$51*(1+'Production Assumptions'!C4)*U34 ->  | V27: ='Production Assumptions'!$C$51*(1+'Production Assumptions'!C4)*V34 ->  | W27: ='Production Assumptions'!$C$51*(1+'Production Assumptions'!C4)*W34 ->  | X27: ='Production Assumptions'!$C$51*(1+'Production Assumptions'!C4)*X34 ->  | Y27: ='Production Assumptions'!$C$51*(1+'Production Assumptions'!C4)*Y34 ->  | Z27: ='Production Assumptions'!$C$51*(1+'Production Assumptions'!C4)*Z34 ->  | AA27: ='Production Assumptions'!$C$51*(1+'Production Assumptions'!C4)*AA34 ->  | AB27: ='Production Assumptions'!$C$51*(1+'Production Assumptions'!C4)*AB34 ->  | AC27: ='Production Assumptions'!$C$51*(1+'Production Assumptions'!C4)*AC34 ->  | AE27: =AD34 ->  | AF27: =$AD27*(1+'Production Assumptions'!C4) ->  | AG27: =AE34 ->  | AH27: =$AD27*(1+'Production Assumptions'!C4)^2 ->  | AI27: =AF34 ->  | AJ27: =$AD27*(1+'Production Assumptions'!C4)^3 ->  | AL27: =$AD27*(1+'Production Assumptions'!C4)^4 ->  | AM27: =AH34 ->  | AN27: =$AD27*(1+'Production Assumptions'!C4)^5 ->  | AP27: =$AD27*(1+'Production Assumptions'!C4)^6 ->  | AQ27: =AJ34 ->  | AR27: =$AD27*(1+'Production Assumptions'!C4)^7 ->  | AS27: =AK34 ->  | AT27: =$AD27*(1+'Production Assumptions'!C4)^8 -> 
C28: =P35 ->  | D28: =SUM(D25:D27) ->  | Q28: =SUM(Q25:Q27) ->  | AE28: =SUM(AE25:AE27) ->  | AG28: =SUM(AG25:AG27) ->  | AI28: =SUM(AI25:AI27) ->  | AK28: =AI28 ->  | AL28: =SUM(AL25:AL27) -> 
B30: HR | D30: =E22 -> YEAR 1 | R30: =R22 -> YEAR 2
B31: No. of Employees: | D31: =E23 -> Month 1 | E31: =F23 -> Month 2 | F31: Month 3 | G31: Month 4 | H31: Month 5 | I31: Month 6 | J31: Month 7 | K31: Month 8 | L31: Month 9 | M31: Month 10 | N31: Month 11 | O31: Month 12 | P31: Year 1 | Q31: Year 2: | R31: =R23 -> Month 1 | S31: =S23 -> Month 2 | T31: Month 3 | U31: Month 4 | V31: Month 5 | W31: Month 6 | X31: Month 7 | Y31: Month 8 | Z31: Month 9 | AA31: Month 10 | AB31: Month 11 | AC31: Month 12 | AD31: Year 3: | AE31: Year 4: | AF31: Year 5 | AG31: Year 6 | AH31: Year 7 | AI31: Year 8 | AJ31: Year 9 | AK31: Year 10
B32: Managers: | C32: =B25 -> Skilled Workers | D32: ='Production Assumptions'!$I$49 ->  | E32: ='Production Assumptions'!$I$49 ->  | F32: ='Production Assumptions'!$I$49 ->  | G32: ='Production Assumptions'!$I$49 ->  | H32: ='Production Assumptions'!$I$49 ->  | I32: ='Production Assumptions'!$I$49 ->  | J32: ='Production Assumptions'!$I$49 ->  | K32: ='Production Assumptions'!$I$49 ->  | L32: ='Production Assumptions'!$I$49 ->  | M32: ='Production Assumptions'!$I$49 ->  | N32: ='Production Assumptions'!$I$49 ->  | O32: ='Production Assumptions'!$I$49 ->  | P32: =$O$32 ->  | Q32: =$AC$32 ->  | R32: ='Production Assumptions'!$I$49 ->  | S32: ='Production Assumptions'!$I$49 ->  | T32: ='Production Assumptions'!$I$49 ->  | U32: ='Production Assumptions'!$I$49 ->  | V32: ='Production Assumptions'!$I$49 ->  | W32: ='Production Assumptions'!$I$49 ->  | X32: ='Production Assumptions'!$I$49 ->  | Y32: ='Production Assumptions'!$I$49 ->  | Z32: ='Production Assumptions'!$I$49 ->  | AA32: ='Production Assumptions'!$I$49 ->  | AB32: ='Production Assumptions'!$I$49 ->  | AC32: ='Production Assumptions'!$I$49 ->  | AD32: =AC32 ->  | AE32: =AD32 -> 
B33: Staff: | C33: =B26 -> Medium Skilled | D33: ='Production Assumptions'!$I$50 ->  | E33: ='Production Assumptions'!$I$50 ->  | F33: ='Production Assumptions'!$I$50 ->  | G33: ='Production Assumptions'!$I$50 ->  | H33: ='Production Assumptions'!$I$50 ->  | I33: ='Production Assumptions'!$I$50 ->  | J33: ='Production Assumptions'!$I$50 ->  | K33: ='Production Assumptions'!$I$50 ->  | L33: ='Production Assumptions'!$I$50 ->  | M33: ='Production Assumptions'!$I$50 ->  | N33: ='Production Assumptions'!$I$50 ->  | O33: ='Production Assumptions'!$I$50 ->  | P33: =O33 ->  | Q33: =AC33 ->  | R33: ='Production Assumptions'!$I$50 ->  | S33: ='Production Assumptions'!$I$50 ->  | T33: ='Production Assumptions'!$I$50 ->  | U33: ='Production Assumptions'!$I$50 ->  | V33: ='Production Assumptions'!$I$50 ->  | W33: ='Production Assumptions'!$I$50 ->  | X33: ='Production Assumptions'!$I$50 ->  | Y33: ='Production Assumptions'!$I$50 ->  | Z33: ='Production Assumptions'!$I$50 ->  | AA33: ='Production Assumptions'!$I$50 ->  | AB33: ='Production Assumptions'!$I$50 ->  | AC33: ='Production Assumptions'!$I$50 ->  | AD33: =AC33 ->  | AE33: =AD33 -> 
B34: Staff: | C34: =B27 -> Low Skilled | D34: ='Production Assumptions'!$I$51 ->  | E34: ='Production Assumptions'!$I$51 ->  | F34: ='Production Assumptions'!$I$51 ->  | G34: ='Production Assumptions'!$I$51 ->  | H34: ='Production Assumptions'!$I$51 ->  | I34: ='Production Assumptions'!$I$51 ->  | J34: ='Production Assumptions'!$I$51 ->  | K34: ='Production Assumptions'!$I$51 ->  | L34: ='Production Assumptions'!$I$51 ->  | M34: ='Production Assumptions'!$I$51 ->  | N34: ='Production Assumptions'!$I$51 ->  | O34: ='Production Assumptions'!$I$51 ->  | P34: =O34 ->  | Q34: =AC34 ->  | R34: ='Production Assumptions'!$I$51 ->  | S34: ='Production Assumptions'!$I$51 ->  | T34: ='Production Assumptions'!$I$51 ->  | U34: ='Production Assumptions'!$I$51 ->  | V34: ='Production Assumptions'!$I$51 ->  | W34: ='Production Assumptions'!$I$51 ->  | X34: ='Production Assumptions'!$I$51 ->  | Y34: ='Production Assumptions'!$I$51 ->  | Z34: ='Production Assumptions'!$I$51 ->  | AA34: ='Production Assumptions'!$I$51 ->  | AB34: ='Production Assumptions'!$I$51 ->  | AC34: ='Production Assumptions'!$I$51 ->  | AD34: =AC34 ->  | AE34: =AD34 -> 
B35: Total: | D35: ='Production Assumptions'!I52 ->  | E35: =SUM(E32:E34) ->  | P35: =SUM(P32:P34) ->  | Q35: =SUM(Q32:Q34) ->  | AD35: =SUM(AD32:AD34) -> 
B37: Aquaponics
B38: LABOUR:
E39: YEAR 1 | R39: YEAR 2
E40: Month 1 | F40: Month 2 | G40: Month 3 | H40: Month 4 | I40: Month 5 | J40: Month 6 | K40: Month 7 | L40: Month 8 | M40: Month 9 | N40: Month 10 | O40: Month 11 | P40: Month 12 | Q40: 1 | R40: Month 1 | S40: Month 2 | T40: Month 3 | U40: Month 4 | V40: Month 5 | W40: Month 6 | X40: Month 7 | Y40: Month 8 | Z40: Month 9 | AA40: Month 10 | AB40: Month 11 | AC40: Month 12 | AE40: 2 | AG40: 3 | AI40: 4 | AK40: 5 | AM40: 6 | AO40: 7 | AQ40: 8 | AS40: 9
B41: Employees: | C41: Year 1 | D41: Annual Cost: Year 1 | Q41: Year 2: | AD41: Annual Cost: Year 2 | AE41: Year 3: | AF41: Annual Cost: Year 3 | AG41: Year 4: | AH41: Annual Cost: Year 4 | AI41: Year 5 | AJ41: Annual Cost: Year 5 | AK41: Year 6 | AL41: Annual Cost: Year 6 | AM41: Year 7 | AN41: Annual Cost: Year 7 | AO41: Year 8 | AP41: Annual Cost: Year 8 | AQ41: Year 9 | AR41: Annual Cost: Year 9 | AS41: Year 10 | AT41: Annual Cost: Year 10
B42: Skilled Workers | C42: =P49 ->  | D42: =SUM(E42:P42) ->  | E42: ='Production Assumptions'!$C$49*D49 ->  | F42: ='Production Assumptions'!$C$49*E49 ->  | G42: ='Production Assumptions'!$C$49*F49 ->  | H42: ='Production Assumptions'!$C$49*G49 ->  | I42: ='Production Assumptions'!$C$49*H49 ->  | J42: ='Production Assumptions'!$C$49*I49 ->  | K42: ='Production Assumptions'!$C$49*J49 ->  | L42: ='Production Assumptions'!$C$49*K49 ->  | M42: ='Production Assumptions'!$C$49*L49 ->  | N42: ='Production Assumptions'!$C$49*M49 ->  | O42: ='Production Assumptions'!$C$49*N49 ->  | P42: ='Production Assumptions'!$C$49*O49 ->  | Q42: =Q49 ->  | R42: ='Production Assumptions'!$C$49*(1+'Production Assumptions'!C4)*R49 ->  | S42: ='Production Assumptions'!$C$49*(1+'Production Assumptions'!C4)*S49 ->  | T42: ='Production Assumptions'!$C$49*(1+'Production Assumptions'!C4)*T49 ->  | U42: ='Production Assumptions'!$C$49*(1+'Production Assumptions'!C4)*U49 ->  | V42: ='Production Assumptions'!$C$49*(1+'Production Assumptions'!C4)*V49 ->  | W42: ='Production Assumptions'!$C$49*(1+'Production Assumptions'!C4)*W49 ->  | X42: ='Production Assumptions'!$C$49*(1+'Production Assumptions'!C4)*X49 ->  | Y42: ='Production Assumptions'!$C$49*(1+'Production Assumptions'!C4)*Y49 ->  | Z42: ='Production Assumptions'!$C$49*(1+'Production Assumptions'!C4)*Z49 ->  | AA42: ='Production Assumptions'!$C$49*(1+'Production Assumptions'!C4)*AA49 ->  | AB42: ='Production Assumptions'!$C$49*(1+'Production Assumptions'!C4)*AB49 ->  | AC42: ='Production Assumptions'!$C$49*(1+'Production Assumptions'!C4)*AC49 ->  | AD42: =SUM(R42:AC42) ->  | AE42: =AD49 ->  | AF42: =$AD42*(1+'Production Assumptions'!C4) ->  | AG42: =AE49 ->  | AH42: =$AD42*(1+'Production Assumptions'!C4)^2 ->  | AI42: =AF49 ->  | AJ42: =$AD42*(1+'Production Assumptions'!C4)^3 ->  | AK42: =AG49 ->  | AL42: =$AD42*(1+'Production Assumptions'!C4)^4 ->  | AM42: =AH49 ->  | AN42: =$AD42*(1+'Production Assumptions'!C4)^5 ->  | AO42: =AI49 ->  | AP42: =$AD42*(1+'Production Assumptions'!C4)^6 ->  | AQ42: =AJ49 ->  | AR42: =$AD42*(1+'Production Assumptions'!C4)^7 ->  | AS42: =AK49 ->  | AT42: =$AD42*(1+'Production Assumptions'!C4)^8 -> 
B43: Medium Skilled | C43: =P50 ->  | D43: =SUM(E43:P43) ->  | E43: ='Production Assumptions'!$C$50*D50 ->  | F43: ='Production Assumptions'!$C$50*E50 ->  | G43: ='Production Assumptions'!$C$50*F50 ->  | H43: ='Production Assumptions'!$C$50*G50 ->  | I43: ='Production Assumptions'!$C$50*H50 ->  | J43: ='Production Assumptions'!$C$50*I50 ->  | K43: ='Production Assumptions'!$C$50*J50 ->  | L43: ='Production Assumptions'!$C$50*K50 ->  | M43: ='Production Assumptions'!$C$50*L50 ->  | N43: ='Production Assumptions'!$C$50*M50 ->  | O43: ='Production Assumptions'!$C$50*N50 ->  | P43: ='Production Assumptions'!$C$50*O50 ->  | Q43: =Q50 ->  | R43: ='Production Assumptions'!$C$50*(1+'Production Assumptions'!C4)*R50 ->  | S43: ='Production Assumptions'!$C$50*(1+'Production Assumptions'!C4)*S50 ->  | T43: ='Production Assumptions'!$C$50*(1+'Production Assumptions'!C4)*T50 ->  | U43: ='Production Assumptions'!$C$50*(1+'Production Assumptions'!C4)*U50 ->  | V43: ='Production Assumptions'!$C$50*(1+'Production Assumptions'!C4)*V50 ->  | W43: ='Production Assumptions'!$C$50*(1+'Production Assumptions'!C4)*W50 ->  | X43: ='Production Assumptions'!$C$50*(1+'Production Assumptions'!C4)*X50 ->  | Y43: ='Production Assumptions'!$C$50*(1+'Production Assumptions'!C4)*Y50 ->  | Z43: ='Production Assumptions'!$C$50*(1+'Production Assumptions'!C4)*Z50 ->  | AA43: ='Production Assumptions'!$C$50*(1+'Production Assumptions'!C4)*AA50 ->  | AB43: ='Production Assumptions'!$C$50*(1+'Production Assumptions'!C4)*AB50 ->  | AC43: ='Production Assumptions'!$C$50*(1+'Production Assumptions'!C4)*AC50 ->  | AD43: =SUM(R43:AC43) ->  | AE43: =AD50 ->  | AF43: =$AD43*(1+'Production Assumptions'!C4) ->  | AG43: =AE50 ->  | AH43: =$AD43*(1+'Production Assumptions'!C4)^2 ->  | AI43: =AF50 ->  | AJ43: =$AD43*(1+'Production Assumptions'!C4)^3 ->  | AK43: =AG50 ->  | AL43: =$AD43*(1+'Production Assumptions'!C4)^4 ->  | AM43: =AH50 ->  | AN43: =$AD43*(1+'Production Assumptions'!C4)^5 ->  | AO43: =AI50 ->  | AP43: =$AD43*(1+'Production Assumptions'!C4)^6 ->  | AQ43: =AJ50 ->  | AR43: =$AD43*(1+'Production Assumptions'!C4)^7 ->  | AS43: =AK50 ->  | AT43: =$AD43*(1+'Production Assumptions'!C4)^8 -> 
B44: Low Skilled | D44: =SUM(E44:P44) ->  | E44: ='Production Assumptions'!$C$51*D51 ->  | F44: ='Production Assumptions'!$C$51*E51 ->  | G44: ='Production Assumptions'!$C$51*F51 ->  | H44: ='Production Assumptions'!$C$51*G51 ->  | I44: ='Production Assumptions'!$C$51*H51 ->  | J44: ='Production Assumptions'!$C$51*I51 ->  | K44: ='Production Assumptions'!$C$51*J51 ->  | L44: ='Production Assumptions'!$C$51*K51 ->  | M44: ='Production Assumptions'!$C$51*L51 ->  | N44: ='Production Assumptions'!$C$51*M51 ->  | O44: ='Production Assumptions'!$C$51*N51 ->  | P44: ='Production Assumptions'!$C$51*O51 ->  | Q44: =Q51 ->  | R44: ='Production Assumptions'!$C$51*(1+'Production Assumptions'!C4)*R51 ->  | S44: ='Production Assumptions'!$C$51*(1+'Production Assumptions'!C4)*S51 ->  | T44: ='Production Assumptions'!$C$51*(1+'Production Assumptions'!C4)*T51 ->  | U44: ='Production Assumptions'!$C$51*(1+'Production Assumptions'!C4)*U51 ->  | V44: ='Production Assumptions'!$C$51*(1+'Production Assumptions'!C4)*V51 ->  | W44: ='Production Assumptions'!$C$51*(1+'Production Assumptions'!C4)*W51 ->  | X44: ='Production Assumptions'!$C$51*(1+'Production Assumptions'!C4)*X51 ->  | Y44: ='Production Assumptions'!$C$51*(1+'Production Assumptions'!C4)*Y51 ->  | Z44: ='Production Assumptions'!$C$51*(1+'Production Assumptions'!C4)*Z51 ->  | AA44: ='Production Assumptions'!$C$51*(1+'Production Assumptions'!C4)*AA51 ->  | AB44: ='Production Assumptions'!$C$51*(1+'Production Assumptions'!C4)*AB51 ->  | AC44: ='Production Assumptions'!$C$51*(1+'Production Assumptions'!C4)*AC51 ->  | AE44: =AD51 ->  | AF44: =$AD44*(1+'Production Assumptions'!C4) ->  | AG44: =AE51 ->  | AH44: =$AD44*(1+'Production Assumptions'!C4)^2 ->  | AI44: =AF51 ->  | AJ44: =$AD44*(1+'Production Assumptions'!C4)^3 ->  | AK44: =AG51 ->  | AL44: =$AD44*(1+'Production Assumptions'!C4)^4 ->  | AN44: =$AD44*(1+'Production Assumptions'!C4)^5 ->  | AP44: =$AD44*(1+'Production Assumptions'!C4)^6 ->  | AR44: =$AD44*(1+'Production Assumptions'!C4)^7 ->  | AT44: =$AD44*(1+'Production Assumptions'!C4)^8 -> 
D45: =SUM(D42:D44) ->  | AK45: =AI45 ->  | AL45: =SUM(AL42:AL44) -> 
B47: HR | D47: =E39 -> YEAR 1 | R47: =R39 -> YEAR 2
B48: No. of Employees: | D48: =E40 -> Month 1 | E48: =F40 -> Month 2 | F48: Month 3 | G48: Month 4 | H48: Month 5 | I48: Month 6 | J48: Month 7 | K48: Month 8 | L48: Month 9 | M48: Month 10 | N48: Month 11 | O48: Month 12 | P48: Year 1 | Q48: Year 2: | R48: =R40 -> Month 1 | S48: =S40 -> Month 2 | T48: Month 3 | U48: Month 4 | V48: Month 5 | W48: Month 6 | X48: Month 7 | Y48: Month 8 | Z48: Month 9 | AA48: Month 10 | AB48: Month 11 | AC48: Month 12 | AD48: Year 3: | AE48: Year 4: | AF48: Year 5 | AG48: Year 6 | AH48: Year 7 | AI48: Year 8 | AJ48: Year 9 | AK48: Year 10
B49: Managers: | C49: =B42 -> Skilled Workers | D49: ='Production Assumptions'!$L$49 ->  | E49: ='Production Assumptions'!$L$49 ->  | F49: ='Production Assumptions'!$L$49 ->  | G49: ='Production Assumptions'!$L$49 ->  | H49: ='Production Assumptions'!$L$49 ->  | I49: ='Production Assumptions'!$L$49 ->  | J49: ='Production Assumptions'!$L$49 ->  | K49: ='Production Assumptions'!$L$49 ->  | L49: ='Production Assumptions'!$L$49 ->  | M49: ='Production Assumptions'!$L$49 ->  | N49: ='Production Assumptions'!$L$49 ->  | O49: ='Production Assumptions'!$L$49 ->  | P49: =O49 ->  | Q49: =AC49 ->  | R49: ='Production Assumptions'!$L$49 ->  | S49: ='Production Assumptions'!$L$49 ->  | T49: ='Production Assumptions'!$L$49 ->  | U49: ='Production Assumptions'!$L$49 ->  | V49: ='Production Assumptions'!$L$49 ->  | W49: ='Production Assumptions'!$L$49 ->  | X49: ='Production Assumptions'!$L$49 ->  | Y49: ='Production Assumptions'!$L$49 ->  | Z49: ='Production Assumptions'!$L$49 ->  | AA49: ='Production Assumptions'!$L$49 ->  | AB49: ='Production Assumptions'!$L$49 ->  | AC49: ='Production Assumptions'!$L$49 ->  | AD49: =AC49 ->  | AE49: =AD49 -> 
B50: Staff: | C50: =B43 -> Medium Skilled | D50: ='Production Assumptions'!$L$50 ->  | E50: ='Production Assumptions'!$L$50 ->  | F50: ='Production Assumptions'!$L$50 ->  | G50: ='Production Assumptions'!$L$50 ->  | H50: ='Production Assumptions'!$L$50 ->  | I50: ='Production Assumptions'!$L$50 ->  | J50: ='Production Assumptions'!$L$50 ->  | K50: ='Production Assumptions'!$L$50 ->  | L50: ='Production Assumptions'!$L$50 ->  | M50: ='Production Assumptions'!$L$50 ->  | N50: ='Production Assumptions'!$L$50 ->  | O50: ='Production Assumptions'!$L$50 ->  | P50: =O50 ->  | Q50: =AC50 ->  | R50: ='Production Assumptions'!$L$50 ->  | S50: ='Production Assumptions'!$L$50 ->  | T50: ='Production Assumptions'!$L$50 ->  | U50: ='Production Assumptions'!$L$50 ->  | V50: ='Production Assumptions'!$L$50 ->  | W50: ='Production Assumptions'!$L$50 ->  | X50: ='Production Assumptions'!$L$50 ->  | Y50: ='Production Assumptions'!$L$50 ->  | Z50: ='Production Assumptions'!$L$50 ->  | AA50: ='Production Assumptions'!$L$50 ->  | AB50: ='Production Assumptions'!$L$50 ->  | AC50: ='Production Assumptions'!$L$50 ->  | AD50: =AC50 ->  | AE50: =AD50 -> 
B51: Staff: | C51: =B44 -> Low Skilled | D51: ='Production Assumptions'!$L$51 ->  | E51: ='Production Assumptions'!$L$51 ->  | F51: ='Production Assumptions'!$L$51 ->  | G51: ='Production Assumptions'!$L$51 ->  | H51: ='Production Assumptions'!$L$51 ->  | I51: ='Production Assumptions'!$L$51 ->  | J51: ='Production Assumptions'!$L$51 ->  | K51: ='Production Assumptions'!$L$51 ->  | L51: ='Production Assumptions'!$L$51 ->  | M51: ='Production Assumptions'!$L$51 ->  | N51: ='Production Assumptions'!$L$51 ->  | O51: ='Production Assumptions'!$L$51 ->  | R51: ='Production Assumptions'!$L$51 ->  | S51: ='Production Assumptions'!$L$51 ->  | T51: ='Production Assumptions'!$L$51 ->  | U51: ='Production Assumptions'!$L$51 ->  | V51: ='Production Assumptions'!$L$51 ->  | W51: ='Production Assumptions'!$L$51 ->  | X51: ='Production Assumptions'!$L$51 ->  | Y51: ='Production Assumptions'!$L$51 ->  | Z51: ='Production Assumptions'!$L$51 ->  | AA51: ='Production Assumptions'!$L$51 ->  | AB51: ='Production Assumptions'!$L$51 ->  | AC51: ='Production Assumptions'!$L$51 ->  | AD51: =AC51 ->  | AE51: =AD51 -> 
B52: Total: | D52: =SUM(D49:D51) ->  | O52: =SUM(O49:O51) ->  | AD52: =SUM(AD49:AD51) -> 
B55: CAGE
B56: LABOUR:
E57: YEAR 1 | R57: YEAR 2
E58: Month 1 | F58: Month 2 | G58: Month 3 | H58: Month 4 | I58: Month 5 | J58: Month 6 | K58: Month 7 | L58: Month 8 | M58: Month 9 | N58: Month 10 | O58: Month 11 | P58: Month 12 | Q58: 1 | R58: Month 1 | S58: Month 2 | T58: Month 3 | U58: Month 4 | V58: Month 5 | W58: Month 6 | X58: Month 7 | Y58: Month 8 | Z58: Month 9 | AA58: Month 10 | AB58: Month 11 | AC58: Month 12 | AE58: 2 | AG58: 3 | AI58: 4 | AK58: 5 | AM58: 6 | AO58: 7 | AQ58: 8 | AS58: 9
B59: Employees: | C59: Year 1 | D59: Annual Cost: Year 1 | Q59: Year 2: | AD59: Annual Cost: Year 2 | AE59: Year 3: | AF59: Annual Cost: Year 3 | AG59: Year 4: | AH59: Annual Cost: Year 4 | AI59: Year 5 | AJ59: Annual Cost: Year 5 | AK59: Year 6 | AL59: Annual Cost: Year 6 | AM59: Year 7 | AN59: Annual Cost: Year 7 | AO59: Year 8 | AP59: Annual Cost: Year 8 | AQ59: Year 9 | AR59: Annual Cost: Year 9 | AS59: Year 10 | AT59: Annual Cost: Year 10
B60: Skilled Workers | C60: =P67 ->  | D60: =SUM(E60:P60) ->  | E60: ='Production Assumptions'!$C$49*D67 ->  | F60: ='Production Assumptions'!$C$49*E67 ->  | G60: ='Production Assumptions'!$C$49*F67 ->  | H60: ='Production Assumptions'!$C$49*G67 ->  | I60: ='Production Assumptions'!$C$49*H67 ->  | J60: ='Production Assumptions'!$C$49*I67 ->  | K60: ='Production Assumptions'!$C$49*J67 ->  | L60: ='Production Assumptions'!$C$49*K67 ->  | M60: ='Production Assumptions'!$C$49*L67 ->  | N60: ='Production Assumptions'!$C$49*M67 ->  | O60: ='Production Assumptions'!$C$49*N67 ->  | P60: ='Production Assumptions'!$C$49*O67 ->  | Q60: =Q67 ->  | R60: ='Production Assumptions'!$C$49*(1+'Production Assumptions'!C4)*R67 ->  | S60: ='Production Assumptions'!$C$49*(1+'Production Assumptions'!C4)*S67 ->  | T60: ='Production Assumptions'!$C$49*(1+'Production Assumptions'!C4)*T67 ->  | U60: ='Production Assumptions'!$C$49*(1+'Production Assumptions'!C4)*U67 ->  | V60: ='Production Assumptions'!$C$49*(1+'Production Assumptions'!C4)*V67 ->  | W60: ='Production Assumptions'!$C$49*(1+'Production Assumptions'!C4)*W67 ->  | X60: ='Production Assumptions'!$C$49*(1+'Production Assumptions'!C4)*X67 ->  | Y60: ='Production Assumptions'!$C$49*(1+'Production Assumptions'!C4)*Y67 ->  | Z60: ='Production Assumptions'!$C$49*(1+'Production Assumptions'!C4)*Z67 ->  | AA60: ='Production Assumptions'!$C$49*(1+'Production Assumptions'!C4)*AA67 ->  | AB60: ='Production Assumptions'!$C$49*(1+'Production Assumptions'!C4)*AB67 ->  | AC60: ='Production Assumptions'!$C$49*(1+'Production Assumptions'!C4)*AC67 ->  | AD60: =SUM(R60:AC60) ->  | AE60: =AD67 ->  | AF60: =$AD60*(1+'Production Assumptions'!C4) ->  | AG60: =AE67 ->  | AH60: =$AD60*(1+'Production Assumptions'!C4)^2 ->  | AI60: =AF67 ->  | AJ60: =$AD60*(1+'Production Assumptions'!C4)^3 ->  | AK60: =AG67 ->  | AL60: =$AD60*(1+'Production Assumptions'!C4)^4 ->  | AM60: =AH67 ->  | AN60: =$AD60*(1+'Production Assumptions'!C4)^5 ->  | AO60: =AI67 ->  | AP60: =$AD60*(1+'Production Assumptions'!C4)^6 ->  | AQ60: =AJ67 ->  | AR60: =$AD60*(1+'Production Assumptions'!C4)^7 ->  | AS60: =AK67 ->  | AT60: =$AD60*(1+'Production Assumptions'!C4)^8 -> 
B61: Medium Skilled | C61: =P68 ->  | D61: =SUM(E61:P61) ->  | E61: =IF(D68<0.5, 0,'Production Assumptions'!$C$50*D68) ->  | F61: =IF(E68<0.5, 0,'Production Assumptions'!$C$50*E68) ->  | G61: =IF(F68<0.5, 0,'Production Assumptions'!$C$50*F68) ->  | H61: =IF(G68<0.5, 0,'Production Assumptions'!$C$50*G68) ->  | I61: =IF(H68<0.5, 0,'Production Assumptions'!$C$50*H68) ->  | J61: =IF(I68<0.5, 0,'Production Assumptions'!$C$50*I68) ->  | K61: =IF(J68<0.5, 0,'Production Assumptions'!$C$50*J68) ->  | L61: =IF(K68<0.5, 0,'Production Assumptions'!$C$50*K68) ->  | M61: =IF(L68<0.5, 0,'Production Assumptions'!$C$50*L68) ->  | N61: =IF(M68<0.5, 0,'Production Assumptions'!$C$50*M68) ->  | O61: =IF(N68<0.5, 0,'Production Assumptions'!$C$50*N68) ->  | P61: =IF(O68<0.5, 0,'Production Assumptions'!$C$50*O68) ->  | Q61: =Q68 ->  | R61: =IF(R68<0.5, 0,'Production Assumptions'!$C$50*(1+'Production Assumptions'!C4)*R68) ->  | S61: =IF(S68<0.5, 0,'Production Assumptions'!$C$50*(1+'Production Assumptions'!C4)*S68) ->  | T61: =IF(T68<0.5, 0,'Production Assumptions'!$C$50*(1+'Production Assumptions'!C4)*T68) ->  | U61: =IF(U68<0.5, 0,'Production Assumptions'!$C$50*(1+'Production Assumptions'!C4)*U68) ->  | V61: =IF(V68<0.5, 0,'Production Assumptions'!$C$50*(1+'Production Assumptions'!C4)*V68) ->  | W61: =IF(W68<0.5, 0,'Production Assumptions'!$C$50*(1+'Production Assumptions'!C4)*W68) ->  | X61: =IF(X68<0.5, 0,'Production Assumptions'!$C$50*(1+'Production Assumptions'!C4)*X68) ->  | Y61: =IF(Y68<0.5, 0,'Production Assumptions'!$C$50*(1+'Production Assumptions'!C4)*Y68) ->  | Z61: =IF(Z68<0.5, 0,'Production Assumptions'!$C$50*(1+'Production Assumptions'!C4)*Z68) ->  | AA61: =IF(AA68<0.5, 0,'Production Assumptions'!$C$50*(1+'Production Assumptions'!C4)*AA68) ->  | AB61: =IF(AB68<0.5, 0,'Production Assumptions'!$C$50*(1+'Production Assumptions'!C4)*AB68) ->  | AC61: =IF(AC68<0.5, 0,'Production Assumptions'!$C$50*(1+'Production Assumptions'!C4)*AC68) ->  | AD61: =SUM(R61:AC61) ->  | AE61: =AD68 ->  | AF61: =$AD61*(1+'Production Assumptions'!C4) ->  | AG61: =AE68 ->  | AH61: =$AD61*(1+'Production Assumptions'!C4)^2 ->  | AI61: =AF68 ->  | AJ61: =$AD61*(1+'Production Assumptions'!C4)^3 ->  | AK61: =AG68 ->  | AL61: =$AD61*(1+'Production Assumptions'!C4)^4 ->  | AM61: =AH68 ->  | AN61: =$AD61*(1+'Production Assumptions'!C4)^5 ->  | AO61: =AI68 ->  | AP61: =$AD61*(1+'Production Assumptions'!C4)^6 ->  | AQ61: =AJ68 ->  | AR61: =$AD61*(1+'Production Assumptions'!C4)^7 ->  | AS61: =AK68 ->  | AT61: =$AD61*(1+'Production Assumptions'!C4)^8 -> 
B62: Low Skilled | D62: =SUM(E62:P62) ->  | E62: ='Production Assumptions'!$C$51*D69 ->  | F62: ='Production Assumptions'!$C$51*E69 ->  | G62: ='Production Assumptions'!$C$51*F69 ->  | H62: ='Production Assumptions'!$C$51*G69 ->  | I62: ='Production Assumptions'!$C$51*H69 ->  | J62: ='Production Assumptions'!$C$51*I69 ->  | K62: ='Production Assumptions'!$C$51*J69 ->  | L62: ='Production Assumptions'!$C$51*K69 ->  | M62: ='Production Assumptions'!$C$51*L69 ->  | N62: ='Production Assumptions'!$C$51*M69 ->  | O62: ='Production Assumptions'!$C$51*N69 ->  | P62: ='Production Assumptions'!$C$51*O69 ->  | Q62: =Q69 ->  | R62: ='Production Assumptions'!$C$51*(1+'Production Assumptions'!C4)*R69 ->  | S62: ='Production Assumptions'!$C$51*(1+'Production Assumptions'!C4)*S69 ->  | T62: ='Production Assumptions'!$C$51*(1+'Production Assumptions'!C4)*T69 ->  | U62: ='Production Assumptions'!$C$51*(1+'Production Assumptions'!C4)*U69 ->  | V62: ='Production Assumptions'!$C$51*(1+'Production Assumptions'!C4)*V69 ->  | W62: ='Production Assumptions'!$C$51*(1+'Production Assumptions'!C4)*W69 ->  | X62: ='Production Assumptions'!$C$51*(1+'Production Assumptions'!C4)*X69 ->  | Y62: ='Production Assumptions'!$C$51*(1+'Production Assumptions'!C4)*Y69 ->  | Z62: ='Production Assumptions'!$C$51*(1+'Production Assumptions'!C4)*Z69 ->  | AA62: ='Production Assumptions'!$C$51*(1+'Production Assumptions'!C4)*AA69 ->  | AB62: ='Production Assumptions'!$C$51*(1+'Production Assumptions'!C4)*AB69 ->  | AC62: ='Production Assumptions'!$C$51*(1+'Production Assumptions'!C4)*AC69 ->  | AE62: =AD69 ->  | AF62: =$AD62*(1+'Production Assumptions'!C4) ->  | AG62: =AE69 ->  | AH62: =$AD62*(1+'Production Assumptions'!C4)^2 ->  | AI62: =AF69 ->  | AJ62: =$AD62*(1+'Production Assumptions'!C4)^3 ->  | AL62: =$AD62*(1+'Production Assumptions'!C4)^4 ->  | AM62: =AH69 ->  | AN62: =$AD62*(1+'Production Assumptions'!C4)^5 ->  | AP62: =$AD62*(1+'Production Assumptions'!C4)^6 ->  | AQ62: =AJ69 ->  | AR62: =$AD62*(1+'Production Assumptions'!C4)^7 ->  | AS62: =AK69 ->  | AT62: =$AD62*(1+'Production Assumptions'!C4)^8 -> 
D63: =SUM(D60:D62) ->  | Q63: =SUM(Q60:Q62) ->  | R63: =SUM(R60:R62) ->  | AE63: =SUM(AE60:AE62) ->  | AF63: =SUM(AF60:AF62) ->  | AG63: =SUM(AG60:AG62) ->  | AH63: =SUM(AH60:AH62) ->  | AI63: =SUM(AI60:AI62) ->  | AJ63: =SUM(AJ60:AJ62) ->  | AK63: =AI63 ->  | AL63: =SUM(AL60:AL62) -> 
B65: HR | D65: =E57 -> YEAR 1 | R65: =R57 -> YEAR 2
B66: No. of Employees: | D66: =E58 -> Month 1 | E66: =F58 -> Month 2 | F66: =G58 -> Month 3 | G66: =H58 -> Month 4 | H66: =I58 -> Month 5 | I66: =J58 -> Month 6 | J66: =K58 -> Month 7 | K66: =L58 -> Month 8 | L66: =M58 -> Month 9 | M66: =N58 -> Month 10 | N66: =O58 -> Month 11 | O66: =P58 -> Month 12 | P66: Year 1 | Q66: Year 2: | R66: =R58 -> Month 1 | S66: =S58 -> Month 2 | T66: Month 3 | U66: Month 4 | V66: Month 5 | W66: Month 6 | X66: Month 7 | Y66: Month 8 | Z66: Month 9 | AA66: Month 10 | AB66: Month 11 | AC66: Month 12 | AD66: Year 3: | AE66: Year 4: | AF66: Year 5 | AG66: Year 6 | AH66: Year 7 | AI66: Year 8 | AJ66: Year 9 | AK66: Year 10
B67: Managers: | C67: =B60 -> Skilled Workers | D67: ='Production Assumptions'!$O$49 ->  | E67: ='Production Assumptions'!$O$49 ->  | F67: ='Production Assumptions'!$O$49 ->  | G67: ='Production Assumptions'!$O$49 ->  | H67: ='Production Assumptions'!$O$49 ->  | I67: ='Production Assumptions'!$O$49 ->  | J67: ='Production Assumptions'!$O$49 ->  | K67: ='Production Assumptions'!$O$49 ->  | L67: ='Production Assumptions'!$O$49 ->  | M67: ='Production Assumptions'!$O$49 ->  | N67: ='Production Assumptions'!$O$49 ->  | O67: ='Production Assumptions'!$O$49 ->  | P67: =$O$32 ->  | Q67: =$AC$32 ->  | R67: ='Production Assumptions'!$O$49 ->  | S67: ='Production Assumptions'!$O$49 ->  | T67: ='Production Assumptions'!$O$49 ->  | U67: ='Production Assumptions'!$O$49 ->  | V67: ='Production Assumptions'!$O$49 ->  | W67: ='Production Assumptions'!$O$49 ->  | X67: ='Production Assumptions'!$O$49 ->  | Y67: ='Production Assumptions'!$O$49 ->  | Z67: ='Production Assumptions'!$O$49 ->  | AA67: ='Production Assumptions'!$O$49 ->  | AB67: ='Production Assumptions'!$O$49 ->  | AC67: ='Production Assumptions'!$O$49 ->  | AD67: =AC67 ->  | AE67: =AD67 -> 
B68: Staff: | C68: =B61 -> Medium Skilled | D68: ='Production Assumptions'!$O$50 ->  | E68: ='Production Assumptions'!$O$50 ->  | F68: ='Production Assumptions'!$O$50 ->  | G68: ='Production Assumptions'!$O$50 ->  | H68: ='Production Assumptions'!$O$50 ->  | I68: ='Production Assumptions'!$O$50 ->  | J68: ='Production Assumptions'!$O$50 ->  | K68: ='Production Assumptions'!$O$50 ->  | L68: ='Production Assumptions'!$O$50 ->  | M68: ='Production Assumptions'!$O$50 ->  | N68: ='Production Assumptions'!$O$50 ->  | O68: ='Production Assumptions'!$O$50 ->  | P68: =O68 ->  | Q68: =AC68 ->  | R68: ='Production Assumptions'!$O$50 ->  | S68: ='Production Assumptions'!$O$50 ->  | T68: ='Production Assumptions'!$O$50 ->  | U68: ='Production Assumptions'!$O$50 ->  | V68: ='Production Assumptions'!$O$50 ->  | W68: ='Production Assumptions'!$O$50 ->  | X68: ='Production Assumptions'!$O$50 ->  | Y68: ='Production Assumptions'!$O$50 ->  | Z68: ='Production Assumptions'!$O$50 ->  | AA68: ='Production Assumptions'!$O$50 ->  | AB68: ='Production Assumptions'!$O$50 ->  | AC68: ='Production Assumptions'!$O$50 ->  | AD68: =AC68 ->  | AE68: =AD68 -> 
B69: Staff: | C69: =B62 -> Low Skilled | D69: ='Production Assumptions'!$O$51 ->  | E69: ='Production Assumptions'!$O$51 ->  | F69: ='Production Assumptions'!$O$51 ->  | G69: ='Production Assumptions'!$O$51 ->  | H69: ='Production Assumptions'!$O$51 ->  | I69: ='Production Assumptions'!$O$51 ->  | J69: ='Production Assumptions'!$O$51 ->  | K69: ='Production Assumptions'!$O$51 ->  | L69: ='Production Assumptions'!$O$51 ->  | M69: ='Production Assumptions'!$O$51 ->  | N69: ='Production Assumptions'!$O$51 ->  | O69: ='Production Assumptions'!$O$51 ->  | P69: =O69 ->  | Q69: =AC69 ->  | R69: ='Production Assumptions'!$O$51 ->  | S69: ='Production Assumptions'!$O$51 ->  | T69: ='Production Assumptions'!$O$51 ->  | U69: ='Production Assumptions'!$O$51 ->  | V69: ='Production Assumptions'!$O$51 ->  | W69: ='Production Assumptions'!$O$51 ->  | X69: ='Production Assumptions'!$O$51 ->  | Y69: ='Production Assumptions'!$O$51 ->  | Z69: ='Production Assumptions'!$O$51 ->  | AA69: ='Production Assumptions'!$O$51 ->  | AB69: ='Production Assumptions'!$O$51 ->  | AC69: ='Production Assumptions'!$O$51 ->  | AD69: =AC69 ->  | AE69: =AD69 -> 
B70: Total: | D70: =SUM(D67:D69) ->  | E70: =SUM(E67:E69) ->  | P70: =SUM(P67:P69) ->  | Q70: =SUM(Q67:Q69) ->  | R70: =SUM(R67:R69) ->  | AD70: =SUM(AD67:AD69) -> 
B74: Summary
D76: Year 1
C77: RAS | D77: =C11 -> 
C78: Aquaponics | D78: =C45 -> 
C79: Pond culture | D79: =C28 -> 
C80: Cage Culture | D80: =C63 -> 

Sheet CAPEX
A1: CAPITAL EXPENDITURE - NILE TILAPIA MODEL
B3: RAS | L3: Pond | U3: Aquaponics
B4: Item | C4: Units | D4: Capacity (tanks per month) | E4: Number of units | F4: RATIO | G4: Price per Unit (R) | H4: TONS | I4: TOTAL | J4: TOTAL: Increases with Tonnage | L4: Item | M4: Units | N4: Number of units | O4: Ratios | P4: Price per Unit (R) | Q4: TONS | R4: TOTAL | S4: TOTAL: WITH Increases in tonnage | U4: Item | V4: Units | W4: Number of units | X4: Price per Unit (R) | Y4: TOTAL : Increases with Tonnage | AA4: Avg daily feed | AB4: =(MAX('Production Cycle'!B129:J129))/30*1000 -> 
B5: 1. Infrastructure | J5: =SUM(J6:J10) ->  | L5: 1. Infrastructure | S5: =SUM(S6:S11) ->  | U5: 1. Infrastructure | Y5: =SUM(Y6:Y11) ->  | AA5: Proportion to be utelised in aquaponics | AB5: ='Production Assumptions'!I21 -> 0.2
B6: StoreRooms (m²) | C6: =IF(Interface!$J$7<10,(3*5),(4*5)) -> 20 | E6: =N6 -> 1 | F6: =IF(Interface!$J$7<10,0.5,1) -> 1 | G6: ='Built-In Assumptions'!E21 -> 5850 | H6: =Q6 -> <Please Select Tonnage> | I6: =$G$6*$C$6*$F$6 -> 117000 | J6: =IF(Interface!$E$14="EXISTING",0,I6) -> 117000 | L6: StoreRooms (m²) | M6: =IF(Interface!$J$7<10,(3*5),(4*5)) -> 20 | N6: 1 | P6: ='Built-In Assumptions'!E21 -> 5850 | Q6: =Interface!$J$7 -> <Please Select Tonnage> | R6: =$P$6*$M$6 -> 117000 | S6: =IF(Interface!$E$14="EXISTING",0,R6) -> 117000 | U6: Storeroom/Feed Store (m²) | V6: =IF(Interface!$J$7<=5,(3*3),IF(Interface!$J$7<=10,(6*3),(6*6))) -> 36 | X6: ='Built-In Assumptions'!E21 -> 5850 | Y6: =IF(Interface!$E$14="EXISTING",0,V6*X6) -> 210600 | AA6: Avg daily feed | AB6: =AB4*AB5 -> 
B7: Offices (m²) | C7: =(20*HR!C8)+20 ->  | E7: 1 | F7: 1 | G7: ='Built-In Assumptions'!E20 -> 8350 | H7: =Interface!$J$7 -> <Please Select Tonnage> | I7: =$G$7*$C$7*$F$7 ->  | J7: =IF(Interface!$E$14="EXISTING",0,I7) ->  | L7: Office (m²) | M7: =(20*HR!C25)+20 ->  | N7: 1 | P7: ='Built-In Assumptions'!E20 -> 8350 | Q7: =Interface!$J$7 -> <Please Select Tonnage> | R7: =$P$7*$M$7 ->  | S7: =IF(Interface!$E$14="EXISTING",0,R7) ->  | U7: Office (m²) | V7: =(20*HR!C42)+20 ->  | X7: ='Built-In Assumptions'!E20 -> 8350 | Y7: =IF(Interface!$E$14="EXISTING",0,V7*X7) ->  | Z7: Leafy greens g of feed/m²/day | AA7: 40 | AB7: =AB6/AA7 -> 
B8: Tunnels (m²) | C8: =IF($C$16<='Containment Unit Calculations'!N4,('Containment Unit Calculations'!N5^2*E16),(IF(C16<='Containment Unit Calculations'!P4,(('Containment Unit Calculations'!P5)^2*E16),(('Containment Unit Calculations'!S5)^2)*E16))) ->  | E8: 1 | F8: 1 | G8: ='Built-In Assumptions'!E23 -> 638 | H8: =Interface!$J$7 -> <Please Select Tonnage> | I8: =$C$8*$G$8 ->  | J8: =IF(Interface!$E$14="EXISTING",0,(IF(Interface!$F$17="YES",$I$8,0))) -> 0 | L8: Cold storage (m²) | M8: =IF(Interface!$J$7<5,0,IF(Interface!$J$7<50,(7*5),IF(Interface!$J$7<101,(9*5),IF(Interface!$J$7<201,(10*5),IF(Interface!$J$7<401,(15*5),IF(Interface!$J$7<601,(20*5),IF(Interface!$J$7<801,(25*5),(30*5)))))))) -> 150 | N8: 1 | O8: 1 | P8: ='Built-In Assumptions'!E22 -> 14550 | Q8: =Interface!$J$7 -> <Please Select Tonnage> | R8: =$P$8*$M$8*$O$8 -> 2182500 | S8: =IF(Interface!$E$14="EXISTING",0,R8) -> 2182500 | U8: Tunnels (m²) | V8: =C8+(AB7*1.15) ->  | X8: ='Built-In Assumptions'!E23 -> 638 | Y8: =IF(Interface!$E$14="EXISTING",0,V8*X8) ->  | Z8: Leafy greens per/m² | AA8: 20 | AB8: =AB7*AA8 -> 
B9: Feed store (m²) | C9: =IF(Interface!$J$7<5,0,IF(Interface!$J$7<50,(7*5),IF(Interface!$J$7<101,(8*5),IF(Interface!$J$7<201,(9*5),IF(Interface!$J$7<401,(10*5),IF(Interface!$J$7<601,(15*5),IF(Interface!$J$7<801,(20*5),(25*5)))))))) -> 125 | E9: =N9 -> 1 | F9: =IF(Interface!$J$7<10,0,IF(Interface!$J$7<100,1,(1))) -> 1 | G9: ='Built-In Assumptions'!E21 -> 5850 | H9: =Q9 -> <Please Select Tonnage> | I9: =C9*F9*G9 -> 731250 | J9: =IF(Interface!$E$14="EXISTING",0,I9) -> 731250 | L9: Feed store (m²) | M9: =IF(Interface!$J$7<5,0,IF(Interface!$J$7<50,(7*5),IF(Interface!$J$7<101,(9*5),IF(Interface!$J$7<201,(10*5),IF(Interface!$J$7<401,(15*5),IF(Interface!$J$7<601,(20*5),IF(Interface!$J$7<801,(25*5),(30*5)))))))) -> 150 | N9: 1 | O9: 1 | P9: ='Built-In Assumptions'!E21 -> 5850 | Q9: =Interface!$J$7 -> <Please Select Tonnage> | R9: =P9*M9*O9 -> 877500 | S9: =IF(Interface!$E$14="EXISTING",0,R9) -> 877500 | U9: Handling/Processing Warehouse | V9: =IF(Interface!$J$7<=5,(3*3),IF(Interface!$J$7<=10,(6*3),(6*6))) -> 36 | X9: ='Built-In Assumptions'!E21 -> 5850 | Y9: =IF(Interface!$E$14="EXISTING",0,V9*X9) -> 210600
B10: Cold storage (m²) | C10: =IF(Interface!$J$7<5,0,IF(Interface!$J$7<50,(7*5),IF(Interface!$J$7<101,(8*5),IF(Interface!$J$7<201,(9*5),IF(Interface!$J$7<401,(10*5),IF(Interface!$J$7<601,(15*5),IF(Interface!$J$7<801,(20*5),(25*5)))))))) -> 125 | E10: 1 | F10: =IF(Interface!$J$7<10,0,IF(Interface!$J$7<100,1,(1))) -> 1 | G10: ='Built-In Assumptions'!E22 -> 14550 | H10: =$Q$8 -> <Please Select Tonnage> | I10: =C10*F10*G10 -> 1818750 | J10: =IF(Interface!$E$14="EXISTING",0,I10) -> 1818750 | L10: Storage Dam | M10: =IF(Interface!J7<50,0.5,0.2) -> 0.2 | N10: =IF(Interface!J7<=3,'Containment Unit Calculations'!E27,IF(Interface!$J$7<=5,'Containment Unit Calculations'!F27,IF(Interface!$J$7<=8,'Containment Unit Calculations'!G27,'Containment Unit Calculations'!H27))) -> 1000 | O10: 1 | P10: =IF(Interface!J7<=3,'Containment Unit Calculations'!E29,IF(Interface!$J$7<=5,'Containment Unit Calculations'!F29,IF(Interface!$J$7<=8,'Containment Unit Calculations'!G29,'Containment Unit Calculations'!H29)))*O10 -> 78000 | Q10: =Interface!$J$7 -> <Please Select Tonnage> | R10: =P10*O10 -> 78000 | S10: =IF(Interface!$E$14="EXISTING",0,R10) -> 78000 | U10: Cold storage (m²) | V10: =IF(Interface!$J$7<5,0,IF(Interface!$J$7<50,(7*5),IF(Interface!$J$7<101,(8*5),IF(Interface!$J$7<201,(9*5),IF(Interface!$J$7<401,(10*5),IF(Interface!$J$7<601,(15*5),IF(Interface!$J$7<801,(20*5),(25*5)))))))) -> 125 | X10: ='Built-In Assumptions'!E22 -> 14550 | Y10: =IF(Interface!$E$14="EXISTING",0,V10*X10) -> 1818750
B11: Pump House | C11: =D51 ->  | F11: 1 | G11: ='Built-In Assumptions'!E21 -> 5850 | H11: =$Q$8 -> <Please Select Tonnage> | I11: =C11*F11*G11 ->  | J11: =IF(Interface!$E$14="EXISTING",0,I11) ->  | L11: Pump House | M11: =E51 ->  | O11: 1 | P11: ='Built-In Assumptions'!E21 -> 5850 | Q11: =Interface!$J$7 -> <Please Select Tonnage> | R11: =P11*O11 -> 5850 | S11: =IF(Interface!$E$14="EXISTING",0,R11) -> 5850 | U11: Pump House | V11: =F51+G51 ->  | X11: ='Built-In Assumptions'!E21 -> 5850 | Y11: =IF(Interface!$E$14="EXISTING",0,V11*X11) -> 
B12: 2. Land | J12: =J13+J14 ->  | L12: 2. Land | S12: =S13+S14 ->  | U12: 2. Land | Y12: =Y13+Y14 -> 
B13: Purchase Land (ha) | C13: 1 | E13: =IF(Interface!$J$7<=2,1,1+'System Footprints'!E14) ->  | G13: ='Built-In Assumptions'!E24 -> 246346 | I13: =G13*E13*C13 ->  | J13: =IF(AND(Interface!$F$14="YES",Interface!$E$14="EXISTING"),0,IF(AND(Interface!$F$14="YES",Interface!$E$14=Validation!$H$9),0,CAPEX!$I$13)) ->  | L13: Purchase Land (ha) | M13: 1 | N13: =IF(Interface!$J$7<2,1,1+'System Footprints'!J11) ->  | P13: ='Built-In Assumptions'!E24 -> 246346 | Q13: =Interface!$J$7 -> <Please Select Tonnage> | R13: =P13*N13*M13 ->  | S13: =IF(Interface!F14="YES",0,R13) ->  | U13: Purchase Land (ha) | W13: =IF(Interface!$J$7<=2,1,1+'System Footprints'!E27) ->  | X13: ='Built-In Assumptions'!E24 -> 246346 | Y13: =IF(Interface!$F$14="YES",0,W13*X13) -> 
B14: Earthmoving/Basic Site Clearing | C14: 1 | E14: =C6+C7+C8+C9+C10 ->  | G14: 100 | I14: =G14*E14*C14 ->  | J14: =IF(AND(Interface!$F$14="YES",Interface!$E$14="EXISTING"),0,IF(AND(Interface!$F$14="YES",Interface!$E$14=Validation!$H$9),0,CAPEX!$I$14)) ->  | L14: Earthmoving/basic site clearing | M14: =M6+M7+M8+M9 ->  | P14: =G14 -> 100 | Q14: =Interface!$J$7 -> <Please Select Tonnage> | R14: =((N16*M14)+(M6+M7+M8+M9))*N16 ->  | S14: =IF(Interface!$E$14="EXISTING",0,R14) ->  | U14: =L14 -> Earthmoving/basic site clearing | W14: =V6+V7+V8+V9+V10+V11 ->  | X14: 100 | Y14: =IF(Interface!$F$14="YES",0,W14*X14) -> 
B15: 3. Equipment | J15: =SUM(J16:J25) ->  | L15: 3. Equipment | S15: =SUM(S16:S21) ->  | U15: 3. Equipment | Y15: =SUM(Y17:Y26) -> 
B16: Grow-out containment number (m3) | C16: =IF(Interface!J7<=3,'Containment Unit Calculations'!O4,IF(Interface!$J$7<=5,'Containment Unit Calculations'!P4,IF(Interface!$J$7<=10,'Containment Unit Calculations'!R4,'Containment Unit Calculations'!S4))) -> 21.59844949 | E16: ='Production Cycle'!B135 ->  | G16: =IF(Interface!J7<=3,'Containment Unit Calculations'!O8,IF(Interface!$J$7<=5,'Containment Unit Calculations'!P8,IF(Interface!$J$7<=10,'Containment Unit Calculations'!R8,'Containment Unit Calculations'!S8))) -> 10000 | H16: =Interface!$J$7 -> <Please Select Tonnage> | I16: =G16*E16 ->  | J16: =IF(Interface!$E$14="EXISTING",0,I16) ->  | L16: Earthen ponds (m2) | M16: =IF(Interface!J7<=3,'Containment Unit Calculations'!E4,IF(Interface!$J$7<=5,'Containment Unit Calculations'!F4,IF(Interface!$J$7<=8,'Containment Unit Calculations'!H4,'Containment Unit Calculations'!I4))) -> 1000 | N16: ='Production Cycle'!B134 ->  | P16: =IF(Interface!J7<=3,'Containment Unit Calculations'!E12,IF(Interface!$J$7<=5,'Containment Unit Calculations'!F12,IF(Interface!$J$7<=8,'Containment Unit Calculations'!G12,'Containment Unit Calculations'!I12))) -> 137500 | Q16: =Interface!$J$7 -> <Please Select Tonnage> | R16: =N16*P16 ->  | S16: =IF(Interface!$E$14="EXISTING",0,R16) ->  | U16: =B16 -> Grow-out containment number (m3) | V16: =C16 -> 21.59844949 | W16: =E16 ->  | X16: =G16 -> 10000 | Y16: =IF(Interface!G17="YES",0,X16*W16) -> 
B17: Water quality testing equipment | C17: 1 | E17: 1 | F17: =O17 -> 1 | G17: =IF(Interface!$J$7<20,'Production Assumptions'!$F$103,'Production Assumptions'!F108) -> 50000 | H17: =Q17 -> <Please Select Tonnage> | I17: =C17*G17 -> 50000 | J17: =IF(Interface!$E$14="EXISTING",0,I17) -> 50000 | L17: Water quality testing equipment | M17: 1 | N17: 1 | O17: 1 | P17: =IF(Interface!$J$7<Validation!$B$22,'Production Assumptions'!$F$103,'Production Assumptions'!$F$103+'Production Assumptions'!$F$110) ->  | Q17: =Interface!$J$7 -> <Please Select Tonnage> | R17: =P17*N17*O17 ->  | S17: =IF(Interface!$E$14="EXISTING",0,R17) ->  | U17: Filteration system | W17: 1 | X17: =J21+J22+J23 ->  | Y17: =IF(Interface!$G$17="NO",CAPEX!X17*W17,0) -> 0
B18: Electrial inst. type (D 5KVA, F 50KVA) | C18: =C6+C7+C9+C10 ->  | E18: 1 | F18: 1 | G18: 500 | H18: =Interface!$J$7 -> <Please Select Tonnage> | I18: =G18*C18 ->  | J18: =IF(Interface!$E$14="EXISTING",0,I18) ->  | L18: Electrial inst. type (D 5KVA, F 50KVA) | M18: =$M$6+$M$7+$M$8+M9 ->  | N18: 1 | O18: 1 | P18: 500 | Q18: =Interface!$J$7 -> <Please Select Tonnage> | R18: =P18*M18 ->  | S18: =IF(Interface!$E$14="EXISTING",0,R18) ->  | U18: Plant grow tanks/grow beds/reservoirs (m2) | V18: 1 | W18: ='Containment Unit Calculations'!X19 ->  | X18: 120 | Y18: =IF(Interface!$E$14="EXISTING",0,W18*X18) -> 
B19: Water Pumps | E19: =D48 ->  | G19: =D49 ->  | H19: =Interface!$J$7 -> <Please Select Tonnage> | I19: =G19*E19 ->  | J19: =IF(Interface!$E$14="EXISTING",0,I19) ->  | L19: Water Pumps | N19: =E48 ->  | P19: =E49 ->  | Q19: =Interface!$J$7 -> <Please Select Tonnage> | R19: =P19*N19 ->  | S19: =IF(Interface!$E$14="EXISTING",0,R19) ->  | U19: Piping RAS (based on # tanks) | W19: =E20 ->  | X19: 200 | Y19: =IF(Interface!G17="NO",CAPEX!X19*W19,0) -> 0
B20: Piping (based on # grow out containments) | E20: =IF(Interface!J7<=3,'Piping Calculations'!C5,IF(Interface!$J$7<=5,'Piping Calculations'!D5,IF(Interface!$J$7<=8,'Piping Calculations'!E5,'Piping Calculations'!F5))) ->  | G20: 200 | H20: =Interface!$J$7 -> <Please Select Tonnage> | I20: =E20*G20 ->  | J20: =IF(Interface!$E$14="EXISTING",0,I20) ->  | L20: Piping (based on # ponds) | N20: =IF(Interface!J7<=3,'Piping Calculations'!D11,IF(Interface!$J$7<=5,'Piping Calculations'!E11,IF(Interface!$J$7<=8,'Piping Calculations'!F11,'Piping Calculations'!H11))) ->  | P20: 200 | Q20: =Interface!$J$7 -> <Please Select Tonnage> | R20: =N20*P20 ->  | S20: =IF(Interface!$E$14="EXISTING",0,R20) ->  | U20: Piping Aquaponics ( # of tanks) | W20: ='Piping Calculations'!L3 ->  | X20: ='Piping Calculations'!K4 -> 20 | Y20: =IF(Interface!$E$14="EXISTING",0,W20*X20) -> 
B21: Biofilter Tank (m³) | C21: ='Bio-Model'!D18 -> 5.4 | E21: ='Bio-Model'!D19 -> 0 | G21: =IF(Interface!J7<=3,'Bio-Model'!N18,IF(Interface!$J$7<=5,'Bio-Model'!O18,IF(Interface!$J$7<=10,'Bio-Model'!Q18,'Bio-Model'!R18))) -> 3400 | H21: =Interface!$J$7 -> <Please Select Tonnage> | I21: =C21*G21 -> 18360 | J21: =IF(Interface!$E$14="EXISTING",0,I21) -> 18360 | L21: Heating equipment | M21: =(Interface!J7/100)*3 ->  | N21: 1 | P21: 18000 | Q21: =Interface!$J$7 -> <Please Select Tonnage> | R21: =P21*M21 ->  | S21: =IF(Interface!$E$14="EXISTING",0,R21) ->  | U21: Water Pump RAS | V21: =F48 ->  | X21: =F49 ->  | Y21: =IF(Interface!G17="NO",CAPEX!X21*V21,0) -> 0
B22: Biofilter Medium (m²) | E22: ='Bio-Model'!D16 -> 0 | G22: 7000 | H22: =Interface!$J$7 -> <Please Select Tonnage> | I22: =E22*G22 -> 0 | J22: =IF(Interface!$E$14="EXISTING",0,I22) -> 0 | L22: 4. Movable assests | S22: =SUM(S23:S28) ->  | U22: Water Pumps plants | V22: =G48 ->  | X22: =G49 ->  | Y22: =IF(Interface!$E$14="EXISTING",0,V22*X22) -> 
B23: Lamella/Swil Tanks (m³) | C23: ='Bio-Model'!D21 -> 5.4 | E23: ='Bio-Model'!D22 ->  | G23: =IF(Interface!J7<=3,'Bio-Model'!N24,IF(Interface!$J$7<=5,'Bio-Model'!O24,IF(Interface!$J$7<=10,'Bio-Model'!Q24,'Bio-Model'!R24))) -> 6000 | H23: =Interface!$J$7 -> <Please Select Tonnage> | I23: =E23*G23 ->  | J23: =IF(Interface!$E$14="EXISTING",0,I23) ->  | L23: Buckets/drums | M23: =E27 ->  | N23: 2 | O23: 1 | P23: 273.2 | Q23: =Interface!$J$7 -> <Please Select Tonnage> | R23: =((N23*O23)*P23) -> 546.4 | S23: =IF(Interface!$E$14="EXISTING",0,R23) -> 546.4 | U23: Sump/Header Tanks (m3), Hydroponics | V23: 1 | W23: ='Containment Unit Calculations'!AB14 ->  | X23: ='Containment Unit Calculations'!AB16 -> 3400 | Y23: =IF(Interface!$E$14="EXISTING",0,V23*X23) -> 3400
B24: Heating equipment | C24: =(Interface!J7/100)*3 ->  | E24: 1 | F24: 1 | G24: 18000 | H24: =Interface!$J$7 -> <Please Select Tonnage> | I24: =C24*G24 ->  | J24: =IF(Interface!$E$14="EXISTING",0,I24) ->  | L24: Freezer | M24: =IF(Interface!$J$7<10,1,0) -> 0 | N24: 0 | O24: 1 | P24: 5640 | Q24: =Interface!$J$7 -> <Please Select Tonnage> | R24: =((N24*O24)*P24) -> 0 | S24: =IF(Interface!$E$14="EXISTING",0,R24) -> 0 | U24: Solar Heating Pump | V24: =(Interface!J7/100)*3 ->  | X24: 18000 | Y24: =IF(Interface!$E$14="EXISTING",0,V24*X24) -> 
B25: Ryobi - Generator 4-Stroke - 7.5Kva | C25: =ROUNDUP((Interface!$J$7/10),0) ->  | E25: 1 | F25: 1 | G25: 12769 | H25: =Interface!$J$7 -> <Please Select Tonnage> | I25: =G25*C25 ->  | J25: =IF(Interface!$E$14="EXISTING",0,I25) ->  | L25: =B30 -> Office equipment | M25: =HR!C25+1 ->  | N25: 2 | O25: 1 | P25: 6000 | Q25: =Interface!$J$7 -> <Please Select Tonnage> | R25: =M25*P25 ->  | S25: =IF(Interface!$E$14="EXISTING",0,R25) ->  | U25: Electrical Installation type (D 5KVA, F 50 KVA) | W25: =V6+V7+V8+V9+V10 ->  | X25: 500 | Y25: =IF(Interface!$E$14="EXISTING",0,W25*X25) -> 
B26: 4. Movable assests | J26: =SUM(J27:J33) ->  | L26: =B31 -> Short/long handle Hand net | M26: =HR!C28+1 ->  | N26: 3 | O26: 1 | P26: 295 | Q26: =Interface!$J$7 -> <Please Select Tonnage> | R26: =((M26*O26)*P26) ->  | S26: =IF(Interface!$E$14="EXISTING",0,R26) ->  | U26: Polystyrene foam | V26: 0.2 | W26: =$AB$7*CAPEX!V$26 ->  | X26: 44 | Y26: =IF(Interface!$E$14="EXISTING",0,W26*X26) -> 
B27: Buckets/drums | C27: 1 | E27: =ROUNDUP((Interface!$J$7/5),0)+4 ->  | F27: 1 | G27: 273.2 | H27: =Interface!$J$7 -> <Please Select Tonnage> | I27: =G27*E27 ->  | J27: =IF(Interface!$E$14="EXISTING",0,I27) ->  | L27: Air blower size (Kw) | M27: =E40 -> 4.1 | N27: =E41 -> 1 | P27: =E42 -> 20000 | Q27: =Interface!$J$7 -> <Please Select Tonnage> | R27: =N27*P27 -> 20000 | S27: =IF(Interface!$E$14="EXISTING",0,R27) -> 20000 | U27: 4. Movable assests | Y27: =SUM(Y28:Y36) -> 
B28: Water storage tank | C28: ='Containment Unit Calculations'!N21 -> 5.4 | E28: =ROUNDUP((('Production Cycle'!B135)*'Containment Unit Calculations'!N26/CAPEX!C28),0) ->  | F28: =IF(Interface!$J$7<50,1,(1.03)) -> 1.03 | G28: ='Containment Unit Calculations'!N25 -> 6000 | H28: =Interface!$J$7 -> <Please Select Tonnage> | I28: =$G$28*$E$28*F28 ->  | J28: =IF(Interface!$E$14="EXISTING",0,I28) ->  | L28: Vehicle | M28: =IF(Interface!$J$7<11,0,IF(Interface!$J$7<101,1,IF(Interface!$J$7<201,2,IF(Interface!$J$7<301,3,4)))) -> 4 | N28: 0 | P28: 200000 | Q28: =Interface!$J$7 -> <Please Select Tonnage> | R28: =P28*M28 -> 800000 | S28: =IF(Interface!$E$14="EXISTING",0,R28) -> 800000 | U28: Water Quality Testing Equipment | W28: 1 | X28: =IF(Interface!$J$7<Validation!$B$22,'Production Assumptions'!$F$103,'Production Assumptions'!$F$103+'Production Assumptions'!$F$110) ->  | Y28: =IF(Interface!$E$14="EXISTING",0,W28*X28) -> 
B29: Freezer | C29: =IF(Interface!$J$7<10,1,0) -> 0 | E29: 0 | F29: 1 | G29: 5640 | H29: =Interface!$J$7 -> <Please Select Tonnage> | I29: =G29*C29 -> 0 | J29: =IF(Interface!$E$14="EXISTING",0,I29) -> 0 | L29: TOTAL EXCLUDING Working Capital | S29: =S22+S5+S12+S15 ->  | U29: Water Storage Tanks ( For RAS) | V29: ='Containment Unit Calculations'!O21 -> 5.4 | W29: =ROUNDUP((('Production Cycle'!B136)*'Containment Unit Calculations'!O26/V29),0) ->  | X29: ='Containment Unit Calculations'!O25 -> 6000 | Y29: =IF(Interface!G17="YES",0,X29*W29) -> 
B30: Office equipment | C30: =HR!C8+1 ->  | E30: 3 | F30: 1 | G30: 6000 | H30: =Interface!$J$7 -> <Please Select Tonnage> | I30: =G30*C30 ->  | J30: =IF(Interface!$E$14="EXISTING",0,I30) ->  | U30: Aerators | V30: =ROUNDUP((Interface!$J$7/5),0) ->  | W30: 4 | X30: 680 | Y30: =X30*W30*V30 -> 
B31: Short/long handle Hand net | C31: 1 | E31: =ROUNDUP(Interface!$J$7/2,0)+1 ->  | F31: 1 | G31: 295 | H31: =Interface!$J$7 -> <Please Select Tonnage> | I31: =G31*E31 ->  | J31: =IF(Interface!$E$14="EXISTING",0,I31) ->  | U31: Office Equipment | W31: 3 | X31: 6000 | Y31: =X31*W31 -> 18000
B32: Aeration (kW) | C32: =D40 -> 4.1 | E32: =D41 -> 1 | F32: 1 | G32: =D42 -> 20000 | H32: =Interface!$J$7 -> <Please Select Tonnage> | I32: =$G$32*$E$32 -> 20000 | J32: =IF(Interface!$E$14="EXISTING",0,I32) -> 20000 | L32: CAGE | U32: Buckets/Drums | W32: =HR!C45+1 ->  | X32: 273 | Y32: =X32*W32 -> 
B33: Vehicle | C33: =IF(Interface!$J$7<11,0,IF(Interface!$J$7<101,1,IF(Interface!$J$7<201,2,IF(Interface!$J$7<301,3,4)))) -> 4 | E33: =D41 -> 1 | G33: =D42 -> 20000 | H33: =Interface!$J$7 -> <Please Select Tonnage> | I33: =$G$33*$C$33 -> 80000 | J33: =IF(Interface!$E$14="EXISTING",0,I33) -> 80000 | L33: Item | M33: Units | N33: Number of units | O33: Ratios | P33: Price per Unit (R) | Q33: Tons | R33: Total | S33: TOTAL: Increase with Tonnage | U33: Short/Long handle nets | W33: =HR!C45+1 ->  | X33: 295
B34: TOTAL EXCLUDING Working Capital | J34: =J26+J15+J12+J5 ->  | L34: 1. Infrastructure | S34: =SUM(S35:S38) ->  | U34: Freezer | V34: =IF(Interface!$J$7<10,1,0) -> 0 | W34: 1 | X34: 5640 | Y34: =X34*V34 -> 0
L35: Feed Store (m²) | M35: =IF(Interface!$J$7<5,0,IF(Interface!$J$7<50,(7*5),IF(Interface!$J$7<101,(8*5),IF(Interface!$J$7<201,(9*5),IF(Interface!$J$7<401,(10*5),IF(Interface!$J$7<601,(15*5),IF(Interface!$J$7<801,(20*5),(25*5)))))))) -> 125 | P35: ='Built-In Assumptions'!E21 -> 5850 | Q35: =Interface!$J$7 -> <Please Select Tonnage> | R35: =M35*P35 -> 731250 | S35: =IF(Interface!$E$14="EXISTING",0,R35) -> 731250 | U35: Vechicle | V35: =IF(Interface!$J$7<11,0,IF(Interface!$J$7<101,1,IF(Interface!$J$7<201,2,IF(Interface!$J$7<301,3,4)))) -> 4 | X35: 200000 | Y35: =X35*V35 -> 800000
B36: Aeration | D36: RAS | E36: Pond | F36: Aquaponics Fish | G36: Aquaponics plants | L36: Cold Storage (m²) | M36: =IF(Interface!$J$7<5,0,IF(Interface!$J$7<50,(7*5),IF(Interface!$J$7<101,(8*5),IF(Interface!$J$7<201,(9*5),IF(Interface!$J$7<401,(10*5),IF(Interface!$J$7<601,(15*5),IF(Interface!$J$7<801,(20*5),(25*5)))))))) -> 125 | P36: ='Built-In Assumptions'!E22 -> 14550 | Q36: =Interface!$J$7 -> <Please Select Tonnage> | R36: 1818750 | S36: =IF(Interface!$E$14="EXISTING",0,R36) -> 1818750 | U36: Hydroponics net pots | V36: =AB8 ->  | W36: =V36/100 ->  | X36: 1.14 | Y36: =V36*X36 -> 
B37: Total System Biomass | D37: =IF(Interface!E17=Validation!D39,'Production Cycle'!B129,IF(Interface!E17=Validation!D40,'Production Cycle'!C129,IF(Interface!E17=Validation!D41,'Production Cycle'!D129,IF(Interface!E17=Validation!D42,'Production Cycle'!E129,IF(Interface!E17=Validation!D43,'Production Cycle'!F129,IF(Interface!E17=Validation!D44,'Production Cycle'!G129,IF(Interface!E17=Validation!D45,'Production Cycle'!H129,IF(Interface!E17=Validation!D46,'Production Cycle'!I129,IF(Interface!E17=Validation!D47,'Production Cycle'!J129))))))))) -> FALSE | E37: =IF(Interface!E17=Validation!D39,'Production Cycle'!B129,IF(Interface!E17=Validation!D40,'Production Cycle'!C129,IF(Interface!E17=Validation!D41,'Production Cycle'!D129,IF(Interface!E17=Validation!D42,'Production Cycle'!E129,IF(Interface!E17=Validation!D43,'Production Cycle'!F129,IF(Interface!E17=Validation!D44,'Production Cycle'!G129,IF(Interface!E17=Validation!D45,'Production Cycle'!H129,IF(Interface!E17=Validation!D46,'Production Cycle'!I129,IF(Interface!E17=Validation!D47,'Production Cycle'!J129))))))))) -> FALSE | F37: =IF(Interface!E17=Validation!D39,'Production Cycle'!B129,IF(Interface!E17=Validation!D40,'Production Cycle'!C129,IF(Interface!E17=Validation!D41,'Production Cycle'!D129,IF(Interface!E17=Validation!D42,'Production Cycle'!E129,IF(Interface!E17=Validation!D43,'Production Cycle'!F129,IF(Interface!E17=Validation!D44,'Production Cycle'!G129,IF(Interface!E17=Validation!D45,'Production Cycle'!H129,IF(Interface!E17=Validation!D46,'Production Cycle'!I129,IF(Interface!E17=Validation!D47,'Production Cycle'!J129))))))))) -> FALSE | L37: Storeroom/Handling Facility (m²) | M37: =IF(Interface!$J$7<=5,0,IF(Interface!$J$7<=10,(3*5),(4*5))) -> 20 | P37: ='Built-In Assumptions'!E21 -> 5850 | Q37: =Interface!$J$7 -> <Please Select Tonnage> | R37: 117000 | S37: =IF(Interface!$E$14="EXISTING",0,R37) -> 117000 | U37: TOTAL EXCLUDING Working Capital | Y37: =SUM(Y27,Y5,Y12,Y15) -> 
B38: power reqs for areation per yr (1 kW/kg fish produced) | D38: =D37*1 -> 0 | E38: =E37*1 -> 0 | F38: =F37*1 -> 0 | L38: Offices (m²) | M38: =(HR!C60*20)+20 ->  | P38: ='Built-In Assumptions'!E20 -> 8350 | Q38: =Interface!$J$7 -> <Please Select Tonnage> | R38: =M38*P38 ->  | S38: =IF(Interface!$E$14="EXISTING",0,R38) -> 
B39: power reqs for areation per hour (1 kW/kg fish produced) | C39: 1.1 | D39: =D38/365/24 -> 0 | E39: =E38/365/24 -> 0 | F39: =F38/365/24 -> 0 | L39: 2. Land | S39: =S40+S41 -> 
B40: Size of aerator 0.7kW for 1-10 tons, 4.1 kW for larger | D40: =IF(Interface!$J$7<=Validation!B12,0.7,4.1) -> 4.1 | E40: =IF(Interface!$J$7<=Validation!B12,0.7,4.1) -> 4.1 | F40: =IF(Interface!$J$7<=Validation!C12,0.7,4.1) -> 4.1 | L40: Purchase Land (ha) | M40: 1 | N40: =IF(Interface!$J$7<2,1,1+'System Footprints'!J22) ->  | P40: ='Built-In Assumptions'!E24 -> 246346 | Q40: =Interface!$J$7 -> <Please Select Tonnage> | R40: =P40*N40*M40 ->  | S40: =IF(OR(Interface!O55="YES",Interface!$E$14="EXISTING"),0,IF(OR(Interface!O55="YES",Interface!$E$14="start-up"),CAPEX!R40)) -> FALSE
B41: Number of aerators | D41: =ROUNDUP(D39/D40,0)+1 -> 1 | E41: =ROUNDUP(E39/E40,0)+1 -> 1 | F41: =ROUNDUP(F39/F40,0)+1 -> 1 | L41: =L14 -> Earthmoving/basic site clearing | M41: 0 | N41: =M35+M36+M37+M38 ->  | P41: 100 | Q41: =Interface!$J$7 -> <Please Select Tonnage> | R41: =N41*P41 ->  | S41: =IF(Interface!$E$14="EXISTING",0,R41) -> 
B42: cost of aerator | D42: =IF(Interface!$J$7<100,5000,20000) -> 20000 | E42: =IF(Interface!$J$7<100,5000,20000) -> 20000 | F42: =IF(Interface!$J$7<100,5000,20000) -> 20000 | L42: 3. Equipment | S42: =SUM(S43:S44) -> 
B43: Pumps | D43: RAS | E43: Pond | F43: Aquaponics Fish | G43: Aquaponics plants | L43: Floating Cages | M43: 1 | N43: ='Production Cycle'!B137 ->  | P43: ='Containment Unit Calculations'!N14 -> 171 | Q43: =Interface!$J$7 -> <Please Select Tonnage> | R43: =N43*P43 ->  | S43: =IF(Interface!$E$14="EXISTING",0,R43) -> 
B44: turn over /residence time | C44: hours | D44: 4 | F44: =D44 -> 4 | G44: ='Containment Unit Calculations'!X17 -> 2.5 | L44: Water quality testing equipment | M44: 0 | N44: 1 | O44: 1 | P44: =IF(Interface!$J$7<Validation!$B$22,'Production Assumptions'!$F$103,'Production Assumptions'!$F$103+'Production Assumptions'!$F$110) ->  | Q44: =Interface!$J$7 -> <Please Select Tonnage> | R44: =P44*N44*O44 ->  | S44: =IF(Interface!$E$14="EXISTING",0,R44) -> 
B45: System volume | C45: m3/hr | D45: ='Production Cycle'!C135+'Bio-Model'!D17+'Bio-Model'!D20 ->  | E45: ='Production Cycle'!C134 ->  | F45: =D45 ->  | G45: ='Containment Unit Calculations'!X22 ->  | L45: 4. Movable assests | S45: =SUM(S46:S51) -> 
B46: Required flow rate | D46: =D45/D44 ->  | E46: =E45*0.15/24 ->  | F46: =F45/F44 ->  | G46: =G45/G44 ->  | L46: Office Equipment | N46: =HR!C60+1 ->  | P46: 6000 | Q46: =Interface!$J$7 -> <Please Select Tonnage> | R46: =P46*N46 ->  | S46: =IF(Interface!$E$14="EXISTING",0,R46) -> 
B47: flow rate, 1.1kw at 10m head | D47: =IF(D46<200,21,110) ->  | E47: =IF(E46<200,21,110) ->  | F47: =IF(F46<200,21,110) ->  | G47: =IF(G46<200,21,110) ->  | L47: Buckets/drums | N47: =HR!C63+1 ->  | P47: 273.2 | Q47: =Interface!$J$7 -> <Please Select Tonnage> | R47: =P47*N47 ->  | S47: =IF(Interface!$E$14="EXISTING",0,R47) -> 
B48: No pumps required ( plus 1 spare) | D48: =ROUNDUP((D46/D47),0)+1 ->  | E48: =ROUNDUP((E46/E47),0)+1 ->  | G48: =ROUNDUP((G46/G47),0)+1 ->  | L48: =L26 -> Short/long handle Hand net | N48: =HR!C63+1 ->  | P48: =G31 -> 295 | Q48: =Interface!$J$7 -> <Please Select Tonnage> | R48: =P48*N48 ->  | S48: =IF(Interface!$E$14="EXISTING",0,R48) -> 
B49: pump cost | D49: =IF(D47=21, 2250,43000) ->  | E49: =IF(E47=21, 2250,43000) ->  | G49: =IF(G47=21, 2250,43000) ->  | L49: Freezer | M49: =IF(Interface!J7<10,1,0) -> 0 | N49: 0 | O49: 1 | P49: =IF(M49=1,5640,12000) -> 12000 | Q49: =Interface!$J$7 -> <Please Select Tonnage> | R49: =M49*O49*P49 -> 0 | S49: =IF(Interface!$E$14="EXISTING",0,R49) -> 0
B50: Electricity to run pumps (excl spare) full time, annual | C50: =365*24 -> 8760 | D50: =(D48-1)*C39*C50 ->  | E50: =(E48-1)*C39*C50 ->  | F50: =(F48-1)*C39*C50 ->  | G50: =(G48-1)*C39*C50 ->  | L50: Boat, trailer, retrofit | M50: =IF(Q50<10,1,2) -> 2 | P50: =IF(Q50=1,25000,70000) -> 70000 | Q50: =Interface!$J$7 -> <Please Select Tonnage> | R50: =P50*M50 -> 140000 | S50: =IF(Interface!$E$14="EXISTING",0,R50) -> 140000
B51: Pump house footprint | C51: =IF(D47=21,0.4,0.6) ->  | D51: =IF((D48*$C$51)<4,4,D48*$C$51) ->  | E51: =IF((E48*$C$51)<4,4,E48*$C$51) ->  | L51: Vehicle | M51: =M28 -> 4 | N51: 0 | P51: 200000 | Q51: =Interface!$J$7 -> <Please Select Tonnage> | R51: =P51*M51 -> 800000 | S51: =IF(Interface!$E$14="EXISTING",0,R51) -> 800000
B52: System Electricity | D52: RAS | E52: Pond | F52: Aquaponics Fish | G52: Aquaponics plants | L52: TOTAL EXCLUDING Working Capital | S52: =S45+S42+S39+S34 -> 
B53: Systems electricity Kw per year | D53: =D50+D38 ->  | E53: =E38+E50 ->  | F53: =F38+F50 ->  | G53: =G50 -> 
B54: Electicity costs per year | C54: ='Production Assumptions'!C12 -> 1.09 | D54: =D53*C54 ->  | E54: =E53*C54 ->  | F54: =F53*C54 ->  | G54: =G53*C54 -> 
B55: Electicity costs per month | D55: =D54/12 ->  | E55: =E54/12 ->  | F55: =F54/12 ->  | G55: =G54/12 -> 
E56: using 15% daily replacement

Sheet Working Capital - RAS
A1: WORKING CAPITAL - RAS
B3: WORKING CAPITAL
C4: ='OPEX - RAS'!D4 -> Month 1 | D4: ='OPEX - RAS'!E4 -> Month 2 | E4: ='OPEX - RAS'!F4 -> Month 3 | F4: ='OPEX - RAS'!G4 -> Month 4 | G4: ='OPEX - RAS'!H4 -> Month 5 | H4: ='OPEX - RAS'!I4 -> Month 6 | I4: ='OPEX - RAS'!J4 -> Month 7 | J4: ='OPEX - RAS'!K4 -> Month 8 | K4: ='OPEX - RAS'!L4 -> Month 9 | L4: Total
B5: VARIABLE COSTS:
B6: ='OPEX - RAS'!B10 -> Fingerling | C6: ='OPEX - RAS'!D10 ->  | D6: ='OPEX - RAS'!E10 ->  | E6: ='OPEX - RAS'!F10 ->  | F6: ='OPEX - RAS'!G10 ->  | G6: ='OPEX - RAS'!H10 ->  | H6: ='OPEX - RAS'!I10 ->  | I6: ='OPEX - RAS'!J10 ->  | J6: ='OPEX - RAS'!K10 ->  | K6: ='OPEX - RAS'!L10 ->  | L6: =IF(Interface!$E$17=Validation!$D$39,C6,IF(Interface!$E$17=Validation!$D$40,SUM(C6:D6),IF(Interface!$E$17=Validation!$D$41,SUM(C6:E6),IF(Interface!$E$17=Validation!$D$42,SUM(C6:F6),IF(Interface!$E$17=Validation!$D$43,SUM(C6:G6),IF(Interface!$E$17=Validation!$D$44,SUM(C6:H6),IF(Interface!$E$17=Validation!$D$45,SUM(C6:I6),IF(Interface!$E$17=Validation!$D$46,SUM(C6:J6),IF(Interface!$E$17=Validation!$D$47,SUM(C6:K6),))))))))) -> 0
B7: ='OPEX - RAS'!B11 -> Feed | C7: ='OPEX - RAS'!D11 ->  | D7: ='OPEX - RAS'!E11 ->  | E7: ='OPEX - RAS'!F11 ->  | F7: ='OPEX - RAS'!G11 ->  | G7: ='OPEX - RAS'!H11 ->  | H7: ='OPEX - RAS'!I11 ->  | I7: ='OPEX - RAS'!J11 ->  | J7: ='OPEX - RAS'!K11 ->  | K7: ='OPEX - RAS'!L11 ->  | L7: =IF(Interface!$E$17=Validation!$D$39,C7,IF(Interface!$E$17=Validation!$D$40,SUM(C7:D7),IF(Interface!$E$17=Validation!$D$41,SUM(C7:E7),IF(Interface!$E$17=Validation!$D$42,SUM(C7:F7),IF(Interface!$E$17=Validation!$D$43,SUM(C7:G7),IF(Interface!$E$17=Validation!$D$44,SUM(C7:H7),IF(Interface!$E$17=Validation!$D$45,SUM(C7:I7),IF(Interface!$E$17=Validation!$D$46,SUM(C7:J7),IF(Interface!$E$17=Validation!$D$47,SUM(C7:K7),))))))))) -> 0
B8: ='OPEX - RAS'!B12 -> Consumables - Water Quality | C8: ='OPEX - RAS'!D12 ->  | D8: ='OPEX - RAS'!E12 -> 0 | E8: ='OPEX - RAS'!F12 -> 0 | F8: ='OPEX - RAS'!G12 -> 0 | G8: ='OPEX - RAS'!H12 -> 0 | H8: ='OPEX - RAS'!I12 -> 0 | I8: ='OPEX - RAS'!J12 -> 0 | J8: ='OPEX - RAS'!K12 -> 0 | K8: ='OPEX - RAS'!L12 -> 0 | L8: =IF(Interface!$E$17=Validation!$D$39,C8,IF(Interface!$E$17=Validation!$D$40,SUM(C8:D8),IF(Interface!$E$17=Validation!$D$41,SUM(C8:E8),IF(Interface!$E$17=Validation!$D$42,SUM(C8:F8),IF(Interface!$E$17=Validation!$D$43,SUM(C8:G8),IF(Interface!$E$17=Validation!$D$44,SUM(C8:H8),IF(Interface!$E$17=Validation!$D$45,SUM(C8:I8),IF(Interface!$E$17=Validation!$D$46,SUM(C8:J8),IF(Interface!$E$17=Validation!$D$47,SUM(C8:K8),))))))))) -> 0
B9: ='OPEX - RAS'!B13 -> Transport Costs | C9: ='OPEX - RAS'!D13 -> 300 | D9: ='OPEX - RAS'!E13 -> 300 | E9: ='OPEX - RAS'!F13 -> 300 | F9: ='OPEX - RAS'!G13 -> 300 | G9: ='OPEX - RAS'!H13 -> 300 | H9: ='OPEX - RAS'!I13 -> 300 | I9: ='OPEX - RAS'!J13 -> 300 | J9: ='OPEX - RAS'!K13 -> 300 | K9: ='OPEX - RAS'!L13 -> 300 | L9: =IF(Interface!$E$17=Validation!$D$39,C9,IF(Interface!$E$17=Validation!$D$40,SUM(C9:D9),IF(Interface!$E$17=Validation!$D$41,SUM(C9:E9),IF(Interface!$E$17=Validation!$D$42,SUM(C9:F9),IF(Interface!$E$17=Validation!$D$43,SUM(C9:G9),IF(Interface!$E$17=Validation!$D$44,SUM(C9:H9),IF(Interface!$E$17=Validation!$D$45,SUM(C9:I9),IF(Interface!$E$17=Validation!$D$46,SUM(C9:J9),IF(Interface!$E$17=Validation!$D$47,SUM(C9:K9),))))))))) -> 0
B10: ='OPEX - RAS'!B14 -> Water | C10: ='OPEX - RAS'!D14 -> 0 | D10: ='OPEX - RAS'!E14 -> 0 | E10: ='OPEX - RAS'!F14 -> 0 | F10: ='OPEX - RAS'!G14 -> 0 | G10: ='OPEX - RAS'!H14 -> 0 | H10: ='OPEX - RAS'!I14 -> 0 | I10: ='OPEX - RAS'!J14 -> 0 | J10: ='OPEX - RAS'!K14 -> 0 | K10: ='OPEX - RAS'!L14 -> 0 | L10: =IF(Interface!$E$17=Validation!$D$39,C10,IF(Interface!$E$17=Validation!$D$40,SUM(C10:D10),IF(Interface!$E$17=Validation!$D$41,SUM(C10:E10),IF(Interface!$E$17=Validation!$D$42,SUM(C10:F10),IF(Interface!$E$17=Validation!$D$43,SUM(C10:G10),IF(Interface!$E$17=Validation!$D$44,SUM(C10:H10),IF(Interface!$E$17=Validation!$D$45,SUM(C10:I10),IF(Interface!$E$17=Validation!$D$46,SUM(C10:J10),IF(Interface!$E$17=Validation!$D$47,SUM(C10:K10),))))))))) -> 0
B11: TOTAL VARIABLE COST: | C11: =SUM(C6:C10) ->  | D11: =SUM(D6:D10) ->  | L11: =SUM(L6:L10) -> 0
B13: FIXED COSTS:
B14: ='OPEX - RAS'!B18 -> Salaries - Staff | C14: ='OPEX - RAS'!D18 ->  | D14: ='OPEX - RAS'!E18 ->  | E14: ='OPEX - RAS'!F18 ->  | F14: ='OPEX - RAS'!G18 ->  | G14: ='OPEX - RAS'!H18 ->  | H14: ='OPEX - RAS'!I18 ->  | I14: ='OPEX - RAS'!J18 ->  | J14: ='OPEX - RAS'!K18 ->  | K14: ='OPEX - RAS'!L18 ->  | L14: =IF(Interface!$E$17=Validation!$D$39,C14,IF(Interface!$E$17=Validation!$D$40,SUM(C14:D14),IF(Interface!$E$17=Validation!$D$41,SUM(C14:E14),IF(Interface!$E$17=Validation!$D$42,SUM(C14:F14),IF(Interface!$E$17=Validation!$D$43,SUM(C14:G14),IF(Interface!$E$17=Validation!$D$44,SUM(C14:H14),IF(Interface!$E$17=Validation!$D$45,SUM(C14:I14),IF(Interface!$E$17=Validation!$D$46,SUM(C14:J14),IF(Interface!$E$17=Validation!$D$47,SUM(C14:K14),))))))))) -> 0
B15: ='OPEX - RAS'!B19 -> Insurance | C15: ='OPEX - RAS'!D19 ->  | D15: ='OPEX - RAS'!E19 ->  | E15: ='OPEX - RAS'!F19 ->  | F15: ='OPEX - RAS'!G19 ->  | G15: ='OPEX - RAS'!H19 ->  | H15: ='OPEX - RAS'!I19 ->  | I15: ='OPEX - RAS'!J19 ->  | J15: ='OPEX - RAS'!K19 ->  | K15: ='OPEX - RAS'!L19 ->  | L15: =IF(Interface!$E$17=Validation!$D$39,C15,IF(Interface!$E$17=Validation!$D$40,SUM(C15:D15),IF(Interface!$E$17=Validation!$D$41,SUM(C15:E15),IF(Interface!$E$17=Validation!$D$42,SUM(C15:F15),IF(Interface!$E$17=Validation!$D$43,SUM(C15:G15),IF(Interface!$E$17=Validation!$D$44,SUM(C15:H15),IF(Interface!$E$17=Validation!$D$45,SUM(C15:I15),IF(Interface!$E$17=Validation!$D$46,SUM(C15:J15),IF(Interface!$E$17=Validation!$D$47,SUM(C15:K15),))))))))) -> 0
B16: ='OPEX - RAS'!B20 -> Telephone Expenses | C16: ='OPEX - RAS'!D20 -> 1000 | D16: ='OPEX - RAS'!E20 -> 1000 | E16: ='OPEX - RAS'!F20 -> 1000 | F16: ='OPEX - RAS'!G20 -> 1000 | G16: ='OPEX - RAS'!H20 -> 1000 | H16: ='OPEX - RAS'!I20 -> 1000 | I16: ='OPEX - RAS'!J20 -> 1000 | J16: ='OPEX - RAS'!K20 -> 1000 | K16: ='OPEX - RAS'!L20 -> 1000 | L16: =IF(Interface!$E$17=Validation!$D$39,C16,IF(Interface!$E$17=Validation!$D$40,SUM(C16:D16),IF(Interface!$E$17=Validation!$D$41,SUM(C16:E16),IF(Interface!$E$17=Validation!$D$42,SUM(C16:F16),IF(Interface!$E$17=Validation!$D$43,SUM(C16:G16),IF(Interface!$E$17=Validation!$D$44,SUM(C16:H16),IF(Interface!$E$17=Validation!$D$45,SUM(C16:I16),IF(Interface!$E$17=Validation!$D$46,SUM(C16:J16),IF(Interface!$E$17=Validation!$D$47,SUM(C16:K16),))))))))) -> 0
B17: ='OPEX - RAS'!B21 -> Security (specific to facility) | C17: ='OPEX - RAS'!D21 ->  | D17: ='OPEX - RAS'!E21 ->  | E17: ='OPEX - RAS'!F21 ->  | F17: ='OPEX - RAS'!G21 ->  | G17: ='OPEX - RAS'!H21 ->  | H17: ='OPEX - RAS'!I21 ->  | I17: ='OPEX - RAS'!J21 ->  | J17: ='OPEX - RAS'!K21 ->  | K17: ='OPEX - RAS'!L21 ->  | L17: =IF(Interface!$E$17=Validation!$D$39,C17,IF(Interface!$E$17=Validation!$D$40,SUM(C17:D17),IF(Interface!$E$17=Validation!$D$41,SUM(C17:E17),IF(Interface!$E$17=Validation!$D$42,SUM(C17:F17),IF(Interface!$E$17=Validation!$D$43,SUM(C17:G17),IF(Interface!$E$17=Validation!$D$44,SUM(C17:H17),IF(Interface!$E$17=Validation!$D$45,SUM(C17:I17),IF(Interface!$E$17=Validation!$D$46,SUM(C17:J17),IF(Interface!$E$17=Validation!$D$47,SUM(C17:K17),))))))))) -> 0
B18: ='OPEX - RAS'!B22 -> Facility Electricity | C18: ='OPEX - RAS'!D22 ->  | D18: ='OPEX - RAS'!E22 ->  | E18: ='OPEX - RAS'!F22 ->  | F18: ='OPEX - RAS'!G22 ->  | G18: ='OPEX - RAS'!H22 ->  | H18: ='OPEX - RAS'!I22 ->  | I18: ='OPEX - RAS'!J22 ->  | J18: ='OPEX - RAS'!K22 ->  | K18: ='OPEX - RAS'!L22 ->  | L18: =IF(Interface!$E$17=Validation!$D$39,C18,IF(Interface!$E$17=Validation!$D$40,SUM(C18:D18),IF(Interface!$E$17=Validation!$D$41,SUM(C18:E18),IF(Interface!$E$17=Validation!$D$42,SUM(C18:F18),IF(Interface!$E$17=Validation!$D$43,SUM(C18:G18),IF(Interface!$E$17=Validation!$D$44,SUM(C18:H18),IF(Interface!$E$17=Validation!$D$45,SUM(C18:I18),IF(Interface!$E$17=Validation!$D$46,SUM(C18:J18),IF(Interface!$E$17=Validation!$D$47,SUM(C18:K18),))))))))) -> 0
B19: ='OPEX - RAS'!B23 -> System Electricity | C19: ='OPEX - RAS'!D23 ->  | D19: ='OPEX - RAS'!E23 ->  | E19: ='OPEX - RAS'!F23 ->  | F19: ='OPEX - RAS'!G23 ->  | G19: ='OPEX - RAS'!H23 ->  | H19: ='OPEX - RAS'!I23 ->  | I19: ='OPEX - RAS'!J23 ->  | J19: ='OPEX - RAS'!K23 ->  | K19: ='OPEX - RAS'!L23 ->  | L19: =IF(Interface!$E$17=Validation!$D$39,C19,IF(Interface!$E$17=Validation!$D$40,SUM(C19:D19),IF(Interface!$E$17=Validation!$D$41,SUM(C19:E19),IF(Interface!$E$17=Validation!$D$42,SUM(C19:F19),IF(Interface!$E$17=Validation!$D$43,SUM(C19:G19),IF(Interface!$E$17=Validation!$D$44,SUM(C19:H19),IF(Interface!$E$17=Validation!$D$45,SUM(C19:I19),IF(Interface!$E$17=Validation!$D$46,SUM(C19:J19),IF(Interface!$E$17=Validation!$D$47,SUM(C19:K19),))))))))) -> 0
B20: ='OPEX - RAS'!B24 -> Sumps and waste water treatment | C20: ='OPEX - RAS'!D24 ->  | D20: ='OPEX - RAS'!E24 ->  | E20: ='OPEX - RAS'!F24 ->  | F20: ='OPEX - RAS'!G24 ->  | G20: ='OPEX - RAS'!H24 ->  | H20: ='OPEX - RAS'!I24 ->  | I20: ='OPEX - RAS'!J24 ->  | J20: ='OPEX - RAS'!K24 ->  | K20: ='OPEX - RAS'!L24 ->  | L20: =IF(Interface!$E$17=Validation!$D$39,C20,IF(Interface!$E$17=Validation!$D$40,SUM(C20:D20),IF(Interface!$E$17=Validation!$D$41,SUM(C20:E20),IF(Interface!$E$17=Validation!$D$42,SUM(C20:F20),IF(Interface!$E$17=Validation!$D$43,SUM(C20:G20),IF(Interface!$E$17=Validation!$D$44,SUM(C20:H20),IF(Interface!$E$17=Validation!$D$45,SUM(C20:I20),IF(Interface!$E$17=Validation!$D$46,SUM(C20:J20),IF(Interface!$E$17=Validation!$D$47,SUM(C20:K20),))))))))) -> 0
B21: ='OPEX - RAS'!B25 -> Legal & licencing | C21: ='OPEX - RAS'!D25 -> 550000 | D21: ='OPEX - RAS'!E25 -> 0 | E21: ='OPEX - RAS'!F25 -> 0 | F21: ='OPEX - RAS'!G25 -> 0 | G21: ='OPEX - RAS'!H25 -> 0 | H21: ='OPEX - RAS'!I25 -> 0 | I21: ='OPEX - RAS'!J25 -> 0 | J21: ='OPEX - RAS'!K25 -> 0 | K21: ='OPEX - RAS'!L25 -> 0 | L21: =IF(Interface!$E$17=Validation!$D$39,C21,IF(Interface!$E$17=Validation!$D$40,SUM(C21:D21),IF(Interface!$E$17=Validation!$D$41,SUM(C21:E21),IF(Interface!$E$17=Validation!$D$42,SUM(C21:F21),IF(Interface!$E$17=Validation!$D$43,SUM(C21:G21),IF(Interface!$E$17=Validation!$D$44,SUM(C21:H21),IF(Interface!$E$17=Validation!$D$45,SUM(C21:I21),IF(Interface!$E$17=Validation!$D$46,SUM(C21:J21),IF(Interface!$E$17=Validation!$D$47,SUM(C21:K21),))))))))) -> 0
B22: ='OPEX - RAS'!B26 -> Health and safety apparel | C22: ='OPEX - RAS'!D26 ->  | D22: ='OPEX - RAS'!E26 -> 0 | E22: ='OPEX - RAS'!F26 -> 0 | F22: ='OPEX - RAS'!G26 -> 0 | G22: ='OPEX - RAS'!H26 -> 0 | H22: ='OPEX - RAS'!I26 -> 0 | I22: ='OPEX - RAS'!J26 -> 0 | J22: ='OPEX - RAS'!K26 -> 0 | K22: ='OPEX - RAS'!L26 -> 0 | L22: =IF(Interface!$E$17=Validation!$D$39,C22,IF(Interface!$E$17=Validation!$D$40,SUM(C22:D22),IF(Interface!$E$17=Validation!$D$41,SUM(C22:E22),IF(Interface!$E$17=Validation!$D$42,SUM(C22:F22),IF(Interface!$E$17=Validation!$D$43,SUM(C22:G22),IF(Interface!$E$17=Validation!$D$44,SUM(C22:H22),IF(Interface!$E$17=Validation!$D$45,SUM(C22:I22),IF(Interface!$E$17=Validation!$D$46,SUM(C22:J22),IF(Interface!$E$17=Validation!$D$47,SUM(C22:K22),))))))))) -> 0
B23: ='OPEX - RAS'!B27 -> stationary | C23: ='OPEX - RAS'!D27 -> 100 | D23: ='OPEX - RAS'!E27 -> 100 | E23: ='OPEX - RAS'!F27 -> 100 | F23: ='OPEX - RAS'!G27 -> 100 | G23: ='OPEX - RAS'!H27 -> 100 | H23: ='OPEX - RAS'!I27 -> 100 | I23: ='OPEX - RAS'!J27 -> 100 | J23: ='OPEX - RAS'!K27 -> 100 | K23: ='OPEX - RAS'!L27 -> 100 | L23: =IF(Interface!$E$17=Validation!$D$39,C23,IF(Interface!$E$17=Validation!$D$40,SUM(C23:D23),IF(Interface!$E$17=Validation!$D$41,SUM(C23:E23),IF(Interface!$E$17=Validation!$D$42,SUM(C23:F23),IF(Interface!$E$17=Validation!$D$43,SUM(C23:G23),IF(Interface!$E$17=Validation!$D$44,SUM(C23:H23),IF(Interface!$E$17=Validation!$D$45,SUM(C23:I23),IF(Interface!$E$17=Validation!$D$46,SUM(C23:J23),IF(Interface!$E$17=Validation!$D$47,SUM(C23:K23),))))))))) -> 0
B24: ='OPEX - RAS'!B28 -> Cleaning materials | C24: ='OPEX - RAS'!D28 -> 800 | D24: ='OPEX - RAS'!E28 -> 800 | E24: ='OPEX - RAS'!F28 -> 800 | F24: ='OPEX - RAS'!G28 -> 800 | G24: ='OPEX - RAS'!H28 -> 800 | H24: ='OPEX - RAS'!I28 -> 800 | I24: ='OPEX - RAS'!J28 -> 800 | J24: ='OPEX - RAS'!K28 -> 800 | K24: ='OPEX - RAS'!L28 -> 800 | L24: =IF(Interface!$E$17=Validation!$D$39,C24,IF(Interface!$E$17=Validation!$D$40,SUM(C24:D24),IF(Interface!$E$17=Validation!$D$41,SUM(C24:E24),IF(Interface!$E$17=Validation!$D$42,SUM(C24:F24),IF(Interface!$E$17=Validation!$D$43,SUM(C24:G24),IF(Interface!$E$17=Validation!$D$44,SUM(C24:H24),IF(Interface!$E$17=Validation!$D$45,SUM(C24:I24),IF(Interface!$E$17=Validation!$D$46,SUM(C24:J24),IF(Interface!$E$17=Validation!$D$47,SUM(C24:K24),))))))))) -> 0
B25: ='OPEX - RAS'!B29 -> Vet Services | C25: ='OPEX - RAS'!D29 -> 10200 | D25: ='OPEX - RAS'!E29 -> 0 | E25: ='OPEX - RAS'!F29 -> 0 | F25: ='OPEX - RAS'!G29 -> 10200 | G25: ='OPEX - RAS'!H29 -> 0 | H25: ='OPEX - RAS'!I29 -> 0 | I25: ='OPEX - RAS'!J29 -> 10200 | J25: ='OPEX - RAS'!K29 -> 0 | K25: ='OPEX - RAS'!L29 -> 0 | L25: =IF(Interface!$E$17=Validation!$D$39,C25,IF(Interface!$E$17=Validation!$D$40,SUM(C25:D25),IF(Interface!$E$17=Validation!$D$41,SUM(C25:E25),IF(Interface!$E$17=Validation!$D$42,SUM(C25:F25),IF(Interface!$E$17=Validation!$D$43,SUM(C25:G25),IF(Interface!$E$17=Validation!$D$44,SUM(C25:H25),IF(Interface!$E$17=Validation!$D$45,SUM(C25:I25),IF(Interface!$E$17=Validation!$D$46,SUM(C25:J25),IF(Interface!$E$17=Validation!$D$47,SUM(C25:K25),))))))))) -> 0
B26: ='OPEX - RAS'!B30 -> Bank Charges | C26: ='OPEX - RAS'!D30 -> 60 | D26: ='OPEX - RAS'!E30 -> 60 | E26: ='OPEX - RAS'!F30 -> 60 | F26: ='OPEX - RAS'!G30 -> 60 | G26: ='OPEX - RAS'!H30 -> 60 | H26: ='OPEX - RAS'!I30 -> 60 | I26: ='OPEX - RAS'!J30 -> 60 | J26: ='OPEX - RAS'!K30 -> 60 | K26: ='OPEX - RAS'!L30 -> 60 | L26: =IF(Interface!$E$17=Validation!$D$39,C26,IF(Interface!$E$17=Validation!$D$40,SUM(C26:D26),IF(Interface!$E$17=Validation!$D$41,SUM(C26:E26),IF(Interface!$E$17=Validation!$D$42,SUM(C26:F26),IF(Interface!$E$17=Validation!$D$43,SUM(C26:G26),IF(Interface!$E$17=Validation!$D$44,SUM(C26:H26),IF(Interface!$E$17=Validation!$D$45,SUM(C26:I26),IF(Interface!$E$17=Validation!$D$46,SUM(C26:J26),IF(Interface!$E$17=Validation!$D$47,SUM(C26:K26),))))))))) -> 0
B27: ='OPEX - RAS'!B31 -> Marketing | C27: ='OPEX - RAS'!D31 ->  | D27: ='OPEX - RAS'!E31 ->  | E27: ='OPEX - RAS'!F31 ->  | F27: ='OPEX - RAS'!G31 ->  | G27: ='OPEX - RAS'!H31 ->  | H27: ='OPEX - RAS'!I31 ->  | I27: ='OPEX - RAS'!J31 ->  | J27: ='OPEX - RAS'!K31 ->  | K27: ='OPEX - RAS'!L31 ->  | L27: =IF(Interface!$E$17=Validation!$D$39,C27,IF(Interface!$E$17=Validation!$D$40,SUM(C27:D27),IF(Interface!$E$17=Validation!$D$41,SUM(C27:E27),IF(Interface!$E$17=Validation!$D$42,SUM(C27:F27),IF(Interface!$E$17=Validation!$D$43,SUM(C27:G27),IF(Interface!$E$17=Validation!$D$44,SUM(C27:H27),IF(Interface!$E$17=Validation!$D$45,SUM(C27:I27),IF(Interface!$E$17=Validation!$D$46,SUM(C27:J27),IF(Interface!$E$17=Validation!$D$47,SUM(C27:K27),))))))))) -> 0
B28: ='OPEX - RAS'!B32 -> Reserve & Unforeseen Cost | C28: ='OPEX - RAS'!D32 ->  | D28: ='OPEX - RAS'!E32 ->  | E28: ='OPEX - RAS'!F32 ->  | F28: ='OPEX - RAS'!G32 ->  | G28: ='OPEX - RAS'!H32 ->  | H28: ='OPEX - RAS'!I32 ->  | I28: ='OPEX - RAS'!J32 ->  | J28: ='OPEX - RAS'!K32 ->  | K28: ='OPEX - RAS'!L32 ->  | L28: =IF(Interface!$E$17=Validation!$D$39,C28,IF(Interface!$E$17=Validation!$D$40,SUM(C28:D28),IF(Interface!$E$17=Validation!$D$41,SUM(C28:E28),IF(Interface!$E$17=Validation!$D$42,SUM(C28:F28),IF(Interface!$E$17=Validation!$D$43,SUM(C28:G28),IF(Interface!$E$17=Validation!$D$44,SUM(C28:H28),IF(Interface!$E$17=Validation!$D$45,SUM(C28:I28),IF(Interface!$E$17=Validation!$D$46,SUM(C28:J28),IF(Interface!$E$17=Validation!$D$47,SUM(C28:K28),))))))))) -> 0
B29: ='OPEX - RAS'!B33 -> Test kits for ammonia and nitrite | C29: ='OPEX - RAS'!D33 -> 0 | D29: ='OPEX - RAS'!E33 -> 0 | E29: ='OPEX - RAS'!F33 -> 0 | F29: ='OPEX - RAS'!G33 -> 0 | G29: ='OPEX - RAS'!H33 -> 0 | H29: ='OPEX - RAS'!I33 -> 0 | I29: ='OPEX - RAS'!J33 -> 0 | J29: ='OPEX - RAS'!K33 -> 0 | K29: ='OPEX - RAS'!L33 -> 0 | L29: =IF(Interface!$E$17=Validation!$D$39,C29,IF(Interface!$E$17=Validation!$D$40,SUM(C29:D29),IF(Interface!$E$17=Validation!$D$41,SUM(C29:E29),IF(Interface!$E$17=Validation!$D$42,SUM(C29:F29),IF(Interface!$E$17=Validation!$D$43,SUM(C29:G29),IF(Interface!$E$17=Validation!$D$44,SUM(C29:H29),IF(Interface!$E$17=Validation!$D$45,SUM(C29:I29),IF(Interface!$E$17=Validation!$D$46,SUM(C29:J29),IF(Interface!$E$17=Validation!$D$47,SUM(C29:K29),))))))))) -> 0
B30: TOTAL FIXED COST: | C30: =SUM(C14:C29) ->  | L30: 0
B32: TOTAL EXPENSES: | C32: =SUM(C30,C11) ->  | L32: 0
B34: TOTAL WORKING CAPITAL FOR 9 MONTHS
B35: Items | C35: Cost
B36: Variable | C36: =L11 -> 0
B37: Fixed cost | C37: =L30 -> 0
B38: Total | C38: =SUM(C36:C37) -> 0

Sheet OPEX - RAS
A1: OPERATIONAL EXPENDITURE - RAS
P2: 1 | AB2: 1 | AC2: 2 | AD2: 3 | AE2: 4 | AF2: 5 | AG2: 6 | AH2: 7 | AI2: 8 | AJ2: 9
C3: YEAR 1 | D3: =C3 -> YEAR 1 | P3: YEAR 2 | Q3: Year 2 | AC3: YEAR 3 | AD3: YEAR 4 | AE3: YEAR 5 | AF3: YEAR 6 | AG3: YEAR 7 | AH3: YEAR 8 | AI3: YEAR 9 | AJ3: YEAR 10
D4: Month 1 | E4: Month 2 | F4: Month 3 | G4: Month 4 | H4: Month 5 | I4: Month 6 | J4: Month 7 | K4: Month 8 | L4: Month 9 | M4: Month 10 | N4: Month 11 | O4: Month 12 | Q4: Month 1 | R4: Month 2 | S4: Month 3 | T4: Month 4 | U4: Month 5 | V4: Month 6 | W4: Month 7 | X4: Month 8 | Y4: Month 9 | Z4: Month 10 | AA4: Month 11 | AB4: Month 12
B5: Income from Sales:
B6: Tilpia (Live, Fresh, frozen) | C6: =SUM(D6:O6) -> 0 | D6: =IF(Interface!$E$17=Validation!D39,(Interface!I7*'Production Cycle'!B7),0) -> 0 | E6: =IF(Interface!$E$17=Validation!D39,D6,IF(Interface!$E$17=Validation!D40,Interface!$I$7*'Production Cycle'!$C$7,0)) -> 0 | F6: =IF(Interface!$E$17=Validation!D39,D6,IF(Interface!$E$17=Validation!D40,E6,IF(Interface!$E$17=Validation!D41,Interface!$I$7*'Production Cycle'!D7,0))) -> 0 | G6: =IF(Interface!$E$17=Validation!D39,D6,IF(Interface!$E$17=Validation!D40,E6,IF(Interface!$E$17=Validation!D41,F6,IF(Interface!$E$17=Validation!D42,Interface!$I$7*'Production Cycle'!E7,0)))) -> 0 | H6: =IF(Interface!$E$17=Validation!D39,D6,IF(Interface!$E$17=Validation!D40,E6,IF(Interface!$E$17=Validation!D41,F6,IF(Interface!$E$17=Validation!D42,G6,IF(Interface!$E$17=Validation!D43,(('Production Cycle'!F6*'Production Cycle'!F7)/1000)*Interface!I7,0))))) -> 0 | I6: =IF(Interface!$E$17=Validation!D39,D6,IF(Interface!$E$17=Validation!D40,E6,IF(Interface!$E$17=Validation!D41,F6,IF(Interface!$E$17=Validation!D42,G6,IF(Interface!$E$17=Validation!D43,H6,IF(Interface!$E$17=Validation!D44,(('Production Cycle'!G6*'Production Cycle'!G7)/1000)*Interface!I7,0)))))) -> 0 | J6: =IF(Interface!$E$17=Validation!D39,D6,IF(Interface!$E$17=Validation!D40,E6,IF(Interface!$E$17=Validation!D41,F6,IF(Interface!$E$17=Validation!D42,G6,IF(Interface!$E$17=Validation!D43,H6,IF(Interface!$E$17=Validation!D44,I6,IF(Interface!$E$17=Validation!D45,(('Production Cycle'!H6*'Production Cycle'!H7)/1000)*Interface!I7,0))))))) -> 0 | K6: =IF(Interface!$E$17=Validation!D39,D6,IF(Interface!$E$17=Validation!D40,E6,IF(Interface!$E$17=Validation!D41,F6,IF(Interface!$E$17=Validation!D42,G6,IF(Interface!$E$17=Validation!D43,H6,IF(Interface!$E$17=Validation!D44,I6,IF(Interface!$E$17=Validation!D45,J6,IF(Interface!$E$17=Validation!D46,(('Production Cycle'!I6*'Production Cycle'!I7)/1000)*Interface!I7,0)))))))) -> 0 | L6: =IF(Interface!$E$17=Validation!D39,D6,IF(Interface!$E$17=Validation!D40,E6,IF(Interface!$E$17=Validation!D41,F6,IF(Interface!$E$17=Validation!D42,G6,IF(Interface!$E$17=Validation!D43,H6,IF(Interface!$E$17=Validation!D44,I6,IF(Interface!$E$17=Validation!D45,J6,IF(Interface!$E$17=Validation!D46,K6,IF(Interface!$E$17=Validation!D47,(('Production Cycle'!J7*'Production Cycle'!J6)/1000)*Interface!$I$7,0))))))))) -> 0 | M6: =IF(Interface!$E$17=Validation!D39,D6,IF(Interface!$E$17=Validation!D40,E6,IF(Interface!$E$17=Validation!D41,F6,IF(Interface!$E$17=Validation!D42,G6,IF(Interface!$E$17=Validation!D43,H6,IF(Interface!$E$17=Validation!D44,I6,IF(Interface!$E$17=Validation!D45,J6,IF(Interface!$E$17=Validation!D46,K6,IF(Interface!$E$17=Validation!D47,L6,IF(Interface!$E$17=Validation!D48,L6,0)))))))))) -> 0 | N6: =IF(Interface!$E$17=Validation!D39,D6,IF(Interface!$E$17=Validation!D40,E6,IF(Interface!$E$17=Validation!D41,F6,IF(Interface!$E$17=Validation!D42,G6,IF(Interface!$E$17=Validation!D43,H6,IF(Interface!$E$17=Validation!D44,I6,IF(Interface!$E$17=Validation!D45,J6,IF(Interface!$E$17=Validation!D46,K6,IF(Interface!$E$17=Validation!D47,L6,IF(Interface!$E$17=Validation!D48,M6,IF(Interface!$E$17=Validation!D49,M6,0))))))))))) -> 0 | O6: =IF(Interface!$E$17=Validation!D39,D6,IF(Interface!$E$17=Validation!D40,E6,IF(Interface!$E$17=Validation!D41,F6,IF(Interface!$E$17=Validation!D42,G6,IF(Interface!$E$17=Validation!D43,H6,IF(Interface!$E$17=Validation!D44,I6,IF(Interface!$E$17=Validation!D45,J6,IF(Interface!$E$17=Validation!D46,K6,IF(Interface!$E$17=Validation!D47,L6,IF(Interface!$E$17=Validation!D48,M6,IF(Interface!$E$17=Validation!D49,N6,IF(Interface!$E$17=Validation!D50,N6,0)))))))))))) -> 0 | P6: =SUM(Q6:AB6) -> 0 | Q6: =IF(Interface!$E$17=Validation!D39,D6,IF(Interface!$E$17=Validation!D40,E6,IF(Interface!$E$17=Validation!D41,F6,IF(Interface!$E$17=Validation!D42,G6,IF(Interface!$E$17=Validation!D43,H6,IF(Interface!$E$17=Validation!D44,I6,IF(Interface!$E$17=Validation!D45,J6,IF(Interface!$E$17=Validation!D46,K6,IF(Interface!$E$17=Validation!D47,L6,IF(Interface!$E$17=Validation!D48,M6,IF(Interface!$E$17=Validation!D49,N6,IF(Interface!$E$17=Validation!D50,O6,IF(Interface!$E$17=Validation!D51,(('Production Cycle'!#REF!*'Production Cycle'!#REF!)/1000)*Interface!$I$7,0)))))))))))))*'Production Assumptions'!$C$6 -> 0 | R6: =IF(Interface!$E$17=Validation!D39,D6,IF(Interface!$E$17=Validation!D40,E6,IF(Interface!$E$17=Validation!D41,F6,IF(Interface!$E$17=Validation!D42,G6,IF(Interface!$E$17=Validation!D43,H6,IF(Interface!$E$17=Validation!D44,I6,IF(Interface!$E$17=Validation!D45,J6,IF(Interface!$E$17=Validation!D46,K6,IF(Interface!$E$17=Validation!D47,L6,IF(Interface!$E$17=Validation!D48,M6,IF(Interface!$E$17=Validation!D49,N6,IF(Interface!$E$17=Validation!D50,O6,IF(Interface!$E$17=Validation!D51,Q6,IF(Interface!$E$17=Validation!D52,(('Production Cycle'!#REF!*'Production Cycle'!#REF!)/1000)*Interface!$I$7,0)))))))))))))*'Production Assumptions'!C6) -> 0 | S6: =R6 -> 0 | T6: =S6 -> 0 | U6: =T6 -> 0 | V6: 0 | W6: 0 | X6: 0 | Y6: 0 | Z6: 0 | AA6: 0 | AB6: 0 | AC6: =($AB$6*'Production Assumptions'!$C$6)*12 -> 0 | AD6: =($AB$6*12)*('Production Assumptions'!$C$6)^AC2 -> 0 | AE6: =($AB$6*12)*('Production Assumptions'!$C$6)^AD2 -> 0 | AF6: =($AB$6*12)*('Production Assumptions'!$C$6)^AE2 -> 0 | AG6: =($AB$6*12)*('Production Assumptions'!$C$6)^AF2 -> 0 | AH6: =($AB$6*12)*('Production Assumptions'!$C$6)^AG2 -> 0 | AI6: =($AB$6*12)*('Production Assumptions'!$C$6)^AH2 -> 0 | AJ6: =($AB$6*12)*('Production Assumptions'!$C$6)^AI2 -> 0
B7: TOTAL INCOME: | C7: =SUM(D7:O7) -> 0 | D7: =SUM(D6:D6) -> 0 | E7: 0 | F7: 0 | G7: 0 | H7: 0 | I7: 0 | J7: 0 | K7: 0 | L7: 0 | M7: 0 | N7: 0 | O7: 0 | P7: 0 | Q7: 0 | R7: 0 | S7: 0 | T7: 0 | U7: 0 | V7: 0 | W7: 0 | X7: 0 | Y7: 0 | Z7: 0 | AA7: 0 | AB7: 0 | AC7: 0 | AD7: 0 | AE7: 0 | AF7: 0 | AG7: 0 | AH7: 0 | AI7: 0 | AJ7: 0
B9: VARIABLE COSTS:
B10: Fingerling | C10: =SUM(D10:O10) ->  | D10: =(('Production Cycle'!$B$7)*'Production Assumptions'!$C$16) ->  | E10: =(('Production Cycle'!$B$7)*'Production Assumptions'!$C$16) ->  | F10: =(('Production Cycle'!$B$7)*'Production Assumptions'!$C$16) ->  | G10: =(('Production Cycle'!$B$7)*'Production Assumptions'!$C$16) ->  | H10: =(('Production Cycle'!$B$7)*'Production Assumptions'!$C$16) ->  | I10: =(('Production Cycle'!$B$7)*'Production Assumptions'!$C$16) ->  | J10: =(('Production Cycle'!$B$7)*'Production Assumptions'!$C$16) ->  | K10: =(('Production Cycle'!$B$7)*'Production Assumptions'!$C$16) ->  | L10: =(('Production Cycle'!$B$7)*'Production Assumptions'!$C$16) ->  | M10: =(('Production Cycle'!$B$7)*'Production Assumptions'!$C$16) ->  | N10: =(('Production Cycle'!$B$7)*'Production Assumptions'!$C$16) ->  | O10: =(('Production Cycle'!$B$7)*'Production Assumptions'!$C$16) ->  | P10: =SUM(Q10:AB10) ->  | Q10: =$O$10*('Production Assumptions'!$C$6) ->  | R10: =$O$10*('Production Assumptions'!$C$6) ->  | S10: =$O$10*('Production Assumptions'!$C$6) ->  | T10: =$O$10*('Production Assumptions'!$C$6) ->  | U10: =$O$10*('Production Assumptions'!$C$6) ->  | V10: =$O$10*('Production Assumptions'!$C$6) ->  | W10: =$O$10*('Production Assumptions'!$C$6) ->  | X10: =$O$10*('Production Assumptions'!$C$6) ->  | Y10: =$O$10*('Production Assumptions'!$C$6) ->  | Z10: =$O$10*('Production Assumptions'!$C$6) ->  | AA10: =$O$10*('Production Assumptions'!$C$6) ->  | AB10: =$O$10*('Production Assumptions'!$C$6) ->  | AC10: =P10*('Production Assumptions'!C6) ->  | AD10: =$P$10*('Production Assumptions'!$C$6)^AC2 ->  | AE10: =$P$10*('Production Assumptions'!$C$6)^AD2 ->  | AF10: =$P$10*('Production Assumptions'!$C$6)^AE2 ->  | AG10: =$P$10*('Production Assumptions'!$C$6)^AF2 ->  | AH10: =$P$10*('Production Assumptions'!$C$6)^AG2 ->  | AI10: =$P$10*('Production Assumptions'!$C$6)^AH2 ->  | AJ10: =$P$10*('Production Assumptions'!$C$6)^AI2 -> 
B11: Feed | C11: =SUM(D11:O11) ->  | D11: =('Production Cycle'!B129*'Production Assumptions'!$D$26) ->  | E11: =IF(('Production Cycle'!C129*'Production Assumptions'!$D$26)=0,D11,('Production Cycle'!C129*'Production Assumptions'!$D$26)) ->  | F11: =IF(('Production Cycle'!D129*'Production Assumptions'!$D$26)=0,E11,('Production Cycle'!D129*'Production Assumptions'!$D$26)) ->  | G11: =IF(('Production Cycle'!E129*'Production Assumptions'!$D$26)=0,F11,('Production Cycle'!E129*'Production Assumptions'!$D$26)) ->  | H11: =IF(('Production Cycle'!F129*'Production Assumptions'!$D$26)=0,G11,('Production Cycle'!F129*'Production Assumptions'!$D$26)) ->  | I11: =IF(('Production Cycle'!G129*'Production Assumptions'!$D$26)=0,H11,('Production Cycle'!G129*'Production Assumptions'!$D$26)) ->  | J11: =IF(('Production Cycle'!H129*'Production Assumptions'!$D$26)=0,I11,('Production Cycle'!H129*'Production Assumptions'!$D$26)) ->  | K11: =IF(('Production Cycle'!I129*'Production Assumptions'!$D$26)=0,J11,('Production Cycle'!I129*'Production Assumptions'!$D$26)) ->  | L11: =IF(('Production Cycle'!J129*'Production Assumptions'!$D$26)=0,K11,('Production Cycle'!J129*'Production Assumptions'!$D$26)) ->  | M11: =IF(('Production Cycle'!K129*'Production Assumptions'!$D$26)=0,L11,('Production Cycle'!K129*'Production Assumptions'!$D$26)) ->  | N11: =IF(('Production Cycle'!L129*'Production Assumptions'!$D$26)=0,M11,('Production Cycle'!L129*'Production Assumptions'!$D$26)) ->  | O11: =IF(('Production Cycle'!M129*'Production Assumptions'!$D$26)=0,N11,('Production Cycle'!M129*'Production Assumptions'!$D$26)) ->  | P11: =SUM(Q11:AB11) ->  | Q11: =O11*'Production Assumptions'!$C$6 ->  | R11: =Q11 ->  | S11: =R11 ->  | AC11: =(AB11*12)*('Production Assumptions'!C6) ->  | AD11: =($AB$11*12)*('Production Assumptions'!$C$6)^AC2 ->  | AE11: =($AB$11*12)*('Production Assumptions'!$C$6)^AD2 ->  | AF11: =($AB$11*12)*('Production Assumptions'!$C$6)^AE2 ->  | AG11: =($AB$11*12)*('Production Assumptions'!$C$6)^AF2 ->  | AH11: =($AB$11*12)*('Production Assumptions'!$C$6)^AG2 ->  | AI11: =($AB$11*12)*('Production Assumptions'!$C$6)^AH2 ->  | AJ11: =($AB$11*12)*('Production Assumptions'!$C$6)^AI2 -> 
B12: Consumables - Water Quality | C12: =SUM(D12:O12) ->  | D12: =IF(Interface!J7<20,'Production Assumptions'!F104,'Production Assumptions'!F110) ->  | P12: =SUM(Q12:AB12) -> 0 | R12: =$O$12*'Production Assumptions'!$C$6 -> 0 | S12: =$O$12*'Production Assumptions'!$C$6 -> 0 | T12: =$O$12*'Production Assumptions'!$C$6 -> 0 | U12: =$O$12*'Production Assumptions'!$C$6 -> 0 | V12: =$O$12*'Production Assumptions'!$C$6 -> 0 | W12: =$O$12*'Production Assumptions'!$C$6 -> 0 | X12: =$O$12*'Production Assumptions'!$C$6 -> 0 | Y12: =$O$12*'Production Assumptions'!$C$6 -> 0 | Z12: =$O$12*'Production Assumptions'!$C$6 -> 0 | AA12: =$O$12*'Production Assumptions'!$C$6 -> 0 | AB12: =$O$12*'Production Assumptions'!$C$6 -> 0 | AC12: =($Q$12*'Production Assumptions'!$C$6^'OPEX - RAS'!AB2) -> 0 | AD12: =($Q$12*'Production Assumptions'!$C$6^'OPEX - RAS'!AC2) -> 0 | AE12: =($Q$12*'Production Assumptions'!$C$6^'OPEX - RAS'!AD2) -> 0 | AF12: =($Q$12*'Production Assumptions'!$C$6^'OPEX - RAS'!AE2) -> 0 | AG12: =($Q$12*'Production Assumptions'!$C$6^'OPEX - RAS'!AF2) -> 0 | AH12: =($Q$12*'Production Assumptions'!$C$6^'OPEX - RAS'!AG2) -> 0 | AI12: =($Q$12*'Production Assumptions'!$C$6^'OPEX - RAS'!AH2) -> 0 | AJ12: =($Q$12*'Production Assumptions'!$C$6^'OPEX - RAS'!AI2) -> 0
B13: Transport Costs | C13: =SUM(D13:O13) -> 3600 | D13: =IF(AND(Interface!$H$7="International Markets",Interface!$E$17=Validation!$D$39),'Production Assumptions'!$C$120,IF(AND(Interface!$H$7=Validation!$H$3,Interface!$E$17=Validation!$D$39),'Production Assumptions'!$C$105,300)) -> 300 | E13: =IF(AND(Interface!$H$7="International Markets",Interface!$E$17=Validation!$D$40),'Production Assumptions'!$C$120,IF(AND(Interface!$H$7=Validation!$H$3,Interface!$E$17=Validation!$D$40),'Production Assumptions'!$C$105,D13)) -> 300 | F13: =IF(AND(Interface!$H$7="International Markets",Interface!$E$17=Validation!$D$41),'Production Assumptions'!$C$120,IF(AND(Interface!$H$7=Validation!$H$3,Interface!$E$17=Validation!$D$41),'Production Assumptions'!$C$105,E13)) -> 300 | G13: =IF(AND(Interface!$H$7="International Markets",Interface!$E$17=Validation!$D$42),'Production Assumptions'!$C$120,IF(AND(Interface!$H$7=Validation!$H$3,Interface!$E$17=Validation!$D$42),'Production Assumptions'!$C$105,F13)) -> 300 | H13: =IF(AND(Interface!$H$7="International Markets",Interface!$E$17=Validation!$D$43),'Production Assumptions'!$C$120,IF(AND(Interface!$H$7=Validation!$H$3,Interface!$E$17=Validation!$D$43),'Production Assumptions'!$C$105,G13)) -> 300 | I13: =IF(AND(Interface!$H$7="International Markets",Interface!$E$17=Validation!$D$44),'Production Assumptions'!$C$120,IF(AND(Interface!$H$7=Validation!$H$3,Interface!$E$17=Validation!$D$44),'Production Assumptions'!$C$105,H13)) -> 300 | J13: =IF(AND(Interface!$H$7="International Markets",Interface!$E$17=Validation!$D$45),'Production Assumptions'!$C$120,IF(AND(Interface!$H$7=Validation!$H$3,Interface!$E$17=Validation!$D$45),'Production Assumptions'!$C$105,I13)) -> 300 | K13: =IF(AND(Interface!$H$7="International Markets",Interface!$E$17=Validation!$D$46),'Production Assumptions'!$C$120,IF(AND(Interface!$H$7=Validation!$H$3,Interface!$E$17=Validation!$D$46),'Production Assumptions'!$C$105,J13)) -> 300 | L13: =IF(AND(Interface!$H$7="International Markets",Interface!$E$17=Validation!$D$47),'Production Assumptions'!$C$120,IF(AND(Interface!$H$7=Validation!$H$3,Interface!$E$17=Validation!$D$47),'Production Assumptions'!$C$105,K13)) -> 300 | M13: =IF(AND(Interface!$H$7="International Markets",Interface!$E$17=Validation!$D$48),'Production Assumptions'!$C$120,IF(AND(Interface!$H$7=Validation!$H$3,Interface!$E$17=Validation!$D$48),'Production Assumptions'!$C$105,L13)) -> 300 | N13: =IF(AND(Interface!$H$7="International Markets",Interface!$E$17=Validation!$D$49),'Production Assumptions'!$C$120,IF(AND(Interface!$H$7=Validation!$H$3,Interface!$E$17=Validation!$D$49),'Production Assumptions'!$C$105,M13)) -> 300 | O13: =IF(AND(Interface!$H$7="International Markets",Interface!$E$17=Validation!$D$50),'Production Assumptions'!$C$120,IF(AND(Interface!$H$7=Validation!$H$3,Interface!$E$17=Validation!$D$50),'Production Assumptions'!$C$105,N13)) -> 300 | P13: =SUM(Q13:AB13) -> 3783.6 | Q13: =IF(AND(Interface!$H$7="International Markets",Interface!$E$17=Validation!$D$51),'Production Assumptions'!$C$120,IF(AND(Interface!$H$7=Validation!$H$3,Interface!$E$17=Validation!$D$51),'Production Assumptions'!$C$105,O13))*'Production Assumptions'!$C$6^'OPEX - RAS'!$P$2 -> 315.3 | R13: =Q13 -> 315.3 | S13: =R13 -> 315.3 | T13: 315.3 | U13: 315.3 | V13: 315.3 | W13: 315.3 | X13: 315.3 | Y13: 315.3 | Z13: 315.3 | AA13: 315.3 | AB13: 315.3 | AC13: =($AB$13*12)*('Production Assumptions'!$C$6) -> 3976.5636 | AD13: =($AB$13*12)*('Production Assumptions'!$C$6)^AC2 -> 4179.368344 | AE13: =($AB$13*12)*('Production Assumptions'!$C$6)^AD2 -> 4392.516129 | AF13: =($AB$13*12)*('Production Assumptions'!$C$6)^AE2 -> 4616.534452 | AG13: =($AB$13*12)*('Production Assumptions'!$C$6)^AF2 -> 4851.977709 | AH13: =($AB$13*12)*('Production Assumptions'!$C$6)^AG2 -> 5099.428572 | AI13: =($AB$13*12)*('Production Assumptions'!$C$6)^AH2 -> 5359.499429 | AJ13: =($AB$13*12)*('Production Assumptions'!$C$6)^AI2 -> 5632.8339
B14: Water | C14: 0 | D14: 0 | E14: =($D$14*'Production Assumptions'!$F$11) -> 0 | F14: =($D$14*'Production Assumptions'!$F$11) -> 0 | G14: =($D$14*'Production Assumptions'!$F$11) -> 0 | H14: =($D$14*'Production Assumptions'!$F$11) -> 0 | I14: =($D$14*'Production Assumptions'!$F$11) -> 0 | J14: =($D$14*'Production Assumptions'!$F$11) -> 0 | K14: =($D$14*'Production Assumptions'!$F$11) -> 0 | L14: =($D$14*'Production Assumptions'!$F$11) -> 0 | M14: =($D$14*'Production Assumptions'!$F$11) -> 0 | N14: =($D$14*'Production Assumptions'!$F$11) -> 0 | O14: =($D$14*'Production Assumptions'!$F$11) -> 0 | P14: 0 | Q14: =$O$14*('Production Assumptions'!$C$6) -> 0 | R14: =$O$14*('Production Assumptions'!$C$6) -> 0 | S14: =$O$14*('Production Assumptions'!$C$6) -> 0 | T14: =$O$14*('Production Assumptions'!$C$6) -> 0 | U14: =$O$14*('Production Assumptions'!$C$6) -> 0 | V14: =$O$14*('Production Assumptions'!$C$6) -> 0 | W14: =$O$14*('Production Assumptions'!$C$6) -> 0 | X14: =$O$14*('Production Assumptions'!$C$6) -> 0 | Y14: =$O$14*('Production Assumptions'!$C$6) -> 0 | Z14: =$O$14*('Production Assumptions'!$C$6) -> 0 | AA14: =$O$14*('Production Assumptions'!$C$6) -> 0 | AB14: =$O$14*('Production Assumptions'!$C$6) -> 0 | AC14: =($AB$14*('Production Assumptions'!$C$6)^AB2)*12 -> 0 | AD14: =($AB$14*('Production Assumptions'!$C$6)^AC2)*12 -> 0 | AE14: =($AB$14*('Production Assumptions'!$C$6)^AD2)*12 -> 0 | AF14: =($AB$14*('Production Assumptions'!$C$6)^AE2)*12 -> 0 | AG14: =($AB$14*('Production Assumptions'!$C$6)^AF2)*12 -> 0 | AH14: =($AB$14*('Production Assumptions'!$C$6)^AG2)*12 -> 0 | AI14: =($AB$14*('Production Assumptions'!$C$6)^AH2)*12 -> 0 | AJ14: =($AB$14*('Production Assumptions'!$C$6)^AI2)*12 -> 0
B15: TOTAL VARIABLE COST: | C15: =SUM(C10:C14) ->  | D15: =SUM(D10:D14) ->  | L15: =SUM(L10:L14) -> 
B17: FIXED COSTS:
B18: Salaries - Staff | C18: =SUM(D18:O18) ->  | D18: =HR!E11 ->  | E18: =HR!F11 ->  | F18: =HR!G11 ->  | G18: =HR!H11 ->  | H18: =HR!I11 ->  | I18: =HR!J11 ->  | J18: =HR!K11 ->  | K18: =HR!L11 ->  | L18: =HR!M11 ->  | M18: =HR!N11 ->  | N18: =HR!O11 ->  | O18: =HR!P11 ->  | P18: =SUM(Q18:AB18) ->  | Q18: =HR!R11 ->  | R18: =HR!S11 ->  | S18: =HR!T11 ->  | T18: =HR!U11 ->  | U18: =HR!V11 ->  | V18: =HR!W11 ->  | W18: =HR!X11 ->  | X18: =HR!Y11 ->  | Y18: =HR!Z11 ->  | Z18: =HR!AA11 ->  | AA18: =HR!AB11 ->  | AB18: =HR!AC11 ->  | AC18: =($AB$18*('Production Assumptions'!$C$6)^AB2)*12 ->  | AD18: =($AB$18*('Production Assumptions'!$C$6)^AC2)*12 ->  | AE18: =($AB$18*('Production Assumptions'!$C$6)^AD2)*12 ->  | AF18: =($AB$18*('Production Assumptions'!$C$6)^AE2)*12 ->  | AG18: =($AB$18*('Production Assumptions'!$C$6)^AF2)*12 ->  | AH18: =($AB$18*('Production Assumptions'!$C$6)^AG2)*12 ->  | AI18: =($AB$18*('Production Assumptions'!$C$6)^AH2)*12 ->  | AJ18: =($AB$18*('Production Assumptions'!$C$6)^AI2)*12 -> 
B19: Insurance | C19: =SUM(D19:O19) ->  | D19: =IF(Interface!$J$7<9,0,'Production Assumptions'!$C$14*(1+Interface!$J$7*'Production Assumptions'!$C$103)) ->  | E19: =IF(Interface!$J$7<9,0,'Production Assumptions'!$C$14*(1+Interface!$J$7*'Production Assumptions'!$C$103)) ->  | F19: =IF(Interface!$J$7<9,0,'Production Assumptions'!$C$14*(1+Interface!$J$7*'Production Assumptions'!$C$103)) ->  | G19: =IF(Interface!$J$7<9,0,'Production Assumptions'!$C$14*(1+Interface!$J$7*'Production Assumptions'!$C$103)) ->  | H19: =IF(Interface!$J$7<9,0,'Production Assumptions'!$C$14*(1+Interface!$J$7*'Production Assumptions'!$C$103)) ->  | I19: =IF(Interface!$J$7<9,0,'Production Assumptions'!$C$14*(1+Interface!$J$7*'Production Assumptions'!$C$103)) ->  | J19: =IF(Interface!$J$7<9,0,'Production Assumptions'!$C$14*(1+Interface!$J$7*'Production Assumptions'!$C$103)) ->  | K19: =IF(Interface!$J$7<9,0,'Production Assumptions'!$C$14*(1+Interface!$J$7*'Production Assumptions'!$C$103)) ->  | L19: =IF(Interface!$J$7<9,0,'Production Assumptions'!$C$14*(1+Interface!$J$7*'Production Assumptions'!$C$103)) ->  | M19: =IF(Interface!$J$7<9,0,'Production Assumptions'!$C$14*(1+Interface!$J$7*'Production Assumptions'!$C$103)) ->  | N19: =IF(Interface!$J$7<9,0,'Production Assumptions'!$C$14*(1+Interface!$J$7*'Production Assumptions'!$C$103)) ->  | O19: =IF(Interface!$J$7<9,0,'Production Assumptions'!$C$14*(1+Interface!$J$7*'Production Assumptions'!$C$103)) ->  | P19: =SUM(Q19:AB19) ->  | Q19: =IF(Interface!$J$7<9,0,('Production Assumptions'!$C$14*(1+Interface!$J$7*'Production Assumptions'!$C$103))*('Production Assumptions'!$C$6)) ->  | R19: =IF(Interface!$J$7<9,0,('Production Assumptions'!$C$14*(1+Interface!$J$7*'Production Assumptions'!$C$103))*('Production Assumptions'!$C$6)) ->  | S19: =IF(Interface!$J$7<9,0,('Production Assumptions'!$C$14*(1+Interface!$J$7*'Production Assumptions'!$C$103))*('Production Assumptions'!$C$6)) ->  | T19: =IF(Interface!$J$7<9,0,('Production Assumptions'!$C$14*(1+Interface!$J$7*'Production Assumptions'!$C$103))*('Production Assumptions'!$C$6)) ->  | U19: =IF(Interface!$J$7<9,0,('Production Assumptions'!$C$14*(1+Interface!$J$7*'Production Assumptions'!$C$103))*('Production Assumptions'!$C$6)) ->  | V19: =IF(Interface!$J$7<9,0,('Production Assumptions'!$C$14*(1+Interface!$J$7*'Production Assumptions'!$C$103))*('Production Assumptions'!$C$6)) ->  | W19: =IF(Interface!$J$7<9,0,('Production Assumptions'!$C$14*(1+Interface!$J$7*'Production Assumptions'!$C$103))*('Production Assumptions'!$C$6)) ->  | X19: =IF(Interface!$J$7<9,0,('Production Assumptions'!$C$14*(1+Interface!$J$7*'Production Assumptions'!$C$103))*('Production Assumptions'!$C$6)) ->  | Y19: =IF(Interface!$J$7<9,0,('Production Assumptions'!$C$14*(1+Interface!$J$7*'Production Assumptions'!$C$103))*('Production Assumptions'!$C$6)) ->  | Z19: =IF(Interface!$J$7<9,0,('Production Assumptions'!$C$14*(1+Interface!$J$7*'Production Assumptions'!$C$103))*('Production Assumptions'!$C$6)) ->  | AA19: =IF(Interface!$J$7<9,0,('Production Assumptions'!$C$14*(1+Interface!$J$7*'Production Assumptions'!$C$103))*('Production Assumptions'!$C$6)) ->  | AB19: =IF(Interface!$J$7<9,0,('Production Assumptions'!$C$14*(1+Interface!$J$7*'Production Assumptions'!$C$103))*('Production Assumptions'!$C$6)) ->  | AC19: =($O$19*('Production Assumptions'!$C$6)^AB2)*12 ->  | AD19: =($O$19*('Production Assumptions'!$C$6)^AC2)*12 ->  | AE19: =($O$19*('Production Assumptions'!$C$6)^AD2)*12 ->  | AF19: =($O$19*('Production Assumptions'!$C$6)^AE2)*12 ->  | AG19: =($O$19*('Production Assumptions'!$C$6)^AF2)*12 ->  | AH19: =($O$19*('Production Assumptions'!$C$6)^AG2)*12 ->  | AI19: =($O$19*('Production Assumptions'!$C$6)^AH2)*12 ->  | AJ19: =($O$19*('Production Assumptions'!$C$6)^AI2)*12 -> 
B20: Telephone Expenses | C20: 12000 | D20: ='Production Assumptions'!$C$106 -> 1000 | E20: ='Production Assumptions'!$C$106 -> 1000 | F20: ='Production Assumptions'!$C$106 -> 1000 | G20: ='Production Assumptions'!$C$106 -> 1000 | H20: ='Production Assumptions'!$C$106 -> 1000 | I20: ='Production Assumptions'!$C$106 -> 1000 | J20: ='Production Assumptions'!$C$106 -> 1000 | K20: ='Production Assumptions'!$C$106 -> 1000 | L20: ='Production Assumptions'!$C$106 -> 1000 | M20: ='Production Assumptions'!$C$106 -> 1000 | N20: ='Production Assumptions'!$C$106 -> 1000 | O20: ='Production Assumptions'!$C$106 -> 1000 | P20: 12612 | Q20: =$O$20*('Production Assumptions'!$C$6) -> 1051 | R20: =$O$20*('Production Assumptions'!$C$6) -> 1051 | S20: =$O$20*('Production Assumptions'!$C$6) -> 1051 | T20: =$O$20*('Production Assumptions'!$C$6) -> 1051 | U20: =$O$20*('Production Assumptions'!$C$6) -> 1051 | V20: =$O$20*('Production Assumptions'!$C$6) -> 1051 | W20: =$O$20*('Production Assumptions'!$C$6) -> 1051 | X20: =$O$20*('Production Assumptions'!$C$6) -> 1051 | Y20: =$O$20*('Production Assumptions'!$C$6) -> 1051 | Z20: =$O$20*('Production Assumptions'!$C$6) -> 1051 | AA20: =$O$20*('Production Assumptions'!$C$6) -> 1051 | AB20: =$O$20*('Production Assumptions'!$C$6) -> 1051 | AC20: =($AB$20*('Production Assumptions'!$C$6))*12 -> 13255.212 | AD20: =($AB$20*('Production Assumptions'!$C$6)^AC2)*12 -> 13931.22781 | AE20: =($AB$20*('Production Assumptions'!$C$6)^AD2)*12 -> 14641.72043 | AF20: =($AB$20*('Production Assumptions'!$C$6)^AE2)*12 -> 15388.44817 | AG20: =($AB$20*('Production Assumptions'!$C$6)^AF2)*12 -> 16173.25903 | AH20: =($AB$20*('Production Assumptions'!$C$6)^AG2)*12 -> 16998.09524 | AI20: =($AB$20*('Production Assumptions'!$C$6)^AH2)*12 -> 17864.9981 | AJ20: =($AB$20*('Production Assumptions'!$C$6)^AI2)*12 -> 18776.113
B21: Security (specific to facility) | D21: =IF(Interface!$J$7<9,0,'Production Assumptions'!$C$11*(1+Interface!$J$7*0.01)) ->  | E21: =IF(Interface!$J$7<9,0,'Production Assumptions'!$C$11*(1+Interface!$J$7*0.01)) ->  | F21: =IF(Interface!$J$7<9,0,'Production Assumptions'!$C$11*(1+Interface!$J$7*0.01)) ->  | G21: =IF(Interface!$J$7<9,0,'Production Assumptions'!$C$11*(1+Interface!$J$7*0.01)) ->  | H21: =IF(Interface!$J$7<9,0,'Production Assumptions'!$C$11*(1+Interface!$J$7*0.01)) ->  | I21: =IF(Interface!$J$7<9,0,'Production Assumptions'!$C$11*(1+Interface!$J$7*0.01)) ->  | J21: =IF(Interface!$J$7<9,0,'Production Assumptions'!$C$11*(1+Interface!$J$7*0.01)) ->  | K21: =IF(Interface!$J$7<9,0,'Production Assumptions'!$C$11*(1+Interface!$J$7*0.01)) ->  | L21: =IF(Interface!$J$7<9,0,'Production Assumptions'!$C$11*(1+Interface!$J$7*0.01)) ->  | M21: =IF(Interface!$J$7<9,0,'Production Assumptions'!$C$11*(1+Interface!$J$7*0.01)) ->  | N21: =IF(Interface!$J$7<9,0,'Production Assumptions'!$C$11*(1+Interface!$J$7*0.01)) ->  | O21: =IF(Interface!$J$7<9,0,'Production Assumptions'!$C$11*(1+Interface!$J$7*0.01)) ->  | P21: =SUM(Q21:AB21) ->  | Q21: =O21*'Production Assumptions'!C6 ->  | R21: =Q21 ->  | S21: =R21 ->  | AC21: =($AB$21*'Production Assumptions'!$C$6^'OPEX - RAS'!AB2)*12 ->  | AD21: =($AB$21*'Production Assumptions'!$C$6^'OPEX - RAS'!AC2)*12 ->  | AE21: =($AB$21*'Production Assumptions'!$C$6^'OPEX - RAS'!AD2)*12 ->  | AF21: =($AB$21*'Production Assumptions'!$C$6^'OPEX - RAS'!AE2)*12 ->  | AG21: =($AB$21*'Production Assumptions'!$C$6^'OPEX - RAS'!AF2)*12 ->  | AH21: =($AB$21*'Production Assumptions'!$C$6^'OPEX - RAS'!AG2)*12 ->  | AI21: =($AB$21*'Production Assumptions'!$C$6^'OPEX - RAS'!AH2)*12 ->  | AJ21: =($AB$21*'Production Assumptions'!$C$6^'OPEX - RAS'!AI2)*12 -> 
B22: Facility Electricity | D22: =(CAPEX!C6+CAPEX!C7+CAPEX!C9+CAPEX!C10)*'Production Assumptions'!C13 ->  | E22: =D22 ->  | F22: =E22 ->  | P22: =SUM(Q22:AB22) ->  | Q22: =O22*'Production Assumptions'!C6 ->  | R22: =Q22 ->  | S22: =R22 ->  | AC22: =P22*'Production Assumptions'!C6 ->  | AD22: =AC22*'Production Assumptions'!$C$6 ->  | AE22: =AD22*'Production Assumptions'!$C$6 ->  | AF22: =AE22*'Production Assumptions'!$C$6 ->  | AG22: =AF22*'Production Assumptions'!$C$6 ->  | AH22: =AG22*'Production Assumptions'!$C$6 ->  | AI22: =AH22*'Production Assumptions'!$C$6 ->  | AJ22: =AI22*'Production Assumptions'!$C$6 -> 
B23: System Electricity | D23: =CAPEX!D55 ->  | E23: =D23 ->  | Q23: =$O$23*('Production Assumptions'!$C$6) ->  | R23: =$O$23*('Production Assumptions'!$C$6) ->  | S23: =$O$23*('Production Assumptions'!$C$6) ->  | T23: =$O$23*('Production Assumptions'!$C$6) ->  | U23: =$O$23*('Production Assumptions'!$C$6) ->  | V23: =$O$23*('Production Assumptions'!$C$6) ->  | W23: =$O$23*('Production Assumptions'!$C$6) ->  | X23: =$O$23*('Production Assumptions'!$C$6) ->  | Y23: =$O$23*('Production Assumptions'!$C$6) ->  | Z23: =$O$23*('Production Assumptions'!$C$6) ->  | AA23: =$O$23*('Production Assumptions'!$C$6) ->  | AB23: =$O$23*('Production Assumptions'!$C$6) ->  | AC23: =($AB$23*('Production Assumptions'!$C$6))*12 ->  | AD23: =($AB$23*('Production Assumptions'!$C$6)^AC2)*12 ->  | AE23: =($AB$23*('Production Assumptions'!$C$6)^AD2)*12 ->  | AF23: =($AB$23*('Production Assumptions'!$C$6)^AE2)*12 ->  | AG23: =($AB$23*('Production Assumptions'!$C$6)^AF2)*12 ->  | AH23: =($AB$23*('Production Assumptions'!$C$6)^AG2)*12 ->  | AI23: =($AB$23*('Production Assumptions'!$C$6)^AH2)*12 ->  | AJ23: =($AB$23*('Production Assumptions'!$C$6)^AI2)*12 -> 
B24: Sumps and waste water treatment | D24: ='Production Assumptions'!$C$107 ->  | E24: ='Production Assumptions'!$C$107 ->  | F24: ='Production Assumptions'!$C$107 ->  | G24: ='Production Assumptions'!$C$107 ->  | H24: ='Production Assumptions'!$C$107 ->  | I24: ='Production Assumptions'!$C$107 ->  | J24: ='Production Assumptions'!$C$107 ->  | K24: ='Production Assumptions'!$C$107 ->  | L24: ='Production Assumptions'!$C$107 ->  | M24: ='Production Assumptions'!$C$107 ->  | N24: ='Production Assumptions'!$C$107 ->  | O24: ='Production Assumptions'!$C$107 ->  | Q24: =$D$24*('Production Assumptions'!$C$6) ->  | R24: =E24*('Production Assumptions'!$C$6) ->  | S24: =F24*('Production Assumptions'!$C$6) ->  | T24: =G24*('Production Assumptions'!$C$6) ->  | U24: =H24*('Production Assumptions'!$C$6) ->  | V24: =I24*('Production Assumptions'!$C$6) ->  | W24: =J24*('Production Assumptions'!$C$6) ->  | X24: =K24*('Production Assumptions'!$C$6) ->  | Y24: =L24*('Production Assumptions'!$C$6) ->  | Z24: =M24*('Production Assumptions'!$C$6) ->  | AA24: =N24*('Production Assumptions'!$C$6) ->  | AB24: =O24*('Production Assumptions'!$C$6) ->  | AC24: =($AB$24*('Production Assumptions'!$C$6))*12 ->  | AD24: =($AB$24*('Production Assumptions'!$C$6)^AC2)*12 ->  | AE24: =($AB$24*('Production Assumptions'!$C$6)^AD2)*12 ->  | AF24: =($AB$24*('Production Assumptions'!$C$6)^AE2)*12 ->  | AG24: =($AB$24*('Production Assumptions'!$C$6)^AF2)*12 ->  | AH24: =($AB$24*('Production Assumptions'!$C$6)^AG2)*12 ->  | AI24: =($AB$24*('Production Assumptions'!$C$6)^AH2)*12 ->  | AJ24: =($AB$24*('Production Assumptions'!$C$6)^AI2)*12 -> 
B25: Legal & licencing | C25: 550000 | D25: =IF(Interface!$J$7<Validation!$B$22,'Production Assumptions'!$D$42,IF(Interface!$J$7<Validation!$B$202,'Production Assumptions'!$D$43,'Production Assumptions'!$D$44)) -> 550000 | E25: 0 | F25: 0 | G25: 0 | H25: 0 | I25: 0 | J25: 0 | K25: 0 | L25: 0 | M25: 0 | N25: 0 | O25: 0 | P25: 0 | Q25: 0 | R25: =E25*('Production Assumptions'!$C$6) -> 0 | S25: =F25*('Production Assumptions'!$C$6) -> 0 | T25: =G25*('Production Assumptions'!$C$6) -> 0 | U25: =H25*('Production Assumptions'!$C$6) -> 0 | V25: =I25*('Production Assumptions'!$C$6) -> 0 | W25: =J25*('Production Assumptions'!$C$6) -> 0 | X25: =K25*('Production Assumptions'!$C$6) -> 0 | Y25: =L25*('Production Assumptions'!$C$6) -> 0 | Z25: =M25*('Production Assumptions'!$C$6) -> 0 | AA25: =N25*('Production Assumptions'!$C$6) -> 0 | AB25: =O25*('Production Assumptions'!$C$6) -> 0 | AC25: =$Q$25*('Production Assumptions'!$C$6) -> 0 | AD25: =$Q$25*('Production Assumptions'!$C$6)^AC2 -> 0 | AE25: =$D$25*('Production Assumptions'!$C$6)^AE2 -> 671078.8531 | AF25: =$Q$25*('Production Assumptions'!$C$6)^AE2 -> 0 | AG25: =$Q$25*('Production Assumptions'!$C$6)^AF2 -> 0 | AH25: =$Q$25*('Production Assumptions'!$C$6)^AG2 -> 0 | AI25: =$Q$25*('Production Assumptions'!$C$6)^AH2 -> 0 | AJ25: =$Q$25*('Production Assumptions'!$C$6)^AI2 -> 0
B26: Health and safety apparel | D26: ='Production Assumptions'!$C$109*HR!$D$77 ->  | E26: 0 | F26: 0 | G26: 0 | H26: 0 | I26: 0 | J26: 0 | K26: 0 | L26: 0 | M26: 0 | N26: 0 | O26: 0 | Q26: =D26*('Production Assumptions'!$C$6) ->  | R26: =E26*('Production Assumptions'!$C$6) -> 0 | S26: =F26*('Production Assumptions'!$C$6) -> 0 | T26: =G26*('Production Assumptions'!$C$6) -> 0 | U26: =H26*('Production Assumptions'!$C$6) -> 0 | V26: =I26*('Production Assumptions'!$C$6) -> 0 | W26: =J26*('Production Assumptions'!$C$6) -> 0 | X26: =K26*('Production Assumptions'!$C$6) -> 0 | Y26: =L26*('Production Assumptions'!$C$6) -> 0 | Z26: =M26*('Production Assumptions'!$C$6) -> 0 | AA26: =N26*('Production Assumptions'!$C$6) -> 0 | AB26: =O26*('Production Assumptions'!$C$6) -> 0 | AC26: =$Q$26*('Production Assumptions'!$C$6) ->  | AD26: =$Q$26*('Production Assumptions'!$C$6)^AC2 ->  | AE26: =$Q$26*('Production Assumptions'!$C$6)^AD2 ->  | AF26: =$Q$26*('Production Assumptions'!$C$6)^AE2 ->  | AG26: =$Q$26*('Production Assumptions'!$C$6)^AF2 ->  | AH26: =$Q$26*('Production Assumptions'!$C$6)^AG2 ->  | AI26: =$Q$26*('Production Assumptions'!$C$6)^AH2 ->  | AJ26: =$Q$26*('Production Assumptions'!$C$6)^AI2 -> 
B27: stationary | C27: 1200 | D27: =IF(Interface!$J$7<9,0,'Production Assumptions'!$C$110) -> 100 | E27: =IF(Interface!$J$7<9,0,'Production Assumptions'!$C$110) -> 100 | F27: =IF(Interface!$J$7<9,0,'Production Assumptions'!$C$110) -> 100 | G27: =IF(Interface!$J$7<9,0,'Production Assumptions'!$C$110) -> 100 | H27: =IF(Interface!$J$7<9,0,'Production Assumptions'!$C$110) -> 100 | I27: =IF(Interface!$J$7<9,0,'Production Assumptions'!$C$110) -> 100 | J27: =IF(Interface!$J$7<9,0,'Production Assumptions'!$C$110) -> 100 | K27: =IF(Interface!$J$7<9,0,'Production Assumptions'!$C$110) -> 100 | L27: =IF(Interface!$J$7<9,0,'Production Assumptions'!$C$110) -> 100 | M27: =IF(Interface!$J$7<9,0,'Production Assumptions'!$C$110) -> 100 | N27: =IF(Interface!$J$7<9,0,'Production Assumptions'!$C$110) -> 100 | O27: =IF(Interface!$J$7<9,0,'Production Assumptions'!$C$110) -> 100 | P27: 1261.2 | Q27: =$O$27*('Production Assumptions'!$C$6) -> 105.1 | R27: =$O$27*('Production Assumptions'!$C$6) -> 105.1 | S27: =$O$27*('Production Assumptions'!$C$6) -> 105.1 | T27: =$O$27*('Production Assumptions'!$C$6) -> 105.1 | U27: =$O$27*('Production Assumptions'!$C$6) -> 105.1 | V27: =$O$27*('Production Assumptions'!$C$6) -> 105.1 | W27: =$O$27*('Production Assumptions'!$C$6) -> 105.1 | X27: =$O$27*('Production Assumptions'!$C$6) -> 105.1 | Y27: =$O$27*('Production Assumptions'!$C$6) -> 105.1 | Z27: =$O$27*('Production Assumptions'!$C$6) -> 105.1 | AA27: =$O$27*('Production Assumptions'!$C$6) -> 105.1 | AB27: =$O$27*('Production Assumptions'!$C$6) -> 105.1 | AC27: =($AB$27*('Production Assumptions'!$C$6))*12 -> 1325.5212 | AD27: =($AB$27*('Production Assumptions'!$C$6)^AC2)*12 -> 1393.122781 | AE27: =($AB$27*('Production Assumptions'!$C$6)^AD2)*12 -> 1464.172043 | AF27: =($AB$27*('Production Assumptions'!$C$6)^AE2)*12 -> 1538.844817 | AG27: =($AB$27*('Production Assumptions'!$C$6)^AF2)*12 -> 1617.325903 | AH27: =($AB$27*('Production Assumptions'!$C$6)^AG2)*12 -> 1699.809524 | AI27: =($AB$27*('Production Assumptions'!$C$6)^AH2)*12 -> 1786.49981 | AJ27: =($AB$27*('Production Assumptions'!$C$6)^AI2)*12 -> 1877.6113
B28: Cleaning materials | C28: 9600 | D28: ='Production Assumptions'!$C$111 -> 800 | E28: ='Production Assumptions'!$C$111 -> 800 | F28: ='Production Assumptions'!$C$111 -> 800 | G28: ='Production Assumptions'!$C$111 -> 800 | H28: ='Production Assumptions'!$C$111 -> 800 | I28: ='Production Assumptions'!$C$111 -> 800 | J28: ='Production Assumptions'!$C$111 -> 800 | K28: ='Production Assumptions'!$C$111 -> 800 | L28: ='Production Assumptions'!$C$111 -> 800 | M28: ='Production Assumptions'!$C$111 -> 800 | N28: ='Production Assumptions'!$C$111 -> 800 | O28: ='Production Assumptions'!$C$111 -> 800 | P28: 10089.6 | Q28: =$O$28*('Production Assumptions'!$C$6) -> 840.8 | R28: =$O$28*('Production Assumptions'!$C$6) -> 840.8 | S28: =$O$28*('Production Assumptions'!$C$6) -> 840.8 | T28: =$O$28*('Production Assumptions'!$C$6) -> 840.8 | U28: =$O$28*('Production Assumptions'!$C$6) -> 840.8 | V28: =$O$28*('Production Assumptions'!$C$6) -> 840.8 | W28: =$O$28*('Production Assumptions'!$C$6) -> 840.8 | X28: =$O$28*('Production Assumptions'!$C$6) -> 840.8 | Y28: =$O$28*('Production Assumptions'!$C$6) -> 840.8 | Z28: =$O$28*('Production Assumptions'!$C$6) -> 840.8 | AA28: =$O$28*('Production Assumptions'!$C$6) -> 840.8 | AB28: =$O$28*('Production Assumptions'!$C$6) -> 840.8 | AC28: =($AB$28*('Production Assumptions'!$C$6))*12 -> 10604.1696 | AD28: =($AB$28*('Production Assumptions'!$C$6)^AC2)*12 -> 11144.98225 | AE28: =($AB$28*('Production Assumptions'!$C$6)^AD2)*12 -> 11713.37634 | AF28: =($AB$28*('Production Assumptions'!$C$6)^AE2)*12 -> 12310.75854 | AG28: =($AB$28*('Production Assumptions'!$C$6)^AF2)*12 -> 12938.60722 | AH28: =($AB$28*('Production Assumptions'!$C$6)^AG2)*12 -> 13598.47619 | AI28: =($AB$28*('Production Assumptions'!$C$6)^AH2)*12 -> 14291.99848 | AJ28: =($AB$28*('Production Assumptions'!$C$6)^AI2)*12 -> 15020.8904
B29: Vet Services | C29: 40800 | D29: ='Production Assumptions'!$C$113 -> 10200 | E29: 0 | F29: 0 | G29: =D29 -> 10200 | H29: 0 | J29: =D29 -> 10200 | M29: =D29 -> 10200 | P29: 42880.8 | Q29: =D29*(1+'Production Assumptions'!$C$4) -> 10720.2 | R29: =E29*(1+'Production Assumptions'!$C$4) -> 0 | S29: =F29*(1+'Production Assumptions'!$C$4) -> 0 | T29: =G29*(1+'Production Assumptions'!$C$4) -> 10720.2 | U29: =H29*(1+'Production Assumptions'!$C$4) -> 0 | V29: =I29*(1+'Production Assumptions'!$C$4) -> 0 | W29: =J29*(1+'Production Assumptions'!$C$4) -> 10720.2 | X29: =K29*(1+'Production Assumptions'!$C$4) -> 0 | Y29: =L29*(1+'Production Assumptions'!$C$4) -> 0 | Z29: =M29*(1+'Production Assumptions'!$C$4) -> 10720.2 | AA29: =N29*(1+'Production Assumptions'!$C$4) -> 0 | AB29: =O29*(1+'Production Assumptions'!$C$4) -> 0 | AC29: =P29*(1+'Production Assumptions'!$C$4) -> 45067.7208 | AD29: =($P29*('Production Assumptions'!$C$6)^AC$2) -> 47366.17456 | AE29: =AD29*(1+'Production Assumptions'!$C$4) -> 49781.84946 | AF29: =AE29*(1+'Production Assumptions'!$C$4) -> 52320.72379 | AG29: =AF29*(1+'Production Assumptions'!$C$4) -> 54989.0807 | AH29: =AG29*(1+'Production Assumptions'!$C$4) -> 57793.52381 | AI29: =AH29*(1+'Production Assumptions'!$C$4) -> 60740.99353 | AJ29: =AI29*(1+'Production Assumptions'!$C$4) -> 63838.7842
B30: Bank Charges | C30: 720 | D30: =IF(D$6=0,60,D$6/100*(1+'Production Assumptions'!$C$115)+60) -> 60 | E30: =IF(E$6=0,60,E$6/100*(1+'Production Assumptions'!$C$115)+60) -> 60 | F30: =IF(F$6=0,60,F$6/100*(1+'Production Assumptions'!$C$115)+60) -> 60 | G30: =IF(G$6=0,60,G$6/100*(1+'Production Assumptions'!$C$115)+60) -> 60 | H30: =IF(H$6=0,60,H$6/100*(1+'Production Assumptions'!$C$115)+60) -> 60 | I30: =IF(I$6=0,60,I$6/100*(1+'Production Assumptions'!$C$115)+60) -> 60 | J30: =IF(J$6=0,60,J$6/100*(1+'Production Assumptions'!$C$115)+60) -> 60 | K30: =IF(K$6=0,60,K$6/100*(1+'Production Assumptions'!$C$115)+60) -> 60 | L30: =IF(L$6=0,60,L$6/100*(1+'Production Assumptions'!$C$115)+60) -> 60 | M30: =IF(M$6=0,60,M$6/100*(1+'Production Assumptions'!$C$115)+60) -> 60 | N30: =IF(N$6=0,60,N$6/100*(1+'Production Assumptions'!$C$115)+60) -> 60 | O30: =IF(O$6=0,60,O$6/100*(1+'Production Assumptions'!$C$115)+60) -> 60 | P30: 756.72 | Q30: =IF(Q$6=0,60,Q$6/100*(1+'Production Assumptions'!$C$115)+60)*('Production Assumptions'!$C$6) -> 63.06 | R30: =$O$30*('Production Assumptions'!$C$6) -> 63.06 | S30: =$O$30*('Production Assumptions'!$C$6) -> 63.06 | T30: =$O$30*('Production Assumptions'!$C$6) -> 63.06 | U30: =$O$30*('Production Assumptions'!$C$6) -> 63.06 | V30: =$O$30*('Production Assumptions'!$C$6) -> 63.06 | W30: =$O$30*('Production Assumptions'!$C$6) -> 63.06 | X30: =$O$30*('Production Assumptions'!$C$6) -> 63.06 | Y30: =$O$30*('Production Assumptions'!$C$6) -> 63.06 | Z30: =$O$30*('Production Assumptions'!$C$6) -> 63.06 | AA30: =$O$30*('Production Assumptions'!$C$6) -> 63.06 | AB30: =$O$30*('Production Assumptions'!$C$6) -> 63.06 | AC30: =($AB30*('Production Assumptions'!$C$6))*12 -> 795.31272 | AD30: =($AB30*('Production Assumptions'!$C$6)^AC2)*12 -> 835.8736687 | AE30: =($AB30*('Production Assumptions'!$C$6)^AD2)*12 -> 878.5032258 | AF30: =($AB$30*('Production Assumptions'!$C$6)^AE2)*12 -> 923.3068903 | AG30: =($AB$30*('Production Assumptions'!$C$6)^AF2)*12 -> 970.3955417 | AH30: =($AB$30*('Production Assumptions'!$C$6)^AG2)*12 -> 1019.885714 | AI30: =($AB$30*('Production Assumptions'!$C$6)^AH2)*12 -> 1071.899886 | AJ30: =($AB$30*('Production Assumptions'!$C$6)^AI2)*12 -> 1126.56678
B31: Marketing | D31: =IF(Interface!$J$7<Validation!$B$17,0,'Production Assumptions'!$C$117) ->  | E31: =IF(Interface!$J$7<Validation!$B$17,0,'Production Assumptions'!$C$117) ->  | F31: =IF(Interface!$J$7<Validation!$B$17,0,'Production Assumptions'!$C$117) ->  | G31: =IF(Interface!$J$7<Validation!$B$17,0,'Production Assumptions'!$C$117) ->  | H31: =IF(Interface!$J$7<Validation!$B$17,0,'Production Assumptions'!$C$117) ->  | I31: =IF(Interface!$J$7<Validation!$B$17,0,'Production Assumptions'!$C$117) ->  | J31: =IF(Interface!$J$7<Validation!$B$17,0,'Production Assumptions'!$C$117) ->  | K31: =IF(Interface!$J$7<Validation!$B$17,0,'Production Assumptions'!$C$117) ->  | L31: =IF(Interface!$J$7<Validation!$B$17,0,'Production Assumptions'!$C$117) ->  | M31: =IF(Interface!$J$7<Validation!$B$17,0,'Production Assumptions'!$C$117) ->  | N31: =IF(Interface!$J$7<Validation!$B$17,0,'Production Assumptions'!$C$117) ->  | O31: =IF(Interface!$J$7<Validation!$B$17,0,'Production Assumptions'!$C$117) ->  | Q31: =IF(Interface!$J$7<Validation!$B$17,0,('Production Assumptions'!$C$117*(1+'Production Assumptions'!$C$118*Interface!$J$7))*'Production Assumptions'!$C$6) ->  | R31: =Q31 ->  | S31: =R31 ->  | AC31: =($AB31*('Production Assumptions'!$C$6))*12 ->  | AD31: =($AB31*('Production Assumptions'!$C$6)^AC2)*12 ->  | AE31: =($AB31*('Production Assumptions'!$C$6)^AD2)*12 ->  | AF31: =($AB31*('Production Assumptions'!$C$6)^AE2)*12 ->  | AG31: =($AB31*('Production Assumptions'!$C$6)^AF2)*12 ->  | AH31: =($AB31*('Production Assumptions'!$C$6)^AG2)*12 ->  | AI31: =($AB31*('Production Assumptions'!$C$6)^AH2)*12 ->  | AJ31: =($AB31*('Production Assumptions'!$C$6)^AI2)*12 -> 
B32: Reserve & Unforeseen Cost | D32: =D$15*'Production Assumptions'!$C$119 ->  | E32: =$D$15*'Production Assumptions'!$C$119 ->  | F32: =$D$15*'Production Assumptions'!$C$119 ->  | G32: =$D$15*'Production Assumptions'!$C$119 ->  | H32: =$D$15*'Production Assumptions'!$C$119 ->  | I32: =$D$15*'Production Assumptions'!$C$119 ->  | J32: =$D$15*'Production Assumptions'!$C$119 ->  | K32: =$D$15*'Production Assumptions'!$C$119 ->  | L32: =$D$15*'Production Assumptions'!$C$119 ->  | M32: =$D$15*'Production Assumptions'!$C$119 ->  | N32: =$D$15*'Production Assumptions'!$C$119 ->  | O32: =$D$15*'Production Assumptions'!$C$119 ->  | Q32: =$O$32*('Production Assumptions'!$C$6) ->  | R32: =$O$32*('Production Assumptions'!$C$6) ->  | S32: =$O$32*('Production Assumptions'!$C$6) ->  | T32: =$O$32*('Production Assumptions'!$C$6) ->  | U32: =$O$32*('Production Assumptions'!$C$6) ->  | V32: =$O$32*('Production Assumptions'!$C$6) ->  | W32: =$O$32*('Production Assumptions'!$C$6) ->  | X32: =$O$32*('Production Assumptions'!$C$6) ->  | Y32: =$O$32*('Production Assumptions'!$C$6) ->  | Z32: =$O$32*('Production Assumptions'!$C$6) ->  | AA32: =$O$32*('Production Assumptions'!$C$6) ->  | AB32: =$O$32*('Production Assumptions'!$C$6) ->  | AC32: =($AB$32*('Production Assumptions'!$C$6))*12 ->  | AD32: =($AB$32*('Production Assumptions'!$C$6)^AC2)*12 ->  | AE32: =($AB$32*('Production Assumptions'!$C$6)^AD2)*12 ->  | AF32: =($AB$32*('Production Assumptions'!$C$6)^AE2)*12 ->  | AG32: =($AB$32*('Production Assumptions'!$C$6)^AF2)*12 ->  | AH32: =($AB$32*('Production Assumptions'!$C$6)^AG2)*12 ->  | AI32: =($AB$32*('Production Assumptions'!$C$6)^AH2)*12 ->  | AJ32: =($AB$32*('Production Assumptions'!$C$6)^AI2)*12 -> 
B33: ='Production Assumptions'!E105 -> Test kits for ammonia and nitrite | C33: 0 | D33: =IF(Interface!$J$7<=20,'Production Assumptions'!F80,0) -> 0 | P33: 0 | AC33: =($Q$33*('Production Assumptions'!$C$6)) -> 0 | AD33: =$Q$33*('Production Assumptions'!$C$6)^AC2 -> 0 | AE33: =$Q$33*('Production Assumptions'!$C$6)^AD2 -> 0 | AF33: =$Q$33*('Production Assumptions'!$C$6)^AE2 -> 0 | AG33: =$Q$33*('Production Assumptions'!$C$6)^AF2 -> 0 | AH33: =$Q$33*('Production Assumptions'!$C$6)^AG2 -> 0 | AI33: =$Q$33*('Production Assumptions'!$C$6)^AH2 -> 0 | AJ33: =$Q$33*('Production Assumptions'!$C$6)^AI2 -> 0
B34: TOTAL FIXED COST: | C34: =SUM(C18:C33) ->  | D34: =SUM(D18:D33) ->  | E34: =SUM(E18:E33) ->  | M34: =SUM(M18:M33) -> 
B36: TOTAL EXPENSES: | C36: =C15+C34 ->  | AJ36: =AJ15+AJ34 -> 
B38: PROFIT OR LOSS: | C38: =C7-C36 -> 
AC41: =AC36/AC7 -> 

Sheet IS - RAS
A1: INCOME STATEMENT - RAS
B3: Projected Income Statement | C3: Year
C4: YEAR 0 | D4: YEAR 1 | E4: YEAR 2 | F4: YEAR 3 | G4: YEAR 4 | H4: YEAR 5 | I4: YEAR 6 | J4: YEAR 7 | K4: YEAR 8 | L4: YEAR 9 | M4: YEAR 10 | N4: NO POSITIVE
B5: Revenue
B6: ='OPEX - RAS'!B6 -> Tilpia (Live, Fresh, frozen) | D6: ='OPEX - RAS'!C7 -> 0 | E6: ='OPEX - RAS'!P7 -> 0 | F6: ='OPEX - RAS'!AC7 -> 0 | G6: ='OPEX - RAS'!AD7 -> 0 | H6: ='OPEX - RAS'!AE7 -> 0 | I6: ='OPEX - RAS'!AF7 -> 0 | J6: ='OPEX - RAS'!AG7 -> 0 | K6: ='OPEX - RAS'!AH7 -> 0 | L6: ='OPEX - RAS'!AI7 -> 0 | M6: ='OPEX - RAS'!AJ7 -> 0
B7: Total Revenue | D7: =SUM(D6:D6) -> 0 | E7: 0 | F7: 0 | G7: 0 | H7: 0 | I7: 0 | J7: 0 | K7: 0 | L7: 0 | M7: 0
B9: Variable Costs (Cost of Sales)
B10: ='OPEX - RAS'!B10 -> Fingerling | D10: =-'OPEX - RAS'!C10 ->  | E10: =-'OPEX - RAS'!P10 ->  | F10: =-'OPEX - RAS'!AC10 ->  | G10: =-'OPEX - RAS'!AD10 ->  | H10: =-'OPEX - RAS'!AE10 ->  | I10: =-'OPEX - RAS'!AF10 ->  | J10: =-'OPEX - RAS'!AG10 ->  | K10: =-'OPEX - RAS'!AH10 ->  | L10: =-'OPEX - RAS'!AI10 ->  | M10: =-'OPEX - RAS'!AJ10 -> 
B11: ='OPEX - RAS'!B11 -> Feed | D11: =-'OPEX - RAS'!C11 ->  | E11: =-'OPEX - RAS'!P11 ->  | F11: =-'OPEX - RAS'!AC11 ->  | G11: =-'OPEX - RAS'!AD11 ->  | H11: =-'OPEX - RAS'!AE11 ->  | I11: =-'OPEX - RAS'!AF11 ->  | J11: =-'OPEX - RAS'!AG11 ->  | K11: =-'OPEX - RAS'!AH11 ->  | L11: =-'OPEX - RAS'!AI11 ->  | M11: =-'OPEX - RAS'!AJ11 -> 
B12: ='OPEX - RAS'!B12 -> Consumables - Water Quality | D12: =-'OPEX - RAS'!C12 ->  | E12: =-'OPEX - RAS'!P12 -> 0 | F12: =-'OPEX - RAS'!AC12 -> 0 | G12: =-'OPEX - RAS'!AD12 -> 0 | H12: =-'OPEX - RAS'!AE12 -> 0 | I12: =-'OPEX - RAS'!AF12 -> 0 | J12: =-'OPEX - RAS'!AG12 -> 0 | K12: =-'OPEX - RAS'!AH12 -> 0 | L12: =-'OPEX - RAS'!AI12 -> 0 | M12: =-'OPEX - RAS'!AJ12 -> 0
B13: ='OPEX - RAS'!B13 -> Transport Costs | D13: =-'OPEX - RAS'!C13 -> -3600 | E13: =-'OPEX - RAS'!P13 -> -3783.6 | F13: =-'OPEX - RAS'!AC13 -> -3976.5636 | G13: =-'OPEX - RAS'!AD13 -> -4179.368344 | H13: =-'OPEX - RAS'!AE13 -> -4392.516129 | I13: =-'OPEX - RAS'!AF13 -> -4616.534452 | J13: =-'OPEX - RAS'!AG13 -> -4851.977709 | K13: =-'OPEX - RAS'!AH13 -> -5099.428572 | L13: =-'OPEX - RAS'!AI13 -> -5359.499429 | M13: =-'OPEX - RAS'!AJ13 -> -5632.8339
B14: ='OPEX - RAS'!B14 -> Water | D14: =-'OPEX - RAS'!C14 -> 0 | E14: =-'OPEX - RAS'!P14 -> 0 | F14: =-'OPEX - RAS'!AC14 -> 0 | G14: =-'OPEX - RAS'!AD14 -> 0 | H14: =-'OPEX - RAS'!AE14 -> 0 | I14: =-'OPEX - RAS'!AF14 -> 0 | J14: =-'OPEX - RAS'!AG14 -> 0 | K14: =-'OPEX - RAS'!AH14 -> 0 | L14: =-'OPEX - RAS'!AI14 -> 0 | M14: =-'OPEX - RAS'!AJ14 -> 0
B15: Total Variable Costs (Cost of Sales) | D15: =SUM(D10:D14) ->  | E15: =SUM(E10:E14) -> 
B17: Gross Profit | D17: =D7+D15 -> 
B18: Gross Profit % | D18: =D17/D7 -> 
B20: Fixed Costs
B21: Salaries and wages | D21: =-SUM(D22:D24) ->  | E21: =-SUM(E22:E24) -> 
B22: =HR!B8 -> Skilled Workers | D22: =HR!D8 ->  | E22: =HR!AD8 ->  | F22: =HR!AF8 ->  | G22: =HR!AH8 ->  | H22: =HR!AJ8 ->  | I22: =HR!AL8 ->  | J22: =HR!AN8 ->  | K22: =HR!AP8 ->  | L22: =HR!AR8 ->  | M22: =HR!AT8 -> 
B23: =HR!B9 -> Medium Skilled | D23: =HR!D9 ->  | E23: =HR!AD9 ->  | F23: =HR!AF9 ->  | G23: =HR!AH9 ->  | H23: =HR!AJ9 ->  | I23: =HR!AL9 ->  | J23: =HR!AN9 ->  | K23: =HR!AP9 ->  | L23: =HR!AR9 ->  | M23: =HR!AT9 -> 
B24: =HR!B10 -> Low Skilled | D24: =HR!D10 ->  | E24: =HR!AD10 ->  | F24: =HR!AF10 ->  | G24: =HR!AH10 ->  | H24: =HR!AJ10 ->  | I24: =HR!AL10 ->  | J24: =HR!AN10 ->  | K24: =HR!AP10 ->  | L24: =HR!AR10 ->  | M24: =HR!AT10 -> 
B25: General Expenses | D25: =SUM(D26:D39) ->  | E25: =SUM(E26:E39) -> 
B26: ='OPEX - RAS'!B19 -> Insurance | D26: =-'OPEX - RAS'!C19 ->  | E26: =-'OPEX - RAS'!P19 ->  | F26: =-'OPEX - RAS'!AC19 ->  | G26: =-'OPEX - RAS'!AD19 ->  | H26: =-'OPEX - RAS'!AE19 ->  | I26: =-'OPEX - RAS'!AF19 ->  | J26: =-'OPEX - RAS'!AG19 ->  | K26: =-'OPEX - RAS'!AH19 ->  | L26: =-'OPEX - RAS'!AI19 ->  | M26: =-'OPEX - RAS'!AJ19 -> 
B27: ='OPEX - RAS'!B20 -> Telephone Expenses | D27: =-'OPEX - RAS'!C20 -> -12000 | E27: =-'OPEX - RAS'!P20 -> -12612 | F27: =-'OPEX - RAS'!AC20 -> -13255.212 | G27: =-'OPEX - RAS'!AD20 -> -13931.22781 | H27: =-'OPEX - RAS'!AE20 -> -14641.72043 | I27: =-'OPEX - RAS'!AF20 -> -15388.44817 | J27: =-'OPEX - RAS'!AG20 -> -16173.25903 | K27: =-'OPEX - RAS'!AH20 -> -16998.09524 | L27: =-'OPEX - RAS'!AI20 -> -17864.9981 | M27: =-'OPEX - RAS'!AJ20 -> -18776.113
B28: ='OPEX - RAS'!B21 -> Security (specific to facility) | D28: =-'OPEX - RAS'!C21 ->  | E28: =-'OPEX - RAS'!P21 ->  | F28: =-'OPEX - RAS'!AC21 ->  | G28: =-'OPEX - RAS'!AD21 ->  | H28: =-'OPEX - RAS'!AE21 ->  | I28: =-'OPEX - RAS'!AF21 ->  | J28: =-'OPEX - RAS'!AG21 ->  | K28: =-'OPEX - RAS'!AH21 ->  | L28: =-'OPEX - RAS'!AI21 ->  | M28: =-'OPEX - RAS'!AJ21 -> 
B29: ='OPEX - RAS'!B23 -> System Electricity | D29: =-'OPEX - RAS'!C23 ->  | E29: =-'OPEX - RAS'!P23 ->  | F29: =-'OPEX - RAS'!AC23 ->  | G29: =-'OPEX - RAS'!AD23 ->  | H29: =-'OPEX - RAS'!AE23 ->  | I29: =-'OPEX - RAS'!AF23 ->  | J29: =-'OPEX - RAS'!AG23 ->  | K29: =-'OPEX - RAS'!AH23 ->  | L29: =-'OPEX - RAS'!AI23 ->  | M29: =-'OPEX - RAS'!AJ23 -> 
B30: ='OPEX - RAS'!B24 -> Sumps and waste water treatment | D30: =-'OPEX - RAS'!C24 ->  | E30: =-'OPEX - RAS'!P24 ->  | F30: =-'OPEX - RAS'!AC24 ->  | G30: =-'OPEX - RAS'!AD24 ->  | H30: =-'OPEX - RAS'!AE24 ->  | I30: =-'OPEX - RAS'!AF24 ->  | J30: =-'OPEX - RAS'!AG24 ->  | K30: =-'OPEX - RAS'!AH24 ->  | L30: =-'OPEX - RAS'!AI24 ->  | M30: =-'OPEX - RAS'!AJ24 -> 
B31: ='OPEX - RAS'!B25 -> Legal & licencing | D31: =-'OPEX - RAS'!C25 -> -550000 | E31: =-'OPEX - RAS'!P25 -> 0 | F31: =-'OPEX - RAS'!AC25 -> 0 | G31: =-'OPEX - RAS'!AD25 -> 0 | H31: =-'OPEX - RAS'!AE25 -> -671078.8531 | I31: =-'OPEX - RAS'!AF25 -> 0 | J31: =-'OPEX - RAS'!AG25 -> 0 | K31: =-'OPEX - RAS'!AH25 -> 0 | L31: =-'OPEX - RAS'!AI25 -> 0 | M31: =-'OPEX - RAS'!AJ25 -> 0
B32: ='OPEX - RAS'!B26 -> Health and safety apparel | D32: =-'OPEX - RAS'!C26 ->  | E32: =-'OPEX - RAS'!P26 ->  | F32: =-'OPEX - RAS'!AC26 ->  | G32: =-'OPEX - RAS'!AD26 ->  | H32: =-'OPEX - RAS'!AE26 ->  | I32: =-'OPEX - RAS'!AF26 ->  | J32: =-'OPEX - RAS'!AG26 ->  | K32: =-'OPEX - RAS'!AH26 ->  | L32: =-'OPEX - RAS'!AI26 ->  | M32: =-'OPEX - RAS'!AJ26 -> 
B33: ='OPEX - RAS'!B27 -> stationary | D33: =-'OPEX - RAS'!C27 -> -1200 | E33: =-'OPEX - RAS'!P27 -> -1261.2 | F33: =-'OPEX - RAS'!AC27 -> -1325.5212 | G33: =-'OPEX - RAS'!AD27 -> -1393.122781 | H33: =-'OPEX - RAS'!AE27 -> -1464.172043 | I33: =-'OPEX - RAS'!AF27 -> -1538.844817 | J33: =-'OPEX - RAS'!AG27 -> -1617.325903 | K33: =-'OPEX - RAS'!AH27 -> -1699.809524 | L33: =-'OPEX - RAS'!AI27 -> -1786.49981 | M33: =-'OPEX - RAS'!AJ27 -> -1877.6113
B34: ='OPEX - RAS'!B28 -> Cleaning materials | D34: =-'OPEX - RAS'!C28 -> -9600 | E34: =-'OPEX - RAS'!P28 -> -10089.6 | F34: =-'OPEX - RAS'!AC28 -> -10604.1696 | G34: =-'OPEX - RAS'!AD28 -> -11144.98225 | H34: =-'OPEX - RAS'!AE28 -> -11713.37634 | I34: =-'OPEX - RAS'!AF28 -> -12310.75854 | J34: =-'OPEX - RAS'!AG28 -> -12938.60722 | K34: =-'OPEX - RAS'!AH28 -> -13598.47619 | L34: =-'OPEX - RAS'!AI28 -> -14291.99848 | M34: =-'OPEX - RAS'!AJ28 -> -15020.8904
B35: ='OPEX - RAS'!B29 -> Vet Services | D35: =-'OPEX - RAS'!C29 -> -40800 | E35: =-'OPEX - RAS'!P29 -> -42880.8 | F35: =-'OPEX - RAS'!AC29 -> -45067.7208 | G35: =-'OPEX - RAS'!AD29 -> -47366.17456 | H35: =-'OPEX - RAS'!AE29 -> -49781.84946 | I35: =-'OPEX - RAS'!AF29 -> -52320.72379 | J35: =-'OPEX - RAS'!AG29 -> -54989.0807 | K35: =-'OPEX - RAS'!AH29 -> -57793.52381 | L35: =-'OPEX - RAS'!AI29 -> -60740.99353 | M35: =-'OPEX - RAS'!AJ29 -> -63838.7842
B36: ='OPEX - RAS'!B30 -> Bank Charges | D36: =-'OPEX - RAS'!C30 -> -720 | E36: =-'OPEX - RAS'!P30 -> -756.72 | F36: =-'OPEX - RAS'!AC30 -> -795.31272 | G36: =-'OPEX - RAS'!AD30 -> -835.8736687 | H36: =-'OPEX - RAS'!AE30 -> -878.5032258 | I36: =-'OPEX - RAS'!AF30 -> -923.3068903 | J36: =-'OPEX - RAS'!AG30 -> -970.3955417 | K36: =-'OPEX - RAS'!AH30 -> -1019.885714 | L36: =-'OPEX - RAS'!AI30 -> -1071.899886 | M36: =-'OPEX - RAS'!AJ30 -> -1126.56678
B37: ='OPEX - RAS'!B31 -> Marketing | D37: =-'OPEX - RAS'!C31 ->  | E37: =-'OPEX - RAS'!P31 ->  | F37: =-'OPEX - RAS'!AC31 ->  | G37: =-'OPEX - RAS'!AD31 ->  | H37: =-'OPEX - RAS'!AE31 ->  | I37: =-'OPEX - RAS'!AF31 ->  | J37: =-'OPEX - RAS'!AG31 ->  | K37: =-'OPEX - RAS'!AH31 ->  | L37: =-'OPEX - RAS'!AI31 ->  | M37: =-'OPEX - RAS'!AJ31 -> 
B38: ='OPEX - RAS'!B32 -> Reserve & Unforeseen Cost | D38: =-'OPEX - RAS'!C32 ->  | E38: =-'OPEX - RAS'!P32 ->  | F38: =-'OPEX - RAS'!AC32 ->  | G38: =-'OPEX - RAS'!AD32 ->  | H38: =-'OPEX - RAS'!AE32 ->  | I38: =-'OPEX - RAS'!AF32 ->  | J38: =-'OPEX - RAS'!AG32 ->  | K38: =-'OPEX - RAS'!AH32 ->  | L38: =-'OPEX - RAS'!AI32 ->  | M38: =-'OPEX - RAS'!AJ32 -> 
B39: ='OPEX - RAS'!B33 -> Test kits for ammonia and nitrite | D39: =-'OPEX - RAS'!C33 -> 0 | E39: =-'OPEX - RAS'!P33 -> 0 | F39: =-'OPEX - RAS'!AC33 -> 0 | G39: =-'OPEX - RAS'!AD33 -> 0 | H39: =-'OPEX - RAS'!AE33 -> 0 | I39: ='OPEX - RAS'!AF33 -> 0 | J39: =-'OPEX - RAS'!AG33 -> 0 | K39: =-'OPEX - RAS'!AH33 -> 0 | L39: =-'OPEX - RAS'!AI33 -> 0 | M39: =-'OPEX - RAS'!AJ33 -> 0
B40: Total Fixed Costs | D40: =D21+D25 ->  | E40: =E25+E21 -> 
B41: TOTAL COSTS | D41: =-(D15+D40) ->  | E41: =-(E15+E40) -> 
B42: Depreciation | D42: =-'DEP - RAS'!F31 ->  | E42: =-'DEP - RAS'!G31 ->  | F42: =-'DEP - RAS'!H31 ->  | G42: =-'DEP - RAS'!I31 ->  | H42: =-'DEP - RAS'!J31 ->  | I42: =-'DEP - RAS'!K31 ->  | J42: =-'DEP - RAS'!L31 ->  | K42: =-'DEP - RAS'!M31 ->  | L42: =-'DEP - RAS'!N31 ->  | M42: =-'DEP - RAS'!O31 -> 
B44: Profit / (Loss) before Interest & Tax | D44: =D15+D40+D42+D7 -> 
B46: Interest | D46: =IF(Interface!$H$14="DEBT",-'Loan Int & Bal - RAS'!B4,IF(Interface!$H$14="DEBT/EQUITY",-'Loan Int & Bal - RAS'!B4,0)) -> 0 | E46: =IF(Interface!$H$14="DEBT",-'Loan Int & Bal - RAS'!C4,IF(Interface!$H$14="DEBT/EQUITY",-'Loan Int & Bal - RAS'!C4,0)) -> 0 | F46: =IF(Interface!$H$14="DEBT",-'Loan Int & Bal - RAS'!D4,IF(Interface!$H$14="DEBT/EQUITY",-'Loan Int & Bal - RAS'!D4,0)) -> 0 | G46: =IF(Interface!$H$14="DEBT",-'Loan Int & Bal - RAS'!E4,IF(Interface!$H$14="DEBT/EQUITY",-'Loan Int & Bal - RAS'!E4,0)) -> 0 | H46: =IF(Interface!$H$14="DEBT",-'Loan Int & Bal - RAS'!F4,IF(Interface!$H$14="DEBT/EQUITY",-'Loan Int & Bal - RAS'!F4,0)) -> 0 | I46: =IF(Interface!$H$14="DEBT",-'Loan Int & Bal - RAS'!G4,IF(Interface!$H$14="DEBT/EQUITY",-'Loan Int & Bal - RAS'!G4,0)) -> 0 | J46: =IF(Interface!$H$14="DEBT",-'Loan Int & Bal - RAS'!H4,IF(Interface!$H$14="DEBT/EQUITY",-'Loan Int & Bal - RAS'!H4,0)) -> 0 | K46: =IF(Interface!$H$14="DEBT",-'Loan Int & Bal - RAS'!I4,IF(Interface!$H$14="DEBT/EQUITY",-'Loan Int & Bal - RAS'!I4,0)) -> 0 | L46: =IF(Interface!$H$14="DEBT",-'Loan Int & Bal - RAS'!J4,IF(Interface!$H$14="DEBT/EQUITY",-'Loan Int & Bal - RAS'!J4,0)) -> 0 | M46: =IF(Interface!$H$14="DEBT",-'Loan Int & Bal - RAS'!K4,IF(Interface!$H$14="DEBT/EQUITY",-'Loan Int & Bal - RAS'!K4,0)) -> 0
B47: Taxation | D47: =-IF((D44)*28%>0, (D44)*28%, 0) ->  | E47: =-IF((E44)*28%>0, (E44)*28%, 0) ->  | F47: =-IF((F44)*28%>0, (F44)*28%, 0) ->  | G47: =-IF((G44)*28%>0, (G44)*28%, 0) -> 
B49: Profit / (Loss) for the year | C49: -1 | D49: =D44+D47+D46 ->  | E49: =E44+E47+E46 ->  | N49: 1
B50: Profit / (Loss) % | D50: =D49/D7 -> 
B52: Breakeven | C52: -1 | D52: =D7-D41 ->  | N52: 0

Sheet BS - RAS
A1: BALANCE SHEET - RAS
B3: Projected Balance Sheet | C3: Year
C4: YEAR 1 | D4: YEAR 2 | E4: YEAR 3 | F4: YEAR 4 | G4: YEAR 5 | H4: YEAR 6 | I4: YEAR 7 | J4: YEAR 8 | K4: YEAR 9 | L4: YEAR 10
B5: Fixed Assets
B6: Net Property, Plant & Equipment | C6: =CAPEX!J34+'IS - RAS'!D42 ->  | D6: =(C6+'IS - RAS'!E42) ->  | E6: =(D6+'IS - RAS'!F42) ->  | F6: =(E6+'IS - RAS'!G42) ->  | G6: =(F6+'IS - RAS'!H42) ->  | H6: =(G6+'IS - RAS'!I42) ->  | I6: =(H6+'IS - RAS'!J42) ->  | J6: =(I6+'IS - RAS'!K42) ->  | K6: =(J6+'IS - RAS'!L42) ->  | L6: =(K6+'IS - RAS'!M42) -> 
B7: Current Assets
B8: Inventory | C8: 0 | D8: 0 | E8: 0 | F8: 0 | G8: 0 | H8: 0 | I8: 0 | J8: 0 | K8: 0 | L8: 0
B9: Debtors | C9: ='Production Assumptions'!C64 -> 0 | D9: ='Production Assumptions'!D64 -> 0 | E9: ='Production Assumptions'!E64 -> 0 | F9: ='Production Assumptions'!F64 -> 0 | G9: ='Production Assumptions'!G64 -> 0 | H9: ='Production Assumptions'!H64 -> 0 | I9: ='Production Assumptions'!I64 -> 0 | J9: ='Production Assumptions'!J64 -> 0 | K9: ='Production Assumptions'!K64 -> 0 | L9: ='Production Assumptions'!L64 -> 0
B10: Cash | C10: =IF(Interface!H14="Equity",'Production Assumptions'!C63+'IS - RAS'!D40+'IS - RAS'!D15+'Working Capital - RAS'!C38,IF(Interface!H14="Debt/Equity",('Production Assumptions'!C63+'IS - RAS'!D40+'IS - RAS'!D15+'Working Capital - RAS'!C38-'Loan Int & Bal - RAS'!B6),'Production Assumptions'!C63+'IS - RAS'!D40+'IS - RAS'!D15+'Working Capital - RAS'!C38-'Loan Int & Bal - RAS'!B6)) ->  | D10: =IF(Interface!$H$14="Equity",'Production Assumptions'!D63+'IS - RAS'!E40+'IS - RAS'!E15+C10, IF(Interface!H14="Debt/Equity",('Production Assumptions'!D63+'IS - RAS'!E40+'IS - RAS'!E15-'Loan Int & Bal - RAS'!C6+C10),'Production Assumptions'!D63+'IS - RAS'!E40+'IS - RAS'!E15+C10-'Loan Int & Bal - RAS'!C6)) ->  | E10: =IF(Interface!$H$14="Equity",'Production Assumptions'!E63+'IS - RAS'!F40+'IS - RAS'!F15+D10, IF(Interface!I14="Debt/Equity",('Production Assumptions'!E63+'IS - RAS'!F40+'IS - RAS'!F15-'Loan Int & Bal - RAS'!D6+D10),'Production Assumptions'!E63+'IS - RAS'!F40+'IS - RAS'!F15+D10-'Loan Int & Bal - RAS'!D6)) ->  | F10: =IF(Interface!$H$14="Equity",'Production Assumptions'!F63+'IS - RAS'!G40+'IS - RAS'!G15+E10, IF(Interface!J14="Debt/Equity",('Production Assumptions'!F63+'IS - RAS'!G40+'IS - RAS'!G15-'Loan Int & Bal - RAS'!E6+E10),'Production Assumptions'!F63+'IS - RAS'!G40+'IS - RAS'!G15+E10-'Loan Int & Bal - RAS'!E6)) ->  | G10: =IF(Interface!$H$14="Equity",'Production Assumptions'!G63+'IS - RAS'!H40+'IS - RAS'!H15+F10, IF(Interface!K14="Debt/Equity",('Production Assumptions'!G63+'IS - RAS'!H40+'IS - RAS'!H15-'Loan Int & Bal - RAS'!F6+F10),'Production Assumptions'!G63+'IS - RAS'!H40+'IS - RAS'!H15+F10-'Loan Int & Bal - RAS'!F6)) ->  | H10: =IF(Interface!$H$14="Equity",'Production Assumptions'!H63+'IS - RAS'!I40+'IS - RAS'!I15+G10, IF(Interface!L14="Debt/Equity",('Production Assumptions'!H63+'IS - RAS'!I40+'IS - RAS'!I15-'Loan Int & Bal - RAS'!G6+G10),'Production Assumptions'!H63+'IS - RAS'!I40+'IS - RAS'!I15+G10-'Loan Int & Bal - RAS'!G6)) ->  | I10: =IF(Interface!$H$14="Equity",'Production Assumptions'!I63+'IS - RAS'!J40+'IS - RAS'!J15+H10, IF(Interface!M14="Debt/Equity",('Production Assumptions'!I63+'IS - RAS'!J40+'IS - RAS'!J15-'Loan Int & Bal - RAS'!H6+H10),'Production Assumptions'!I63+'IS - RAS'!J40+'IS - RAS'!J15+H10-'Loan Int & Bal - RAS'!H6)) ->  | J10: =IF(Interface!$H$14="Equity",'Production Assumptions'!J63+'IS - RAS'!K40+'IS - RAS'!K15+I10, IF(Interface!N14="Debt/Equity",('Production Assumptions'!J63+'IS - RAS'!K40+'IS - RAS'!K15-'Loan Int & Bal - RAS'!I6+I10),'Production Assumptions'!J63+'IS - RAS'!K40+'IS - RAS'!K15+I10-'Loan Int & Bal - RAS'!I6)) ->  | K10: =IF(Interface!$H$14="Equity",'Production Assumptions'!K63+'IS - RAS'!L40+'IS - RAS'!L15+J10, IF(Interface!O14="Debt/Equity",('Production Assumptions'!K63+'IS - RAS'!L40+'IS - RAS'!L15-'Loan Int & Bal - RAS'!J6+J10),'Production Assumptions'!K63+'IS - RAS'!L40+'IS - RAS'!L15+J10-'Loan Int & Bal - RAS'!J6)) ->  | L10: =IF(Interface!$H$14="Equity",'Production Assumptions'!L63+'IS - RAS'!M40+'IS - RAS'!M15+K10, IF(Interface!P14="Debt/Equity",('Production Assumptions'!L63+'IS - RAS'!M40+'IS - RAS'!M15-'Loan Int & Bal - RAS'!K6+K10),'Production Assumptions'!L63+'IS - RAS'!M40+'IS - RAS'!M15+K10-'Loan Int & Bal - RAS'!K6)) -> 
C11: =SUM(C6:C10) ->  | D11: =SUM(D6:D10) -> 
B12: Equity & Liabilities
B13: Retained Earnings | C13: ='IS - RAS'!D49 ->  | D13: ='IS - RAS'!E49+C13 ->  | E13: ='IS - RAS'!F49+D13 ->  | F13: ='IS - RAS'!G49+E13 ->  | G13: ='IS - RAS'!H49+F13 ->  | H13: ='IS - RAS'!I49+G13 ->  | I13: ='IS - RAS'!J49+H13 ->  | J13: ='IS - RAS'!K49+I13 ->  | K13: ='IS - RAS'!L49+J13 ->  | L13: ='IS - RAS'!M49+K13 -> 
B14: Deferred Income | C14: =IF(Interface!$H$14="EQUITY",CAPEX!$J$34+'Working Capital - RAS'!$C$38,IF(Interface!$H$14="DEBT/EQUITY",(CAPEX!$J$34+'Working Capital - RAS'!$C$38)*(100%-Interface!$I$14),0)) -> 0 | D14: =IF(Interface!$H$14="EQUITY",CAPEX!$J$34+'Working Capital - RAS'!$C$38,IF(Interface!$H$14="DEBT/EQUITY",(CAPEX!$J$34+'Working Capital - RAS'!$C$38)*(100%-Interface!$I$14),0)) -> 0 | E14: =IF(Interface!$H$14="EQUITY",CAPEX!$J$34+'Working Capital - RAS'!$C$38,IF(Interface!$H$14="DEBT/EQUITY",(CAPEX!$J$34+'Working Capital - RAS'!$C$38)*(100%-Interface!$I$14),0)) -> 0 | F14: =IF(Interface!$H$14="EQUITY",CAPEX!$J$34+'Working Capital - RAS'!$C$38,IF(Interface!$H$14="DEBT/EQUITY",(CAPEX!$J$34+'Working Capital - RAS'!$C$38)*(100%-Interface!$I$14),0)) -> 0 | G14: =IF(Interface!$H$14="EQUITY",CAPEX!$J$34+'Working Capital - RAS'!$C$38,IF(Interface!$H$14="DEBT/EQUITY",(CAPEX!$J$34+'Working Capital - RAS'!$C$38)*(100%-Interface!$I$14),0)) -> 0 | H14: =IF(Interface!$H$14="EQUITY",CAPEX!$J$34+'Working Capital - RAS'!$C$38,IF(Interface!$H$14="DEBT/EQUITY",(CAPEX!$J$34+'Working Capital - RAS'!$C$38)*(100%-Interface!$I$14),0)) -> 0 | I14: =IF(Interface!$H$14="EQUITY",CAPEX!$J$34+'Working Capital - RAS'!$C$38,IF(Interface!$H$14="DEBT/EQUITY",(CAPEX!$J$34+'Working Capital - RAS'!$C$38)*(100%-Interface!$I$14),0)) -> 0 | J14: =IF(Interface!$H$14="EQUITY",CAPEX!$J$34+'Working Capital - RAS'!$C$38,IF(Interface!$H$14="DEBT/EQUITY",(CAPEX!$J$34+'Working Capital - RAS'!$C$38)*(100%-Interface!$I$14),0)) -> 0 | K14: =IF(Interface!$H$14="EQUITY",CAPEX!$J$34+'Working Capital - RAS'!$C$38,IF(Interface!$H$14="DEBT/EQUITY",(CAPEX!$J$34+'Working Capital - RAS'!$C$38)*(100%-Interface!$I$14),0)) -> 0 | L14: =IF(Interface!$H$14="EQUITY",CAPEX!$J$34+'Working Capital - RAS'!$C$38,IF(Interface!$H$14="DEBT/EQUITY",(CAPEX!$J$34+'Working Capital - RAS'!$C$38)*(100%-Interface!$I$14),0)) -> 0
B15: Long Term Liability | C15: =IF(Interface!$H$14="DEBT",'Loan Int & Bal - RAS'!B5,IF(Interface!$H$14="DEBT/EQUITY",'Loan Int & Bal - RAS'!B5,0)) -> 0 | D15: =IF(Interface!$H$14="DEBT",'Loan Int & Bal - RAS'!C5,IF(Interface!$H$14="DEBT/EQUITY",'Loan Int & Bal - RAS'!C5,0)) -> 0 | E15: =IF(Interface!$H$14="DEBT",'Loan Int & Bal - RAS'!D5,IF(Interface!$H$14="DEBT/EQUITY",'Loan Int & Bal - RAS'!D5,0)) -> 0 | F15: =IF(Interface!$H$14="DEBT",'Loan Int & Bal - RAS'!E5,IF(Interface!$H$14="DEBT/EQUITY",'Loan Int & Bal - RAS'!E5,0)) -> 0 | G15: =IF(Interface!$H$14="DEBT",'Loan Int & Bal - RAS'!F5,IF(Interface!$H$14="DEBT/EQUITY",'Loan Int & Bal - RAS'!F5,0)) -> 0 | H15: =IF(Interface!$H$14="DEBT",'Loan Int & Bal - RAS'!G5,IF(Interface!$H$14="DEBT/EQUITY",'Loan Int & Bal - RAS'!G5,0)) -> 0 | I15: =IF(Interface!$H$14="DEBT",'Loan Int & Bal - RAS'!H5,IF(Interface!$H$14="DEBT/EQUITY",'Loan Int & Bal - RAS'!H5,0)) -> 0 | J15: =IF(Interface!$H$14="DEBT",'Loan Int & Bal - RAS'!I5,IF(Interface!$H$14="DEBT/EQUITY",'Loan Int & Bal - RAS'!I5,0)) -> 0 | K15: =IF(Interface!$H$14="DEBT",'Loan Int & Bal - RAS'!J5,IF(Interface!$H$14="DEBT/EQUITY",'Loan Int & Bal - RAS'!J5,0)) -> 0 | L15: =IF(Interface!$H$14="DEBT",'Loan Int & Bal - RAS'!K5,IF(Interface!$H$14="DEBT/EQUITY",'Loan Int & Bal - RAS'!K5,0)) -> 0
B16: Provision for Taxation | C16: =-'IS - RAS'!D47 ->  | D16: =-'IS - RAS'!E47+C16 ->  | E16: =-'IS - RAS'!F47+D16 ->  | F16: =-'IS - RAS'!G47+E16 ->  | G16: =-'IS - RAS'!H47+F16 ->  | H16: =-'IS - RAS'!I47+G16 ->  | I16: =-'IS - RAS'!J47+H16 ->  | J16: =-'IS - RAS'!K47+I16 ->  | K16: =-'IS - RAS'!L47+J16 ->  | L16: =-'IS - RAS'!M47+K16 -> 
C17: =SUM(C13:C16) -> 
C18: =C11-C17 -> 
C19: =IF(ABS(C18)<0.00001,"OK","ERROR") ->  | D19: =IF(ABS(D18)<0.00001,"OK","ERROR") ->  | F19: =IF(ABS(F18)<0.00001,"OK","ERROR") -> 

Sheet CF - RAS
A1: CASH FLOW STATEMENT - RAS
B3: Projected Cash Flow Statement | D3: Year
D4: Year 1 | E4: Year 2 | F4: Year 3 | G4: Year 4 | H4: Year 5 | I4: Year 6 | J4: Year 7 | K4: Year 8 | L4: Year 9 | M4: Year 10 | N4: NO POSITIVE
B5: Cash flows from operating activities
B6: Profit / (Loss) for the year | D6: ='IS - RAS'!D49 ->  | E6: ='IS - RAS'!E49 ->  | F6: ='IS - RAS'!F49 ->  | G6: ='IS - RAS'!G49 ->  | H6: ='IS - RAS'!H49 ->  | I6: ='IS - RAS'!I49 ->  | J6: ='IS - RAS'!J49 ->  | K6: ='IS - RAS'!K49 ->  | L6: ='IS - RAS'!L49 ->  | M6: ='IS - RAS'!M49 -> 
B7: Taxation | D7: =-'IS - RAS'!D47 ->  | E7: =-'IS - RAS'!E47 ->  | F7: =-'IS - RAS'!F47 ->  | G7: =-'IS - RAS'!G47 ->  | H7: =-'IS - RAS'!H47 ->  | I7: =-'IS - RAS'!I47 ->  | J7: =-'IS - RAS'!J47 ->  | K7: =-'IS - RAS'!K47 ->  | L7: =-'IS - RAS'!L47 ->  | M7: =-'IS - RAS'!M47 -> 
B8: Adjustment for non-cash expenses:
B9: Interest Charged | D9: =IF(Interface!$H$14="DEBT",'Loan Int & Bal - RAS'!B4,IF(Interface!$H$14="DEBT/EQUITY",'Loan Int & Bal - RAS'!B4,0)) -> 0 | E9: =IF(Interface!$H$14="DEBT",'Loan Int & Bal - RAS'!C4,IF(Interface!$H$14="DEBT/EQUITY",'Loan Int & Bal - RAS'!C4,0)) -> 0 | F9: =IF(Interface!$H$14="DEBT",'Loan Int & Bal - RAS'!D4,IF(Interface!$H$14="DEBT/EQUITY",'Loan Int & Bal - RAS'!D4,0)) -> 0 | G9: =IF(Interface!$H$14="DEBT",'Loan Int & Bal - RAS'!E4,IF(Interface!$H$14="DEBT/EQUITY",'Loan Int & Bal - RAS'!E4,0)) -> 0 | H9: =IF(Interface!$H$14="DEBT",'Loan Int & Bal - RAS'!F4,IF(Interface!$H$14="DEBT/EQUITY",'Loan Int & Bal - RAS'!F4,0)) -> 0 | I9: =IF(Interface!$H$14="DEBT",'Loan Int & Bal - RAS'!G4,IF(Interface!$H$14="DEBT/EQUITY",'Loan Int & Bal - RAS'!G4,0)) -> 0 | J9: =IF(Interface!$H$14="DEBT",'Loan Int & Bal - RAS'!H4,IF(Interface!$H$14="DEBT/EQUITY",'Loan Int & Bal - RAS'!H4,0)) -> 0 | K9: =IF(Interface!$H$14="DEBT",'Loan Int & Bal - RAS'!I4,IF(Interface!$H$14="DEBT/EQUITY",'Loan Int & Bal - RAS'!I4,0)) -> 0 | L9: =IF(Interface!$H$14="DEBT",'Loan Int & Bal - RAS'!J4,IF(Interface!$H$14="DEBT/EQUITY",'Loan Int & Bal - RAS'!J4,0)) -> 0 | M9: =IF(Interface!$H$14="DEBT",'Loan Int & Bal - RAS'!K4,IF(Interface!$H$14="DEBT/EQUITY",'Loan Int & Bal - RAS'!K4,0)) -> 0
B10: Depreciation | D10: =-'IS - RAS'!D42 ->  | E10: =-'IS - RAS'!E42 ->  | F10: =-'IS - RAS'!F42 ->  | G10: =-'IS - RAS'!G42 ->  | H10: =-'IS - RAS'!H42 ->  | I10: =-'IS - RAS'!I42 ->  | J10: =-'IS - RAS'!J42 ->  | K10: =-'IS - RAS'!K42 ->  | L10: =-'IS - RAS'!L42 ->  | M10: =-'IS - RAS'!M42 -> 
B11: Changes in operating assets & liabilities
B12: Inventory | D12: 0 | E12: 0 | F12: 0 | G12: 0 | H12: 0 | I12: 0 | J12: 0 | K12: 0 | L12: 0 | M12: 0
B13: Receivables (INCREASE)/DECREASE | D13: =-'BS - RAS'!C9 -> 0 | E13: ='Production Assumptions'!C64-'Production Assumptions'!D64 -> 0 | F13: ='Production Assumptions'!D64-'Production Assumptions'!E64 -> 0 | G13: ='Production Assumptions'!E64-'Production Assumptions'!F64 -> 0 | H13: ='Production Assumptions'!F64-'Production Assumptions'!G64 -> 0 | I13: ='Production Assumptions'!G64-'Production Assumptions'!H64 -> 0 | J13: ='Production Assumptions'!H64-'Production Assumptions'!I64 -> 0 | K13: ='Production Assumptions'!I64-'Production Assumptions'!J64 -> 0 | L13: ='Production Assumptions'!J64-'Production Assumptions'!K64 -> 0 | M13: ='Production Assumptions'!K64-'Production Assumptions'!L64 -> 0
B14: Payables | D14: 0 | E14: 0 | F14: 0 | G14: 0 | H14: 0 | I14: 0 | J14: 0 | K14: 0 | L14: 0 | M14: 0
B15: Cash generated from operations | D15: =SUM(D5:D14) ->  | E15: =SUM(E5:E14) -> 
B16: Interest paid | D16: =IF(Interface!$H$14="DEBT",-'Loan Int & Bal - RAS'!B4,IF(Interface!$H$14="DEBT/EQUITY",-'Loan Int & Bal - RAS'!B4,0)) -> 0 | E16: =IF(Interface!$H$14="DEBT",-'Loan Int & Bal - RAS'!C4,IF(Interface!$H$14="DEBT/EQUITY",-'Loan Int & Bal - RAS'!C4,0)) -> 0 | F16: =IF(Interface!$H$14="DEBT",-'Loan Int & Bal - RAS'!D4,IF(Interface!$H$14="DEBT/EQUITY",-'Loan Int & Bal - RAS'!D4,0)) -> 0 | G16: =IF(Interface!$H$14="DEBT",-'Loan Int & Bal - RAS'!E4,IF(Interface!$H$14="DEBT/EQUITY",-'Loan Int & Bal - RAS'!E4,0)) -> 0 | H16: =IF(Interface!$H$14="DEBT",-'Loan Int & Bal - RAS'!F4,IF(Interface!$H$14="DEBT/EQUITY",-'Loan Int & Bal - RAS'!F4,0)) -> 0 | I16: =IF(Interface!$H$14="DEBT",-'Loan Int & Bal - RAS'!G4,IF(Interface!$H$14="DEBT/EQUITY",-'Loan Int & Bal - RAS'!G4,0)) -> 0 | J16: =IF(Interface!$H$14="DEBT",-'Loan Int & Bal - RAS'!H4,IF(Interface!$H$14="DEBT/EQUITY",-'Loan Int & Bal - RAS'!H4,0)) -> 0 | K16: =IF(Interface!$H$14="DEBT",-'Loan Int & Bal - RAS'!I4,IF(Interface!$H$14="DEBT/EQUITY",-'Loan Int & Bal - RAS'!I4,0)) -> 0 | L16: =IF(Interface!$H$14="DEBT",-'Loan Int & Bal - RAS'!J4,IF(Interface!$H$14="DEBT/EQUITY",-'Loan Int & Bal - RAS'!J4,0)) -> 0 | M16: =IF(Interface!$H$14="DEBT",-'Loan Int & Bal - RAS'!K4,IF(Interface!$H$14="DEBT/EQUITY",-'Loan Int & Bal - RAS'!K4,0)) -> 0
B17: Taxation paid | D17: 0 | E17: 0 | F17: 0 | G17: 0 | H17: 0 | I17: 0 | J17: 0 | K17: 0 | L17: 0 | M17: 0
B18: Net cash from operating activities | D18: =SUM(D15:D17) ->  | E18: =SUM(E15:E17) -> 
B20: Cash flows from investing activities
B21: Purchases of property, plant & equipment | D21: =-CAPEX!J34 ->  | E21: 0 | F21: 0 | G21: 0 | H21: 0 | I21: 0 | J21: 0 | K21: 0 | L21: 0 | M21: 0
B22: Net cash used in investing activities | D22: =D21 ->  | E22: =E21 -> 0 | F22: 0 | G22: 0 | H22: 0 | I22: 0 | J22: 0 | K22: 0 | L22: 0 | M22: 0
B24: Cash flows from financing activities
B25: Proceeds from shareholders' contributions | D25: 0 | E25: 0 | F25: 0 | G25: 0 | H25: 0 | I25: 0 | J25: 0 | K25: 0 | L25: 0 | M25: 0
B26: Proceeds from equity | D26: =IF(Interface!$H$14="EQUITY",CAPEX!$J$34+'Working Capital - RAS'!$C$38,IF(Interface!$H$14="Debt/Equity",(CAPEX!$J$34+'Working Capital - RAS'!$C$38)*(100%-Interface!$I$14),0)) -> 0 | E26: 0 | F26: 0 | G26: 0 | H26: 0 | I26: 0 | J26: 0 | K26: 0 | L26: 0 | M26: 0
B27: Proceeds from Loans | D27: =IF(Interface!H14="DEBT",(+CAPEX!J34+'Working Capital - RAS'!C38),IF(Interface!H14="DEBT/EQUITY",(+CAPEX!J34+'Working Capital - RAS'!C38)*Interface!$I$14,0)) -> 0 | E27: 0 | F27: 0 | G27: 0 | H27: 0 | I27: 0 | J27: 0 | K27: 0 | L27: 0 | M27: 0
B28: Repayment of Loans | D28: =IF(Interface!$H$14="DEBT",-'Loan Int & Bal - RAS'!B6+'Loan Int & Bal - RAS'!B4,IF(Interface!$H$14="DEBT/EQUITY",-'Loan Int & Bal - RAS'!B6+'Loan Int & Bal - RAS'!B4,0)) -> 0 | E28: =IF(Interface!$H$14="DEBT",-'Loan Int & Bal - RAS'!C6+'Loan Int & Bal - RAS'!C4,IF(Interface!$H$14="DEBT/EQUITY",-'Loan Int & Bal - RAS'!C6+'Loan Int & Bal - RAS'!C4,0)) -> 0 | F28: =IF(Interface!$H$14="DEBT",-'Loan Int & Bal - RAS'!D6+'Loan Int & Bal - RAS'!D4,IF(Interface!$H$14="DEBT/EQUITY",-'Loan Int & Bal - RAS'!D6+'Loan Int & Bal - RAS'!D4,0)) -> 0 | G28: =IF(Interface!$H$14="DEBT",-'Loan Int & Bal - RAS'!E6+'Loan Int & Bal - RAS'!E4,IF(Interface!$H$14="DEBT/EQUITY",-'Loan Int & Bal - RAS'!E6+'Loan Int & Bal - RAS'!E4,0)) -> 0 | H28: =IF(Interface!$H$14="DEBT",-'Loan Int & Bal - RAS'!F6+'Loan Int & Bal - RAS'!F4,IF(Interface!$H$14="DEBT/EQUITY",-'Loan Int & Bal - RAS'!F6+'Loan Int & Bal - RAS'!F4,0)) -> 0 | I28: =IF(Interface!$H$14="DEBT",-'Loan Int & Bal - RAS'!G6+'Loan Int & Bal - RAS'!G4,IF(Interface!$H$14="DEBT/EQUITY",-'Loan Int & Bal - RAS'!G6+'Loan Int & Bal - RAS'!G4,0)) -> 0 | J28: =IF(Interface!$H$14="DEBT",-'Loan Int & Bal - RAS'!H6+'Loan Int & Bal - RAS'!H4,IF(Interface!$H$14="DEBT/EQUITY",-'Loan Int & Bal - RAS'!H6+'Loan Int & Bal - RAS'!H4,0)) -> 0 | K28: =IF(Interface!$H$14="DEBT",-'Loan Int & Bal - RAS'!I6+'Loan Int & Bal - RAS'!I4,IF(Interface!$H$14="DEBT/EQUITY",-'Loan Int & Bal - RAS'!I6+'Loan Int & Bal - RAS'!I4,0)) -> 0 | L28: =IF(Interface!$H$14="DEBT",-'Loan Int & Bal - RAS'!J6+'Loan Int & Bal - RAS'!J4,IF(Interface!$H$14="DEBT/EQUITY",-'Loan Int & Bal - RAS'!J6+'Loan Int & Bal - RAS'!J4,0)) -> 0 | M28: =IF(Interface!$H$14="DEBT",-'Loan Int & Bal - RAS'!K6+'Loan Int & Bal - RAS'!K4,IF(Interface!$H$14="DEBT/EQUITY",-'Loan Int & Bal - RAS'!K6+'Loan Int & Bal - RAS'!K4,0)) -> 0
B29: Net cash from financing activities | D29: =SUM(D25:D28) -> 0 | E29: =SUM(E25:E28) -> 0 | F29: 0 | G29: 0 | H29: 0 | I29: 0 | J29: 0 | K29: 0 | L29: 0 | M29: 0
B31: Increase / (Decrease) in cash equivalents | D31: =D29+D22+D18 ->  | E31: =E29+E22+E18 -> 
B33: Cash & cash equivalents at beginning of year | D33: 0 | E33: =D35 ->  | F33: =E35 -> 
B35: Cash & cash equivalents at end of year | C35: -1 | D35: =SUM(D31:D34) ->  | N35: 1
B36: DIFF | D36: =D35-'BS - RAS'!C10 ->  | E36: =E35-'BS - RAS'!D10 ->  | F36: =F35-'BS - RAS'!E10 ->  | G36: =G35-'BS - RAS'!F10 ->  | H36: =H35-'BS - RAS'!G10 ->  | I36: =I35-'BS - RAS'!H10 ->  | J36: =J35-'BS - RAS'!I10 ->  | K36: =K35-'BS - RAS'!J10 ->  | L36: =L35-'BS - RAS'!K10 ->  | M36: =M35-'BS - RAS'!L10 -> 
D37: =IF(ABS(D36)<0.00001,"OK","ERROR") ->  | E37: =IF(ABS(E36)<0.00001,"OK","ERROR") -> 

Sheet IRR - RAS
A1: INTERNAL RATE OF RETURN - RAS
C4: IRR CALCULATION
C5: Period | D5: Nett cash Flow for period
C6: Initial Investment | D6: =-('BS - RAS'!C14+'Loan - RAS'!B10) -> 0
C7: 1 | D7: ='CF - RAS'!D35 -> 
C8: 2 | D8: ='CF - RAS'!E35 -> 
C9: 3 | D9: ='CF - RAS'!F35 -> 
C10: 4 | D10: ='CF - RAS'!G35 -> 
C11: 5 | D11: ='CF - RAS'!H35 -> 
C12: 6 | D12: ='CF - RAS'!I35 -> 
C13: 7 | D13: ='CF - RAS'!J35 -> 
C14: 8 | D14: ='CF - RAS'!K35 -> 
C15: 9 | D15: ='CF - RAS'!L35 -> 
C16: 10 | D16: ='CF - RAS'!M35 -> 
C18: TOTAL NETT INFLOW | D18: =SUM(D6:D16) -> 
C20: IRR | D20: =IF(D18>0, IRR(D6:D16), 0) -> 

Sheet NPV & PI - RAS
A1: NET PRESENT VALUE & PROFITABILITY INDEX - RAS
D3: 2016 REPO Rate | E3: 0.07
C4: NPV & PI Index
C5: Period | D5: Nett cash Flow for period | E5: Discounted Cash Flow
C6: Initial Investment | D6: ='IRR - RAS'!D6 -> 0
C7: 1 | D7: ='IRR - RAS'!D7 ->  | E7: =D7/((1+$E$3)^C7) -> 
C8: 2 | D8: ='IRR - RAS'!D8 ->  | E8: =D8/((1+$E$3)^C8) -> 
C9: 3 | D9: ='IRR - RAS'!D9 -> 
C10: 4 | D10: ='IRR - RAS'!D10 -> 
C11: 5 | D11: ='IRR - RAS'!D11 -> 
C12: 6 | D12: ='IRR - RAS'!D12 -> 
C13: 7 | D13: ='IRR - RAS'!D13 -> 
C14: 8 | D14: ='IRR - RAS'!D14 -> 
C15: 9 | D15: ='IRR - RAS'!D15 -> 
C16: 10 | D16: ='IRR - RAS'!D16 -> 
C18: NETT PRESENT VALUE | D18: =SUM(E7:E16) -> 
C20: Profitability Index | D20: =NPV(E3,D7,D8,D9,D10,D11,D12,D13,D14,D15,D16)/-D6 -> 

Sheet Loan - RAS (hidden)
A1: LOAN AMORTIZATION SCHEDULE - RAS
A3: Year 1 loan
A4: Balance: | B4: =B10 -> 0
A5: Interest rate: | B5: =B11/12 -> 0
A6: Periods: | B6: 12
A7: Monthly Payment: | B7: =PMT(B5,B6,-B4) -> 0
A9: Loan Amortization schedule
A10: Loan Amount | B10: =IF(Interface!H14="DEBT",CAPEX!J34+'Working Capital - RAS'!C38, IF(Interface!H14="DEBT/EQUITY",(CAPEX!J34+'Working Capital - RAS'!C38)*Interface!I14,0)) -> 0
A11: Interest rate | B11: =Interface!I25 -> 0
A12: Months | B12: =B13*12 -> 
A13: YEARS | B13: =Interface!J25 -> <Please select a payback period>
A14: Payments | B14: =ROUND(PMT($B$11/12,$B$12,-$B$10, 0),0) ->  | C14: =B14*12 -> 
A16: Payment Number | B16: Beginning Balance | C16: Payment | D16: Principal | E16: interest | F16: Cumulative Principal | G16: Cumulative Interest | H16: Ending Balance
A17: 1 | B17: =$B$10 -> 0 | C17: =$B$14 ->  | D17: =$C17-$E17 ->  | E17: =IF($B17*$B$5>0,$B17*$B$5,0) -> 0 | H17: =$B17-$D17 -> 
A18: 2 | B18: =H17 ->  | C18: =$B$14 ->  | D18: =$C18-$E18 ->  | H18: =$B18-$D18 -> 
A19: 3 | B19: =H18 -> 
A20: 4
A21: 5 | E21: =IF($B21*$B$5>0,$B21*$B$5,0) -> 
A22: 6 | E22: =IF($B22*$B$5>0,$B22*$B$5,0) -> 
A23: 7
A24: 8
A25: 9
A26: 10
A27: 11
A28: 12
A29: 13
A30: 14
A31: 15
A32: 16
A33: 17
A34: 18
A35: 19
A36: 20
A37: 21
A38: 22
A39: 23
A40: 24
A41: 25
A42: 26
A43: 27
A44: 28
A45: 29
A46: 30
A47: 31
A48: 32
A49: 33
A50: 34
A51: 35
A52: 36
A53: 37
A54: 38
A55: 39
A56: 40
A57: 41
A58: 42
A59: 43
A60: 44
A61: 45
A62: 46
A63: 47
A64: 48
A65: 49
A66: 50
A67: 51
A68: 52
A69: 53
A70: 54
A71: 55
A72: 56
A73: 57
A74: 58
A75: 59
A76: 60
A77: 61
A78: 62
A79: 63
A80: 64
A81: 65
A82: 66 | C82: =$B$14 ->  | D82: =$C82-$E82 ->  | H82: =$B82-$D82 -> 
A83: 67 | B83: =H82 -> 
A84: 68
A85: 69
A86: 70 | E86: =IF($B86*$B$5>0,$B86*$B$5,0) -> 
A87: 71
A88: 72
A89: 73
A90: 74
A91: 75
A92: 76
A93: 77
A94: 78
A95: 79
A96: 80
A97: 81
A98: 82
A99: 83
A100: 84
A101: 85
A102: 86
A103: 87
A104: 88
A105: 89
A106: 90
A107: 91
A108: 92
A109: 93
A110: 94
A111: 95
A112: 96
A113: 97
A114: 98
A115: 99
A116: 100
A117: 101
A118: 102
A119: 103
A120: 104
A121: 105
A122: 106
A123: 107
A124: 108
A125: 109
A126: 110
A127: 111
A128: 112
A129: 113
A130: 114
A131: 115
A132: 116
A133: 117
A134: 118
A135: 119
A136: 120
A137: 121 | B137: =H136 -> 
A138: 122
A139: 123
A140: 124
A141: 125
A142: 126
A143: 127
A144: 128
A145: 129
A146: 130 | C146: =$B$14 ->  | D146: =$C146-$E146 ->  | H146: =$B146-$D146 -> 
A147: 131
A148: 132
A149: 133
A150: 134 | E150: =IF($B150*$B$5>0,$B150*$B$5,0) -> 
A151: 135
A152: 136
A153: 137
A154: 138
A155: 139
A156: 140
A157: 141
A158: 142
A159: 143
A160: 144
A161: 145
A162: 146
A163: 147
A164: 148
A165: 149
A166: 150
A167: 151
A168: 152
A169: 153
A170: 154
A171: 155
A172: 156
A173: 157
A174: 158
A175: 159
A176: 160
A177: 161
A178: 162
A179: 163
A180: 164
A181: 165
A182: 166
A183: 167
A184: 168
A185: 169
A186: 170
A187: 171
A188: 172
A189: 173
A190: 174
A191: 175
A192: 176
A193: 177
A194: 178
A195: 179
A196: 180
A197: 181 | H197: =IF($B197-$D197>0,$B197-$D197,0) -> 
A198: 182 | B198: =IF(H197>0,H197,0) ->  | H198: =IF($B198-$D198>0,$B198-$D198,0) -> 
A199: 183
A200: 184
A201: 185 | B201: =H200 -> 
A202: 186
A203: 187
... 53 more rows

Sheet Loan Int & Bal - RAS (hidden)
A1: LOAN INTEREST & BALANCE SHEET - RAS
B3: Year 1 | C3: Year 2 | D3: Year 3 | E3: Year 4 | F3: Year 5 | G3: Year 6 | H3: Year 7 | I3: Year 8 | J3: Year 9 | K3: Year 10 | L3: Year 11 | M3: Year 12 | N3: Year 13 | O3: Year 14 | P3: Year 15 | Q3: Year 16 | R3: Year 17 | S3: Year 18 | T3: Year 19 | U3: Year 20
A4: Annual Interest | B4: =SUM('Loan - RAS'!E17:E28) ->  | C4: =SUM('Loan - RAS'!E29:E40) ->  | D4: =SUM('Loan - RAS'!E41:E52) ->  | E4: =SUM('Loan - RAS'!E53:E64) ->  | F4: =SUM('Loan - RAS'!E65:E76) ->  | G4: =SUM('Loan - RAS'!E77:E88) ->  | H4: =SUM('Loan - RAS'!E89:E100) ->  | I4: =SUM('Loan - RAS'!E101:E112) ->  | J4: =SUM('Loan - RAS'!E113:E124) ->  | K4: =SUM('Loan - RAS'!E125:E136) ->  | L4: =SUM('Loan - RAS'!E137:E148) ->  | M4: =SUM('Loan - RAS'!E149:E160) ->  | N4: =SUM('Loan - RAS'!E161:E172) ->  | O4: =SUM('Loan - RAS'!E173:E184) ->  | P4: =SUM('Loan - RAS'!E185:E196) ->  | Q4: =SUM('Loan - RAS'!E197:E208) ->  | R4: =SUM('Loan - RAS'!E209:E220) ->  | S4: =SUM('Loan - RAS'!E221:E232) ->  | T4: =SUM('Loan - RAS'!E233:E244) ->  | U4: =SUM('Loan - RAS'!E245:E256) -> 
A5: Annual Balance | B5: ='Loan - RAS'!H28 ->  | C5: ='Loan - RAS'!H40 ->  | D5: ='Loan - RAS'!H52 ->  | E5: ='Loan - RAS'!H64 ->  | F5: ='Loan - RAS'!H76 ->  | G5: ='Loan - RAS'!H88 ->  | H5: ='Loan - RAS'!H100 ->  | I5: ='Loan - RAS'!H112 ->  | J5: ='Loan - RAS'!H124 ->  | K5: ='Loan - RAS'!H136 ->  | L5: ='Loan - RAS'!H148 ->  | M5: ='Loan - RAS'!H160 ->  | N5: ='Loan - RAS'!H172 ->  | O5: ='Loan - RAS'!H184 ->  | P5: ='Loan - RAS'!H196 ->  | Q5: ='Loan - RAS'!H208 ->  | R5: ='Loan - RAS'!H220 ->  | S5: ='Loan - RAS'!H232 ->  | T5: ='Loan - RAS'!H244 ->  | U5: ='Loan - RAS'!H256 -> 
A6: Repayments | B6: ='Loan - RAS'!$B$14*12 ->  | C6: ='Loan - RAS'!$B$14*12 ->  | D6: ='Loan - RAS'!$B$14*12 ->  | E6: ='Loan - RAS'!$B$14*12 ->  | F6: ='Loan - RAS'!$B$14*12 ->  | G6: ='Loan - RAS'!$B$14*12 ->  | H6: ='Loan - RAS'!$B$14*12 ->  | I6: ='Loan - RAS'!$B$14*12 ->  | J6: ='Loan - RAS'!$B$14*12 ->  | K6: ='Loan - RAS'!$B$14*12 ->  | L6: ='Loan - RAS'!$B$14*12 ->  | M6: ='Loan - RAS'!$B$14*12 ->  | N6: ='Loan - RAS'!$B$14*12 ->  | O6: ='Loan - RAS'!$B$14*12 ->  | P6: ='Loan - RAS'!$B$14*12 ->  | Q6: ='Loan - RAS'!$B$14*12 ->  | R6: ='Loan - RAS'!$B$14*12 ->  | S6: ='Loan - RAS'!$B$14*12 ->  | T6: ='Loan - RAS'!$B$14*12 ->  | U6: ='Loan - RAS'!$B$14*12 -> 

Sheet DEP - RAS
A1: DEPRECIATION CALCULATIONS - RAS
B3: Item | C3: Useful Lifetime in Years | D3: Rate | E3: Price | F3: Year
F4: 1 | G4: =F4+1 -> 2 | H4: =G4+1 -> 3 | I4: 4 | J4: 5 | K4: 6 | L4: 7 | M4: 8 | N4: 9 | O4: 10
B5: Infrastructure
B6: =CAPEX!B6 -> StoreRooms (m²) | C6: 50 | D6: =100%/C6 -> 0.02 | E6: =CAPEX!J6 -> 117000 | F6: =E6*D6 -> 2340 | G6: =IF(G$4<=$C6,F6,0) -> 2340 | H6: =IF(H$4<=$C6,G6,0) -> 2340 | I6: 2340 | J6: 2340 | K6: 2340 | L6: 2340 | M6: 2340 | N6: 2340 | O6: 2340
B7: =CAPEX!B7 -> Offices (m²) | C7: 50 | D7: =100%/C7 -> 0.02 | E7: =CAPEX!J7 ->  | F7: =E7*D7 ->  | G7: =IF(G$4<=$C7,F7,0) -> 
B8: =CAPEX!B8 -> Tunnels (m²) | C8: 10 | D8: 0.1 | E8: =CAPEX!J8 -> 0 | F8: 0 | G8: 0 | H8: 0 | I8: 0 | J8: 0 | K8: 0 | L8: 0 | M8: 0 | N8: 0 | O8: 0
B9: =CAPEX!B9 -> Feed store (m²) | C9: 50 | D9: 0.02 | E9: =CAPEX!J9 -> 731250 | F9: 14625 | G9: 14625 | H9: =IF(H$4<=$C9,G9,0) -> 14625 | I9: 14625 | J9: 14625 | K9: 14625 | L9: 14625 | M9: 14625 | N9: 14625 | O9: 14625
B10: =CAPEX!B10 -> Cold storage (m²) | C10: 10 | D10: 0.1 | E10: =CAPEX!J10 -> 1818750 | F10: 181875 | G10: 181875 | H10: 181875 | I10: 181875 | J10: 181875 | K10: 181875 | L10: 181875 | M10: 181875 | N10: 181875 | O10: 181875
B11: =CAPEX!B11 -> Pump House | C11: 50 | D11: =100%/C11 -> 0.02 | E11: =CAPEX!J11 ->  | F11: =E11*D11 ->  | G11: =IF(G$4<=$C11,F11,0) ->  | H11: =IF(H$4<=$C11,G11,0) ->  | I11: =IF(I$4<=$C11,H11,0) ->  | J11: =IF(J$4<=$C11,I11,0) ->  | K11: =IF(K$4<=$C11,J11,0) ->  | L11: =IF(L$4<=$C11,K11,0) ->  | M11: =IF(M$4<=$C11,L11,0) ->  | N11: =IF(N$4<=$C11,M11,0) ->  | O11: =IF(O$4<=$C11,N11,0) -> 
B12: Equipment
B13: =CAPEX!B16 -> Grow-out containment number (m3) | C13: 10 | D13: =100%/C13 -> 0.1 | E13: =CAPEX!J16 ->  | F13: =E13*D13 ->  | G13: =IF(G$4<=$C13,F13,0) ->  | H13: =IF(H$4<=$C13,G13,0) -> 
B14: =CAPEX!B17 -> Water quality testing equipment | C14: 7 | D14: =100%/C14 -> 0.1428571429 | E14: =CAPEX!J17 -> 50000 | F14: =E14*D14 -> 7142.857143 | G14: =IF(G$4<=$C14,F14,0) -> 7142.857143 | H14: 7142.857143 | I14: 7142.857143 | J14: 7142.857143 | K14: 7142.857143 | L14: 7142.857143 | M14: 0 | N14: 0 | O14: 0
B15: =CAPEX!B18 -> Electrial inst. type (D 5KVA, F 50KVA) | C15: 1 | D15: 1 | E15: =CAPEX!J18 ->  | F15: =E15*D15 ->  | G15: 0 | H15: 0 | I15: 0 | J15: 0 | K15: 0 | L15: 0 | M15: 0 | N15: 0 | O15: 0
B16: =CAPEX!B19 -> Water Pumps | C16: 10 | D16: 0.1 | E16: =CAPEX!J19 ->  | F16: =E16*D16 -> 
B17: =CAPEX!B20 -> Piping (based on # grow out containments) | C17: 10 | D17: 0.1 | E17: =CAPEX!J20 ->  | F17: =E17*D17 -> 
B18: =CAPEX!B21 -> Biofilter Tank (m³) | C18: 10 | D18: 0.1 | E18: =CAPEX!J21 -> 18360 | F18: 1836 | G18: 1836 | H18: 1836 | I18: 1836 | J18: 1836 | K18: 1836 | L18: 1836 | M18: 1836 | N18: 1836 | O18: 1836
B19: =CAPEX!B22 -> Biofilter Medium (m²) | C19: 2 | D19: 0.5 | E19: =CAPEX!J22 -> 0 | F19: 0 | G19: 0 | H19: 0 | I19: 0 | J19: 0 | K19: 0 | L19: 0 | M19: 0 | N19: 0 | O19: 0
B20: =CAPEX!B23 -> Lamella/Swil Tanks (m³) | C20: 10 | D20: 0.1 | E20: =CAPEX!J23 ->  | F20: =E20*D20 ->  | G20: =IF(G$4<=$C20,F20,0) ->  | H20: =IF(H$4<=$C20,G20,0) ->  | I20: =IF(I$4<=$C20,H20,0) ->  | J20: =IF(J$4<=$C20,I20,0) ->  | K20: =IF(K$4<=$C20,J20,0) ->  | L20: =IF(L$4<=$C20,K20,0) ->  | M20: =IF(M$4<=$C20,L20,0) ->  | N20: =IF(N$4<=$C20,M20,0) ->  | O20: =IF(O$4<=$C20,N20,0) -> 
B21: =CAPEX!B24 -> Heating equipment | C21: 6 | D21: 0.1666666667 | E21: =CAPEX!J24 ->  | L21: 0 | M21: 0 | N21: 0 | O21: 0
B22: =CAPEX!B25 -> Ryobi - Generator 4-Stroke - 7.5Kva | C22: 15 | D22: 0.06666666667 | E22: =CAPEX!J25 ->  | F22: =E22*D22 -> 
B23: Moveable Assets
B24: =CAPEX!B27 -> Buckets/drums | C24: 7 | D24: =100%/C24 -> 0.1428571429 | E24: =CAPEX!J27 ->  | G24: =IF(G$4<=$C24,F24,0) ->  | H24: =IF(H$4<=$C24,G24,0) ->  | M24: 0 | N24: 0 | O24: 0
B25: =CAPEX!B28 -> Water storage tank | C25: 6 | D25: =100%/C25 -> 0.1666666667 | E25: =CAPEX!J28 ->  | G25: =IF(G$4<=$C25,F25,0) ->  | L25: 0 | M25: 0 | N25: 0 | O25: 0
B26: =CAPEX!B29 -> Freezer | C26: 6 | D26: 0.1666666667 | E26: =CAPEX!J29 -> 0 | F26: 0 | G26: 0 | H26: 0 | I26: 0 | J26: 0 | K26: 0 | L26: 0 | M26: 0 | N26: 0 | O26: 0
B27: =CAPEX!B30 -> Office equipment | C27: 4 | D27: 0.25 | E27: =CAPEX!J30 ->  | J27: 0 | K27: 0 | L27: 0 | M27: 0 | N27: 0 | O27: 0
B28: =CAPEX!B31 -> Short/long handle Hand net | C28: 4 | D28: 0.25 | E28: =CAPEX!J31 ->  | J28: 0 | K28: 0 | L28: 0 | M28: 0 | N28: 0 | O28: 0
B29: =CAPEX!B32 -> Aeration (kW) | C29: 15 | D29: 0.06666666667 | E29: =CAPEX!J32 -> 20000 | F29: 1333.333333 | G29: 1333.333333 | H29: 1333.333333 | I29: 1333.333333 | J29: 1333.333333 | K29: 1333.333333 | L29: 1333.333333 | M29: 1333.333333 | N29: 1333.333333 | O29: 1333.333333
B30: =CAPEX!B33 -> Vehicle | C30: 4 | D30: 0.25 | E30: =CAPEX!J33 -> 80000 | F30: =E30*D30 -> 20000 | G30: =IF(G$4<=$C30,F30,0) -> 20000 | H30: =IF(H$4<=$C30,G30,0) -> 20000 | I30: 20000 | J30: 0 | K30: 0 | L30: 0 | M30: 0 | N30: 0 | O30: 0
B31: Totals | E31: =SUM(E6:E30) ->  | F31: =SUM(F6:F30) ->  | G31: =SUM(G6:G30) ->  | K31: =SUM(K6:K30) -> 

Sheet OPEX - Aqua
A1: OPERATIONAL EXPENDITURE - AQUAPONICS
P2: 1 | AB2: 1 | AC2: 2 | AD2: 3 | AE2: 4 | AF2: 5 | AG2: 6 | AH2: 7 | AI2: 8 | AJ2: 9
C3: YEAR 1 | D3: =C3 -> YEAR 1 | P3: YEAR 2 | Q3: Year 2 | AC3: YEAR 3 | AD3: YEAR 4 | AE3: YEAR 5 | AF3: YEAR 6 | AG3: YEAR 7 | AH3: YEAR 8 | AI3: YEAR 9 | AJ3: YEAR 10
D4: Month 1 | E4: Month 2 | F4: Month 3 | G4: Month 4 | H4: Month 5 | I4: Month 6 | J4: Month 7 | K4: Month 8 | L4: Month 9 | M4: Month 10 | N4: Month 11 | O4: Month 12 | Q4: Month 1 | R4: Month 2 | S4: Month 3 | T4: Month 4 | U4: Month 5 | V4: Month 6 | W4: Month 7 | X4: Month 8 | Y4: Month 9 | Z4: Month 10 | AA4: Month 11 | AB4: Month 12
B5: Income from Sales:
B6: Tilpia (Live, Fresh, frozen) | C6: =SUM(D6:O6) -> 0 | D6: =IF(Interface!$E$17=Validation!D39,(Interface!$I$7*'Production Cycle'!B7),0) -> 0 | E6: =IF(Interface!$E$17=Validation!D39,D6,IF(Interface!$E$17=Validation!D40,Interface!$I$7*'Production Cycle'!$C$7,0)) -> 0 | F6: =IF(Interface!$E$17=Validation!D39,D6,IF(Interface!$E$17=Validation!D40,E6,IF(Interface!$E$17=Validation!D41,Interface!$I$7*'Production Cycle'!D7,0))) -> 0 | G6: =IF(Interface!$E$17=Validation!D39,D6,IF(Interface!$E$17=Validation!D40,E6,IF(Interface!$E$17=Validation!D41,F6,IF(Interface!$E$17=Validation!D42,Interface!$I$7*'Production Cycle'!E7,0)))) -> 0 | H6: =IF(Interface!$E$17=Validation!D39,D6,IF(Interface!$E$17=Validation!D40,E6,IF(Interface!$E$17=Validation!D41,F6,IF(Interface!$E$17=Validation!D42,G6,IF(Interface!$E$17=Validation!D43,Interface!$I$7*'Production Cycle'!F7,0))))) -> 0 | I6: =IF(Interface!$E$17=Validation!D39,D6,IF(Interface!$E$17=Validation!D40,E6,IF(Interface!$E$17=Validation!D41,F6,IF(Interface!$E$17=Validation!D42,G6,IF(Interface!$E$17=Validation!D43,H6,IF(Interface!$E$17=Validation!D44,Interface!$I$7*'Production Cycle'!G7,0)))))) -> 0 | J6: =IF(Interface!$E$17=Validation!D39,D6,IF(Interface!$E$17=Validation!D40,E6,IF(Interface!$E$17=Validation!D41,F6,IF(Interface!$E$17=Validation!D42,G6,IF(Interface!$E$17=Validation!D43,H6,IF(Interface!$E$17=Validation!D44,I6,IF(Interface!$E$17=Validation!D45,Interface!$I$7*'Production Cycle'!H7,0))))))) -> 0 | K6: =IF(Interface!$E$17=Validation!D39,D6,IF(Interface!$E$17=Validation!D40,E6,IF(Interface!$E$17=Validation!D41,F6,IF(Interface!$E$17=Validation!D42,G6,IF(Interface!$E$17=Validation!D43,H6,IF(Interface!$E$17=Validation!D44,I6,IF(Interface!$E$17=Validation!D45,J6,IF(Interface!$E$17=Validation!D46,Interface!$I$7*'Production Cycle'!I7,0)))))))) -> 0 | L6: =IF(Interface!$E$17=Validation!D39,D6,IF(Interface!$E$17=Validation!D40,E6,IF(Interface!$E$17=Validation!D41,F6,IF(Interface!$E$17=Validation!D42,G6,IF(Interface!$E$17=Validation!D43,H6,IF(Interface!$E$17=Validation!D44,I6,IF(Interface!$E$17=Validation!D45,J6,IF(Interface!$E$17=Validation!D46,K6,IF(Interface!$E$17=Validation!D47,(('Production Cycle'!J7*'Production Cycle'!J6)/1000)*Interface!$I$7,0))))))))) -> 0 | M6: =L6 -> 0 | N6: =L6 -> 0 | O6: =L6 -> 0 | P6: =SUM(Q6:AB6) -> 0 | Q6: =O6*'Production Assumptions'!C6 -> 0 | R6: =Q6 -> 0 | S6: =R6 -> 0 | T6: =S6 -> 0 | U6: =T6 -> 0 | V6: 0 | W6: 0 | X6: 0 | Y6: 0 | Z6: 0 | AA6: 0 | AB6: 0 | AC6: =($AB$6*'Production Assumptions'!$C$6)*12 -> 0 | AD6: =($AB$6*12)*('Production Assumptions'!$C$6)^AC2 -> 0 | AE6: =($AB$6*12)*('Production Assumptions'!$C$6)^AD2 -> 0 | AF6: =($AB$6*12)*('Production Assumptions'!$C$6)^AE2 -> 0 | AG6: =($AB$6*12)*('Production Assumptions'!$C$6)^AF2 -> 0 | AH6: =($AB$6*12)*('Production Assumptions'!$C$6)^AG2 -> 0 | AI6: =($AB$6*12)*('Production Assumptions'!$C$6)^AH2 -> 0 | AJ6: =($AB$6*12)*('Production Assumptions'!$C$6)^AI2 -> 0
B7: Vegetables | C7: =SUM(D7:O7) ->  | D7: =IF('Production Cycle'!B$164*'Production Assumptions'!$G$28=0,C7,'Production Cycle'!B$164*'Production Assumptions'!$G$28) ->  | E7: =IF('Production Cycle'!C$164*'Production Assumptions'!$G$28=0,D7,'Production Cycle'!C$164*'Production Assumptions'!$G$28) ->  | F7: =IF('Production Cycle'!D$164*'Production Assumptions'!$G$28=0,E7,'Production Cycle'!D$164*'Production Assumptions'!$G$28) ->  | G7: =IF('Production Cycle'!E$164*'Production Assumptions'!$G$28=0,F7,'Production Cycle'!E$164*'Production Assumptions'!$G$28) ->  | H7: =IF('Production Cycle'!F$164*'Production Assumptions'!$G$28=0,G7,'Production Cycle'!F$164*'Production Assumptions'!$G$28) ->  | I7: =IF('Production Cycle'!G$164*'Production Assumptions'!$G$28=0,H7,'Production Cycle'!G$164*'Production Assumptions'!$G$28) ->  | J7: =IF('Production Cycle'!H$164*'Production Assumptions'!$G$28=0,I7,'Production Cycle'!H$164*'Production Assumptions'!$G$28) ->  | K7: =IF('Production Cycle'!I$164*'Production Assumptions'!$G$28=0,J7,'Production Cycle'!I$164*'Production Assumptions'!$G$28) ->  | L7: =IF('Production Cycle'!J$164*'Production Assumptions'!$G$28=0,K7,'Production Cycle'!J$164*'Production Assumptions'!$G$28) ->  | M7: =IF('Production Cycle'!K$164*'Production Assumptions'!$G$28=0,L7,'Production Cycle'!K$164*'Production Assumptions'!$G$28) ->  | N7: =IF('Production Cycle'!L$164*'Production Assumptions'!$G$28=0,M7,'Production Cycle'!L$164*'Production Assumptions'!$G$28) ->  | O7: =IF('Production Cycle'!M$164*'Production Assumptions'!$G$28=0,N7,'Production Cycle'!M$164*'Production Assumptions'!$G$28) ->  | P7: =SUM(Q7:AB7) ->  | Q7: =O7*'Production Assumptions'!$C$6 ->  | R7: =Q7 ->  | S7: =R7 ->  | AC7: =$P$7*('Production Assumptions'!$C$6) ->  | AD7: =$P$7*('Production Assumptions'!$C$6)^AC2 ->  | AE7: =$P$7*('Production Assumptions'!$C$6)^AD2 ->  | AF7: =$P$7*('Production Assumptions'!$C$6)^AE2 ->  | AG7: =$P$7*('Production Assumptions'!$C$6)^AF2 ->  | AH7: =$P$7*('Production Assumptions'!$C$6)^AG2 ->  | AI7: =$P$7*('Production Assumptions'!$C$6)^AH2 ->  | AJ7: =$P$7*('Production Assumptions'!$C$6)^AI2 -> 
B8: TOTAL INCOME: | C8: =SUM(D8:O8) ->  | D8: =SUM(D6:D7) ->  | E8: =SUM(E6:E7) ->  | P8: =SUM(P6:P6) -> 0 | Q8: =SUM(Q6:Q7) ->  | R8: =SUM(R6:R7) ->  | AC8: =SUM(AC6:AC7) ->  | AD8: =SUM(AD6:AD7) -> 
B10: VARIABLE COSTS:
B11: Fingerling | C11: =SUM(D11:O11) ->  | D11: =(('Production Cycle'!$B$7)*'Production Assumptions'!$C$16) ->  | E11: =(('Production Cycle'!$B$7)*'Production Assumptions'!$C$16) ->  | F11: =(('Production Cycle'!$B$7)*'Production Assumptions'!$C$16) ->  | G11: =(('Production Cycle'!$B$7)*'Production Assumptions'!$C$16) ->  | H11: =(('Production Cycle'!$B$7)*'Production Assumptions'!$C$16) ->  | I11: =(('Production Cycle'!$B$7)*'Production Assumptions'!$C$16) ->  | J11: =(('Production Cycle'!$B$7)*'Production Assumptions'!$C$16) ->  | K11: =(('Production Cycle'!$B$7)*'Production Assumptions'!$C$16) ->  | L11: =(('Production Cycle'!$B$7)*'Production Assumptions'!$C$16) ->  | M11: =(('Production Cycle'!$B$7)*'Production Assumptions'!$C$16) ->  | N11: =(('Production Cycle'!$B$7)*'Production Assumptions'!$C$16) ->  | O11: =(('Production Cycle'!$B$7)*'Production Assumptions'!$C$16) ->  | P11: =SUM(Q11:AB11) ->  | Q11: =$O$11*('Production Assumptions'!$C$6) ->  | R11: =$O$11*('Production Assumptions'!$C$6) ->  | S11: =$O$11*('Production Assumptions'!$C$6) ->  | T11: =$O$11*('Production Assumptions'!$C$6) ->  | U11: =$O$11*('Production Assumptions'!$C$6) ->  | V11: =$O$11*('Production Assumptions'!$C$6) ->  | W11: =$O$11*('Production Assumptions'!$C$6) ->  | X11: =$O$11*('Production Assumptions'!$C$6) ->  | Y11: =$O$11*('Production Assumptions'!$C$6) ->  | Z11: =$O$11*('Production Assumptions'!$C$6) ->  | AA11: =$O$11*('Production Assumptions'!$C$6) ->  | AB11: =$O$11*('Production Assumptions'!$C$6) ->  | AC11: =P11*('Production Assumptions'!C6) ->  | AD11: =$P$11*('Production Assumptions'!$C$6)^AC2 ->  | AE11: =$P$11*('Production Assumptions'!$C$6)^AD2 ->  | AF11: =$P$11*('Production Assumptions'!$C$6)^AE2 ->  | AG11: =$P$11*('Production Assumptions'!$C$6)^AF2 ->  | AH11: =$P$11*('Production Assumptions'!$C$6)^AG2 ->  | AI11: =$P$11*('Production Assumptions'!$C$6)^AH2 ->  | AJ11: =$P$11*('Production Assumptions'!$C$6)^AI2 -> 
B12: Feed | C12: =SUM(D12:O12) ->  | D12: =('Production Cycle'!B129*'Production Assumptions'!$D$26) ->  | E12: =IF(('Production Cycle'!C129*'Production Assumptions'!$D$26)=0,D12,('Production Cycle'!C129*'Production Assumptions'!$D$26)) ->  | F12: =IF(('Production Cycle'!D129*'Production Assumptions'!$D$26)=0,E12,('Production Cycle'!D129*'Production Assumptions'!$D$26)) ->  | G12: =IF(('Production Cycle'!E129*'Production Assumptions'!$D$26)=0,F12,('Production Cycle'!E129*'Production Assumptions'!$D$26)) ->  | H12: =IF(('Production Cycle'!F129*'Production Assumptions'!$D$26)=0,G12,('Production Cycle'!F129*'Production Assumptions'!$D$26)) ->  | I12: =IF(('Production Cycle'!G129*'Production Assumptions'!$D$26)=0,H12,('Production Cycle'!G129*'Production Assumptions'!$D$26)) ->  | J12: =IF(('Production Cycle'!H129*'Production Assumptions'!$D$26)=0,I12,('Production Cycle'!H129*'Production Assumptions'!$D$26)) ->  | K12: =IF(('Production Cycle'!I129*'Production Assumptions'!$D$26)=0,J12,('Production Cycle'!I129*'Production Assumptions'!$D$26)) ->  | L12: =IF(('Production Cycle'!J129*'Production Assumptions'!$D$26)=0,K12,('Production Cycle'!J129*'Production Assumptions'!$D$26)) ->  | M12: =L12 ->  | N12: =M12 ->  | P12: =SUM(Q12:AB12) ->  | Q12: =O12*'Production Assumptions'!$C$6 ->  | R12: =Q12 ->  | S12: =R12 ->  | AC12: =($AB$12*('Production Assumptions'!$C$6)^AB2)*12 ->  | AD12: =($AB$12*('Production Assumptions'!$C$6)^AC2)*12 ->  | AE12: =($AB$12*('Production Assumptions'!$C$6)^AD2)*12 ->  | AF12: =($AB$12*('Production Assumptions'!$C$6)^AE2)*12 ->  | AG12: =($AB$12*('Production Assumptions'!$C$6)^AF2)*12 ->  | AH12: =($AB$12*('Production Assumptions'!$C$6)^AG2)*12 ->  | AI12: =($AB$12*('Production Assumptions'!$C$6)^AH2)*12 ->  | AJ12: =($AB$12*('Production Assumptions'!$C$6)^AI2)*12 -> 
B13: Consumables - Water Quality | C13: =SUM(D13:O13) ->  | D13: =IF(Interface!J7<20,'Production Assumptions'!F104,'Production Assumptions'!F110) ->  | P13: =SUM(Q13:AB13) -> 0 | R13: =$O$13*'Production Assumptions'!$C$6 -> 0 | S13: =$O$13*'Production Assumptions'!$C$6 -> 0 | T13: =$O$13*'Production Assumptions'!$C$6 -> 0 | U13: =$O$13*'Production Assumptions'!$C$6 -> 0 | V13: =$O$13*'Production Assumptions'!$C$6 -> 0 | W13: =$O$13*'Production Assumptions'!$C$6 -> 0 | X13: =$O$13*'Production Assumptions'!$C$6 -> 0 | Y13: =$O$13*'Production Assumptions'!$C$6 -> 0 | Z13: =$O$13*'Production Assumptions'!$C$6 -> 0 | AA13: =$O$13*'Production Assumptions'!$C$6 -> 0 | AB13: =$O$13*'Production Assumptions'!$C$6 -> 0 | AC13: =($Q$13*'Production Assumptions'!$C$6^AB2) -> 0 | AD13: =($Q$13*'Production Assumptions'!$C$6^AC2) -> 0 | AE13: =($Q$13*'Production Assumptions'!$C$6^AD2) -> 0 | AF13: =($Q$13*'Production Assumptions'!$C$6^AE2) -> 0 | AG13: =($Q$13*'Production Assumptions'!$C$6^AF2) -> 0 | AH13: =($Q$13*'Production Assumptions'!$C$6^AG2) -> 0 | AI13: =($Q$13*'Production Assumptions'!$C$6^AH2) -> 0 | AJ13: =($Q$13*'Production Assumptions'!$C$6^AI2) -> 0
B14: Transport Costs | C14: =SUM(D14:O14) -> 3600 | D14: =IF(AND(Interface!$H$7="International Markets",Interface!$E$17=Validation!$D$39),'Production Assumptions'!$C$120,IF(AND(Interface!$H$7=Validation!$H$3,Interface!$E$17=Validation!$D$39),'Production Assumptions'!$C$105,300)) -> 300 | E14: =IF(AND(Interface!$H$7="International Markets",Interface!$E$17=Validation!$D$40),'Production Assumptions'!$C$120,IF(AND(Interface!$H$7=Validation!$H$3,Interface!$E$17=Validation!$D$40),'Production Assumptions'!$C$105,D14)) -> 300 | F14: =IF(AND(Interface!$H$7="International Markets",Interface!$E$17=Validation!$D$41),'Production Assumptions'!$C$120,IF(AND(Interface!$H$7=Validation!$H$3,Interface!$E$17=Validation!$D$41),'Production Assumptions'!$C$105,E14)) -> 300 | G14: =IF(AND(Interface!$H$7="International Markets",Interface!$E$17=Validation!$D$42),'Production Assumptions'!$C$120,IF(AND(Interface!$H$7=Validation!$H$3,Interface!$E$17=Validation!$D$42),'Production Assumptions'!$C$105,F14)) -> 300 | H14: =IF(AND(Interface!$H$7="International Markets",Interface!$E$17=Validation!$D$43),'Production Assumptions'!$C$120,IF(AND(Interface!$H$7=Validation!$H$3,Interface!$E$17=Validation!$D$43),'Production Assumptions'!$C$105,G14)) -> 300 | I14: =IF(AND(Interface!$H$7="International Markets",Interface!$E$17=Validation!$D$44),'Production Assumptions'!$C$120,IF(AND(Interface!$H$7=Validation!$H$3,Interface!$E$17=Validation!$D$44),'Production Assumptions'!$C$105,H14)) -> 300 | J14: =IF(AND(Interface!$H$7="International Markets",Interface!$E$17=Validation!$D$45),'Production Assumptions'!$C$120,IF(AND(Interface!$H$7=Validation!$H$3,Interface!$E$17=Validation!$D$45),'Production Assumptions'!$C$105,I14)) -> 300 | K14: =IF(AND(Interface!$H$7="International Markets",Interface!$E$17=Validation!$D$46),'Production Assumptions'!$C$120,IF(AND(Interface!$H$7=Validation!$H$3,Interface!$E$17=Validation!$D$46),'Production Assumptions'!$C$105,J14)) -> 300 | L14: =IF(AND(Interface!$H$7="International Markets",Interface!$E$17=Validation!$D$47),'Production Assumptions'!$C$120,IF(AND(Interface!$H$7=Validation!$H$3,Interface!$E$17=Validation!$D$47),'Production Assumptions'!$C$105,K14)) -> 300 | M14: =IF(AND(Interface!$H$7="International Markets",Interface!$E$17=Validation!$D$48),'Production Assumptions'!$C$120,IF(AND(Interface!$H$7=Validation!$H$3,Interface!$E$17=Validation!$D$48),'Production Assumptions'!$C$105,L14)) -> 300 | N14: =IF(AND(Interface!$H$7="International Markets",Interface!$E$17=Validation!$D$49),'Production Assumptions'!$C$120,IF(AND(Interface!$H$7=Validation!$H$3,Interface!$E$17=Validation!$D$49),'Production Assumptions'!$C$105,M14)) -> 300 | O14: =IF(AND(Interface!$H$7="International Markets",Interface!$E$17=Validation!$D$50),'Production Assumptions'!$C$120,IF(AND(Interface!$H$7=Validation!$H$3,Interface!$E$17=Validation!$D$50),'Production Assumptions'!$C$105,N14)) -> 300 | P14: =SUM(Q14:AB14) -> 3783.6 | Q14: =IF(AND(Interface!$H$7="International Markets",Interface!$E$17=Validation!$D$51),'Production Assumptions'!$C$120,IF(AND(Interface!$H$7=Validation!$H$3,Interface!$E$17=Validation!$D$51),'Production Assumptions'!$C$105,O14))*'Production Assumptions'!$C$6^'OPEX - Aqua'!$P$2 -> 315.3 | R14: =Q14 -> 315.3 | S14: =R14 -> 315.3 | T14: 315.3 | U14: 315.3 | V14: 315.3 | W14: 315.3 | X14: 315.3 | Y14: 315.3 | Z14: 315.3 | AA14: 315.3 | AB14: 315.3 | AC14: =($AB$14*12)*('Production Assumptions'!$C$6) -> 3976.5636 | AD14: =($AB$14*12)*('Production Assumptions'!$C$6)^AC2 -> 4179.368344 | AE14: =($AB$14*12)*('Production Assumptions'!$C$6)^AD2 -> 4392.516129 | AF14: =($AB$14*12)*('Production Assumptions'!$C$6)^AE2 -> 4616.534452 | AG14: =($AB$14*12)*('Production Assumptions'!$C$6)^AF2 -> 4851.977709 | AH14: =($AB$14*12)*('Production Assumptions'!$C$6)^AG2 -> 5099.428572 | AI14: =($AB$14*12)*('Production Assumptions'!$C$6)^AH2 -> 5359.499429 | AJ14: =($AB$14*12)*('Production Assumptions'!$C$6)^AI2 -> 5632.8339
B15: Water | C15: =SUM(D15:O15) -> 0 | D15: 0 | E15: =$D$15*'Production Assumptions'!$F$11 -> 0 | F15: =$D$15*'Production Assumptions'!$F$11 -> 0 | G15: =$D$15*'Production Assumptions'!$F$11 -> 0 | H15: =$D$15*'Production Assumptions'!$F$11 -> 0 | I15: =$D$15*'Production Assumptions'!$F$11 -> 0 | J15: =$D$15*'Production Assumptions'!$F$11 -> 0 | K15: =$D$15*'Production Assumptions'!$F$11 -> 0 | L15: =$D$15*'Production Assumptions'!$F$11 -> 0 | M15: =$D$15*'Production Assumptions'!$F$11 -> 0 | N15: =$D$15*'Production Assumptions'!$F$11 -> 0 | O15: =$D$15*'Production Assumptions'!$F$11 -> 0 | P15: =SUM(Q15:AB15) -> 0 | Q15: =$O$15*('Production Assumptions'!$C$6) -> 0 | R15: =$O$15*('Production Assumptions'!$C$6) -> 0 | S15: =$O$15*('Production Assumptions'!$C$6) -> 0 | T15: =$O$15*('Production Assumptions'!$C$6) -> 0 | U15: =$O$15*('Production Assumptions'!$C$6) -> 0 | V15: =$O$15*('Production Assumptions'!$C$6) -> 0 | W15: =$O$15*('Production Assumptions'!$C$6) -> 0 | X15: =$O$15*('Production Assumptions'!$C$6) -> 0 | Y15: =$O$15*('Production Assumptions'!$C$6) -> 0 | Z15: =$O$15*('Production Assumptions'!$C$6) -> 0 | AA15: =$O$15*('Production Assumptions'!$C$6) -> 0 | AB15: =$O$15*('Production Assumptions'!$C$6) -> 0 | AC15: =($AB$15*('Production Assumptions'!$C$6)^AB2)*12 -> 0 | AD15: =($AB$15*('Production Assumptions'!$C$6)^AC2)*12 -> 0 | AE15: =($AB$15*('Production Assumptions'!$C$6)^AD2)*12 -> 0 | AF15: =($AB$15*('Production Assumptions'!$C$6)^AE2)*12 -> 0 | AG15: =($AB$15*('Production Assumptions'!$C$6)^AF2)*12 -> 0 | AH15: =($AB$15*('Production Assumptions'!$C$6)^AG2)*12 -> 0 | AI15: =($AB$15*('Production Assumptions'!$C$6)^AH2)*12 -> 0 | AJ15: =($AB$15*('Production Assumptions'!$C$6)^AI2)*12 -> 0
B16: Hydroponic Net Pots (5% pa replacement) | O16: =(CAPEX!V36*0.05)*CAPEX!X36 ->  | Q16: 0 | R16: 0 | S16: 0 | T16: 0 | U16: 0 | V16: 0 | W16: 0 | X16: 0 | Y16: 0 | Z16: 0 | AA16: 0 | AB16: =$O$16*('Production Assumptions'!$C$6) ->  | AC16: =($AB$16*('Production Assumptions'!$C$6)) ->  | AD16: =AC$16*'Production Assumptions'!$C$6 ->  | AE16: =AD$16*'Production Assumptions'!$C$6 ->  | AF16: =AE$16*'Production Assumptions'!$C$6 ->  | AG16: =AF$16*'Production Assumptions'!$C$6 ->  | AH16: =AG$16*'Production Assumptions'!$C$6 ->  | AI16: =AH$16*'Production Assumptions'!$C$6 ->  | AJ16: =AI$16*'Production Assumptions'!$C$6 -> 
B17: Additional (chemicals/nutrients/grow med) | C17: 7920 | D17: ='Production Assumptions'!I17 -> 2640 | I17: =D17 -> 2640 | O17: =I17 -> 2640 | P17: 5280 | V17: =O17 -> 2640 | AB17: =V17 -> 2640 | AC17: =($AB$17*('Production Assumptions'!$C$6)^AB2)*3 -> 8323.92 | AD17: =AC$17*'Production Assumptions'!$C$6 -> 8748.43992 | AE17: =AD$17*'Production Assumptions'!$C$6 -> 9194.610356 | AF17: =AE$17*'Production Assumptions'!$C$6 -> 9663.535484 | AG17: =AF$17*'Production Assumptions'!$C$6 -> 10156.37579 | AH17: =AG$17*'Production Assumptions'!$C$6 -> 10674.35096 | AI17: =AH$17*'Production Assumptions'!$C$6 -> 11218.74286 | AJ17: =AI$17*'Production Assumptions'!$C$6 -> 11790.89874
B18: Seedlings | C18: =SUM(D18:O18) ->  | D18: =(CAPEX!$AB$8/5)*'Production Assumptions'!$G$21 ->  | E18: =(CAPEX!$AB$8/5)*'Production Assumptions'!$G$21 ->  | F18: =(CAPEX!$AB$8/5)*'Production Assumptions'!$G$21 ->  | G18: =(CAPEX!$AB$8/5)*'Production Assumptions'!$G$21 ->  | H18: =(CAPEX!$AB$8/5)*'Production Assumptions'!$G$21 ->  | I18: =(CAPEX!$AB$8/5)*'Production Assumptions'!$G$21 ->  | J18: =(CAPEX!$AB$8/5)*'Production Assumptions'!$G$21 ->  | K18: =(CAPEX!$AB$8/5)*'Production Assumptions'!$G$21 ->  | L18: =(CAPEX!$AB$8/5)*'Production Assumptions'!$G$21 ->  | M18: =(CAPEX!$AB$8/5)*'Production Assumptions'!$G$21 ->  | N18: =(CAPEX!$AB$8/5)*'Production Assumptions'!$G$21 ->  | O18: =(CAPEX!$AB$8/5)*'Production Assumptions'!$G$21 ->  | P18: =SUM(Q18:AB18) ->  | Q18: =$O$18*'Production Assumptions'!$C$6 ->  | R18: =$O$18*'Production Assumptions'!$C$6 ->  | S18: =$O$18*'Production Assumptions'!$C$6 ->  | T18: =$O$18*'Production Assumptions'!$C$6 ->  | U18: =$O$18*'Production Assumptions'!$C$6 ->  | V18: =$O$18*'Production Assumptions'!$C$6 ->  | W18: =$O$18*'Production Assumptions'!$C$6 ->  | X18: =$O$18*'Production Assumptions'!$C$6 ->  | Y18: =$O$18*'Production Assumptions'!$C$6 ->  | Z18: =$O$18*'Production Assumptions'!$C$6 ->  | AA18: =$O$18*'Production Assumptions'!$C$6 ->  | AB18: =$O$18*'Production Assumptions'!$C$6 ->  | AC18: =(AB18*('Production Assumptions'!$C$6))*12 ->  | AD18: =($AB$18*12)*'Production Assumptions'!$C$6^'OPEX - Aqua'!AC2 ->  | AE18: =($AB$18*12)*'Production Assumptions'!$C$6^'OPEX - Aqua'!AD2 ->  | AF18: =($AB$18*12)*'Production Assumptions'!$C$6^'OPEX - Aqua'!AE2 ->  | AG18: =($AB$18*12)*'Production Assumptions'!$C$6^'OPEX - Aqua'!AF2 ->  | AH18: =($AB$18*12)*'Production Assumptions'!$C$6^'OPEX - Aqua'!AG2 ->  | AI18: =($AB$18*12)*'Production Assumptions'!$C$6^'OPEX - Aqua'!AH2 ->  | AJ18: =($AB$18*12)*'Production Assumptions'!$C$6^'OPEX - Aqua'!AI2 -> 
B19: TOTAL VARIABLE COST: | C19: =SUM(C11:C18) -> 
B21: FIXED COSTS:
B22: Salaries - Staff | C22: =SUM(D22:O22) ->  | D22: =HR!E45 ->  | E22: =HR!F45 ->  | F22: =HR!G45 ->  | G22: =HR!H45 ->  | H22: =HR!I45 ->  | I22: =HR!J45 ->  | J22: =HR!K45 ->  | K22: =HR!L45 ->  | L22: =HR!M45 ->  | M22: =HR!N45 ->  | N22: =HR!O45 ->  | O22: =HR!P45 ->  | P22: =SUM(Q22:AB22) ->  | Q22: =HR!R45 ->  | R22: =HR!S45 ->  | S22: =HR!T45 ->  | T22: =HR!U45 ->  | U22: =HR!V45 ->  | V22: =HR!W45 ->  | W22: =HR!X45 ->  | X22: =HR!Y45 ->  | Y22: =HR!Z45 ->  | Z22: =HR!AA45 ->  | AA22: =HR!AB45 ->  | AB22: =HR!AC45 ->  | AC22: =($AB$22*('Production Assumptions'!$C$6)^AB2)*12 ->  | AD22: =($AB$22*('Production Assumptions'!$C$6)^AC2)*12 ->  | AE22: =($AB$22*('Production Assumptions'!$C$6)^AD2)*12 ->  | AF22: =($AB$22*('Production Assumptions'!$C$6)^AE2)*12 ->  | AG22: =($AB$22*('Production Assumptions'!$C$6)^AF2)*12 ->  | AH22: =($AB$22*('Production Assumptions'!$C$6)^AG2)*12 ->  | AI22: =($AB$22*('Production Assumptions'!$C$6)^AH2)*12 ->  | AJ22: =($AB$22*('Production Assumptions'!$C$6)^AI2)*12 -> 
B23: Insurance | C23: =SUM(D23:O23) ->  | D23: =IF(Interface!$J$7<9,0,'Production Assumptions'!$C$14*(1+Interface!$J$7*'Production Assumptions'!$C$103)) ->  | E23: =IF(Interface!$J$7<9,0,'Production Assumptions'!$C$14*(1+Interface!$J$7*'Production Assumptions'!$C$103)) ->  | F23: =IF(Interface!$J$7<9,0,'Production Assumptions'!$C$14*(1+Interface!$J$7*'Production Assumptions'!$C$103)) ->  | G23: =IF(Interface!$J$7<9,0,'Production Assumptions'!$C$14*(1+Interface!$J$7*'Production Assumptions'!$C$103)) ->  | H23: =IF(Interface!$J$7<9,0,'Production Assumptions'!$C$14*(1+Interface!$J$7*'Production Assumptions'!$C$103)) ->  | I23: =IF(Interface!$J$7<9,0,'Production Assumptions'!$C$14*(1+Interface!$J$7*'Production Assumptions'!$C$103)) ->  | J23: =IF(Interface!$J$7<9,0,'Production Assumptions'!$C$14*(1+Interface!$J$7*'Production Assumptions'!$C$103)) ->  | K23: =IF(Interface!$J$7<9,0,'Production Assumptions'!$C$14*(1+Interface!$J$7*'Production Assumptions'!$C$103)) ->  | L23: =IF(Interface!$J$7<9,0,'Production Assumptions'!$C$14*(1+Interface!$J$7*'Production Assumptions'!$C$103)) ->  | M23: =IF(Interface!$J$7<9,0,'Production Assumptions'!$C$14*(1+Interface!$J$7*'Production Assumptions'!$C$103)) ->  | N23: =IF(Interface!$J$7<9,0,'Production Assumptions'!$C$14*(1+Interface!$J$7*'Production Assumptions'!$C$103)) ->  | O23: =IF(Interface!$J$7<9,0,'Production Assumptions'!$C$14*(1+Interface!$J$7*'Production Assumptions'!$C$103)) ->  | P23: =SUM(Q23:AB23) ->  | Q23: =IF(Interface!$J$7<9,0,('Production Assumptions'!$C$14*(1+Interface!$J$7*'Production Assumptions'!$C$103))*('Production Assumptions'!$C$6)) ->  | R23: =IF(Interface!$J$7<9,0,('Production Assumptions'!$C$14*(1+Interface!$J$7*'Production Assumptions'!$C$103))*('Production Assumptions'!$C$6)) ->  | S23: =IF(Interface!$J$7<9,0,('Production Assumptions'!$C$14*(1+Interface!$J$7*'Production Assumptions'!$C$103))*('Production Assumptions'!$C$6)) ->  | T23: =IF(Interface!$J$7<9,0,('Production Assumptions'!$C$14*(1+Interface!$J$7*'Production Assumptions'!$C$103))*('Production Assumptions'!$C$6)) ->  | U23: =IF(Interface!$J$7<9,0,('Production Assumptions'!$C$14*(1+Interface!$J$7*'Production Assumptions'!$C$103))*('Production Assumptions'!$C$6)) ->  | V23: =IF(Interface!$J$7<9,0,('Production Assumptions'!$C$14*(1+Interface!$J$7*'Production Assumptions'!$C$103))*('Production Assumptions'!$C$6)) ->  | W23: =IF(Interface!$J$7<9,0,('Production Assumptions'!$C$14*(1+Interface!$J$7*'Production Assumptions'!$C$103))*('Production Assumptions'!$C$6)) ->  | X23: =IF(Interface!$J$7<9,0,('Production Assumptions'!$C$14*(1+Interface!$J$7*'Production Assumptions'!$C$103))*('Production Assumptions'!$C$6)) ->  | Y23: =IF(Interface!$J$7<9,0,('Production Assumptions'!$C$14*(1+Interface!$J$7*'Production Assumptions'!$C$103))*('Production Assumptions'!$C$6)) ->  | Z23: =IF(Interface!$J$7<9,0,('Production Assumptions'!$C$14*(1+Interface!$J$7*'Production Assumptions'!$C$103))*('Production Assumptions'!$C$6)) ->  | AA23: =IF(Interface!$J$7<9,0,('Production Assumptions'!$C$14*(1+Interface!$J$7*'Production Assumptions'!$C$103))*('Production Assumptions'!$C$6)) ->  | AB23: =IF(Interface!$J$7<9,0,('Production Assumptions'!$C$14*(1+Interface!$J$7*'Production Assumptions'!$C$103))*('Production Assumptions'!$C$6)) ->  | AC23: =($AB$23*('Production Assumptions'!$C$6)^AB2)*12 ->  | AD23: =($AB$23*('Production Assumptions'!$C$6)^AC2)*12 ->  | AE23: =($AB$23*('Production Assumptions'!$C$6)^AD2)*12 ->  | AF23: =($AB$23*('Production Assumptions'!$C$6)^AE2)*12 ->  | AG23: =($AB$23*('Production Assumptions'!$C$6)^AF2)*12 ->  | AH23: =($AB$23*('Production Assumptions'!$C$6)^AG2)*12 ->  | AI23: =($AB$23*('Production Assumptions'!$C$6)^AH2)*12 ->  | AJ23: =($AB$23*('Production Assumptions'!$C$6)^AI2)*12 -> 
B24: Telephone Expenses | C24: =SUM(D24:O24) -> 12000 | D24: ='Production Assumptions'!$C$106 -> 1000 | E24: ='Production Assumptions'!$C$106 -> 1000 | F24: ='Production Assumptions'!$C$106 -> 1000 | G24: ='Production Assumptions'!$C$106 -> 1000 | H24: ='Production Assumptions'!$C$106 -> 1000 | I24: ='Production Assumptions'!$C$106 -> 1000 | J24: ='Production Assumptions'!$C$106 -> 1000 | K24: ='Production Assumptions'!$C$106 -> 1000 | L24: ='Production Assumptions'!$C$106 -> 1000 | M24: ='Production Assumptions'!$C$106 -> 1000 | N24: ='Production Assumptions'!$C$106 -> 1000 | O24: ='Production Assumptions'!$C$106 -> 1000 | P24: =SUM(Q24:AB24) -> 12612 | Q24: =$O$24*('Production Assumptions'!$C$6) -> 1051 | R24: =$O$24*('Production Assumptions'!$C$6) -> 1051 | S24: =$O$24*('Production Assumptions'!$C$6) -> 1051 | T24: =$O$24*('Production Assumptions'!$C$6) -> 1051 | U24: =$O$24*('Production Assumptions'!$C$6) -> 1051 | V24: =$O$24*('Production Assumptions'!$C$6) -> 1051 | W24: =$O$24*('Production Assumptions'!$C$6) -> 1051 | X24: =$O$24*('Production Assumptions'!$C$6) -> 1051 | Y24: =$O$24*('Production Assumptions'!$C$6) -> 1051 | Z24: =$O$24*('Production Assumptions'!$C$6) -> 1051 | AA24: =$O$24*('Production Assumptions'!$C$6) -> 1051 | AB24: =$O$24*('Production Assumptions'!$C$6) -> 1051 | AC24: =($AB$24*('Production Assumptions'!$C$6))*12 -> 13255.212 | AD24: =($AB$24*('Production Assumptions'!$C$6)^AC2)*12 -> 13931.22781 | AE24: =($AB$24*('Production Assumptions'!$C$6)^AD2)*12 -> 14641.72043 | AF24: =($AB$24*('Production Assumptions'!$C$6)^AE2)*12 -> 15388.44817 | AG24: =($AB$24*('Production Assumptions'!$C$6)^AF2)*12 -> 16173.25903 | AH24: =($AB$24*('Production Assumptions'!$C$6)^AG2)*12 -> 16998.09524 | AI24: =($AB$24*('Production Assumptions'!$C$6)^AH2)*12 -> 17864.9981 | AJ24: =($AB$24*('Production Assumptions'!$C$6)^AI2)*12 -> 18776.113
B25: Security (specific to facility) | D25: =IF(Interface!$J$7<9,0,'Production Assumptions'!$C$11*(1+Interface!$J$7*0.01)) ->  | E25: =D25 ->  | F25: =E25 ->  | Q25: =O25*'Production Assumptions'!C6 ->  | R25: =Q25 ->  | S25: =R25 ->  | AC25: =($AB$25*'Production Assumptions'!$C$6^AB2)*12 ->  | AD25: =($AB$25*'Production Assumptions'!$C$6^AC2)*12 ->  | AE25: =($AB$25*'Production Assumptions'!$C$6^AD2)*12 ->  | AF25: =($AB$25*'Production Assumptions'!$C$6^AE2)*12 ->  | AG25: =($AB$25*'Production Assumptions'!$C$6^AF2)*12 ->  | AH25: =($AB$25*'Production Assumptions'!$C$6^AG2)*12 ->  | AI25: =($AB$25*'Production Assumptions'!$C$6^AH2)*12 ->  | AJ25: =($AB$25*'Production Assumptions'!$C$6^AI2)*12 -> 
B26: Facilities Electricty | D26: =(CAPEX!V6+CAPEX!V7+CAPEX!V9+CAPEX!V10)*'Production Assumptions'!C13 ->  | E26: =D26 ->  | Q26: =$O$26*('Production Assumptions'!$C$6) ->  | R26: =$O$26*('Production Assumptions'!$C$6) ->  | S26: =$O$26*('Production Assumptions'!$C$6) ->  | T26: =$O$26*('Production Assumptions'!$C$6) ->  | U26: =$O$26*('Production Assumptions'!$C$6) ->  | V26: =$O$26*('Production Assumptions'!$C$6) ->  | W26: =$O$26*('Production Assumptions'!$C$6) ->  | X26: =$O$26*('Production Assumptions'!$C$6) ->  | Y26: =$O$26*('Production Assumptions'!$C$6) ->  | Z26: =$O$26*('Production Assumptions'!$C$6) ->  | AA26: =$O$26*('Production Assumptions'!$C$6) ->  | AB26: =$O$26*('Production Assumptions'!$C$6) ->  | AC26: =($AB$26*('Production Assumptions'!$C$6)^AB1)*12 ->  | AD26: =AC26*'Production Assumptions'!$C$6 ->  | AE26: =AD26*'Production Assumptions'!$C$6 ->  | AF26: =AE26*'Production Assumptions'!$C$6 ->  | AG26: =AF26*'Production Assumptions'!$C$6 ->  | AH26: =AG26*'Production Assumptions'!$C$6 ->  | AI26: =AH26*'Production Assumptions'!$C$6 ->  | AJ26: =AI26*'Production Assumptions'!$C$6 -> 
B27: System Electricity | D27: =CAPEX!F55+CAPEX!G55 ->  | E27: =D27 ->  | F27: =E27 ->  | Q27: =$O$27*('Production Assumptions'!$C$6) ->  | R27: =$O$27*('Production Assumptions'!$C$6) ->  | S27: =$O$27*('Production Assumptions'!$C$6) ->  | T27: =$O$27*('Production Assumptions'!$C$6) ->  | U27: =$O$27*('Production Assumptions'!$C$6) ->  | V27: =$O$27*('Production Assumptions'!$C$6) ->  | W27: =$O$27*('Production Assumptions'!$C$6) ->  | X27: =$O$27*('Production Assumptions'!$C$6) ->  | Y27: =$O$27*('Production Assumptions'!$C$6) ->  | Z27: =$O$27*('Production Assumptions'!$C$6) ->  | AA27: =$O$27*('Production Assumptions'!$C$6) ->  | AB27: =$O$27*('Production Assumptions'!$C$6) ->  | AC27: =($AB$27*('Production Assumptions'!$C$6)^AB2)*12 ->  | AD27: =($AB$27*('Production Assumptions'!$C$6)^AC2)*12 ->  | AE27: =($AB$27*('Production Assumptions'!$C$6)^AD2)*12 ->  | AF27: =($AB$27*('Production Assumptions'!$C$6)^AE2)*12 ->  | AG27: =($AB$27*('Production Assumptions'!$C$6)^AF2)*12 ->  | AH27: =($AB$27*('Production Assumptions'!$C$6)^AG2)*12 ->  | AI27: =($AB$27*('Production Assumptions'!$C$6)^AH2)*12 ->  | AJ27: =($AB$27*('Production Assumptions'!$C$6)^AI2)*12 -> 
B28: Sumps and waste water treatment | D28: ='Production Assumptions'!$C$107 ->  | E28: ='Production Assumptions'!$C$107 ->  | F28: ='Production Assumptions'!$C$107 ->  | G28: ='Production Assumptions'!$C$107 ->  | H28: ='Production Assumptions'!$C$107 ->  | I28: ='Production Assumptions'!$C$107 ->  | J28: ='Production Assumptions'!$C$107 ->  | K28: ='Production Assumptions'!$C$107 ->  | L28: ='Production Assumptions'!$C$107 ->  | M28: ='Production Assumptions'!$C$107 ->  | N28: ='Production Assumptions'!$C$107 ->  | O28: ='Production Assumptions'!$C$107 ->  | Q28: =$O$28*('Production Assumptions'!$C$6) ->  | R28: =$O$28*('Production Assumptions'!$C$6) ->  | S28: =$O$28*('Production Assumptions'!$C$6) ->  | T28: =$O$28*('Production Assumptions'!$C$6) ->  | U28: =$O$28*('Production Assumptions'!$C$6) ->  | V28: =$O$28*('Production Assumptions'!$C$6) ->  | W28: =$O$28*('Production Assumptions'!$C$6) ->  | X28: =$O$28*('Production Assumptions'!$C$6) ->  | Y28: =$O$28*('Production Assumptions'!$C$6) ->  | Z28: =$O$28*('Production Assumptions'!$C$6) ->  | AA28: =$O$28*('Production Assumptions'!$C$6) ->  | AB28: =$O$28*('Production Assumptions'!$C$6) ->  | AC28: =($AB$28*('Production Assumptions'!$C$6))*12 ->  | AD28: =($AB$28*('Production Assumptions'!$C$6)^AC2)*12 ->  | AE28: =($AB$28*('Production Assumptions'!$C$6)^AD2)*12 ->  | AF28: =($AB$28*('Production Assumptions'!$C$6)^AE2)*12 ->  | AG28: =($AB$28*('Production Assumptions'!$C$6)^AF2)*12 ->  | AH28: =($AB$28*('Production Assumptions'!$C$6)^AG2)*12 ->  | AI28: =($AB$28*('Production Assumptions'!$C$6)^AH2)*12 ->  | AJ28: =($AB$28*('Production Assumptions'!$C$6)^AI2)*12 -> 
B29: Legal & licencing | C29: 550000 | D29: =IF(Interface!$J$7<Validation!$B$22,'Production Assumptions'!$D$42,IF(Interface!$J$7<Validation!$B$202,'Production Assumptions'!$D$43,'Production Assumptions'!$D$44)) -> 550000 | E29: 0 | F29: 0 | G29: 0 | H29: 0 | I29: 0 | J29: 0 | K29: 0 | L29: 0 | M29: 0 | N29: 0 | O29: 0 | P29: 0 | Q29: 0 | R29: =E29*('Production Assumptions'!$C$6) -> 0 | S29: =F29*('Production Assumptions'!$C$6) -> 0 | T29: =G29*('Production Assumptions'!$C$6) -> 0 | U29: =H29*('Production Assumptions'!$C$6) -> 0 | V29: =I29*('Production Assumptions'!$C$6) -> 0 | W29: =J29*('Production Assumptions'!$C$6) -> 0 | X29: =K29*('Production Assumptions'!$C$6) -> 0 | Y29: =L29*('Production Assumptions'!$C$6) -> 0 | Z29: =M29*('Production Assumptions'!$C$6) -> 0 | AA29: =N29*('Production Assumptions'!$C$6) -> 0 | AB29: =O29*('Production Assumptions'!$C$6) -> 0 | AC29: =($Q$29*('Production Assumptions'!$C$6)) -> 0 | AD29: =$Q$29*('Production Assumptions'!$C$6)^AC2 -> 0 | AE29: =$D$29*('Production Assumptions'!$C$6)^AE2 -> 671078.8531 | AF29: =$Q$29*('Production Assumptions'!$C$6)^AE2 -> 0 | AG29: =$Q$29*('Production Assumptions'!$C$6)^AF2 -> 0 | AH29: =$Q$29*('Production Assumptions'!$C$6)^AG2 -> 0 | AI29: =$Q$29*('Production Assumptions'!$C$6)^AH2 -> 0 | AJ29: =$Q$29*('Production Assumptions'!$C$6)^AI2 -> 0
B30: Health and safety apparel | D30: ='Production Assumptions'!$C$109*HR!$D$78 ->  | E30: 0 | F30: 0 | G30: 0 | H30: 0 | I30: 0 | J30: 0 | K30: 0 | L30: 0 | M30: 0 | N30: 0 | O30: 0 | Q30: =D30*('Production Assumptions'!$C$6) ->  | R30: =E30*('Production Assumptions'!$C$6) -> 0 | S30: =F30*('Production Assumptions'!$C$6) -> 0 | T30: =G30*('Production Assumptions'!$C$6) -> 0 | U30: =H30*('Production Assumptions'!$C$6) -> 0 | V30: =I30*('Production Assumptions'!$C$6) -> 0 | W30: =J30*('Production Assumptions'!$C$6) -> 0 | X30: =K30*('Production Assumptions'!$C$6) -> 0 | Y30: =L30*('Production Assumptions'!$C$6) -> 0 | Z30: =M30*('Production Assumptions'!$C$6) -> 0 | AA30: =N30*('Production Assumptions'!$C$6) -> 0 | AB30: =O30*('Production Assumptions'!$C$6) -> 0 | AC30: =($Q$30*('Production Assumptions'!$C$6)) ->  | AD30: =$Q$30*('Production Assumptions'!$C$6)^AC2 ->  | AE30: =$Q$30*('Production Assumptions'!$C$6)^AD2 ->  | AF30: =$Q$30*('Production Assumptions'!$C$6)^AE2 ->  | AG30: =$Q$30*('Production Assumptions'!$C$6)^AF2 ->  | AH30: =$Q$30*('Production Assumptions'!$C$6)^AG2 ->  | AI30: =$Q$30*('Production Assumptions'!$C$6)^AH2 ->  | AJ30: =$Q$30*('Production Assumptions'!$C$6)^AI2 -> 
B31: stationary | C31: =SUM(D31:O31) -> 1200 | D31: =IF(Interface!$J$7<9,0,'Production Assumptions'!$C$110) -> 100 | E31: =IF(Interface!$J$7<9,0,'Production Assumptions'!$C$110) -> 100 | F31: =IF(Interface!$J$7<9,0,'Production Assumptions'!$C$110) -> 100 | G31: =IF(Interface!$J$7<9,0,'Production Assumptions'!$C$110) -> 100 | H31: =IF(Interface!$J$7<9,0,'Production Assumptions'!$C$110) -> 100 | I31: =IF(Interface!$J$7<9,0,'Production Assumptions'!$C$110) -> 100 | J31: =IF(Interface!$J$7<9,0,'Production Assumptions'!$C$110) -> 100 | K31: =IF(Interface!$J$7<9,0,'Production Assumptions'!$C$110) -> 100 | L31: =IF(Interface!$J$7<9,0,'Production Assumptions'!$C$110) -> 100 | M31: =IF(Interface!$J$7<9,0,'Production Assumptions'!$C$110) -> 100 | N31: =IF(Interface!$J$7<9,0,'Production Assumptions'!$C$110) -> 100 | O31: =IF(Interface!$J$7<9,0,'Production Assumptions'!$C$110) -> 100 | P31: =SUM(Q31:AB31) -> 0 | Q31: =$O$29*('Production Assumptions'!$C$6) -> 0 | R31: =$O$29*('Production Assumptions'!$C$6) -> 0 | S31: =$O$29*('Production Assumptions'!$C$6) -> 0 | T31: =$O$29*('Production Assumptions'!$C$6) -> 0 | U31: =$O$29*('Production Assumptions'!$C$6) -> 0 | V31: =$O$29*('Production Assumptions'!$C$6) -> 0 | W31: =$O$29*('Production Assumptions'!$C$6) -> 0 | X31: =$O$29*('Production Assumptions'!$C$6) -> 0 | Y31: =$O$29*('Production Assumptions'!$C$6) -> 0 | Z31: =$O$29*('Production Assumptions'!$C$6) -> 0 | AA31: =$O$29*('Production Assumptions'!$C$6) -> 0 | AB31: =$O$29*('Production Assumptions'!$C$6) -> 0 | AC31: =($AB$29*('Production Assumptions'!$C$6))*12 -> 0 | AD31: =($AB$29*('Production Assumptions'!$C$6)^AC4)*12 -> 0 | AE31: =($AB$29*('Production Assumptions'!$C$6)^AD4)*12 -> 0 | AF31: =($AB$29*('Production Assumptions'!$C$6)^AE4)*12 -> 0 | AG31: =($AB$29*('Production Assumptions'!$C$6)^AF4)*12 -> 0 | AH31: =($AB$29*('Production Assumptions'!$C$6)^AG4)*12 -> 0 | AI31: =($AB$29*('Production Assumptions'!$C$6)^AH4)*12 -> 0 | AJ31: =($AB$29*('Production Assumptions'!$C$6)^AI4)*12 -> 0
B32: Cleaning materials | C32: 9600 | D32: ='Production Assumptions'!$C$111 -> 800 | E32: ='Production Assumptions'!$C$111 -> 800 | F32: ='Production Assumptions'!$C$111 -> 800 | G32: ='Production Assumptions'!$C$111 -> 800 | H32: ='Production Assumptions'!$C$111 -> 800 | I32: ='Production Assumptions'!$C$111 -> 800 | J32: ='Production Assumptions'!$C$111 -> 800 | K32: ='Production Assumptions'!$C$111 -> 800 | L32: ='Production Assumptions'!$C$111 -> 800 | M32: ='Production Assumptions'!$C$111 -> 800 | N32: ='Production Assumptions'!$C$111 -> 800 | O32: ='Production Assumptions'!$C$111 -> 800 | P32: 10089.6 | Q32: =$O$32*('Production Assumptions'!$C$6) -> 840.8 | R32: =$O$32*('Production Assumptions'!$C$6) -> 840.8 | S32: =$O$32*('Production Assumptions'!$C$6) -> 840.8 | T32: =$O$32*('Production Assumptions'!$C$6) -> 840.8 | U32: =$O$32*('Production Assumptions'!$C$6) -> 840.8 | V32: =$O$32*('Production Assumptions'!$C$6) -> 840.8 | W32: =$O$32*('Production Assumptions'!$C$6) -> 840.8 | X32: =$O$32*('Production Assumptions'!$C$6) -> 840.8 | Y32: =$O$32*('Production Assumptions'!$C$6) -> 840.8 | Z32: =$O$32*('Production Assumptions'!$C$6) -> 840.8 | AA32: =$O$32*('Production Assumptions'!$C$6) -> 840.8 | AB32: =$O$32*('Production Assumptions'!$C$6) -> 840.8 | AC32: =($AB$32*('Production Assumptions'!$C$6))*12 -> 10604.1696 | AD32: =($AB$32*('Production Assumptions'!$C$6)^AC2)*12 -> 11144.98225 | AE32: =($AB$32*('Production Assumptions'!$C$6)^AD2)*12 -> 11713.37634 | AF32: =($AB$32*('Production Assumptions'!$C$6)^AE2)*12 -> 12310.75854 | AG32: =($AB$32*('Production Assumptions'!$C$6)^AF2)*12 -> 12938.60722 | AH32: =($AB$32*('Production Assumptions'!$C$6)^AG2)*12 -> 13598.47619 | AI32: =($AB$32*('Production Assumptions'!$C$6)^AH2)*12 -> 14291.99848 | AJ32: =($AB$32*('Production Assumptions'!$C$6)^AI2)*12 -> 15020.8904
B33: Vet Services | C33: =SUM(D33:O33) -> 40800 | D33: ='Production Assumptions'!$C$113 -> 10200 | E33: 0 | F33: 0 | G33: =D33 -> 10200 | H33: 0 | I33: 0 | J33: =D33 -> 10200 | K33: 0 | L33: 0 | M33: =D33 -> 10200 | N33: 0 | O33: 0 | P33: =SUM(Q33:AB33) -> 42880.8 | Q33: =D33*('Production Assumptions'!$C$6) -> 10720.2 | R33: =E33*('Production Assumptions'!$C$6) -> 0 | S33: =F33*('Production Assumptions'!$C$6) -> 0 | T33: =G33*('Production Assumptions'!$C$6) -> 10720.2 | U33: =H33*('Production Assumptions'!$C$6) -> 0 | V33: =I33*('Production Assumptions'!$C$6) -> 0 | W33: =J33*('Production Assumptions'!$C$6) -> 10720.2 | X33: =K33*('Production Assumptions'!$C$6) -> 0 | Y33: =L33*('Production Assumptions'!$C$6) -> 0 | Z33: =M33*('Production Assumptions'!$C$6) -> 10720.2 | AA33: =N33*('Production Assumptions'!$C$6) -> 0 | AB33: =O33*('Production Assumptions'!$C$6) -> 0 | AC33: =($P$33*('Production Assumptions'!$C$6)) -> 45067.7208 | AD33: =($P$33*('Production Assumptions'!$C$6)^AC2) -> 47366.17456 | AE33: =($P$33*('Production Assumptions'!$C$6)^AD2) -> 49781.84946 | AF33: =($P$33*('Production Assumptions'!$C$6)^AE2) -> 52320.72379 | AG33: =($P$33*('Production Assumptions'!$C$6)^AF2) -> 54989.0807 | AH33: =($P$33*('Production Assumptions'!$C$6)^AG2) -> 57793.52381 | AI33: =($P$33*('Production Assumptions'!$C$6)^AH2) -> 60740.99353 | AJ33: =($P$33*('Production Assumptions'!$C$6)^AI2) -> 63838.7842
B34: Bank Charges | C34: 720 | D34: =IF(D$6=0,60,(D$6/100*(1+'Production Assumptions'!$C$115)+60)) -> 60 | E34: =IF(E$6=0,60,(E$6/100*(1+'Production Assumptions'!$C$115)+60)) -> 60 | F34: =IF(F$6=0,60,(F$6/100*(1+'Production Assumptions'!$C$115)+60)) -> 60 | G34: =IF(G$6=0,60,(G$6/100*(1+'Production Assumptions'!$C$115)+60)) -> 60 | H34: =IF(H$6=0,60,(H$6/100*(1+'Production Assumptions'!$C$115)+60)) -> 60 | I34: =IF(I$6=0,60,(I$6/100*(1+'Production Assumptions'!$C$115)+60)) -> 60 | J34: =IF(J$6=0,60,(J$6/100*(1+'Production Assumptions'!$C$115)+60)) -> 60 | K34: =IF(K$6=0,60,(K$6/100*(1+'Production Assumptions'!$C$115)+60)) -> 60 | L34: =IF(L$6=0,60,(L$6/100*(1+'Production Assumptions'!$C$115)+60)) -> 60 | M34: =IF(M$6=0,60,(M$6/100*(1+'Production Assumptions'!$C$115)+60)) -> 60 | N34: =IF(N$6=0,60,(N$6/100*(1+'Production Assumptions'!$C$115)+60)) -> 60 | O34: =IF(O$6=0,60,(O$6/100*(1+'Production Assumptions'!$C$115)+60)) -> 60 | P34: =SUM(Q34:AB34) -> 756.72 | Q34: =$O$34*('Production Assumptions'!$C$6) -> 63.06 | R34: =$O$34*('Production Assumptions'!$C$6) -> 63.06 | S34: =$O$34*('Production Assumptions'!$C$6) -> 63.06 | T34: =$O$34*('Production Assumptions'!$C$6) -> 63.06 | U34: =$O$34*('Production Assumptions'!$C$6) -> 63.06 | V34: =$O$34*('Production Assumptions'!$C$6) -> 63.06 | W34: =$O$34*('Production Assumptions'!$C$6) -> 63.06 | X34: =$O$34*('Production Assumptions'!$C$6) -> 63.06 | Y34: =$O$34*('Production Assumptions'!$C$6) -> 63.06 | Z34: =$O$34*('Production Assumptions'!$C$6) -> 63.06 | AA34: =$O$34*('Production Assumptions'!$C$6) -> 63.06 | AB34: =$O$34*('Production Assumptions'!$C$6) -> 63.06 | AC34: =($AB34*('Production Assumptions'!$C$6))*12 -> 795.31272 | AD34: =($AB34*('Production Assumptions'!$C$6)^AC2)*12 -> 835.8736687 | AE34: =($AB34*('Production Assumptions'!$C$6)^AD2)*12 -> 878.5032258 | AF34: =($AB34*('Production Assumptions'!$C$6)^AE2)*12 -> 923.3068903 | AG34: =($AB34*('Production Assumptions'!$C$6)^AF2)*12 -> 970.3955417 | AH34: =($AB34*('Production Assumptions'!$C$6)^AG2)*12 -> 1019.885714 | AI34: =($AB34*('Production Assumptions'!$C$6)^AH2)*12 -> 1071.899886 | AJ34: =($AB34*('Production Assumptions'!$C$6)^AI2)*12 -> 1126.56678
B35: Marketing | D35: =IF(Interface!$J$7<Validation!$B$17,0,'Production Assumptions'!$C$117) ->  | E35: =IF(Interface!$J$7<Validation!$B$17,0,'Production Assumptions'!$C$117) ->  | F35: =IF(Interface!$J$7<Validation!$B$17,0,'Production Assumptions'!$C$117) ->  | G35: =IF(Interface!$J$7<Validation!$B$17,0,'Production Assumptions'!$C$117) ->  | H35: =IF(Interface!$J$7<Validation!$B$17,0,'Production Assumptions'!$C$117) ->  | I35: =IF(Interface!$J$7<Validation!$B$17,0,'Production Assumptions'!$C$117) ->  | J35: =IF(Interface!$J$7<Validation!$B$17,0,'Production Assumptions'!$C$117) ->  | K35: =IF(Interface!$J$7<Validation!$B$17,0,'Production Assumptions'!$C$117) ->  | L35: =IF(Interface!$J$7<Validation!$B$17,0,'Production Assumptions'!$C$117) ->  | M35: =IF(Interface!$J$7<Validation!$B$17,0,'Production Assumptions'!$C$117) ->  | N35: =IF(Interface!$J$7<Validation!$B$17,0,'Production Assumptions'!$C$117) ->  | O35: =IF(Interface!$J$7<Validation!$B$17,0,'Production Assumptions'!$C$117) ->  | Q35: =$O$35*'Production Assumptions'!$C$6 ->  | R35: =$O$35*'Production Assumptions'!$C$6 ->  | S35: =$O$35*'Production Assumptions'!$C$6 ->  | T35: =$O$35*'Production Assumptions'!$C$6 ->  | U35: =$O$35*'Production Assumptions'!$C$6 ->  | V35: =$O$35*'Production Assumptions'!$C$6 ->  | W35: =$O$35*'Production Assumptions'!$C$6 ->  | X35: =$O$35*'Production Assumptions'!$C$6 ->  | Y35: =$O$35*'Production Assumptions'!$C$6 ->  | Z35: =$O$35*'Production Assumptions'!$C$6 ->  | AA35: =$O$35*'Production Assumptions'!$C$6 ->  | AB35: =$O$35*'Production Assumptions'!$C$6 ->  | AC35: =($AB35*('Production Assumptions'!$C$6))*12 ->  | AD35: =($AB35*('Production Assumptions'!$C$6)^AC2)*12 ->  | AE35: =($AB35*('Production Assumptions'!$C$6)^AD2)*12 ->  | AF35: =($AB35*('Production Assumptions'!$C$6)^AE2)*12 ->  | AG35: =($AB35*('Production Assumptions'!$C$6)^AF2)*12 ->  | AH35: =($AB35*('Production Assumptions'!$C$6)^AG2)*12 ->  | AI35: =($AB35*('Production Assumptions'!$C$6)^AH2)*12 ->  | AJ35: =($AB35*('Production Assumptions'!$C$6)^AI2)*12 -> 
B36: Reserve & Unforeseen Cost | D36: =$D$19*'Production Assumptions'!$C$119 ->  | E36: =$D$19*'Production Assumptions'!$C$119 ->  | F36: =$D$19*'Production Assumptions'!$C$119 ->  | G36: =$D$19*'Production Assumptions'!$C$119 ->  | H36: =$D$19*'Production Assumptions'!$C$119 ->  | I36: =$D$19*'Production Assumptions'!$C$119 ->  | J36: =$D$19*'Production Assumptions'!$C$119 ->  | K36: =$D$19*'Production Assumptions'!$C$119 ->  | L36: =$D$19*'Production Assumptions'!$C$119 ->  | M36: =$D$19*'Production Assumptions'!$C$119 ->  | N36: =$D$19*'Production Assumptions'!$C$119 ->  | O36: =$D$19*'Production Assumptions'!$C$119 ->  | Q36: =$O$36*('Production Assumptions'!$C$6) ->  | R36: =$O$36*('Production Assumptions'!$C$6) ->  | S36: =$O$36*('Production Assumptions'!$C$6) ->  | T36: =$O$36*('Production Assumptions'!$C$6) ->  | U36: =$O$36*('Production Assumptions'!$C$6) ->  | V36: =$O$36*('Production Assumptions'!$C$6) ->  | W36: =$O$36*('Production Assumptions'!$C$6) ->  | X36: =$O$36*('Production Assumptions'!$C$6) ->  | Y36: =$O$36*('Production Assumptions'!$C$6) ->  | Z36: =$O$36*('Production Assumptions'!$C$6) ->  | AA36: =$O$36*('Production Assumptions'!$C$6) ->  | AB36: =$O$36*('Production Assumptions'!$C$6) ->  | AC36: =($AB$36*('Production Assumptions'!$C$6))*12 ->  | AD36: =($AB$36*('Production Assumptions'!$C$6)^AC2)*12 ->  | AE36: =($AB$36*('Production Assumptions'!$C$6)^AD2)*12 ->  | AF36: =($AB$36*('Production Assumptions'!$C$6)^AE2)*12 ->  | AG36: =($AB$36*('Production Assumptions'!$C$6)^AF2)*12 ->  | AH36: =($AB$36*('Production Assumptions'!$C$6)^AG2)*12 ->  | AI36: =($AB$36*('Production Assumptions'!$C$6)^AH2)*12 ->  | AJ36: =($AB$36*('Production Assumptions'!$C$6)^AI2)*12 -> 
